Workbook

Sheet Notes
A1: WhiteNoiseUniversalOscillator.xlsm
A2: Coded beginning 2014-Nov-05 by Ronald McAllister (rpmac_xltt@sprynet.com)
B3: For publication with the January 2015 issue
A5: This Workbook demonstrates an EXCEL version of the ideas presented
A6: by John Ehlers, PhD in an article titled "Whiter Is Better"
A7: which appeared in the January 2015 issue of
A8: "Technical Analysis of Stocks and Commodities" magazine.
A10: Change Log
B12: 2014Dec29 Ron McAllister
C13: Got a note today from D. Kraska who pointed out a transcription omission in my version of the formula for Mr. Ehlers a1 value.
C14: In the original version of this spreadsheet the formula in cell A21 read as =EXP(-1.414*3/A19)
C15: When it should have read as =EXP(-1.414*3.14159/A19)
C16: 3 is just not a very close approximation for the trigonometric value of PI().
A18: CalculationsAndCharts construction Notes:
A20: Data for this EXCEL example:
B22: This example was built using Raytheon Company (RTN) -NYSE (Daily).
C23: Plotting dates 10/4/3013 through 7/23/2014 with BandEdge set at 20 will replicate the chart shown in Figure 3 of the article.
C24: Plotting dates 10/4/3013 through 7/23/2014 with BandEdge set at 50 will replicate the chart shown in Figure 4 of the article.
A26: Development Notes:
A27: 1 | C27: This workbook contains and uses VBA macros.
A28: 2 | C28: Input Data
C29: The data in this workbook is sorted date descending (most recent date at the top). All formulas and
C30: VBA routines are built accordingly.
A32: Calculation and Chart Worksheet Usage Comments:
A33: 1 | C33: In General, Items in Bolded BLUE are items you may freely change to play what-if games.
C34: Be sure to have a backup copy of the spreadsheet before you alter anything else.
A35: 2 | C35: Several of the column formulas begin with "IF" logic that determines when there is sufficient data
C36: available for the subsequent calculations to be relevant. The cell will calculate to blank or the
C37: result of the calculation.
C38: In a couple of cases, this "IF" logic also sets starter values for subsequent smoothing calculations.
A39: 3 | C39: Data windowing can be performed by changing cell A11. Positive values logically "Pan" the
C40: data window represented by the Calculation sheet down the input sheet and back in time.
C41: This can have two side effects: First, data may fall outside of the fixed Y-axis scales and be clipped
C42: or fall well inside the Y-axis scales wasting a lot of chart vertical space. Second, you may move far
C43: enough back that you do not have sufficient data points to fill the left of the chart.
A44: 4 | C44: The VBA macros behind the SetChart button address these Data Windowing problems and also
C45: resizes and vertically aligns all charts on the work sheet to match the Price chart and then
C46: horizontally adjusts the X-axis positions of all charts on the work sheet so that the corresponding
C47: data points align vertically.
C48: The macros behind the SetChart button are sensitive to the user control values in cells A11 and
C49: A12, and also uses the computed values in cells A8, F11, and F12

Sheet InputPriceData
A1: Raytheon Company (RTN) -NYSE (Daily)
A2: Last Trade: | B2: 2014-11-07 | C2: 104.54 | D2: 104.64 | E2: 103.26 | F2: 104.36 | G2: 1775996 | H2: 4:02pm | L2: Notes: | M2: Online Yahoo Finance Query Interfaces used in the VBA code to obtain this data:
A3: Request Online Yahoo History for: | M3: A.) Price History Only: "http://ichart.finance.yahoo.com/table.csv"
A4: Symbol | B4: RTN | D4: Valid | M4: B.) Price History w/ imbedded divs n splits: "http://ichart.finance.yahoo.com/x"
A5: From | B5: 1977-01-07 | D5: Data
A6: To | B6: =TODAY() -> 2014-12-29 | D6: Types | E6: =VLOOKUP(B7,D7:E10,2,FALSE) -> d | M6: C.) Fundamentals (in this case name and exchange):
A7: Data Type | B7: Daily | D7: Daily | E7: d | M7: "http://download.finance.yahoo.com/d/quotes.csv?"
D8: Weekly | E8: w | M8: For some how-to doc regarding this particular interface, including a list of the
A9: Available Data | D9: Monthly | E9: m | M9: specific fields you can include in a request to this interface see:
A10: Bar Count: | B10: =COUNTA(B15:B53166)-1 -> 8288 | M10: http://www.gummy-stuff.org/Yahoo-data.htm
A11: From: | B11: =IF(B10<=0,"",OFFSET(B15,B10,IF(HistReqDataType="v",1,0),1,1)) -> 1981-12-31 | M11: This web site includes a downloadable working EXCEL/VBA example | W11: Trailing 12 Month Dividend Returns
A12: To: | B12: =IF(B10<=0,"",IF(HistReqDataType="v",OFFSET(B15,2,1,1,1),OFFSET(B15,1,0,1,1))) -> 2014-11-07 | M12: of the capabilities of this interface. | W12: Raw Close price on Dividend date | X12: Looking for year ago Div date | Y12: Year ago Div Date we found | Z12: row offset to year ago div Date | AA12: Same month flag | AB12: Trailing 12 Div Total | AC12: Trailing 12 Div return
Q13: Split History | S13: =COUNT(Q16:Q10996) -> 2 | T13: Running | U13: Dividend History
B14: Raw Data Values | H14: Adjusted | I14: Price Adjust | J14: Vol Adjust | K14: Adjusted Values | P14: Last | Q14: Effective | R14: Shares | T14: Vol Adjust | V14: =COUNT(U16:U10996) -> 132
A15: RelRow | B15: Date | C15: Open | D15: High | E15: Low | F15: Close | G15: Volume | H15: Close | I15: Factor | J15: Factor | K15: Open | L15: High | M15: Low | N15: Close | O15: Volume | P15: Trade | Q15: 41953 | R15: New | S15: Old | T15: 1 | U15: Date | V15: $ / Share
A16: 1 | B16: 2014-11-07 | C16: 104.54 | D16: 104.64 | E16: 103.26 | F16: 104.36 | G16: 1776000 | H16: 104.36 | I16: =H16/F16 -> 1 | J16: =INDEX(OFFSET($T$15,0,0,$S$13+1,1),MATCH(B16,OFFSET($Q$15,0,0,$S$13+1,1),-1)) -> 1 | K16: =ROUND($I16*C16,2) -> 104.54 | L16: =ROUND($I16*D16,2) -> 104.64 | M16: 103.26 | N16: 104.36 | O16: =G16*J16 -> 1776000 | Q16: 1995-10-24 | R16: 2 | S16: 1 | T16: 2 | U16: 2014-09-29 | V16: 0.605 | W16: =(INDEX(OFFSET($F$15,1,0,$B$10,1),MATCH(U16,OFFSET($B$15,1,0,$B$10,1),-1))) -> 100.89 | X16: =IF(MONTH(DATE(YEAR(U16)-1,MONTH(U16),DAY(U16)))<>MONTH(U16),DATE(YEAR(U16)-1,MONTH(U16),DAY(U16-1)),DATE(YEAR(U16)-1,MONTH(U16),DAY(U16))) -> 2013-09-29 | Y16: =OFFSET(U15,Z16,0,1,1) -> 2013-09-30 | Z16: =MATCH(X16,OFFSET($U$15,A16,0,$V$14+1-A16,1),-1) -> 5 | AA16: =IF(MONTH(U16)=MONTH(Y16),1,0) -> 1 | AB16: =(V16+IFERROR(SUM(OFFSET(V16,1,0,Z16-AA16-1,1)),0)) -> 2.365 | AC16: =(V16+IFERROR(SUM(OFFSET(V16,1,0,Z16-AA16-1,1)),0))/(INDEX(OFFSET($F$15,1,0,$B$10,1),MATCH(U16,OFFSET($B$15,1,0,$B$10,1),-1))) -> 0.02344137179
A17: 2 | B17: 2014-11-06 | C17: 104.17 | D17: 105.4 | E17: 103.93 | F17: 104.71 | G17: 1336200 | H17: 104.71 | I17: =H17/F17 -> 1 | J17: =INDEX(OFFSET($T$15,0,0,$S$13+1,1),MATCH(B17,OFFSET($Q$15,0,0,$S$13+1,1),-1)) -> 1 | K17: =ROUND($I17*C17,2) -> 104.17 | L17: =ROUND($I17*D17,2) -> 105.4 | M17: =ROUND($I17*E17,2) -> 103.93 | N17: =ROUND($I17*F17,2) -> 104.71 | O17: =G17*J17 -> 1336200 | Q17: 1992-04-03 | R17: 2 | S17: 1 | T17: 4 | U17: 2014-06-30 | V17: 0.605 | W17: =(INDEX(OFFSET($F$15,1,0,$B$10,1),MATCH(U17,OFFSET($B$15,1,0,$B$10,1),-1))) -> 92.25 | X17: =IF(MONTH(DATE(YEAR(U17)-1,MONTH(U17),DAY(U17)))<>MONTH(U17),DATE(YEAR(U17)-1,MONTH(U17),DAY(U17-1)),DATE(YEAR(U17)-1,MONTH(U17),DAY(U17))) -> 2013-06-30 | Y17: =OFFSET(U16,Z17,0,1,1) -> 2013-07-01 | Z17: =MATCH(X17,OFFSET($U$15,A17,0,$V$14+1-A17,1),-1) -> 5 | AA17: =IF(MONTH(U17)=MONTH(Y17),1,0) -> 0 | AB17: =(V17+IFERROR(SUM(OFFSET(V17,1,0,Z17-AA17-1,1)),0)) -> 2.86 | AC17: =(V17+IFERROR(SUM(OFFSET(V17,1,0,Z17-AA17-1,1)),0))/(INDEX(OFFSET($F$15,1,0,$B$10,1),MATCH(U17,OFFSET($B$15,1,0,$B$10,1),-1))) -> 0.03100271003
A18: 3 | B18: 2014-11-05 | C18: 105.46 | D18: 105.73 | E18: 103.6 | F18: 104.14 | G18: 2213000 | H18: 104.14 | I18: 1 | J18: 1 | K18: 105.46 | L18: 105.73 | M18: 103.6 | N18: 104.14 | O18: 2213000 | U18: 2014-03-31 | V18: 0.605 | W18: 98.79 | X18: 2013-03-31 | Y18: 2013-04-01 | Z18: 5 | AA18: 0 | AB18: 2.805 | AC18: 0.0283935621
A19: 4 | B19: 2014-11-04 | C19: 104.89 | D19: 105.75 | E19: 103.68 | F19: 105.1 | G19: 2289300 | H19: 105.1 | I19: 1 | J19: 1 | K19: 104.89 | L19: 105.75 | M19: 103.68 | N19: 105.1 | O19: 2289300 | U19: 2013-12-30 | V19: 0.55 | W19: 90.43 | X19: 2012-12-30 | Y19: 2013-04-01 | Z19: 4 | AA19: 0 | AB19: 2.2 | AC19: 0.02432820966
A20: 5 | B20: 2014-11-03 | C20: 104 | D20: 104.3 | E20: 102.95 | F20: 103.38 | G20: 1222100 | H20: 103.38 | I20: 1 | J20: 1 | K20: 104 | L20: 104.3 | M20: 102.95 | N20: 103.38 | O20: 1222100 | U20: 2013-09-30 | V20: 0.55 | W20: 77.07 | X20: 2012-09-30 | Y20: 2012-10-01 | Z20: 5 | AA20: 0 | AB20: 2.65 | AC20: 0.03438432594
A21: 6 | B21: 2014-10-31 | C21: 104.64 | D21: 104.97 | E21: 103.24 | F21: 103.88 | G21: 2006000 | H21: 103.88 | I21: 1 | J21: 1 | K21: 104.64 | L21: 104.97 | M21: 103.24 | N21: 103.88 | O21: 2006000 | U21: 2013-07-01 | V21: 0.55 | W21: 66.1 | X21: 2012-07-01 | Y21: 2012-07-02 | Z21: 5 | AA21: 1 | AB21: 2.1 | AC21: 0.03177004539
A22: 7 | B22: 2014-10-30 | C22: 101.65 | D22: 103.8 | E22: 100.23 | F22: 103.2 | G22: 1740700 | H22: 103.2 | I22: 1 | J22: 1 | K22: 101.65 | L22: 103.8 | M22: 100.23 | N22: 103.2 | O22: 1740700 | U22: 2013-04-01 | V22: 0.55 | W22: 57.89 | X22: 2012-04-01 | Y22: 2012-04-02 | Z22: 5 | AA22: 1 | AB22: 2.05 | AC22: 0.03541198825
A23: 8 | B23: 2014-10-29 | C23: 101.54 | D23: 102.1 | E23: 100.91 | F23: 101.66 | G23: 1913100 | H23: 101.66 | I23: 1 | J23: 1 | K23: 101.54 | L23: 102.1 | M23: 100.91 | N23: 101.66 | O23: 1913100 | U23: 2012-12-28 | V23: 0.5 | W23: 56.7 | X23: 2011-12-28 | Y23: 2011-12-30 | Z23: 5 | AA23: 1 | AB23: 2 | AC23: 0.03527336861
A24: 9 | B24: 2014-10-28 | C24: 99.65 | D24: 101.46 | E24: 99.65 | F24: 101.07 | G24: 1902400 | H24: 101.07 | I24: 1 | J24: 1 | K24: 99.65 | L24: 101.46 | M24: 99.65 | N24: 101.07 | O24: 1902400 | U24: 2012-10-01 | V24: 0.5 | W24: 55.58 | X24: 2011-10-01 | Y24: 2011-10-03 | Z24: 5 | AA24: 1 | AB24: 1.93 | AC24: 0.03472472112
A25: 10 | B25: 2014-10-27 | C25: 98 | D25: 99.64 | E25: 97.61 | F25: 99.37 | G25: 1565400 | H25: 99.37 | I25: 1 | J25: 1 | K25: 98 | L25: 99.64 | M25: 97.61 | N25: 99.37 | O25: 1565400 | U25: 2012-07-02 | V25: 0.5 | W25: 55.98 | X25: 2011-07-02 | Y25: 2011-10-03 | Z25: 4 | AA25: 0 | AB25: 1.86 | AC25: 0.0332261522
A26: 11 | B26: 2014-10-24 | C26: 98.89 | D26: 99.53 | E26: 96.84 | F26: 98.12 | G26: 1636100 | H26: 98.12 | I26: 1 | J26: 1 | K26: 98.89 | L26: 99.53 | M26: 96.84 | N26: 98.12 | O26: 1636100 | U26: 2012-04-02 | V26: 0.5 | W26: 52.7 | X26: 2011-04-02 | Y26: 2011-04-04 | Z26: 5 | AA26: 1 | AB26: 1.79 | AC26: 0.0339658444
A27: 12 | B27: 2014-10-23 | C27: 96.39 | D27: 99.48 | E27: 95.81 | F27: 98.88 | G27: 1906600 | H27: 98.88 | I27: 1 | J27: 1 | K27: 96.39 | L27: 99.48 | M27: 95.81 | N27: 98.88 | O27: 1906600 | U27: 2011-12-30 | V27: 0.43 | W27: 48.38 | X27: 2010-12-30 | Y27: 2011-01-03 | Z27: 5 | AA27: 0 | AB27: 2.095 | AC27: 0.04330301778
A28: 13 | B28: 2014-10-22 | C28: 98.43 | D28: 99.22 | E28: 97.32 | F28: 97.45 | G28: 1907200 | H28: 97.45 | I28: 1 | J28: 1 | K28: 98.43 | L28: 99.22 | M28: 97.32 | N28: 97.45 | O28: 1907200 | U28: 2011-10-03 | V28: 0.43 | W28: 39.5 | X28: 2010-10-03 | Y28: 2011-01-03 | Z28: 4 | AA28: 0 | AB28: 1.665 | AC28: 0.04215189873
A29: 14 | B29: 2014-10-21 | C29: 96.95 | D29: 98.2 | E29: 96 | F29: 98.11 | G29: 1815600 | H29: 98.11 | I29: 1 | J29: 1 | K29: 96.95 | L29: 98.2 | M29: 96 | N29: 98.11 | O29: 1815600 | U29: 2011-07-01 | V29: 0.43 | W29: 50.11 | X29: 2010-07-01 | Y29: 2010-07-01 | Z29: 5 | AA29: 1 | AB29: 1.61 | AC29: 0.03212931551
A30: 15 | B30: 2014-10-20 | C30: 97 | D30: 97.45 | E30: 95.91 | F30: 96.84 | G30: 1535600 | H30: 96.84 | I30: 1 | J30: 1 | K30: 97 | L30: 97.45 | M30: 95.91 | N30: 96.84 | O30: 1535600 | U30: 2011-04-04 | V30: 0.43 | W30: 50.46 | X30: 2010-04-04 | Y30: 2010-07-01 | Z30: 4 | AA30: 0 | AB30: 1.555 | AC30: 0.03081648831
A31: 16 | B31: 2014-10-17 | C31: 96.46 | D31: 97.65 | E31: 96.14 | F31: 97.46 | G31: 1763100 | H31: 97.46 | I31: 1 | J31: 1 | K31: 96.46 | L31: 97.65 | M31: 96.14 | N31: 97.46 | O31: 1763100 | U31: 2011-01-03 | V31: 0.375 | W31: 46.09 | X31: 2010-01-03 | Y31: 2010-04-01 | Z31: 4 | AA31: 0 | AB31: 1.5 | AC31: 0.03254502061
A32: 17 | B32: 2014-10-16 | C32: 93.99 | D32: 95.87 | E32: 93.53 | F32: 95.32 | G32: 1583200 | H32: 95.32 | I32: 1 | J32: 1 | K32: 93.99 | L32: 95.87 | M32: 93.53 | N32: 95.32 | O32: 1583200 | U32: 2010-10-01 | V32: 0.375 | W32: 44.61 | X32: 2009-10-01 | Y32: 2009-10-02 | Z32: 5 | AA32: 1 | AB32: 1.435 | AC32: 0.03216767541
A33: 18 | B33: 2014-10-15 | C33: 95.15 | D33: 95.76 | E33: 92.96 | F33: 95.41 | G33: 2225500 | H33: 95.41 | I33: 1 | J33: 1 | K33: 95.15 | L33: 95.76 | M33: 92.96 | N33: 95.41 | O33: 2225500 | U33: 2010-07-01 | V33: 0.375 | W33: 47.73 | X33: 2009-07-01 | Y33: 2009-07-02 | Z33: 5 | AA33: 1 | AB33: 1.37 | AC33: 0.02870312173
A34: 19 | B34: 2014-10-14 | C34: 94.14 | D34: 97.49 | E34: 93.85 | F34: 96.56 | G34: 2885600 | H34: 96.56 | I34: 1 | J34: 1 | K34: 94.14 | L34: 97.49 | M34: 93.85 | N34: 96.56 | O34: 2885600 | U34: 2010-04-01 | V34: 0.375 | W34: 56.92 | X34: 2009-04-01 | Y34: 2009-04-03 | Z34: 5 | AA34: 1 | AB34: 1.305 | AC34: 0.02292691497
A35: 20 | B35: 2014-10-13 | C35: 95.51 | D35: 96.16 | E35: 93.71 | F35: 93.85 | G35: 2056300 | H35: 93.85 | I35: 1 | J35: 1 | K35: 95.51 | L35: 96.16 | M35: 93.71 | N35: 93.85 | O35: 2056300 | U35: 2009-12-30 | V35: 0.31 | W35: 52.18 | X35: 2008-12-30 | Y35: 2008-12-30 | Z35: 5 | AA35: 1 | AB35: 1.24 | AC35: 0.02376389421
A36: 21 | B36: 2014-10-10 | C36: 95.14 | D36: 96.4 | E36: 94.6 | F36: 95.47 | G36: 2196200 | H36: 95.47 | I36: 1 | J36: 1 | K36: 95.14 | L36: 96.4 | M36: 94.6 | N36: 95.47 | O36: 2196200 | U36: 2009-10-02 | V36: 0.31 | W36: 46.01 | X36: 2008-10-02 | Y36: 2008-10-03 | Z36: 5 | AA36: 1 | AB36: 1.21 | AC36: 0.02629863073
A37: 22 | B37: 2014-10-09 | C37: 96.84 | D37: 96.96 | E37: 94.72 | F37: 94.97 | G37: 1497100 | H37: 94.97 | I37: 1 | J37: 1 | K37: 96.84 | L37: 96.96 | M37: 94.72 | N37: 94.97 | O37: 1497100 | U37: 2009-07-02 | V37: 0.31 | W37: 43.01 | X37: 2008-07-02 | Y37: 2008-07-08 | Z37: 5 | AA37: 1 | AB37: 1.18 | AC37: 0.02743548012
A38: 23 | B38: 2014-10-08 | C38: 96.12 | D38: 97.03 | E38: 94.93 | F38: 96.95 | G38: 1943300 | H38: 96.95 | I38: 1 | J38: 1 | K38: 96.12 | L38: 97.03 | M38: 94.93 | N38: 96.95 | O38: 1943300 | U38: 2009-04-03 | V38: 0.31 | W38: 38.47 | X38: 2008-04-03 | Y38: 2008-07-08 | Z38: 4 | AA38: 0 | AB38: 1.15 | AC38: 0.02989342345
A39: 24 | B39: 2014-10-07 | C39: 98.19 | D39: 98.2 | E39: 95.77 | F39: 95.77 | G39: 2332100 | H39: 95.77 | I39: 1 | J39: 1 | K39: 98.19 | L39: 98.2 | M39: 95.77 | N39: 95.77 | O39: 2332100 | U39: 2008-12-30 | V39: 0.28 | W39: 50.67 | X39: 2007-12-30 | Y39: 2007-12-31 | Z39: 5 | AA39: 1 | AB39: 1.12 | AC39: 0.02210380896
A40: 25 | B40: 2014-10-06 | C40: 99.65 | D40: 100.22 | E40: 98.34 | F40: 98.4 | G40: 1405700 | H40: 98.4 | I40: 1 | J40: 1 | K40: 99.65 | L40: 100.22 | M40: 98.34 | N40: 98.4 | O40: 1405700 | U40: 2008-10-03 | V40: 0.28 | W40: 53.17 | X40: 2007-10-03 | Y40: 2007-12-31 | Z40: 4 | AA40: 0 | AB40: 1.095 | AC40: 0.02059432011
A41: 26 | B41: 2014-10-03 | C41: 98.71 | D41: 99.87 | E41: 98.38 | F41: 99.18 | G41: 2142200 | H41: 99.18 | I41: 1 | J41: 1 | K41: 98.71 | L41: 99.87 | M41: 98.38 | N41: 99.18 | O41: 2142200 | U41: 2008-07-08 | V41: 0.28 | W41: 57.44 | X41: 2007-07-08 | Y41: 2007-09-28 | Z41: 4 | AA41: 0 | AB41: 1.07 | AC41: 0.0186281337
A42: 27 | B42: 2014-10-02 | C42: 99.17 | D42: 99.4 | E42: 97.21 | F42: 97.68 | G42: 1695600 | H42: 97.68 | I42: 1 | J42: 1 | K42: 99.17 | L42: 99.4 | M42: 97.21 | N42: 97.68 | O42: 1695600 | U42: 2008-03-28 | V42: 0.28 | W42: 64.5 | X42: 2007-03-28 | Y42: 2007-03-30 | Z42: 5 | AA42: 1 | AB42: 1.045 | AC42: 0.01620155039
A43: 28 | B43: 2014-10-01 | C43: 100.97 | D43: 100.97 | E43: 98.7 | F43: 99.19 | G43: 2642500 | H43: 99.19 | I43: 1 | J43: 1 | K43: 100.97 | L43: 100.97 | M43: 98.7 | N43: 99.19 | O43: 2642500 | U43: 2007-12-31 | V43: 0.255 | W43: 60.7 | X43: 2006-12-31 | Y43: 2007-03-30 | Z43: 4 | AA43: 0 | AB43: 1.02 | AC43: 0.01680395387
A44: 29 | B44: 2014-09-30 | C44: 101.37 | D44: 102.36 | E44: 101.09 | F44: 101.62 | G44: 1777300 | H44: 101.62 | I44: 1 | J44: 1 | K44: 101.37 | L44: 102.36 | M44: 101.09 | N44: 101.62 | O44: 1777300 | U44: 2007-09-28 | V44: 0.255 | W44: 63.82 | X44: 2006-09-28 | Y44: 2006-10-02 | Z44: 5 | AA44: 0 | AB44: 1.245 | AC44: 0.01950799123
A45: 30 | B45: 2014-09-29 | C45: 99.94 | D45: 101.61 | E45: 98.98 | F45: 100.89 | G45: 1462700 | H45: 100.89 | I45: 1 | J45: 1 | K45: 99.94 | L45: 101.61 | M45: 98.98 | N45: 100.89 | O45: 1462700 | U45: 2007-06-29 | V45: 0.255 | W45: 53.89 | X45: 2006-06-29 | Y45: 2006-07-13 | Z45: 5 | AA45: 0 | AB45: 1.23 | AC45: 0.02282427166
A46: 31 | B46: 2014-09-26 | C46: 100.19 | D46: 101.79 | E46: 100.19 | F46: 101.52 | G46: 1385700 | H46: 100.91 | I46: 0.9939913318 | J46: 1 | K46: 99.59 | L46: 101.18 | M46: 99.59 | N46: 100.91 | O46: 1385700 | U46: 2007-03-30 | V46: 0.255 | W46: 52.46 | X46: 2006-03-30 | Y46: 2006-04-07 | Z46: 5 | AA46: 0 | AB46: 1.215 | AC46: 0.02316050324
A47: 32 | B47: 2014-09-25 | C47: 100.65 | D47: 101.05 | E47: 100.1 | F47: 100.19 | G47: 1966600 | H47: 99.59 | I47: 0.9940113784 | J47: 1 | K47: 100.05 | L47: 100.44 | M47: 99.5 | N47: 99.59 | O47: 1966600 | U47: 2006-12-29 | V47: 0.24 | W47: 52.8 | X47: 2005-12-29 | Y47: 2005-12-29 | Z47: 5 | AA47: 1 | AB47: 0.96 | AC47: 0.01818181818
A48: 33 | B48: 2014-09-24 | C48: 101 | D48: 101.1 | E48: 100.52 | F48: 101.05 | G48: 2107600 | H48: 100.45 | I48: 0.9940623454 | J48: 1 | K48: 100.4 | L48: 100.5 | M48: 99.92 | N48: 100.45 | O48: 2107600 | U48: 2006-10-02 | V48: 0.24 | W48: 48.69 | X48: 2005-10-02 | Y48: 2005-12-29 | Z48: 4 | AA48: 0 | AB48: 0.94 | AC48: 0.01930581228
A49: 34 | B49: 2014-09-23 | C49: 101.99 | D49: 102.18 | E49: 100.35 | F49: 100.58 | G49: 1343200 | H49: 99.98 | I49: 0.9940345993 | J49: 1 | K49: 101.38 | L49: 101.57 | M49: 99.75 | N49: 99.98 | O49: 1343200 | U49: 2006-07-13 | V49: 0.24 | W49: 44.06 | X49: 2005-07-13 | Y49: 2005-09-29 | Z49: 4 | AA49: 0 | AB49: 0.92 | AC49: 0.02088061734
A50: 35 | B50: 2014-09-22 | C50: 102.91 | D50: 103.46 | E50: 102.18 | F50: 102.39 | G50: 1186700 | H50: 101.78 | I50: 0.994042387 | J50: 1 | K50: 102.3 | L50: 102.84 | M50: 101.57 | N50: 101.78 | O50: 1186700 | U50: 2006-04-07 | V50: 0.24 | W50: 45.4 | X50: 2005-04-07 | Y50: 2005-06-30 | Z50: 4 | AA50: 0 | AB50: 0.9 | AC50: 0.01982378855
A51: 36 | B51: 2014-09-19 | C51: 103.21 | D51: 103.51 | E51: 102.63 | F51: 103.35 | G51: 2127300 | H51: 102.73 | I51: 0.9940009676 | J51: 1 | K51: 102.59 | L51: 102.89 | M51: 102.01 | N51: 102.73 | O51: 2127300 | U51: 2005-12-29 | V51: 0.22 | W51: 39.94 | X51: 2004-12-29 | Y51: 2005-03-31 | Z51: 4 | AA51: 0 | AB51: 0.88 | AC51: 0.02203304957
A52: 37 | B52: 2014-09-18 | C52: 102.44 | D52: 102.54 | E52: 102.1 | F52: 102.48 | G52: 1029200 | H52: 101.87 | I52: 0.994047619 | J52: 1 | K52: 101.83 | L52: 101.93 | M52: 101.49 | N52: 101.87 | O52: 1029200 | U52: 2005-09-29 | V52: 0.22 | W52: 37.61 | X52: 2004-09-29 | Y52: 2004-09-30 | Z52: 5 | AA52: 1 | AB52: 0.86 | AC52: 0.02286625897
A53: 38 | B53: 2014-09-17 | C53: 102.06 | D53: 102.92 | E53: 101.72 | F53: 102.28 | G53: 1024300 | H53: 101.67 | I53: 0.9940359797 | J53: 1 | K53: 101.45 | L53: 102.31 | M53: 101.11 | N53: 101.67 | O53: 1024300 | U53: 2005-06-30 | V53: 0.22 | W53: 39.12 | X53: 2004-06-30 | Y53: 2004-07-02 | Z53: 5 | AA53: 0 | AB53: 1.04 | AC53: 0.02658486708
A54: 39 | B54: 2014-09-16 | C54: 101.35 | D54: 102.18 | E54: 101.04 | F54: 101.71 | G54: 1621200 | H54: 101.1 | I54: 0.9940025563 | J54: 1 | K54: 100.74 | L54: 101.57 | M54: 100.43 | N54: 101.1 | O54: 1621200 | U54: 2005-03-31 | V54: 0.22 | W54: 38.7 | X54: 2004-03-31 | Y54: 2004-04-01 | Z54: 5 | AA54: 0 | AB54: 1.02 | AC54: 0.02635658915
A55: 40 | B55: 2014-09-15 | C55: 100.96 | D55: 101.68 | E55: 100.44 | F55: 101.51 | G55: 1935800 | H55: 100.91 | I55: 0.9940892523 | J55: 1 | K55: 100.36 | L55: 101.08 | M55: 99.85 | N55: 100.91 | O55: 1935800 | U55: 2004-12-22 | V55: 0.2 | W55: 39.04 | X55: 2003-12-22 | Y55: 2003-12-30 | Z55: 5 | AA55: 1 | AB55: 0.8 | AC55: 0.02049180328
A56: 41 | B56: 2014-09-12 | C56: 100.65 | D56: 101.37 | E56: 100.32 | F56: 100.77 | G56: 1563200 | H56: 100.17 | I56: 0.994045847 | J56: 1 | K56: 100.05 | L56: 100.77 | M56: 99.72 | N56: 100.17 | O56: 1563200 | U56: 2004-09-30 | V56: 0.2 | W56: 37.98 | X56: 2003-09-30 | Y56: 2003-10-02 | Z56: 5 | AA56: 0 | AB56: 1 | AC56: 0.02632964718
A57: 42 | B57: 2014-09-11 | C57: 101.05 | D57: 101.2 | E57: 100.53 | F57: 100.93 | G57: 2458900 | H57: 100.33 | I57: 0.9940552858 | J57: 1 | K57: 100.45 | L57: 100.6 | M57: 99.93 | N57: 100.33 | O57: 2458900 | U57: 2004-07-02 | V57: 0.2 | W57: 34.72 | X57: 2003-07-02 | Y57: 2003-07-02 | Z57: 5 | AA57: 1 | AB57: 0.8 | AC57: 0.02304147465
A58: 43 | B58: 2014-09-10 | C58: 99.43 | D58: 101.31 | E58: 99.23 | F58: 100.9 | G58: 3001400 | H58: 100.3 | I58: 0.9940535183 | J58: 1 | K58: 98.84 | L58: 100.71 | M58: 98.64 | N58: 100.3 | O58: 3001400 | U58: 2004-04-01 | V58: 0.2 | W58: 31.14 | X58: 2003-04-01 | Y58: 2003-04-03 | Z58: 5 | AA58: 1 | AB58: 0.8 | AC58: 0.02569043031
A59: 44 | B59: 2014-09-09 | C59: 99.08 | D59: 99.89 | E59: 98.75 | F59: 99.34 | G59: 1898400 | H59: 98.75 | I59: 0.9940608013 | J59: 1 | K59: 98.49 | L59: 99.3 | M59: 98.16 | N59: 98.75 | O59: 1898400 | U59: 2003-12-30 | V59: 0.2 | W59: 29.9 | X59: 2002-12-30 | Y59: 2002-12-30 | Z59: 5 | AA59: 1 | AB59: 0.8 | AC59: 0.02675585284
A60: 45 | B60: 2014-09-08 | C60: 97.85 | D60: 98.71 | E60: 97.8 | F60: 98.5 | G60: 1835100 | H60: 97.91 | I60: 0.9940101523 | J60: 1 | K60: 97.26 | L60: 98.12 | M60: 97.21 | N60: 97.91 | O60: 1835100 | U60: 2003-10-02 | V60: 0.2 | W60: 28.08 | X60: 2002-10-02 | Y60: 2002-10-03 | Z60: 5 | AA60: 1 | AB60: 0.8 | AC60: 0.02849002849
A61: 46 | B61: 2014-09-05 | C61: 97.21 | D61: 97.9 | E61: 96.99 | F61: 97.76 | G61: 2411300 | H61: 97.18 | I61: 0.9940671031 | J61: 1 | K61: 96.63 | L61: 97.32 | M61: 96.41 | N61: 97.18 | O61: 2411300 | U61: 2003-07-02 | V61: 0.2 | W61: 33.16 | X61: 2002-07-02 | Y61: 2002-07-03 | Z61: 5 | AA61: 1 | AB61: 0.8 | AC61: 0.02412545235
A62: 47 | B62: 2014-09-04 | C62: 96.75 | D62: 97.48 | E62: 96.64 | F62: 97.11 | G62: 2055400 | H62: 96.53 | I62: 0.9940273916 | J62: 1 | K62: 96.17 | L62: 96.9 | M62: 96.06 | N62: 96.53 | O62: 2055400 | U62: 2003-04-03 | V62: 0.2 | W62: 28.99 | X62: 2002-04-03 | Y62: 2002-04-04 | Z62: 5 | AA62: 1 | AB62: 0.8 | AC62: 0.02759572266
A63: 48 | B63: 2014-09-03 | C63: 96.78 | D63: 96.95 | E63: 96.21 | F63: 96.64 | G63: 2269800 | H63: 96.06 | I63: 0.9939983444 | J63: 1 | K63: 96.2 | L63: 96.37 | M63: 95.63 | N63: 96.06 | O63: 2269800 | U63: 2002-12-30 | V63: 0.2 | W63: 29.88 | X63: 2001-12-30 | Y63: 2002-04-04 | Z63: 4 | AA63: 0 | AB63: 0.8 | AC63: 0.02677376171
A64: 49 | B64: 2014-09-02 | C64: 96.71 | D64: 96.76 | E64: 95.91 | F64: 96.48 | G64: 2037700 | H64: 95.91 | I64: 0.9940920398 | J64: 1 | K64: 96.14 | L64: 96.19 | M64: 95.34 | N64: 95.91 | O64: 2037700 | U64: 2002-10-03 | V64: 0.2 | W64: 29.71 | X64: 2001-10-03 | Y64: 2001-10-03 | Z64: 5 | AA64: 1 | AB64: 0.8 | AC64: 0.02692696062
A65: 50 | B65: 2014-08-29 | C65: 96.39 | D65: 96.83 | E65: 95.9 | F65: 96.34 | G65: 1643500 | H65: 95.77 | I65: 0.9940834544 | J65: 1 | K65: 95.82 | L65: 96.26 | M65: 95.33 | N65: 95.77 | O65: 1643500 | U65: 2002-07-03 | V65: 0.2 | W65: 37.96 | X65: 2001-07-03 | Y65: 2001-07-05 | Z65: 5 | AA65: 1 | AB65: 0.8 | AC65: 0.0210748156
A66: 51 | B66: 2014-08-28 | C66: 95.75 | D66: 96.19 | E66: 95.5 | F66: 96.04 | G66: 1400600 | H66: 95.47 | I66: 0.9940649729 | J66: 1 | K66: 95.18 | L66: 95.62 | M66: 94.93 | N66: 95.47 | O66: 1400600 | U66: 2002-04-04 | V66: 0.2 | W66: 38.42 | X66: 2001-04-04 | Y66: 2001-04-04 | Z66: 5 | AA66: 1 | AB66: 0.8 | AC66: 0.02082248829
A67: 52 | B67: 2014-08-27 | C67: 96.71 | D67: 97 | E67: 95.94 | F67: 96.16 | G67: 1067700 | H67: 95.59 | I67: 0.9940723794 | J67: 1 | K67: 96.14 | L67: 96.43 | M67: 95.37 | N67: 95.59 | O67: 1067700 | U67: 2001-12-28 | V67: 0.2 | W67: 32 | X67: 2000-12-28 | Y67: 2000-12-28 | Z67: 5 | AA67: 1 | AB67: 0.8 | AC67: 0.025
A68: 53 | B68: 2014-08-26 | C68: 97.13 | D68: 97.22 | E68: 96.58 | F68: 96.61 | G68: 697100 | H68: 96.03 | I68: 0.9939964807 | J68: 1 | K68: 96.55 | L68: 96.64 | M68: 96 | N68: 96.03 | O68: 697100 | U68: 2001-10-03 | V68: 0.2 | W68: 35.1 | X68: 2000-10-03 | Y68: 2000-10-04 | Z68: 5 | AA68: 1 | AB68: 0.8 | AC68: 0.02279202279
A69: 54 | B69: 2014-08-25 | C69: 97 | D69: 97.21 | E69: 96.72 | F69: 97.07 | G69: 624300 | H69: 96.49 | I69: 0.9940249305 | J69: 1 | K69: 96.42 | L69: 96.63 | M69: 96.14 | N69: 96.49 | O69: 624300 | U69: 2001-07-05 | V69: 0.2 | W69: 26.97 | X69: 2000-07-05 | Y69: 2000-07-06 | Z69: 5 | AA69: 1 | AB69: 0.8 | AC69: 0.02966258806
A70: 55 | B70: 2014-08-22 | C70: 96.43 | D70: 97.24 | E70: 96.35 | F70: 96.58 | G70: 842400 | H70: 96 | I70: 0.9939946159 | J70: 1 | K70: 95.85 | L70: 96.66 | M70: 95.77 | N70: 96 | O70: 842400 | U70: 2001-04-04 | V70: 0.2 | W70: 30.24 | X70: 2000-04-04 | Y70: 2000-07-06 | Z70: 4 | AA70: 0 | AB70: 0.8 | AC70: 0.02645502646
A71: 56 | B71: 2014-08-21 | C71: 96.74 | D71: 97 | E71: 96.42 | F71: 96.58 | G71: 975800 | H71: 96 | I71: 0.9939946159 | J71: 1 | K71: 96.16 | L71: 96.42 | M71: 95.84 | N71: 96 | O71: 975800 | U71: 2000-12-28 | V71: 0.2 | W71: 30.5 | X71: 1999-12-28 | Y71: 1999-12-30 | Z71: 5 | AA71: 1 | AB71: 0.8 | AC71: 0.0262295082
A72: 57 | B72: 2014-08-20 | C72: 95.2 | D72: 96.85 | E72: 94.92 | F72: 96.66 | G72: 1829600 | H72: 96.08 | I72: 0.9939995862 | J72: 1 | K72: 94.63 | L72: 96.27 | M72: 94.35 | N72: 96.08 | O72: 1829600 | U72: 2000-10-04 | V72: 0.2 | W72: 29.06 | X72: 1999-10-04 | Y72: 1999-12-30 | Z72: 4 | AA72: 0 | AB72: 0.8 | AC72: 0.02752924983
A73: 58 | B73: 2014-08-19 | C73: 94.64 | D73: 95.22 | E73: 94.45 | F73: 95.06 | G73: 1495900 | H73: 94.49 | I73: 0.9940037871 | J73: 1 | K73: 94.07 | L73: 94.65 | M73: 93.88 | N73: 94.49 | O73: 1495900 | U73: 2000-07-06 | V73: 0.2 | W73: 20.94 | X73: 1999-07-06 | Y73: 1999-09-29 | Z73: 4 | AA73: 0 | AB73: 0.8 | AC73: 0.03820439351
A74: 59 | B74: 2014-08-18 | C74: 93.9 | D74: 94.98 | E74: 93.9 | F74: 94.8 | G74: 1070200 | H74: 94.24 | I74: 0.994092827 | J74: 1 | K74: 93.35 | L74: 94.42 | M74: 93.35 | N74: 94.24 | O74: 1070200 | U74: 2000-03-30 | V74: 0.2 | W74: 18.31 | X74: 1999-03-30 | Y74: 1999-03-30 | Z74: 5 | AA74: 1 | AB74: 0.8 | AC74: 0.0436919716
A75: 60 | B75: 2014-08-15 | C75: 93.72 | D75: 93.98 | E75: 92.74 | F75: 93.45 | G75: 1144000 | H75: 92.89 | I75: 0.9940074906 | J75: 1 | K75: 93.16 | L75: 93.42 | M75: 92.18 | N75: 92.89 | O75: 1144000 | U75: 1999-12-30 | V75: 0.2 | W75: 26.12 | X75: 1998-12-30 | Y75: 1998-12-30 | Z75: 5 | AA75: 1 | AB75: 0.8 | AC75: 0.03062787136
A76: 61 | B76: 2014-08-14 | C76: 93.53 | D76: 93.88 | E76: 93.25 | F76: 93.41 | G76: 1206700 | H76: 92.85 | I76: 0.9940049245 | J76: 1 | K76: 92.97 | L76: 93.32 | M76: 92.69 | N76: 92.85 | O76: 1206700 | U76: 1999-09-29 | V76: 0.2 | W76: 48.31 | X76: 1998-09-29 | Y76: 1998-09-30 | Z76: 5 | AA76: 1 | AB76: 0.8 | AC76: 0.01655971848
A77: 62 | B77: 2014-08-13 | C77: 91.74 | D77: 93.79 | E77: 91.74 | F77: 93.64 | G77: 1392300 | H77: 93.08 | I77: 0.9940196497 | J77: 1 | K77: 91.19 | L77: 93.23 | M77: 91.19 | N77: 93.08 | O77: 1392300 | U77: 1999-06-30 | V77: 0.2 | W77: 70.5 | X77: 1998-06-30 | Y77: 1998-06-30 | Z77: 5 | AA77: 1 | AB77: 0.8 | AC77: 0.01134751773
A78: 63 | B78: 2014-08-12 | C78: 91.58 | D78: 92.25 | E78: 91.18 | F78: 91.38 | G78: 1092800 | H78: 90.84 | I78: 0.9940906106 | J78: 1 | K78: 91.04 | L78: 91.7 | M78: 90.64 | N78: 90.84 | O78: 1092800 | U78: 1999-03-30 | V78: 0.2 | W78: 56.88 | X78: 1998-03-30 | Y78: 1998-03-31 | Z78: 5 | AA78: 1 | AB78: 0.8 | AC78: 0.01406469761
A79: 64 | B79: 2014-08-11 | C79: 91.96 | D79: 92.16 | E79: 91.33 | F79: 91.41 | G79: 1210900 | H79: 90.87 | I79: 0.99409255 | J79: 1 | K79: 91.42 | L79: 91.62 | M79: 90.79 | N79: 90.87 | O79: 1210900 | U79: 1998-12-30 | V79: 0.2 | W79: 52.75 | X79: 1997-12-30 | Y79: 1998-03-31 | Z79: 4 | AA79: 0 | AB79: 0.8 | AC79: 0.01516587678
A80: 65 | B80: 2014-08-08 | C80: 89.73 | D80: 91.66 | E80: 89.61 | F80: 91.61 | G80: 1450100 | H80: 91.06 | I80: 0.9939962886 | J80: 1 | K80: 89.19 | L80: 91.11 | M80: 89.07 | N80: 91.06 | O80: 1450100 | U80: 1998-09-30 | V80: 0.2 | W80: 53.94 | X80: 1997-09-30 | Y80: 1997-10-02 | Z80: 5 | AA80: 0 | AB80: 1 | AC80: 0.01853911754
A81: 66 | B81: 2014-08-07 | C81: 90.26 | D81: 90.4 | E81: 89.17 | F81: 89.43 | G81: 1537700 | H81: 88.9 | I81: =H81/F81 -> 0.9940735771 | J81: =INDEX(OFFSET($T$15,0,0,$S$13+1,1),MATCH(B81,OFFSET($Q$15,0,0,$S$13+1,1),-1)) -> 1 | K81: =ROUND($I81*C81,2) -> 89.73 | L81: =ROUND($I81*D81,2) -> 89.86 | M81: =ROUND($I81*E81,2) -> 88.64 | N81: =ROUND($I81*F81,2) -> 88.9 | O81: =G81*J81 -> 1537700 | U81: 1998-06-30 | V81: 0.2 | W81: =(INDEX(OFFSET($F$15,1,0,$B$10,1),MATCH(U81,OFFSET($B$15,1,0,$B$10,1),-1))) -> 59.12 | X81: =IF(MONTH(DATE(YEAR(U81)-1,MONTH(U81),DAY(U81)))<>MONTH(U81),DATE(YEAR(U81)-1,MONTH(U81),DAY(U81-1)),DATE(YEAR(U81)-1,MONTH(U81),DAY(U81))) -> 1997-06-30 | Y81: =OFFSET(U80,Z81,0,1,1) -> 1997-07-02 | Z81: =MATCH(X81,OFFSET($U$15,A81,0,$V$14+1-A81,1),-1) -> 5 | AA81: =IF(MONTH(U81)=MONTH(Y81),1,0) -> 0 | AB81: =(V81+IFERROR(SUM(OFFSET(V81,1,0,Z81-AA81-1,1)),0)) -> 1 | AC81: =(V81+IFERROR(SUM(OFFSET(V81,1,0,Z81-AA81-1,1)),0))/(INDEX(OFFSET($F$15,1,0,$B$10,1),MATCH(U81,OFFSET($B$15,1,0,$B$10,1),-1))) -> 0.01691474966
A82: 67 | B82: 2014-08-06 | C82: 90.49 | D82: 90.91 | E82: 89.26 | F82: 89.52 | G82: 2271900 | H82: 88.99 | I82: 0.9940795353 | J82: 1 | K82: 89.95 | L82: 90.37 | M82: 88.73 | N82: 88.99 | O82: 2271900 | U82: 1998-03-31 | V82: 0.2 | W82: 58.38 | X82: 1997-03-31 | Y82: 1997-04-03 | Z82: 5 | AA82: 0 | AB82: 1 | AC82: 0.01712915382
A83: 68 | B83: 2014-08-05 | C83: 91.21 | D83: 92.79 | E83: 90.97 | F83: 91.57 | G83: 1473900 | H83: 91.02 | I83: 0.993993666 | J83: 1 | K83: 90.66 | L83: 92.23 | M83: 90.42 | N83: 91.02 | O83: 1473900 | U83: 1997-12-24 | V83: 0.2 | W83: 50.12 | X83: 1996-12-24 | Y83: 1997-01-02 | Z83: 5 | AA83: 0 | AB83: 1 | AC83: 0.01995211492
A84: 69 | B84: 2014-08-04 | C84: 91.79 | D84: 92 | E84: 90.94 | F84: 91.55 | G84: 1916800 | H84: 91 | I84: 0.9939923539 | J84: 1 | K84: 91.24 | L84: 91.45 | M84: 90.39 | N84: 91 | O84: 1916800 | U84: 1997-10-02 | V84: 0.2 | W84: 60.25 | X84: 1996-10-02 | Y84: 1996-10-03 | Z84: 5 | AA84: 1 | AB84: 0.8 | AC84: 0.0132780083
A85: 70 | B85: 2014-08-01 | C85: 90.87 | D85: 92.24 | E85: 90.87 | F85: 91.79 | G85: 1671600 | H85: 91.24 | I85: 0.9940080619 | J85: 1 | K85: 90.33 | L85: 91.69 | M85: 90.33 | N85: 91.24 | O85: 1671600 | U85: 1997-07-02 | V85: 0.2 | W85: 53 | X85: 1996-07-02 | Y85: 1996-07-03 | Z85: 5 | AA85: 1 | AB85: 0.8 | AC85: 0.01509433962
A86: 71 | B86: 2014-07-31 | C86: 92.02 | D86: 92.15 | E86: 90.76 | F86: 90.77 | G86: 1928000 | H86: 90.23 | I86: 0.9940508979 | J86: 1 | K86: 91.47 | L86: 91.6 | M86: 90.22 | N86: 90.23 | O86: 1928000 | U86: 1997-04-03 | V86: 0.2 | W86: 43.62 | X86: 1996-04-03 | Y86: 1996-04-03 | Z86: 5 | AA86: 1 | AB86: 0.8 | AC86: 0.01834021091
A87: 72 | B87: 2014-07-30 | C87: 92.89 | D87: 93.42 | E87: 92.06 | F87: 92.62 | G87: 1285600 | H87: 92.07 | I87: 0.9940617577 | J87: 1 | K87: 92.34 | L87: 92.87 | M87: 91.51 | N87: 92.07 | O87: 1285600 | U87: 1997-01-02 | V87: 0.2 | W87: 48 | X87: 1996-01-02 | Y87: 1996-01-04 | Z87: 5 | AA87: 1 | AB87: 0.8 | AC87: 0.01666666667
A88: 73 | B88: 2014-07-29 | C88: 93.06 | D88: 93.39 | E88: 92.49 | F88: 92.49 | G88: 1607300 | H88: 91.94 | I88: 0.9940534112 | J88: 1 | K88: 92.51 | L88: 92.83 | M88: 91.94 | N88: 91.94 | O88: 1607300 | U88: 1996-10-03 | V88: 0.2 | W88: 53 | X88: 1995-10-03 | Y88: 1995-10-04 | Z88: 5 | AA88: 1 | AB88: 0.788 | AC88: 0.01486792453
A89: 74 | B89: 2014-07-28 | C89: 92.23 | D89: 93.53 | E89: 91.56 | F89: 93.28 | G89: 1806800 | H89: 92.72 | I89: 0.9939965695 | J89: 1 | K89: 91.68 | L89: 92.97 | M89: 91.01 | N89: 92.72 | O89: 1806800 | U89: 1996-07-03 | V89: 0.2 | W89: 49.62 | X89: 1995-07-03 | Y89: 1995-07-06 | Z89: 5 | AA89: 1 | AB89: 0.7755 | AC89: 0.01562877872
A90: 75 | B90: 2014-07-25 | C90: 93.27 | D90: 93.54 | E90: 91.97 | F90: 92.07 | G90: 1978600 | H90: 91.52 | I90: 0.9940262843 | J90: 1 | K90: 92.71 | L90: 92.98 | M90: 91.42 | N90: 91.52 | O90: 1978600 | U90: 1996-04-03 | V90: 0.2 | W90: 52.5 | X90: 1995-04-03 | Y90: 1995-04-04 | Z90: 5 | AA90: 1 | AB90: 0.763 | AC90: 0.01453333333
A91: 76 | B91: 2014-07-24 | C91: 95 | D91: 95.39 | E91: 93.48 | F91: 93.55 | G91: 2278100 | H91: 92.99 | I91: 0.9940138963 | J91: 1 | K91: 94.43 | L91: 94.82 | M91: 92.92 | N91: 92.99 | O91: 2278100 | U91: 1996-01-04 | V91: 0.188 | W91: 46.25 | X91: 1995-01-04 | Y91: 1995-04-04 | Z91: 4 | AA91: 0 | AB91: 0.7505 | AC91: 0.01622702703
A92: 77 | B92: 2014-07-23 | C92: 96.4 | D92: 96.54 | E92: 95.34 | F92: 95.37 | G92: 1674700 | H92: 94.8 | I92: 0.9940232778 | J92: 1 | K92: 95.82 | L92: 95.96 | M92: 94.77 | N92: 94.8 | O92: 1674700 | U92: 1995-10-04 | V92: 0.1875 | W92: 85.12 | X92: 1994-10-04 | Y92: 1995-01-03 | Z92: 4 | AA92: 0 | AB92: 0.75 | AC92: 0.008811090226
A93: 78 | B93: 2014-07-22 | C93: 96 | D93: 97.01 | E93: 95.79 | F93: 96.86 | G93: 2307800 | H93: 96.28 | I93: 0.994011976 | J93: 1 | K93: 95.43 | L93: 96.43 | M93: 95.22 | N93: 96.28 | O93: 2307800 | U93: 1995-07-06 | V93: 0.1875 | W93: 78.25 | X93: 1994-07-06 | Y93: 1994-10-03 | Z93: 4 | AA93: 0 | AB93: 0.75 | AC93: 0.009584664537
A94: 79 | B94: 2014-07-21 | C94: 94.86 | D94: 95.98 | E94: 94.85 | F94: 95.82 | G94: 1023300 | H94: 95.25 | I94: 0.9940513463 | J94: 1 | K94: 94.3 | L94: 95.41 | M94: 94.29 | N94: 95.25 | O94: 1023300 | U94: 1995-04-04 | V94: 0.1875 | W94: 70.5 | X94: 1994-04-04 | Y94: 1994-04-05 | Z94: 5 | AA94: 1 | AB94: 0.75 | AC94: 0.01063829787
A95: 80 | B95: 2014-07-18 | C95: 94.37 | D95: 94.96 | E95: 94 | F95: 94.85 | G95: 1168700 | H95: 94.28 | I95: 0.9939905113 | J95: 1 | K95: 93.8 | L95: 94.39 | M95: 93.44 | N95: 94.28 | O95: 1168700 | U95: 1995-01-03 | V95: 0.1875 | W95: 63.5 | X95: 1994-01-03 | Y95: 1994-01-03 | Z95: 5 | AA95: 1 | AB95: 0.7375 | AC95: 0.01161417323
A96: 81 | B96: 2014-07-17 | C96: 94.18 | D96: 95.14 | E96: 93.64 | F96: 94.15 | G96: 1077100 | H96: 93.59 | I96: 0.9940520446 | J96: 1 | K96: 93.62 | L96: 94.57 | M96: 93.08 | N96: 93.59 | O96: 1077100 | U96: 1994-10-03 | V96: 0.1875 | W96: 63.38 | X96: 1993-10-03 | Y96: 1993-10-04 | Z96: 5 | AA96: 1 | AB96: 0.725 | AC96: 0.01143893973
A97: 82 | B97: 2014-07-16 | C97: 95.02 | D97: 95.12 | E97: 94.11 | F97: 94.63 | G97: 1202700 | H97: 94.07 | I97: 0.9940822149 | J97: 1 | K97: 94.46 | L97: 94.56 | M97: 93.55 | N97: 94.07 | O97: 1202700 | U97: 1994-07-05 | V97: 0.1875 | W97: 64.12 | X97: 1993-07-05 | Y97: 1993-10-04 | Z97: 4 | AA97: 0 | AB97: 0.7125 | AC97: 0.01111197754
A98: 83 | B98: 2014-07-15 | C98: 94.06 | D98: 95.26 | E98: 93.97 | F98: 94.56 | G98: 1583200 | H98: 94 | I98: 0.9940778342 | J98: 1 | K98: 93.5 | L98: 94.7 | M98: 93.41 | N98: 94 | O98: 1583200 | U98: 1994-04-05 | V98: 0.175 | W98: 64.38 | X98: 1993-04-05 | Y98: 1993-07-02 | Z98: 4 | AA98: 0 | AB98: 0.7 | AC98: 0.01087294191
A99: 84 | B99: 2014-07-14 | C99: 93.39 | D99: 94.13 | E99: 93.12 | F99: 93.96 | G99: 1763400 | H99: 93.4 | I99: 0.994040017 | J99: 1 | K99: 92.83 | L99: 93.57 | M99: 92.57 | N99: 93.4 | O99: 1763400 | U99: 1994-01-03 | V99: 0.175 | W99: 64.62 | X99: 1993-01-03 | Y99: 1993-03-30 | Z99: 4 | AA99: 0 | AB99: 0.7 | AC99: 0.01083255958
A100: 85 | B100: 2014-07-11 | C100: 92.13 | D100: 93.3 | E100: 91.91 | F100: 92.96 | G100: 1515500 | H100: 92.41 | I100: 0.9940834768 | J100: 1 | K100: 91.58 | L100: 92.75 | M100: 91.37 | N100: 92.41 | O100: 1515500 | U100: 1993-10-04 | V100: 0.175 | W100: 63 | X100: 1992-10-04 | Y100: 1992-12-28 | Z100: 4 | AA100: 0 | AB100: 0.7 | AC100: 0.01111111111
A101: 86 | B101: 2014-07-10 | C101: 90.75 | D101: 92.68 | E101: 90.75 | F101: 92.1 | G101: 1523400 | H101: 91.55 | I101: 0.9940282302 | J101: 1 | K101: 90.21 | L101: 92.13 | M101: 90.21 | N101: 91.55 | O101: 1523400 | U101: 1993-07-02 | V101: 0.175 | W101: 61.25 | X101: 1992-07-02 | Y101: 1992-09-29 | Z101: 4 | AA101: 0 | AB101: 0.6875 | AC101: 0.0112244898
A102: 87 | B102: 2014-07-09 | C102: 91.74 | D102: 91.87 | E102: 91 | F102: 91.86 | G102: 1547700 | H102: 91.31 | I102: 0.9940126279 | J102: 1 | K102: 91.19 | L102: 91.32 | M102: 90.46 | N102: 91.31 | O102: 1547700 | U102: 1993-03-30 | V102: 0.175 | W102: 57.88 | X102: 1992-03-30 | Y102: 1992-04-09 | Z102: 5 | AA102: 0 | AB102: 0.8375 | AC102: 0.01446959226
A103: 88 | B103: 2014-07-08 | C103: 92.03 | D103: 92.22 | E103: 91.07 | F103: 91.2 | G103: 1417300 | H103: 90.66 | I103: 0.9940789474 | J103: 1 | K103: 91.49 | L103: 91.67 | M103: 90.53 | N103: 90.66 | O103: 1417300 | U103: 1992-12-28 | V103: 0.175 | W103: 51.88 | X103: 1991-12-28 | Y103: 1992-04-09 | Z103: 4 | AA103: 0 | AB103: 0.6625 | AC103: 0.01276985351
A104: 89 | B104: 2014-07-07 | C104: 93.29 | D104: 93.39 | E104: 92.1 | F104: 92.29 | G104: 1235900 | H104: 91.74 | I104: 0.9940405244 | J104: 1 | K104: 92.73 | L104: 92.83 | M104: 91.55 | N104: 91.74 | O104: 1235900 | U104: 1992-09-29 | V104: 0.1625 | W104: 45.62 | X104: 1991-09-29 | Y104: 1991-10-01 | Z104: 5 | AA104: 0 | AB104: 0.8 | AC104: 0.01753616835
A105: 90 | B105: 2014-07-03 | C105: 93.39 | D105: 93.5 | E105: 92.48 | F105: 93.22 | G105: 808800 | H105: 92.66 | I105: 0.9939927054 | J105: 1 | K105: 92.83 | L105: 92.94 | M105: 91.92 | N105: 92.66 | O105: 808800 | U105: 1992-06-29 | V105: 0.1625 | W105: 44 | X105: 1991-06-29 | Y105: 1991-07-01 | Z105: 5 | AA105: 0 | AB105: 0.7875 | AC105: 0.01789772727
A106: 91 | B106: 2014-07-02 | C106: 93.1 | D106: 93.56 | E106: 92.22 | F106: 92.47 | G106: 1136500 | H106: 91.92 | I106: 0.994052125 | J106: 1 | K106: 92.55 | L106: 93 | M106: 91.67 | N106: 91.92 | O106: 1136500 | U106: 1992-04-09 | V106: 0.1625 | W106: 42.62 | X106: 1991-04-09 | Y106: 1991-07-01 | Z106: 4 | AA106: 0 | AB106: 0.625 | AC106: 0.01466447677
A107: 92 | B107: 2014-07-01 | C107: 91.67 | D107: 93.63 | E107: 90.37 | F107: 93.1 | G107: 2129800 | H107: 92.55 | I107: 0.9940923738 | J107: 1 | K107: 91.13 | L107: 93.08 | M107: 89.84 | N107: 92.55 | O107: 2129800 | U107: 1991-12-27 | V107: 0.1625 | W107: 82 | X107: 1990-12-27 | Y107: 1990-12-28 | Z107: 5 | AA107: 1 | AB107: 0.6125 | AC107: 0.007469512195
A108: 93 | B108: 2014-06-30 | C108: 93.82 | D108: 93.84 | E108: 92.1 | F108: 92.25 | G108: 1625500 | H108: 91.7 | I108: 0.9940379404 | J108: 1 | K108: 93.26 | L108: 93.28 | M108: 91.55 | N108: 91.7 | O108: 1625500 | U108: 1991-10-01 | V108: 0.15 | W108: 75 | X108: 1990-10-01 | Y108: 1990-10-03 | Z108: 5 | AA108: 1 | AB108: 0.6 | AC108: 0.008
A109: 94 | B109: 2014-06-27 | C109: 94.12 | D109: 94.45 | E109: 93.75 | F109: 94.4 | G109: 1895000 | H109: 93.24 | I109: 0.9877118644 | J109: 1 | K109: 92.96 | L109: 93.29 | M109: 92.6 | N109: 93.24 | O109: 1895000 | U109: 1991-07-01 | V109: 0.15 | W109: 79.75 | X109: 1990-07-01 | Y109: 1990-10-03 | Z109: 4 | AA109: 0 | AB109: 0.6 | AC109: 0.007523510972
A110: 95 | B110: 2014-06-26 | C110: 94.56 | D110: 94.56 | E110: 93.64 | F110: 94.08 | G110: 1161500 | H110: 92.92 | I110: 0.987670068 | J110: 1 | K110: 93.39 | L110: 93.39 | M110: 92.49 | N110: 92.92 | O110: 1161500 | U110: 1991-04-02 | V110: 0.15 | W110: 81.75 | X110: 1990-04-02 | Y110: 1990-04-02 | Z110: 5 | AA110: 1 | AB110: 0.6 | AC110: 0.007339449541
A111: 96 | B111: 2014-06-25 | C111: 94.21 | D111: 94.85 | E111: 93.53 | F111: 94.71 | G111: 1585000 | H111: 93.54 | I111: 0.9876464998 | J111: 1 | K111: 93.05 | L111: 93.68 | M111: 92.37 | N111: 93.54 | O111: 1585000 | U111: 1990-12-28 | V111: 0.15 | W111: 69.62 | X111: 1989-12-28 | Y111: 1989-12-29 | Z111: 5 | AA111: 1 | AB111: 0.6 | AC111: 0.008618213157
A112: 97 | B112: 2014-06-24 | C112: 95.53 | D112: 96 | E112: 94.19 | F112: 94.23 | G112: 1129200 | H112: 93.07 | I112: 0.9876896954 | J112: 1 | K112: 94.35 | L112: 94.82 | M112: 93.03 | N112: 93.07 | O112: 1129200 | U112: 1990-10-03 | V112: 0.15 | W112: 67.25 | X112: 1989-10-03 | Y112: 1989-12-29 | Z112: 4 | AA112: 0 | AB112: 0.5875 | AC112: 0.00873605948
A113: 98 | B113: 2014-06-23 | C113: 97.04 | D113: 97.04 | E113: 95.45 | F113: 95.83 | G113: 889300 | H113: 94.65 | I113: 0.9876865282 | J113: 1 | K113: 95.85 | L113: 95.85 | M113: 94.27 | N113: 94.65 | O113: 889300 | U113: 1990-06-29 | V113: 0.15 | W113: 62.38 | X113: 1989-06-29 | Y113: 1989-06-30 | Z113: 5 | AA113: 1 | AB113: 0.575 | AC113: 0.00921769798
A114: 99 | B114: 2014-06-20 | C114: 96.27 | D114: 97.23 | E114: 96.25 | F114: 96.77 | G114: 1911100 | H114: 95.58 | I114: 0.9877028005 | J114: 1 | K114: 95.09 | L114: 96.03 | M114: 95.07 | N114: 95.58 | O114: 1911100 | U114: 1990-04-02 | V114: 0.15 | W114: 63.38 | X114: 1989-04-02 | Y114: 1989-04-03 | Z114: 5 | AA114: 1 | AB114: 0.5625 | AC114: 0.008875039445
A115: 100 | B115: 2014-06-19 | C115: 95.64 | D115: 96.25 | E115: 95.49 | F115: 95.85 | G115: 1330500 | H115: 94.67 | I115: 0.9876890975 | J115: 1 | K115: 94.46 | L115: 95.07 | M115: 94.31 | N115: 94.67 | O115: 1330500 | U115: 1989-12-29 | V115: 0.1375 | W115: 69.5 | X115: 1988-12-29 | Y115: 1988-12-30 | Z115: 5 | AA115: 1 | AB115: 0.55 | AC115: 0.007913669065
A116: 101 | B116: 2014-06-18 | C116: 95.99 | D116: 96.32 | E116: 94.92 | F116: 95.74 | G116: 1051600 | H116: 94.56 | I116: 0.987674953 | J116: 1 | K116: 94.81 | L116: 95.13 | M116: 93.75 | N116: 94.56 | O116: 1051600 | U116: 1989-10-02 | V116: 0.1375 | W116: 80 | X116: 1988-10-02 | Y116: 1988-10-03 | Z116: 5 | AA116: 1 | AB116: 0.5375 | AC116: 0.00671875
A117: 102 | B117: 2014-06-17 | C117: 96.86 | D117: 97.16 | E117: 95.82 | F117: 95.83 | G117: 1578200 | H117: 94.65 | I117: 0.9876865282 | J117: 1 | K117: 95.67 | L117: 95.96 | M117: 94.64 | N117: 94.65 | O117: 1578200 | U117: 1989-06-30 | V117: 0.1375 | W117: 72.62 | X117: 1988-06-30 | Y117: 1988-07-01 | Z117: 5 | AA117: 0 | AB117: 0.65 | AC117: 0.008950702286
A118: 103 | B118: 2014-06-16 | C118: 96.46 | D118: 97.39 | E118: 96.17 | F118: 97.1 | G118: 1023400 | H118: 95.9 | I118: 0.9876416066 | J118: 1 | K118: 95.27 | L118: 96.19 | M118: 94.98 | N118: 95.9 | O118: 1023400 | U118: 1989-04-03 | V118: 0.1375 | W118: 69 | X118: 1988-04-03 | Y118: 1988-04-04 | Z118: 5 | AA118: 1 | AB118: 0.5125 | AC118: 0.007427536232
A119: 104 | B119: 2014-06-13 | C119: 95.7 | D119: 96.77 | E119: 95.45 | F119: 96.59 | G119: 1107200 | H119: 95.4 | I119: 0.987679884 | J119: 1 | K119: 94.52 | L119: 95.58 | M119: 94.27 | N119: 95.4 | O119: 1107200 | U119: 1988-12-30 | V119: 0.125 | W119: 67 | X119: 1987-12-30 | Y119: 1988-01-04 | Z119: 6 | AA119: 0 | AB119: 0.625 | AC119: 0.009328358209
A120: 105 | B120: 2014-06-12 | C120: 96.55 | D120: 96.83 | E120: 95.16 | F120: 95.5 | G120: 1351000 | H120: 94.32 | I120: 0.9876439791 | J120: 1 | K120: 95.36 | L120: 95.63 | M120: 93.98 | N120: 94.32 | O120: 1351000 | U120: 1988-10-03 | V120: 0.125 | W120: 71.38 | X120: 1987-10-03 | Y120: 1988-01-04 | Z120: 5 | AA120: 0 | AB120: 0.5 | AC120: 0.007004763239
A121: 106 | B121: 2014-06-11 | C121: 97.5 | D121: 97.87 | E121: 96.38 | F121: 96.48 | G121: 1680700 | H121: 95.29 | I121: 0.9876658375 | J121: 1 | K121: 96.3 | L121: 96.66 | M121: 95.19 | N121: 95.29 | O121: 1680700 | U121: 1988-07-01 | V121: 0.125 | W121: 66 | X121: 1987-07-01 | Y121: 1987-07-06 | Z121: 5 | AA121: 1 | AB121: 0.375 | AC121: 0.005681818182
A122: 107 | B122: 2014-06-10 | C122: 100.31 | D122: 100.31 | E122: 97.44 | F122: 97.57 | G122: 1617700 | H122: 96.37 | I122: 0.9877011376 | J122: 1 | K122: 99.08 | L122: 99.08 | M122: 96.24 | N122: 96.37 | O122: 1617700 | U122: 1988-04-04 | V122: 0.125 | W122: 65.25 | X122: 1987-04-04 | Y122: 1987-04-06 | Z122: 5 | AA122: 1 | AB122: 0.3625 | AC122: 0.005555555556
A123: 108 | B123: 2014-06-09 | C123: 98.43 | D123: 98.91 | E123: 98 | F123: 98.5 | G123: 1681300 | H123: 97.29 | I123: 0.987715736 | J123: 1 | K123: 97.22 | L123: 97.69 | M123: 96.8 | N123: 97.29 | O123: 1681300 | U123: 1988-01-05 | V123: 0 | W123: 68.12 | X123: 1987-01-05 | Y123: 1987-01-05 | Z123: 5 | AA123: 1 | AB123: 0.35 | AC123: 0.005137991779
A124: 109 | B124: 2014-06-06 | C124: 97.91 | D124: 98.94 | E124: 97.9 | F124: 98.78 | G124: 1201700 | H124: 97.56 | I124: 0.9876493217 | J124: 1 | K124: 96.7 | L124: 97.72 | M124: 96.69 | N124: 97.56 | O124: 1201700 | U124: 1988-01-04 | V124: 0.125 | W124: 67.75 | X124: 1987-01-04 | Y124: 1987-01-05 | Z124: 4 | AA124: 1 | AB124: 0.35 | AC124: 0.005166051661
A125: 110 | B125: 2014-06-05 | C125: 98.18 | D125: 98.67 | E125: 97.8 | F125: 98.56 | G125: 1425200 | H125: 97.34 | I125: 0.9876217532 | J125: 1 | K125: 96.96 | L125: 97.45 | M125: 96.59 | N125: 97.34 | O125: 1425200 | U125: 1987-07-06 | V125: 0.1125 | W125: 75.25 | X125: 1986-07-06 | Y125: 1986-07-07 | Z125: 5 | AA125: 1 | AB125: 0.45 | AC125: 0.005980066445
A126: 111 | B126: 2014-06-04 | C126: 97.86 | D126: 97.98 | E126: 97.28 | F126: 97.93 | G126: 998700 | H126: 96.72 | I126: 0.9876442357 | J126: 1 | K126: 96.65 | L126: 96.77 | M126: 96.08 | N126: 96.72 | O126: 998700 | U126: 1987-04-06 | V126: 0.1125 | W126: 80 | X126: 1986-04-06 | Y126: 1986-07-07 | Z126: 4 | AA126: 0 | AB126: 0.45 | AC126: 0.005625
A127: 112 | B127: 2014-06-03 | C127: 97.35 | D127: 98.41 | E127: 97.28 | F127: 97.89 | G127: 1718500 | H127: 96.68 | I127: 0.9876391868 | J127: 1 | K127: 96.15 | L127: 97.19 | M127: 96.08 | N127: 96.68 | O127: 1718500 | U127: 1987-01-05 | V127: 0.1125 | W127: 68.38 | X127: 1986-01-05 | Y127: 1986-01-06 | Z127: 5 | AA127: 1 | AB127: 0.4375 | AC127: 0.006398069611
A128: 113 | B128: 2014-06-02 | C128: 97.09 | D128: 98.26 | E128: 96.5 | F128: 98.06 | G128: 962100 | H128: 96.85 | I128: 0.9876606159 | J128: 1 | K128: 95.89 | L128: 97.05 | M128: 95.31 | N128: 96.85 | O128: 962100 | U128: 1986-10-06 | V128: 0.1125 | W128: 63.38 | X128: 1985-10-06 | Y128: 1985-10-07 | Z128: 5 | AA128: 1 | AB128: 0.425 | AC128: 0.006705585358
A129: 114 | B129: 2014-05-30 | C129: 96.68 | D129: 97.8 | E129: 96.68 | F129: 97.57 | G129: 1524600 | H129: 96.37 | I129: 0.9877011376 | J129: 1 | K129: 95.49 | L129: 96.6 | M129: 95.49 | N129: 96.37 | O129: 1524600 | U129: 1986-07-07 | V129: 0.1125 | W129: 59.75 | X129: 1985-07-07 | Y129: 1985-07-08 | Z129: 5 | AA129: 1 | AB129: 0.4125 | AC129: 0.00690376569
A130: 115 | B130: 2014-05-29 | C130: 96.82 | D130: 97.21 | E130: 96.33 | F130: 96.97 | G130: 1085300 | H130: 95.77 | I130: 0.9876250387 | J130: 1 | K130: 95.62 | L130: 96.01 | M130: 95.14 | N130: 95.77 | O130: 1085300 | U130: 1986-04-02 | V130: 0.1 | W130: 62 | X130: 1985-04-02 | Y130: 1985-04-02 | Z130: 5 | AA130: 1 | AB130: 0.4 | AC130: 0.006451612903
A131: 116 | B131: 2014-05-28 | C131: 97.08 | D131: 97.99 | E131: 96.56 | F131: 96.61 | G131: 1149000 | H131: 95.42 | I131: 0.9876824345 | J131: 1 | K131: 95.88 | L131: 96.78 | M131: 95.37 | N131: 95.42 | O131: 1149000 | U131: 1986-01-06 | V131: 0.1 | W131: 53.38 | X131: 1985-01-06 | Y131: 1985-04-02 | Z131: 4 | AA131: 0 | AB131: 0.4 | AC131: 0.007493443237
A132: 117 | B132: 2014-05-27 | C132: 97.2 | D132: 97.31 | E132: 96.38 | F132: 96.82 | G132: 1359100 | H132: 95.63 | I132: 0.987709151 | J132: 1 | K132: 96.01 | L132: 96.11 | M132: 95.2 | N132: 95.63 | O132: 1359100 | U132: 1985-10-07 | V132: 0.1 | W132: 47.38 | X132: 1984-10-07 | Y132: 1985-01-04 | Z132: 4 | AA132: 0 | AB132: 0.4 | AC132: 0.008442380751
A133: 118 | B133: 2014-05-23 | C133: 96.18 | D133: 97.17 | E133: 96 | F133: 97.03 | G133: 686800 | H133: 95.83 | I133: 0.9876326909 | J133: 1 | K133: 94.99 | L133: 95.97 | M133: 94.81 | N133: 95.83 | O133: 686800 | U133: 1985-07-08 | V133: 0.1 | W133: 49.75 | X133: 1984-07-08 | Y133: 1984-10-03 | Z133: 4 | AA133: 0 | AB133: 0.3875 | AC133: 0.007788944724
A134: 119 | B134: 2014-05-22 | C134: 95.65 | D134: 96.38 | E134: 95.45 | F134: 96.18 | G134: 1208700 | H134: 94.99 | I134: 0.9876273654 | J134: 1 | K134: 94.47 | L134: 95.19 | M134: 94.27 | N134: 94.99 | O134: 1208700 | U134: 1985-04-02 | V134: 0.1 | W134: 45.88 | X134: 1984-04-02 | Y134: 1984-04-02 | Z134: 5 | AA134: 1 | AB134: 0.375 | AC134: 0.008173496077
A135: 120 | B135: 2014-05-21 | C135: 95.57 | D135: 96.32 | E135: 95.25 | F135: 95.43 | G135: 1069100 | H135: 94.25 | I135: 0.9876349156 | J135: 1 | K135: 94.39 | L135: 95.13 | M135: 94.07 | N135: 94.25 | O135: 1069100 | U135: 1985-01-04 | V135: 0.1 | W135: 39.88 | X135: 1984-01-04 | Y135: 1984-04-02 | Z135: 4 | AA135: 0 | AB135: 0.3625 | AC135: 0.009089769308
A136: 121 | B136: 2014-05-20 | C136: 95.29 | D136: 95.77 | E136: 94.86 | F136: 95.42 | G136: 1389800 | H136: 94.24 | I136: 0.9876336198 | J136: 1 | K136: 94.11 | L136: 94.59 | M136: 93.69 | N136: 94.24 | O136: 1389800 | U136: 1984-10-03 | V136: 0.0875 | W136: 40.5 | X136: 1983-10-03 | Y136: 1983-10-03 | Z136: 5 | AA136: 1 | AB136: 0.35 | AC136: 0.008641975309
A137: 122 | B137: 2014-05-19 | C137: 95.18 | D137: 95.75 | E137: 94.8 | F137: 95.65 | G137: 1120000 | H137: 94.47 | I137: 0.987663356 | J137: 1 | K137: 94.01 | L137: 94.57 | M137: 93.63 | N137: 94.47 | O137: 1120000 | U137: 1984-06-29 | V137: 0.0875 | W137: 38 | X137: 1983-06-29 | Y137: 1983-07-01 | Z137: 5 | AA137: 0 | AB137: 0.4375 | AC137: 0.01151315789
A138: 123 | B138: 2014-05-16 | C138: 96.23 | D138: 96.5 | E138: 94.78 | F138: 95.39 | G138: 2740900 | H138: 94.21 | I138: 0.9876297306 | J138: 1 | K138: 95.04 | L138: 95.31 | M138: 93.61 | N138: 94.21 | O138: 2740900 | U138: 1984-04-02 | V138: 0.0875 | W138: 38.5 | X138: 1983-04-02 | Y138: 1983-04-04 | Z138: 5 | AA138: 1 | AB138: 0.35 | AC138: 0.009090909091
A139: 124 | B139: 2014-05-15 | C139: 96.9 | D139: 97.36 | E139: 95.75 | F139: 96.06 | G139: 2301100 | H139: 94.88 | I139: 0.9877160108 | J139: 1 | K139: 95.71 | L139: 96.16 | M139: 94.57 | N139: 94.88 | O139: 2301100 | U139: 1983-12-30 | V139: 0.0875 | W139: 43.12 | X139: 1982-12-30 | Y139: 1983-01-03 | Z139: 5 | AA139: 0 | AB139: 0.4375 | AC139: 0.0101461039
A140: 125 | B140: 2014-05-14 | C140: 99.44 | D140: 99.66 | E140: 97.29 | F140: 97.4 | G140: 2216600 | H140: 96.2 | I140: 0.9876796715 | J140: 1 | K140: 98.21 | L140: 98.43 | M140: 96.09 | N140: 96.2 | O140: 2216600 | U140: 1983-10-03 | V140: 0.0875 | W140: 46.75 | X140: 1982-10-03 | Y140: 1982-10-04 | Z140: 5 | AA140: 1 | AB140: 0.35 | AC140: 0.007486631016
A141: 126 | B141: 2014-05-13 | C141: 98.67 | D141: 99.69 | E141: 98.62 | F141: 99.45 | G141: 1425400 | H141: 98.22 | I141: 0.9876319759 | J141: 1 | K141: 97.45 | L141: 98.46 | M141: 97.4 | N141: 98.22 | O141: 1425400 | U141: 1983-07-01 | V141: 0.0875 | W141: 50 | X141: 1982-07-01 | Y141: 1982-07-02 | Z141: 5 | AA141: 1 | AB141: 0.35 | AC141: 0.007
A142: 127 | B142: 2014-05-12 | C142: 97.6 | D142: 98.44 | E142: 97.49 | F142: 98.33 | G142: 1371400 | H142: 97.12 | I142: 0.9876944981 | J142: 1 | K142: 96.4 | L142: 97.23 | M142: 96.29 | N142: 97.12 | O142: 1371400 | U142: 1983-04-04 | V142: 0.0875 | W142: 52.25 | X142: 1982-04-04 | Y142: 1982-04-06 | Z142: 5 | AA142: 1 | AB142: 0.35 | AC142: 0.006698564593
A143: 128 | B143: 2014-05-09 | C143: 97.35 | D143: 97.66 | E143: 96.78 | F143: 97.17 | G143: 1583400 | H143: 95.97 | I143: 0.9876505094 | J143: 1 | K143: 96.15 | L143: 96.45 | M143: 95.58 | N143: 95.97 | O143: 1583400 | U143: 1983-01-03 | V143: 0.0875 | W143: 42.75 | X143: 1982-01-03 | Y143: 1982-01-04 | Z143: 5 | AA143: 1 | AB143: 0.35 | AC143: 0.008187134503
A144: 129 | B144: 2014-05-08 | C144: 97.89 | D144: 98.14 | E144: 97.2 | F144: 97.62 | G144: 1913600 | H144: 96.42 | I144: 0.987707437 | J144: 1 | K144: 96.69 | L144: 96.93 | M144: 96.01 | N144: 96.42 | O144: 1913600 | U144: 1982-10-04 | V144: 0.0875 | W144: 42.25 | X144: 1981-10-04 | Y144: 1982-01-04 | Z144: 4 | AA144: 0 | AB144: 0.35 | AC144: 0.008284023669
A145: 130 | B145: 2014-05-07 | C145: 96.44 | D145: 97.91 | E145: 95.76 | F145: 97.79 | G145: 2069600 | H145: 96.58 | I145: =H145/F145 -> 0.9876265467 | J145: =INDEX(OFFSET($T$15,0,0,$S$13+1,1),MATCH(B145,OFFSET($Q$15,0,0,$S$13+1,1),-1)) -> 1 | K145: =ROUND($I145*C145,2) -> 95.25 | L145: =ROUND($I145*D145,2) -> 96.7 | M145: =ROUND($I145*E145,2) -> 94.58 | N145: =ROUND($I145*F145,2) -> 96.58 | O145: =G145*J145 -> 2069600 | U145: 1982-07-02 | V145: 0.0875 | W145: =(INDEX(OFFSET($F$15,1,0,$B$10,1),MATCH(U145,OFFSET($B$15,1,0,$B$10,1),-1))) -> 35.38 | X145: =IF(MONTH(DATE(YEAR(U145)-1,MONTH(U145),DAY(U145)))<>MONTH(U145),DATE(YEAR(U145)-1,MONTH(U145),DAY(U145-1)),DATE(YEAR(U145)-1,MONTH(U145),DAY(U145))) -> 1981-07-02 | Y145: =OFFSET(U144,Z145,0,1,1) -> 1982-01-04 | Z145: =MATCH(X145,OFFSET($U$15,A145,0,$V$14+1-A145,1),-1) -> 3 | AA145: =IF(MONTH(U145)=MONTH(Y145),1,0) -> 0 | AB145: =(V145+IFERROR(SUM(OFFSET(V145,1,0,Z145-AA145-1,1)),0)) -> 0.2625 | AC145: =(V145+IFERROR(SUM(OFFSET(V145,1,0,Z145-AA145-1,1)),0))/(INDEX(OFFSET($F$15,1,0,$B$10,1),MATCH(U145,OFFSET($B$15,1,0,$B$10,1),-1))) -> 0.007419446015
A146: 131 | B146: 2014-05-06 | C146: 96.59 | D146: 96.64 | E146: 95.87 | F146: 95.95 | G146: 1217300 | H146: 94.77 | I146: 0.9877019281 | J146: 1 | K146: 95.4 | L146: 95.45 | M146: 94.69 | N146: 94.77 | O146: 1217300 | U146: 1982-04-06 | V146: 0.0875 | W146: 32.62 | X146: 1981-04-06 | Y146: 1982-01-04 | Z146: 2 | AA146: 0 | AB146: 0.175 | AC146: 0.005364806867
A147: 132 | B147: 2014-05-05 | C147: 95.55 | D147: 96.86 | E147: 95.43 | F147: 96.73 | G147: 1894800 | H147: 95.54 | I147: 0.9876977153 | J147: 1 | K147: 94.37 | L147: 95.67 | M147: 94.26 | N147: 95.54 | O147: 1894800 | U147: 1982-01-04 | V147: 0.0875 | W147: 36.75 | X147: 1981-01-04 | Y147: 1982-01-04 | Z147: 1 | AA147: 1 | AB147: 0.0875 | AC147: 0.002380952381
A148: 133 | B148: 2014-05-02 | C148: 95.37 | D148: 96.33 | E148: 95.27 | F148: 95.83 | G148: 2054300 | H148: 94.65 | I148: 0.9876865282 | J148: 1 | K148: 94.2 | L148: 95.14 | M148: 94.1 | N148: 94.65 | O148: 2054300
A149: 134 | B149: 2014-05-01 | C149: 95.36 | D149: 96.21 | E149: 94.62 | F149: 95.41 | G149: 1925500 | H149: 94.23 | I149: 0.9876323237 | J149: 1 | K149: 94.18 | L149: 95.02 | M149: 93.45 | N149: 94.23 | O149: 1925500
A150: 135 | B150: 2014-04-30 | C150: 95.88 | D150: 96.28 | E150: 95.12 | F150: 95.48 | G150: 2564800 | H150: 94.3 | I150: 0.9876413909 | J150: 1 | K150: 94.7 | L150: 95.09 | M150: 93.94 | N150: 94.3 | O150: 2564800
A151: 136 | B151: 2014-04-29 | C151: 95.9 | D151: 96.35 | E151: 95.33 | F151: 95.9 | G151: 2501100 | H151: 94.72 | I151: 0.9876955162 | J151: 1 | K151: 94.72 | L151: 95.16 | M151: 94.16 | N151: 94.72 | O151: 2501100
A152: 137 | B152: 2014-04-28 | C152: 96.28 | D152: 96.39 | E152: 94.5 | F152: 95.44 | G152: 2773500 | H152: 94.26 | I152: 0.9876362112 | J152: 1 | K152: 95.09 | L152: 95.2 | M152: 93.33 | N152: 94.26 | O152: 2773500
A153: 138 | B153: 2014-04-25 | C153: 96.03 | D153: 96.13 | E153: 94.64 | F153: 94.9 | G153: 2847400 | H153: 93.73 | I153: 0.9876712329 | J153: 1 | K153: 94.85 | L153: 94.94 | M153: 93.47 | N153: 93.73 | O153: 2847400
A154: 139 | B154: 2014-04-24 | C154: 98.51 | D154: 98.51 | E154: 94.55 | F154: 95.92 | G154: 3346000 | H154: 94.74 | I154: 0.9876980817 | J154: 1 | K154: 97.3 | L154: 97.3 | M154: 93.39 | N154: 94.74 | O154: 3346000
A155: 140 | B155: 2014-04-23 | C155: 99.92 | D155: 100.86 | E155: 99.1 | F155: 100.23 | G155: 2144700 | H155: 98.99 | I155: 0.9876284546 | J155: 1 | K155: 98.68 | L155: 99.61 | M155: 97.87 | N155: 98.99 | O155: 2144700
A156: 141 | B156: 2014-04-22 | C156: 101.14 | D156: 102.33 | E156: 99.46 | F156: 99.5 | G156: 2381100 | H156: 98.27 | I156: 0.987638191 | J156: 1 | K156: 99.89 | L156: 101.07 | M156: 98.23 | N156: 98.27 | O156: 2381100
A157: 142 | B157: 2014-04-21 | C157: 101.5 | D157: 101.62 | E157: 100.5 | F157: 101.47 | G157: 1932100 | H157: 100.22 | I157: 0.987681088 | J157: 1 | K157: 100.25 | L157: 100.37 | M157: 99.26 | N157: 100.22 | O157: 1932100
A158: 143 | B158: 2014-04-17 | C158: 98.9 | D158: 100.36 | E158: 98.9 | F158: 100.13 | G158: 1217800 | H158: 98.9 | I158: 0.9877159692 | J158: 1 | K158: 97.69 | L158: 99.13 | M158: 97.69 | N158: 98.9 | O158: 1217800
A159: 144 | B159: 2014-04-16 | C159: 98.53 | D159: 99.06 | E159: 97.7 | F159: 99.03 | G159: 1278100 | H159: 97.81 | I159: 0.9876805009 | J159: 1 | K159: 97.32 | L159: 97.84 | M159: 96.5 | N159: 97.81 | O159: 1278100
A160: 145 | B160: 2014-04-15 | C160: 97.39 | D160: 97.98 | E160: 95.87 | F160: 97.92 | G160: 1566900 | H160: 96.71 | I160: 0.9876429739 | J160: 1 | K160: 96.19 | L160: 96.77 | M160: 94.69 | N160: 96.71 | O160: 1566900
A161: 146 | B161: 2014-04-14 | C161: 96.83 | D161: 97.84 | E161: 96.46 | F161: 97.51 | G161: 1513700 | H161: 96.31 | I161: 0.9876935699 | J161: 1 | K161: 95.64 | L161: 96.64 | M161: 95.27 | N161: 96.31 | O161: 1513700
A162: 147 | B162: 2014-04-11 | C162: 96.71 | D162: 97.34 | E162: 96.28 | F162: 96.4 | G162: 1761700 | H162: 95.21 | I162: 0.9876556017 | J162: 1 | K162: 95.52 | L162: 96.14 | M162: 95.09 | N162: 95.21 | O162: 1761700
A163: 148 | B163: 2014-04-10 | C163: 99.12 | D163: 99.21 | E163: 96.84 | F163: 97.07 | G163: 1527600 | H163: 95.87 | I163: 0.9876377872 | J163: 1 | K163: 97.89 | L163: 97.98 | M163: 95.64 | N163: 95.87 | O163: 1527600
A164: 149 | B164: 2014-04-09 | C164: 97.59 | D164: 99.65 | E164: 97.17 | F164: 99.42 | G164: 2481900 | H164: 98.19 | I164: 0.9876282438 | J164: 1 | K164: 96.38 | L164: 98.42 | M164: 95.97 | N164: 98.19 | O164: 2481900
A165: 150 | B165: 2014-04-08 | C165: 96.86 | D165: 96.88 | E165: 95.45 | F165: 96.34 | G165: 1581100 | H165: 95.15 | I165: 0.9876479136 | J165: 1 | K165: 95.66 | L165: 95.68 | M165: 94.27 | N165: 95.15 | O165: 1581100
A166: 151 | B166: 2014-04-07 | C166: 97.6 | D166: 98.18 | E166: 96.53 | F166: 96.91 | G166: 1486000 | H166: 95.72 | I166: 0.9877205655 | J166: 1 | K166: 96.4 | L166: 96.97 | M166: 95.34 | N166: 95.72 | O166: 1486000
A167: 152 | B167: 2014-04-04 | C167: 100.43 | D167: 100.81 | E167: 97.5 | F167: 97.61 | G167: 1733600 | H167: 96.41 | I167: 0.9877061776 | J167: 1 | K167: 99.2 | L167: 99.57 | M167: 96.3 | N167: 96.41 | O167: 1733600
A168: 153 | B168: 2014-04-03 | C168: 100.3 | D168: 100.57 | E168: 99.35 | F168: 100.04 | G168: 1126800 | H168: 98.81 | I168: 0.987704918 | J168: 1 | K168: 99.07 | L168: 99.33 | M168: 98.13 | N168: 98.81 | O168: 1126800
A169: 154 | B169: 2014-04-02 | C169: 99.24 | D169: 100.1 | E169: 98.85 | F169: 99.81 | G169: 1483500 | H169: 98.58 | I169: 0.9876765855 | J169: 1 | K169: 98.02 | L169: 98.87 | M169: 97.63 | N169: 98.58 | O169: 1483500
A170: 155 | B170: 2014-04-01 | C170: 99.45 | D170: 99.9 | E170: 98.44 | F170: 99.13 | G170: 1321100 | H170: 97.91 | I170: 0.9876929285 | J170: 1 | K170: 98.23 | L170: 98.67 | M170: 97.23 | N170: 97.91 | O170: 1321100
A171: 156 | B171: 2014-03-31 | C171: 98.28 | D171: 99.25 | E171: 98.28 | F171: 98.79 | G171: 1910300 | H171: 97.57 | I171: 0.9876505719 | J171: 1 | K171: 97.07 | L171: 98.02 | M171: 97.07 | N171: 97.57 | O171: 1910300
A172: 157 | B172: 2014-03-28 | C172: 97.89 | D172: 98.79 | E172: 97.6 | F172: 98.65 | G172: 1695100 | H172: 96.84 | I172: 0.9816523061 | J172: 1 | K172: 96.09 | L172: 96.98 | M172: 95.81 | N172: 96.84 | O172: 1695100
A173: 158 | B173: 2014-03-27 | C173: 97 | D173: 97.83 | E173: 96.07 | F173: 97.54 | G173: 2096600 | H173: 95.75 | I173: 0.9816485544 | J173: 1 | K173: 95.22 | L173: 96.03 | M173: 94.31 | N173: 95.75 | O173: 2096600
A174: 159 | B174: 2014-03-26 | C174: 98.53 | D174: 98.72 | E174: 97.09 | F174: 97.09 | G174: 1395900 | H174: 95.3 | I174: 0.9815634978 | J174: 1 | K174: 96.71 | L174: 96.9 | M174: 95.3 | N174: 95.3 | O174: 1395900
A175: 160 | B175: 2014-03-25 | C175: 98.14 | D175: 98.76 | E175: 97.37 | F175: 98.06 | G175: 2115600 | H175: 96.26 | I175: 0.9816438915 | J175: 1 | K175: 96.34 | L175: 96.95 | M175: 95.58 | N175: 96.26 | O175: 2115600
A176: 161 | B176: 2014-03-24 | C176: 97.88 | D176: 97.99 | E176: 96.04 | F176: 97.33 | G176: 2355000 | H176: 95.54 | I176: 0.9816089592 | J176: 1 | K176: 96.08 | L176: 96.19 | M176: 94.27 | N176: 95.54 | O176: 2355000
A177: 162 | B177: 2014-03-21 | C177: 98.84 | D177: 99.1 | E177: 97.39 | F177: 97.5 | G177: 3773900 | H177: 95.71 | I177: 0.9816410256 | J177: 1 | K177: 97.03 | L177: 97.28 | M177: 95.6 | N177: 95.71 | O177: 3773900
A178: 163 | B178: 2014-03-20 | C178: 99.59 | D178: 100.41 | E178: 98.21 | F178: 98.57 | G178: 2651400 | H178: 96.76 | I178: 0.981637415 | J178: 1 | K178: 97.76 | L178: 98.57 | M178: 96.41 | N178: 96.76 | O178: 2651400
A179: 164 | B179: 2014-03-19 | C179: 101.72 | D179: 101.8 | E179: 98.73 | F179: 99.39 | G179: 1818400 | H179: 97.56 | I179: 0.9815876849 | J179: 1 | K179: 99.85 | L179: 99.93 | M179: 96.91 | N179: 97.56 | O179: 1818400
A180: 165 | B180: 2014-03-18 | C180: 101.34 | D180: 101.71 | E180: 100.67 | F180: 101.31 | G180: 1384700 | H180: 99.45 | I180: 0.9816405093 | J180: 1 | K180: 99.48 | L180: 99.84 | M180: 98.82 | N180: 99.45 | O180: 1384700
A181: 166 | B181: 2014-03-17 | C181: 100.48 | D181: 101.02 | E181: 100.12 | F181: 100.96 | G181: 1272800 | H181: 99.1 | I181: 0.9815768621 | J181: 1 | K181: 98.63 | L181: 99.16 | M181: 98.28 | N181: 99.1 | O181: 1272800
A182: 167 | B182: 2014-03-14 | C182: 98.59 | D182: 100.94 | E182: 98.58 | F182: 100.09 | G182: 2795700 | H182: 98.25 | I182: 0.9816165451 | J182: 1 | K182: 96.78 | L182: 99.08 | M182: 96.77 | N182: 98.25 | O182: 2795700
A183: 168 | B183: 2014-03-13 | C183: 100.05 | D183: 101.15 | E183: 98.64 | F183: 98.83 | G183: 1777900 | H183: 97.01 | I183: 0.9815845391 | J183: 1 | K183: 98.21 | L183: 99.29 | M183: 96.82 | N183: 97.01 | O183: 1777900
A184: 169 | B184: 2014-03-12 | C184: 98.81 | D184: 100.07 | E184: 98.06 | F184: 99.74 | G184: 1795100 | H184: 97.91 | I184: 0.981652296 | J184: 1 | K184: 97 | L184: 98.23 | M184: 96.26 | N184: 97.91 | O184: 1795100
A185: 170 | B185: 2014-03-11 | C185: 100.66 | D185: 100.71 | E185: 99.03 | F185: 99.15 | G185: 1580500 | H185: 97.33 | I185: 0.9816439738 | J185: 1 | K185: 98.81 | L185: 98.86 | M185: 97.21 | N185: 97.33 | O185: 1580500
A186: 171 | B186: 2014-03-10 | C186: 100.84 | D186: 101.08 | E186: 100.1 | F186: 100.73 | G186: 1440100 | H186: 98.88 | I186: 0.9816340713 | J186: 1 | K186: 98.99 | L186: 99.22 | M186: 98.26 | N186: 98.88 | O186: 1440100
A187: 172 | B187: 2014-03-07 | C187: 101 | D187: 102.15 | E187: 100.7 | F187: 101.27 | G187: 1765900 | H187: 99.41 | I187: 0.9816332576 | J187: 1 | K187: 99.14 | L187: 100.27 | M187: 98.85 | N187: 99.41 | O187: 1765900
A188: 173 | B188: 2014-03-06 | C188: 100.03 | D188: 101.07 | E188: 100.03 | F188: 100.49 | G188: 1436000 | H188: 98.64 | I188: 0.981590208 | J188: 1 | K188: 98.19 | L188: 99.21 | M188: 98.19 | N188: 98.64 | O188: 1436000
A189: 174 | B189: 2014-03-05 | C189: 101 | D189: 102 | E189: 100.41 | F189: 100.69 | G189: 1836000 | H189: 98.84 | I189: 0.9816267753 | J189: 1 | K189: 99.14 | L189: 100.13 | M189: 98.57 | N189: 98.84 | O189: 1836000
A190: 175 | B190: 2014-03-04 | C190: 100.93 | D190: 101.03 | E190: 100.08 | F190: 100.39 | G190: 2092400 | H190: 98.54 | I190: 0.9815718697 | J190: 1 | K190: 99.07 | L190: 99.17 | M190: 98.24 | N190: 98.54 | O190: 2092400
A191: 176 | B191: 2014-03-03 | C191: 96.9 | D191: 98.57 | E191: 96.74 | F191: 98.2 | G191: 1639200 | H191: 96.39 | I191: 0.9815682281 | J191: 1 | K191: 95.11 | L191: 96.75 | M191: 94.96 | N191: 96.39 | O191: 1639200
A192: 177 | B192: 2014-02-28 | C192: 96.86 | D192: 98.95 | E192: 96.86 | F192: 97.91 | G192: 1721600 | H192: 96.11 | I192: 0.9816157696 | J192: 1 | K192: 95.08 | L192: 97.13 | M192: 95.08 | N192: 96.11 | O192: 1721600
A193: 178 | B193: 2014-02-27 | C193: 96.47 | D193: 97.59 | E193: 96.3 | F193: 97.59 | G193: 1699300 | H193: 95.8 | I193: 0.9816579568 | J193: 1 | K193: 94.7 | L193: 95.8 | M193: 94.53 | N193: 95.8 | O193: 1699300
A194: 179 | B194: 2014-02-26 | C194: 96.95 | D194: 97.34 | E194: 96.25 | F194: 96.58 | G194: 2047300 | H194: 94.8 | I194: 0.9815696832 | J194: 1 | K194: 95.16 | L194: 95.55 | M194: 94.48 | N194: 94.8 | O194: 2047300
A195: 180 | B195: 2014-02-25 | C195: 98.21 | D195: 98.57 | E195: 96.52 | F195: 96.78 | G195: 1763300 | H195: 95 | I195: 0.9816077702 | J195: 1 | K195: 96.4 | L195: 96.76 | M195: 94.74 | N195: 95 | O195: 1763300
A196: 181 | B196: 2014-02-24 | C196: 97.08 | D196: 99.48 | E196: 97.06 | F196: 98.22 | G196: 3017400 | H196: 96.41 | I196: 0.9815719813 | J196: 1 | K196: 95.29 | L196: 97.65 | M196: 95.27 | N196: 96.41 | O196: 3017400
A197: 182 | B197: 2014-02-21 | C197: 96.49 | D197: 97.35 | E197: 96.07 | F197: 96.6 | G197: 2258600 | H197: 94.82 | I197: 0.981573499 | J197: 1 | K197: 94.71 | L197: 95.56 | M197: 94.3 | N197: 94.82 | O197: 2258600
A198: 183 | B198: 2014-02-20 | C198: 95.25 | D198: 96.91 | E198: 95.05 | F198: 96.35 | G198: 2043800 | H198: 94.58 | I198: 0.9816294759 | J198: 1 | K198: 93.5 | L198: 95.13 | M198: 93.3 | N198: 94.58 | O198: 2043800
A199: 184 | B199: 2014-02-19 | C199: 96.18 | D199: 97.13 | E199: 95.12 | F199: 95.16 | G199: 2065400 | H199: 93.41 | I199: 0.9816099201 | J199: 1 | K199: 94.41 | L199: 95.34 | M199: 93.37 | N199: 93.41 | O199: 2065400
A200: 185 | B200: 2014-02-18 | C200: 95.21 | D200: 96.35 | E200: 94.86 | F200: 95.87 | G200: 1725900 | H200: 94.11 | I200: 0.9816418066 | J200: 1 | K200: 93.46 | L200: 94.58 | M200: 93.12 | N200: 94.11 | O200: 1725900
... 4300 more rows

Sheet Follow
A1: Stocks and Indexes I wish to follow
A3: To ease following a stock, enter a Yahoo Finance acceptable symbol in column "A" anywhere below cell "A9".
A4: Thereafter you may doubleclick the cell containing a symbol of interest to initiate data retrieval and charting for that symbol.
A7: Symbol
A8: To | B8: Description | C8: Last Trade as of most recent check
A9: Follow | C9: Date | D9: Time | E9: Open | F9: High | G9: Low | H9: Close | I9: Volume
A10: F | B10: Ford Motor Compan (F) -NYSE (Daily) | C10: 2014-05-09 | D10: 16:00:00 | E10: 15.73 | F10: 15.9 | G10: 15.73 | H10: 15.77 | I10: 25172568
A11: MCD | B11: McDonald's Corpor (MCD) -NYSE (Daily) | C11: 2014-08-07 | D11: 11:39:00 | E11: 93.83 | F11: 94 | G11: 93.47 | H11: 93.54 | I11: 1106835
A12: JNJ | B12: Johnson & Johnson (JNJ) -NYSE | C12: 2014-02-03 | D12: 16:01:00 | E12: 88.75 | F12: 88.78 | G12: 86.61 | H12: 86.78 | I12: 13953268
A13: AAL | B13: American Airlines (AAL) -NasdaqNM | C13: 2014-02-03 | D13: 16:00:00 | E13: 34.04 | F13: 34.48 | G13: 33.05 | H13: 33.96 | I13: 21748284
A14: CIEN | B14: Ciena Corporation (CIEN) -NYSE | C14: 2014-02-03 | D14: 16:02:00 | E14: 23.31 | F14: 23.38 | G14: 21.9 | H14: 22.09 | I14: 4433923
A15: SONC | B15: Sonic Corp. (SONC) -NasdaqNM | C15: 2014-02-03 | D15: 16:00:00 | E15: 17.7 | F15: 18 | G15: 16.92 | H15: 17.28 | I15: 918579
A16: HTLD | B16: Heartland Express (HTLD) -NasdaqNM | C16: 2014-02-03 | D16: 16:00:00 | E16: 21.05 | F16: 21.23 | G16: 20.17 | H16: 20.21 | I16: 589750
A17: ADM | B17: Archer-Daniels-Mi (ADM) -NYSE (Daily) | C17: 2014-04-04 | D17: 16:01:00 | E17: 43.59 | F17: 43.66 | G17: 43.03 | H17: 43.05 | I17: 4416020
A18: A | B18: Agilent Technolog (A) -NYSE | C18: 2014-02-03 | D18: 16:02:00 | E18: 58.15 | F18: 58.48 | G18: 56.075 | H18: 56.15 | I18: 2929252
A19: PSEC | B19: Prospect Capital (PSEC) -NasdaqNM (Daily) | C19: 2014-11-07 | D19: 16:00:00 | E19: 9.55 | F19: 9.67 | G19: 9.49 | H19: 9.53 | I19: 5870263
A20: RTN | B20: Raytheon Company (RTN) -NYSE (Daily) | C20: 2014-11-07 | D20: 16:02:00 | E20: 104.54 | F20: 104.64 | G20: 103.26 | H20: 104.36 | I20: 1775996
A22: SPY | B22: SPDR S&P 500 (SPY) -PCX (Daily) | C22: 2014-08-08 | D22: 16:00:00 | E22: 191.46 | F22: 193.37 | G22: 190.95 | H22: 193.24 | I22: 116996440
A23: ^GSPC | B23: S&P 500 (^GSPC) -SNP (Daily) | C23: 2014-08-08 | D23: 16:31:00 | E23: 1910.35 | F23: 1932.38 | G23: 1909.01 | H23: 1931.59 | I23: 456088512
A24: QQQ | B24: PowerShares QQQ T (QQQ) -NGM (Daily) | C24: 2014-04-07 | D24: 11:33:00 | E24: 85.83 | F24: 86.63 | G24: 85.55 | H24: 86.07 | I24: 40146792

Sheet CalculationsAndCharts
A1: White Noise Universal Oscillator
B2: =InputPriceData!A1 -> Raytheon Company (RTN) -NYSE (Daily)
A4: User Charting Controls
A5: Data Control
A6: =InputPriceData!$B$10 -> 8288 | B6: Available Input Data Rows | E6: Earliest: | F6: =OFFSET(InputPriceData!B15,CalculationsAndCharts!A6,0,1,1) -> 1981-12-31
B7: Use Close Adjusted: | C7: FALSE | E7: Latest: | F7: =OFFSET(InputPriceData!B15,1,0,1,1) -> 2014-11-07
A8: =MIN(A6-A11,COUNTA(B33:B9983)) -> 2800 | B8: Logically Available for Calc / Plot
A10: Price Chart Windowing Controls | F10: Y-axis Range
A11: 76 | B11: Input Data Offset (Pan) | E11: Max High+ | F11: =CEILING(MAX(OFFSET($E$33,0,0,$A$12,1))+2*F14,0.1) -> 105.4
A12: 201 | B12: Data Points to Plot (Zoom) | E12: Min Low- | F12: =FLOOR(MIN(OFFSET($F$33,0,0,$A$12,1))-2*F14,0.1) -> 70.8
B13: First: | C13: =OFFSET(B32,A12,0,1,1) -> 2013-10-04 | E13: White space %: | F13: 0.05
B14: ="Last: "&OFFSET(InputPriceData!P15,1+A11,0,1,1) -> Last: | C14: =B33 -> 2014-07-23 | E14: Allowance: | F14: =FLOOR((CEILING(MAX(OFFSET($E$33,0,0,$A$12,1)),1)-FLOOR(MIN(OFFSET($F$33,0,0,$A$12,1)),1))*$F$13,0.01) -> 1.5
A15: Help! I would like to plot data
A16: From | B16: 2013-10-04 | C16: =OFFSET(InputPriceData!$A$15,MATCH(B16,OFFSET(InputPriceData!B15,1,0,InputPriceData!$B$10,1),0),0,1,1)-C17 -> 201 | E16: 133
A17: To | B17: 2014-07-23 | C17: =OFFSET(InputPriceData!$A$15,MATCH(B17,OFFSET(InputPriceData!$B$15,1,0,InputPriceData!$B$10,1),0),0,1,1)-1 -> 76 | E17: =$A$12-$E$16+1 -> 69
A18: Super Smoother User Control
A19: 20 | B19: BandEdge
A20: Weighting Factors Calculated from BandEdge
A21: =EXP(-1.414*3.14159/A19) -> 0.8008269377 | B21: :A1 | C21: C1: | D21: =1-D22-D23 -> 0.07901504796
A22: =2*A21*COS(RADIANS(1.414*180/A19)) -> 1.562308736 | B22: :B1 | C22: C2: | D22: =A22 -> 1.562308736
C23: C3: | D23: =-A21*A21 -> -0.6413237842
A24: White Noise Crossover System: (In $ For One Share Traded)
A25: ="Summary of Trades using "& TEXT(A8,"#,##0") & " bars from "&TEXT(OFFSET(B32,A8,0,1,1),"mm/dd/yyyy") & " to " & TEXT(B33,"mm/dd/yyyy") -> Summary of Trades using 2,800 bars from 06/10/2003 to 07/23/2014
A26: For Details: See Transaction Summary Tabs
A27: Position | B27: ="Trend Following with Bandedge("&A19&")" -> Trend Following with Bandedge(20) | D27: ="Swing w/ Bn'dge("&A19&")" -> Swing w/ Bn'dge(20)
A28: Long -> | B28: ='Trend Transaction Summary'!$B$5&" Trans" -> 129 Trans | C28: ='Trend Transaction Summary'!$I$8 -> 32.98 | D28: ='Swing Transaction Summary'!$B$5&" Trans" -> 129 Trans | E28: ='Swing Transaction Summary'!$I$8 -> 31.32 | H28: Date and prices @ Cursor => | I28: =OFFSET(A32,$E$17,0,1,1)&"(RR)" -> 69(RR) | J28: =OFFSET($B$32,E17,0,1,1) -> 2014-04-15 | K28: =TEXT(OFFSET(D32,$E$17,0,1,1),"#,##0.00")&"(o)" -> 97.39(o) | L28: =TEXT(OFFSET(E32,$E$17,0,1,1),"#,##0.00")&"(h)" -> 97.98(h) | M28: =TEXT(OFFSET(F32,$E$17,0,1,1),"#,##0.00")&"(l)" -> 95.87(l) | N28: =TEXT(OFFSET(G32,$E$17,0,1,1),"#,##0.00")&"(c)" -> 97.92(c) | T28: Oscillator Cross Over Zero Signals
A29: Short -> | B29: ='Trend Transaction Summary'!$K$5&" Trans" -> 129 Trans | C29: ='Trend Transaction Summary'!$R$8 -> -31.32 | D29: ='Swing Transaction Summary'!$K$5&" Trans" -> 129 Trans | E29: ='Swing Transaction Summary'!$R$8 -> -32.98 | W29: Transactions Generated Using Suggested Trend Following Rules | AD29: Transactions Generated Using Suggested Swing Trade Rules
A30: Net | C30: =C28+C29 -> 1.66 | E30: =E28+E29 -> -1.66 | T30: Cross Up | U30: Cross Down | W30: Entries and Exits on the bar AFTER a Signal | AD30: Entries and Exits on the bar AFTER a Signal
A31: Rel Row | B31: Stock Prices | H31: P Cursor | I31: P Cursor Min | K31: White Noise | L31: Filt | M31: Peak | N31: ="Universal Oscillator (" & $A$19 & ")" -> Universal Oscillator (20) | O31: Os Cursor | P31: P Cursor Min | Q31: Vol Cursor | R31: P Cursor Min | W31: Long | Z31: Short | AD31: Long | AG31: Short
B32: Date | C32: Volume | D32: Open | E32: High | F32: Low | G32: Close | H32: =$F$11 -> 105.4 | I32: =$F$12 -> 70.8 | J32: Currentbar | O32: 1 | P32: -1 | Q32: =MAX(OFFSET(C32,1,0,A12,1)) -> 6101500 | R32: 0 | W32: Enter | X32: Active | Y32: Exit | Z32: Enter | AA32: Active | AB32: Exit | AD32: Enter | AE32: Active | AF32: Exit | AG32: Enter | AH32: Active | AI32: Exit
A33: 1 | B33: =OFFSET(InputPriceData!$B$15,CalculationsAndCharts!$A33+$A$11,0,1,1) -> 2014-07-23 | C33: =OFFSET(InputPriceData!G$15,CalculationsAndCharts!$A33+$A$11,IF($C$7,8,0),1,1) -> 1674700 | D33: =OFFSET(InputPriceData!$C$15,CalculationsAndCharts!$A33+$A$11,IF($C$7,8,0),1,1) -> 96.4 | E33: =OFFSET(InputPriceData!$D$15,CalculationsAndCharts!$A33+$A$11,IF($C$7,8,0),1,1) -> 96.54 | F33: =OFFSET(InputPriceData!$E$15,CalculationsAndCharts!$A33+$A$11,IF($C$7,8,0),1,1) -> 95.34 | G33: =OFFSET(InputPriceData!$F$15,CalculationsAndCharts!$A33+$A$11,IF($C$7,8,0),1,1) -> 95.37 | H33: =$E$17 -> 69 | I33: =H32 -> 105.4 | J33: =$A$8-A33+1 -> 2800 | K33: =IF(J33>2,G33-G35,0) -> -0.45 | L33: =IF(J33>3,($D$21*(K33+K34)/2+$D$22*L34+$D$23*L35),IF(J33=1,0,IF(J33=2,($D$21*0*(G33+G34)/2+$D$22*L34),IF(J33=3,($D$21*0*(G33+G34)/2+$D$22*L34+$D$23*L35),0)))) -> 0.8831851709 | M33: =MAX(IF(J33=1,0.0000001,0.991*M34),ABS(L33)) -> 0.8831851709 | N33: =IF(M33=0,0,L33/M33) -> 1 | O33: =$E$17 -> 69 | P33: =O32 -> 1 | Q33: =$E$17 -> 69 | R33: =10^INT(LOG10(Q32))*0.9+Q32 -> 7001500 | T33: =AND(N34<0,N33>0) -> FALSE | U33: =AND(N34>0,N33<0) -> FALSE | W33: =AND($T34<>$T35,$T34,NOT(X34)) -> FALSE | X33: =IF(X34,IF(Y33,FALSE,X34),IF(W33,TRUE,X34)) -> TRUE | Y33: =AND(X34,AND($U34<>$U35,$U34)) -> FALSE | Z33: =AND($U34<>$U35,$U34,NOT(AA34)) -> FALSE | AA33: =IF(AA34,IF(AB33,FALSE,AA34),IF(Z33,TRUE,AA34)) -> FALSE | AB33: =AND(AA34,AND($T34<>$T35,$T34)) -> FALSE | AD33: =AND($U34<>$U35,$U34,NOT(AE34)) -> FALSE | AE33: =IF(AE34,IF(AF33,FALSE,AE34),IF(AD33,TRUE,AE34)) -> FALSE | AF33: =AND(AE34,AND($T34<>$T35,$T34)) -> FALSE | AG33: =AND($T34<>$T35,$T34,NOT(AH34)) -> FALSE | AH33: =IF(AH34,IF(AI33,FALSE,AH34),IF(AG33,TRUE,AH34)) -> TRUE | AI33: =AND(AH34,AND($U34<>$U35,$U34)) -> FALSE
A34: 2 | B34: =OFFSET(InputPriceData!B$15,CalculationsAndCharts!$A34+$A$11,0,1,1) -> 2014-07-22 | C34: =OFFSET(InputPriceData!G$15,CalculationsAndCharts!$A34+$A$11,IF($C$7,8,0),1,1) -> 2307800 | D34: =OFFSET(InputPriceData!C$15,CalculationsAndCharts!$A34+$A$11,IF($C$7,8,0),1,1) -> 96 | E34: =OFFSET(InputPriceData!D$15,CalculationsAndCharts!$A34+$A$11,IF($C$7,8,0),1,1) -> 97.01 | F34: =OFFSET(InputPriceData!E$15,CalculationsAndCharts!$A34+$A$11,IF($C$7,8,0),1,1) -> 95.79 | G34: =OFFSET(InputPriceData!F$15,CalculationsAndCharts!$A34+$A$11,IF($C$7,8,0),1,1) -> 96.86 | H34: =$E$17 -> 69 | I34: =I32 -> 70.8 | J34: =$A$8-A34+1 -> 2799 | K34: =IF(J34>2,G34-G36,0) -> 2.01 | L34: 0.8005350547 | M34: =MAX(IF(J34=1,0.0000001,0.991*M35),ABS(L34)) -> 0.8005350547 | N34: 1 | O34: =$E$17 -> 69 | P34: =P32 -> -1 | Q34: =$E$17 -> 69 | R34: =R32 -> 0 | T34: FALSE | U34: FALSE | W34: =AND(T35<>T36,T35,NOT(X35)) -> FALSE | X34: =IF(X35,IF(Y34,FALSE,X35),IF(W34,TRUE,X35)) -> TRUE | Y34: =AND(X35,AND(U35<>U36,U35)) -> FALSE | Z34: =AND(U35<>U36,U35,NOT(AA35)) -> FALSE | AA34: =IF(AA35,IF(AB34,FALSE,AA35),IF(Z34,TRUE,AA35)) -> FALSE | AB34: =AND(AA35,AND(T35<>T36,T35)) -> FALSE | AD34: =AND($U35<>$U36,$U35,NOT(AE35)) -> FALSE | AE34: =IF(AE35,IF(AF34,FALSE,AE35),IF(AD34,TRUE,AE35)) -> FALSE | AF34: =AND(AE35,AND($T35<>$T36,$T35)) -> FALSE | AG34: =AND($T35<>$T36,$T35,NOT(AH35)) -> FALSE | AH34: =IF(AH35,IF(AI34,FALSE,AH35),IF(AG34,TRUE,AH35)) -> TRUE | AI34: =AND(AH35,AND($U35<>$U36,$U35)) -> FALSE
A35: 3 | B35: =OFFSET(InputPriceData!B$15,CalculationsAndCharts!$A35+$A$11,0,1,1) -> 2014-07-21 | C35: =OFFSET(InputPriceData!G$15,CalculationsAndCharts!$A35+$A$11,IF($C$7,8,0),1,1) -> 1023300 | D35: =OFFSET(InputPriceData!C$15,CalculationsAndCharts!$A35+$A$11,IF($C$7,8,0),1,1) -> 94.86 | E35: =OFFSET(InputPriceData!D$15,CalculationsAndCharts!$A35+$A$11,IF($C$7,8,0),1,1) -> 95.98 | F35: =OFFSET(InputPriceData!E$15,CalculationsAndCharts!$A35+$A$11,IF($C$7,8,0),1,1) -> 94.85 | G35: =OFFSET(InputPriceData!F$15,CalculationsAndCharts!$A35+$A$11,IF($C$7,8,0),1,1) -> 95.82 | J35: 2798 | K35: 1.67 | L35: 0.6691307679 | M35: 0.7255995825 | N35: 0.9221763408 | T35: FALSE | U35: FALSE | W35: FALSE | X35: TRUE | Y35: FALSE | Z35: FALSE | AA35: FALSE | AB35: FALSE | AD35: FALSE | AE35: FALSE | AF35: FALSE | AG35: FALSE | AH35: TRUE | AI35: FALSE
A36: 4 | B36: =OFFSET(InputPriceData!B$15,CalculationsAndCharts!$A36+$A$11,0,1,1) -> 2014-07-18 | C36: =OFFSET(InputPriceData!G$15,CalculationsAndCharts!$A36+$A$11,IF($C$7,8,0),1,1) -> 1168700 | D36: =OFFSET(InputPriceData!C$15,CalculationsAndCharts!$A36+$A$11,IF($C$7,8,0),1,1) -> 94.37 | E36: =OFFSET(InputPriceData!D$15,CalculationsAndCharts!$A36+$A$11,IF($C$7,8,0),1,1) -> 94.96 | F36: =OFFSET(InputPriceData!E$15,CalculationsAndCharts!$A36+$A$11,IF($C$7,8,0),1,1) -> 94 | G36: =OFFSET(InputPriceData!F$15,CalculationsAndCharts!$A36+$A$11,IF($C$7,8,0),1,1) -> 94.85 | J36: 2797 | K36: 0.22 | L36: 0.608493693 | M36: 0.7321892861 | N36: 0.831060635 | T36: FALSE | U36: FALSE | W36: FALSE | X36: TRUE | Y36: FALSE | Z36: FALSE | AA36: FALSE | AB36: FALSE | AD36: FALSE | AE36: FALSE | AF36: FALSE | AG36: FALSE | AH36: TRUE | AI36: FALSE
A37: 5 | B37: =OFFSET(InputPriceData!B$15,CalculationsAndCharts!$A37+$A$11,0,1,1) -> 2014-07-17 | C37: =OFFSET(InputPriceData!G$15,CalculationsAndCharts!$A37+$A$11,IF($C$7,8,0),1,1) -> 1077100 | D37: =OFFSET(InputPriceData!C$15,CalculationsAndCharts!$A37+$A$11,IF($C$7,8,0),1,1) -> 94.18 | E37: =OFFSET(InputPriceData!D$15,CalculationsAndCharts!$A37+$A$11,IF($C$7,8,0),1,1) -> 95.14 | F37: =OFFSET(InputPriceData!E$15,CalculationsAndCharts!$A37+$A$11,IF($C$7,8,0),1,1) -> 93.64 | G37: =OFFSET(InputPriceData!F$15,CalculationsAndCharts!$A37+$A$11,IF($C$7,8,0),1,1) -> 94.15 | J37: 2796 | K37: -0.41 | L37: 0.5554034854 | M37: 0.7388388356 | N37: 0.7517248128 | T37: FALSE | U37: FALSE | W37: FALSE | X37: TRUE | Y37: FALSE | Z37: FALSE | AA37: FALSE | AB37: FALSE | AD37: FALSE | AE37: FALSE | AF37: FALSE | AG37: FALSE | AH37: TRUE | AI37: FALSE
A38: 6 | B38: =OFFSET(InputPriceData!B$15,CalculationsAndCharts!$A38+$A$11,0,1,1) -> 2014-07-16 | C38: =OFFSET(InputPriceData!G$15,CalculationsAndCharts!$A38+$A$11,IF($C$7,8,0),1,1) -> 1202700 | D38: =OFFSET(InputPriceData!C$15,CalculationsAndCharts!$A38+$A$11,IF($C$7,8,0),1,1) -> 95.02 | E38: =OFFSET(InputPriceData!D$15,CalculationsAndCharts!$A38+$A$11,IF($C$7,8,0),1,1) -> 95.12 | F38: =OFFSET(InputPriceData!E$15,CalculationsAndCharts!$A38+$A$11,IF($C$7,8,0),1,1) -> 94.11 | G38: =OFFSET(InputPriceData!F$15,CalculationsAndCharts!$A38+$A$11,IF($C$7,8,0),1,1) -> 94.63 | J38: 2795 | K38: 0.67 | L38: 0.3924875405 | M38: 0.7455487746 | N38: 0.5264411316 | T38: FALSE | U38: FALSE | W38: TRUE | X38: TRUE | Y38: FALSE | Z38: FALSE | AA38: FALSE | AB38: TRUE | AD38: FALSE | AE38: FALSE | AF38: TRUE | AG38: TRUE | AH38: TRUE | AI38: FALSE
A39: 7 | B39: =OFFSET(InputPriceData!B$15,CalculationsAndCharts!$A39+$A$11,0,1,1) -> 2014-07-15 | C39: =OFFSET(InputPriceData!G$15,CalculationsAndCharts!$A39+$A$11,IF($C$7,8,0),1,1) -> 1583200 | D39: =OFFSET(InputPriceData!C$15,CalculationsAndCharts!$A39+$A$11,IF($C$7,8,0),1,1) -> 94.06 | E39: =OFFSET(InputPriceData!D$15,CalculationsAndCharts!$A39+$A$11,IF($C$7,8,0),1,1) -> 95.26 | F39: =OFFSET(InputPriceData!E$15,CalculationsAndCharts!$A39+$A$11,IF($C$7,8,0),1,1) -> 93.97 | G39: =OFFSET(InputPriceData!F$15,CalculationsAndCharts!$A39+$A$11,IF($C$7,8,0),1,1) -> 94.56 | J39: 2794 | K39: 1.6 | L39: 0.1061167323 | M39: 0.7523196514 | N39: 0.1410527189 | T39: TRUE | U39: FALSE | W39: FALSE | X39: FALSE | Y39: FALSE | Z39: FALSE | AA39: TRUE | AB39: FALSE | AD39: FALSE | AE39: TRUE | AF39: FALSE | AG39: FALSE | AH39: FALSE | AI39: FALSE
A40: 8 | B40: =OFFSET(InputPriceData!B$15,CalculationsAndCharts!$A40+$A$11,0,1,1) -> 2014-07-14 | C40: =OFFSET(InputPriceData!G$15,CalculationsAndCharts!$A40+$A$11,IF($C$7,8,0),1,1) -> 1763400 | D40: =OFFSET(InputPriceData!C$15,CalculationsAndCharts!$A40+$A$11,IF($C$7,8,0),1,1) -> 93.39 | E40: =OFFSET(InputPriceData!D$15,CalculationsAndCharts!$A40+$A$11,IF($C$7,8,0),1,1) -> 94.13 | F40: =OFFSET(InputPriceData!E$15,CalculationsAndCharts!$A40+$A$11,IF($C$7,8,0),1,1) -> 93.12 | G40: =OFFSET(InputPriceData!F$15,CalculationsAndCharts!$A40+$A$11,IF($C$7,8,0),1,1) -> 93.96 | J40: 2793 | K40: 1.86 | L40: -0.2136492775 | M40: 0.7591520196 | N40: -0.2814314814 | T40: FALSE | U40: FALSE | W40: FALSE | X40: FALSE | Y40: FALSE | Z40: FALSE | AA40: TRUE | AB40: FALSE | AD40: FALSE | AE40: TRUE | AF40: FALSE | AG40: FALSE | AH40: FALSE | AI40: FALSE
A41: 9 | B41: =OFFSET(InputPriceData!B$15,CalculationsAndCharts!$A41+$A$11,0,1,1) -> 2014-07-11 | C41: =OFFSET(InputPriceData!G$15,CalculationsAndCharts!$A41+$A$11,IF($C$7,8,0),1,1) -> 1515500 | D41: =OFFSET(InputPriceData!C$15,CalculationsAndCharts!$A41+$A$11,IF($C$7,8,0),1,1) -> 92.13 | E41: =OFFSET(InputPriceData!D$15,CalculationsAndCharts!$A41+$A$11,IF($C$7,8,0),1,1) -> 93.3 | F41: =OFFSET(InputPriceData!E$15,CalculationsAndCharts!$A41+$A$11,IF($C$7,8,0),1,1) -> 91.91 | G41: =OFFSET(InputPriceData!F$15,CalculationsAndCharts!$A41+$A$11,IF($C$7,8,0),1,1) -> 92.96 | J41: 2792 | K41: 1.1 | L41: -0.4727827652 | M41: 0.7660464375 | N41: -0.6171724611 | T41: FALSE | U41: FALSE | W41: FALSE | X41: FALSE | Y41: FALSE | Z41: FALSE | AA41: TRUE | AB41: FALSE | AD41: FALSE | AE41: TRUE | AF41: FALSE | AG41: FALSE | AH41: FALSE | AI41: FALSE
A42: 10 | B42: =OFFSET(InputPriceData!B$15,CalculationsAndCharts!$A42+$A$11,0,1,1) -> 2014-07-10 | C42: =OFFSET(InputPriceData!G$15,CalculationsAndCharts!$A42+$A$11,IF($C$7,8,0),1,1) -> 1523400 | D42: =OFFSET(InputPriceData!C$15,CalculationsAndCharts!$A42+$A$11,IF($C$7,8,0),1,1) -> 90.75 | E42: =OFFSET(InputPriceData!D$15,CalculationsAndCharts!$A42+$A$11,IF($C$7,8,0),1,1) -> 92.68 | F42: =OFFSET(InputPriceData!E$15,CalculationsAndCharts!$A42+$A$11,IF($C$7,8,0),1,1) -> 90.75 | G42: =OFFSET(InputPriceData!F$15,CalculationsAndCharts!$A42+$A$11,IF($C$7,8,0),1,1) -> 92.1 | J42: 2791 | K42: 0.9 | L42: -0.6362481884 | M42: 0.7730034688 | N42: -0.8230858128 | T42: FALSE | U42: FALSE | W42: FALSE | X42: FALSE | Y42: FALSE | Z42: FALSE | AA42: TRUE | AB42: FALSE | AD42: FALSE | AE42: TRUE | AF42: FALSE | AG42: FALSE | AH42: FALSE | AI42: FALSE
A43: 11 | B43: =OFFSET(InputPriceData!B$15,CalculationsAndCharts!$A43+$A$11,0,1,1) -> 2014-07-09 | C43: =OFFSET(InputPriceData!G$15,CalculationsAndCharts!$A43+$A$11,IF($C$7,8,0),1,1) -> 1547700 | D43: =OFFSET(InputPriceData!C$15,CalculationsAndCharts!$A43+$A$11,IF($C$7,8,0),1,1) -> 91.74 | E43: =OFFSET(InputPriceData!D$15,CalculationsAndCharts!$A43+$A$11,IF($C$7,8,0),1,1) -> 91.87 | F43: =OFFSET(InputPriceData!E$15,CalculationsAndCharts!$A43+$A$11,IF($C$7,8,0),1,1) -> 91 | G43: =OFFSET(InputPriceData!F$15,CalculationsAndCharts!$A43+$A$11,IF($C$7,8,0),1,1) -> 91.86 | J43: 2790 | K43: -0.43 | L43: -0.6895398251 | M43: 0.7800236819 | N43: -0.8839985774 | T43: FALSE | U43: FALSE | W43: FALSE | X43: FALSE | Y43: FALSE | Z43: FALSE | AA43: TRUE | AB43: FALSE | AD43: FALSE | AE43: TRUE | AF43: FALSE | AG43: FALSE | AH43: FALSE | AI43: FALSE
A44: 12 | B44: =OFFSET(InputPriceData!B$15,CalculationsAndCharts!$A44+$A$11,0,1,1) -> 2014-07-08 | C44: =OFFSET(InputPriceData!G$15,CalculationsAndCharts!$A44+$A$11,IF($C$7,8,0),1,1) -> 1417300 | D44: =OFFSET(InputPriceData!C$15,CalculationsAndCharts!$A44+$A$11,IF($C$7,8,0),1,1) -> 92.03 | E44: =OFFSET(InputPriceData!D$15,CalculationsAndCharts!$A44+$A$11,IF($C$7,8,0),1,1) -> 92.22 | F44: =OFFSET(InputPriceData!E$15,CalculationsAndCharts!$A44+$A$11,IF($C$7,8,0),1,1) -> 91.07 | G44: =OFFSET(InputPriceData!F$15,CalculationsAndCharts!$A44+$A$11,IF($C$7,8,0),1,1) -> 91.2 | J44: 2789 | K44: -2.02 | L44: -0.6587271181 | M44: 0.7871076507 | N44: -0.8368958394 | T44: FALSE | U44: FALSE | W44: FALSE | X44: FALSE | Y44: FALSE | Z44: FALSE | AA44: TRUE | AB44: FALSE | AD44: FALSE | AE44: TRUE | AF44: FALSE | AG44: FALSE | AH44: FALSE | AI44: FALSE
A45: 13 | B45: =OFFSET(InputPriceData!B$15,CalculationsAndCharts!$A45+$A$11,0,1,1) -> 2014-07-07 | C45: =OFFSET(InputPriceData!G$15,CalculationsAndCharts!$A45+$A$11,IF($C$7,8,0),1,1) -> 1235900 | D45: =OFFSET(InputPriceData!C$15,CalculationsAndCharts!$A45+$A$11,IF($C$7,8,0),1,1) -> 93.29 | E45: =OFFSET(InputPriceData!D$15,CalculationsAndCharts!$A45+$A$11,IF($C$7,8,0),1,1) -> 93.39 | F45: =OFFSET(InputPriceData!E$15,CalculationsAndCharts!$A45+$A$11,IF($C$7,8,0),1,1) -> 92.1 | G45: =OFFSET(InputPriceData!F$15,CalculationsAndCharts!$A45+$A$11,IF($C$7,8,0),1,1) -> 92.29 | J45: 2788 | K45: -0.18 | L45: -0.6804499549 | M45: 0.7942559543 | N45: -0.8567136969 | T45: FALSE | U45: FALSE | W45: FALSE | X45: FALSE | Y45: FALSE | Z45: FALSE | AA45: TRUE | AB45: FALSE | AD45: FALSE | AE45: TRUE | AF45: FALSE | AG45: FALSE | AH45: FALSE | AI45: FALSE
A46: 14 | B46: =OFFSET(InputPriceData!B$15,CalculationsAndCharts!$A46+$A$11,0,1,1) -> 2014-07-03 | C46: =OFFSET(InputPriceData!G$15,CalculationsAndCharts!$A46+$A$11,IF($C$7,8,0),1,1) -> 808800 | D46: =OFFSET(InputPriceData!C$15,CalculationsAndCharts!$A46+$A$11,IF($C$7,8,0),1,1) -> 93.39 | E46: =OFFSET(InputPriceData!D$15,CalculationsAndCharts!$A46+$A$11,IF($C$7,8,0),1,1) -> 93.5 | F46: =OFFSET(InputPriceData!E$15,CalculationsAndCharts!$A46+$A$11,IF($C$7,8,0),1,1) -> 92.48 | G46: =OFFSET(InputPriceData!F$15,CalculationsAndCharts!$A46+$A$11,IF($C$7,8,0),1,1) -> 93.22 | J46: 2787 | K46: 0.12 | L46: -0.766012981 | M46: 0.8014691769 | N46: -0.9557609988 | T46: FALSE | U46: FALSE | W46: FALSE | X46: FALSE | Y46: FALSE | Z46: FALSE | AA46: TRUE | AB46: FALSE | AD46: FALSE | AE46: TRUE | AF46: FALSE | AG46: FALSE | AH46: FALSE | AI46: FALSE
A47: 15 | B47: =OFFSET(InputPriceData!B$15,CalculationsAndCharts!$A47+$A$11,0,1,1) -> 2014-07-02 | C47: =OFFSET(InputPriceData!G$15,CalculationsAndCharts!$A47+$A$11,IF($C$7,8,0),1,1) -> 1136500 | D47: =OFFSET(InputPriceData!C$15,CalculationsAndCharts!$A47+$A$11,IF($C$7,8,0),1,1) -> 93.1 | E47: =OFFSET(InputPriceData!D$15,CalculationsAndCharts!$A47+$A$11,IF($C$7,8,0),1,1) -> 93.56 | F47: =OFFSET(InputPriceData!E$15,CalculationsAndCharts!$A47+$A$11,IF($C$7,8,0),1,1) -> 92.22 | G47: =OFFSET(InputPriceData!F$15,CalculationsAndCharts!$A47+$A$11,IF($C$7,8,0),1,1) -> 92.47 | J47: 2786 | K47: 0.22 | L47: -0.8087479081 | M47: 0.8087479081 | N47: -1 | T47: FALSE | U47: FALSE | W47: FALSE | X47: FALSE | Y47: FALSE | Z47: FALSE | AA47: TRUE | AB47: FALSE | AD47: FALSE | AE47: TRUE | AF47: FALSE | AG47: FALSE | AH47: FALSE | AI47: FALSE
A48: 16 | B48: =OFFSET(InputPriceData!B$15,CalculationsAndCharts!$A48+$A$11,0,1,1) -> 2014-07-01 | C48: =OFFSET(InputPriceData!G$15,CalculationsAndCharts!$A48+$A$11,IF($C$7,8,0),1,1) -> 2129800 | D48: =OFFSET(InputPriceData!C$15,CalculationsAndCharts!$A48+$A$11,IF($C$7,8,0),1,1) -> 91.67 | E48: =OFFSET(InputPriceData!D$15,CalculationsAndCharts!$A48+$A$11,IF($C$7,8,0),1,1) -> 93.63 | F48: =OFFSET(InputPriceData!E$15,CalculationsAndCharts!$A48+$A$11,IF($C$7,8,0),1,1) -> 90.37 | G48: =OFFSET(InputPriceData!F$15,CalculationsAndCharts!$A48+$A$11,IF($C$7,8,0),1,1) -> 93.1 | J48: 2785 | K48: -1.3 | L48: -0.7547956196 | M48: 0.7547956196 | N48: -1 | T48: FALSE | U48: FALSE | W48: FALSE | X48: FALSE | Y48: FALSE | Z48: FALSE | AA48: TRUE | AB48: FALSE | AD48: FALSE | AE48: TRUE | AF48: FALSE | AG48: FALSE | AH48: FALSE | AI48: FALSE
A49: 17 | B49: =OFFSET(InputPriceData!B$15,CalculationsAndCharts!$A49+$A$11,0,1,1) -> 2014-06-30 | C49: =OFFSET(InputPriceData!G$15,CalculationsAndCharts!$A49+$A$11,IF($C$7,8,0),1,1) -> 1625500 | D49: =OFFSET(InputPriceData!C$15,CalculationsAndCharts!$A49+$A$11,IF($C$7,8,0),1,1) -> 93.82 | E49: =OFFSET(InputPriceData!D$15,CalculationsAndCharts!$A49+$A$11,IF($C$7,8,0),1,1) -> 93.84 | F49: =OFFSET(InputPriceData!E$15,CalculationsAndCharts!$A49+$A$11,IF($C$7,8,0),1,1) -> 92.1 | G49: =OFFSET(InputPriceData!F$15,CalculationsAndCharts!$A49+$A$11,IF($C$7,8,0),1,1) -> 92.25 | J49: 2784 | K49: -1.83 | L49: -0.6442050311 | M49: 0.6659417293 | N49: -0.9673594592 | T49: FALSE | U49: FALSE | W49: FALSE | X49: FALSE | Y49: FALSE | Z49: FALSE | AA49: TRUE | AB49: FALSE | AD49: FALSE | AE49: TRUE | AF49: FALSE | AG49: FALSE | AH49: FALSE | AI49: FALSE
A50: 18 | B50: =OFFSET(InputPriceData!B$15,CalculationsAndCharts!$A50+$A$11,0,1,1) -> 2014-06-27 | C50: =OFFSET(InputPriceData!G$15,CalculationsAndCharts!$A50+$A$11,IF($C$7,8,0),1,1) -> 1895000 | D50: =OFFSET(InputPriceData!C$15,CalculationsAndCharts!$A50+$A$11,IF($C$7,8,0),1,1) -> 94.12 | E50: =OFFSET(InputPriceData!D$15,CalculationsAndCharts!$A50+$A$11,IF($C$7,8,0),1,1) -> 94.45 | F50: =OFFSET(InputPriceData!E$15,CalculationsAndCharts!$A50+$A$11,IF($C$7,8,0),1,1) -> 93.75 | G50: =OFFSET(InputPriceData!F$15,CalculationsAndCharts!$A50+$A$11,IF($C$7,8,0),1,1) -> 94.4 | J50: 2783 | K50: -0.31 | L50: -0.5852115387 | M50: 0.671989636 | N50: -0.870863935 | T50: FALSE | U50: FALSE | W50: FALSE | X50: FALSE | Y50: FALSE | Z50: FALSE | AA50: TRUE | AB50: FALSE | AD50: FALSE | AE50: TRUE | AF50: FALSE | AG50: FALSE | AH50: FALSE | AI50: FALSE
A51: 19 | B51: =OFFSET(InputPriceData!B$15,CalculationsAndCharts!$A51+$A$11,0,1,1) -> 2014-06-26 | C51: =OFFSET(InputPriceData!G$15,CalculationsAndCharts!$A51+$A$11,IF($C$7,8,0),1,1) -> 1161500 | D51: =OFFSET(InputPriceData!C$15,CalculationsAndCharts!$A51+$A$11,IF($C$7,8,0),1,1) -> 94.56 | E51: =OFFSET(InputPriceData!D$15,CalculationsAndCharts!$A51+$A$11,IF($C$7,8,0),1,1) -> 94.56 | F51: =OFFSET(InputPriceData!E$15,CalculationsAndCharts!$A51+$A$11,IF($C$7,8,0),1,1) -> 93.64 | G51: =OFFSET(InputPriceData!F$15,CalculationsAndCharts!$A51+$A$11,IF($C$7,8,0),1,1) -> 94.08 | J51: 2782 | K51: -0.15 | L51: -0.5529534041 | M51: 0.6780924682 | N51: -0.815454278 | T51: FALSE | U51: FALSE | W51: FALSE | X51: FALSE | Y51: FALSE | Z51: FALSE | AA51: TRUE | AB51: FALSE | AD51: FALSE | AE51: TRUE | AF51: FALSE | AG51: FALSE | AH51: FALSE | AI51: FALSE
A52: 20 | B52: =OFFSET(InputPriceData!B$15,CalculationsAndCharts!$A52+$A$11,0,1,1) -> 2014-06-25 | C52: =OFFSET(InputPriceData!G$15,CalculationsAndCharts!$A52+$A$11,IF($C$7,8,0),1,1) -> 1585000 | D52: =OFFSET(InputPriceData!C$15,CalculationsAndCharts!$A52+$A$11,IF($C$7,8,0),1,1) -> 94.21 | E52: =OFFSET(InputPriceData!D$15,CalculationsAndCharts!$A52+$A$11,IF($C$7,8,0),1,1) -> 94.85 | F52: =OFFSET(InputPriceData!E$15,CalculationsAndCharts!$A52+$A$11,IF($C$7,8,0),1,1) -> 93.53 | G52: =OFFSET(InputPriceData!F$15,CalculationsAndCharts!$A52+$A$11,IF($C$7,8,0),1,1) -> 94.71 | J52: 2781 | K52: -1.12 | L52: -0.4628642561 | M52: 0.6842507247 | N52: -0.67645417 | T52: FALSE | U52: FALSE | W52: FALSE | X52: FALSE | Y52: FALSE | Z52: FALSE | AA52: TRUE | AB52: FALSE | AD52: FALSE | AE52: TRUE | AF52: FALSE | AG52: FALSE | AH52: FALSE | AI52: FALSE
A53: 21 | B53: =OFFSET(InputPriceData!B$15,CalculationsAndCharts!$A53+$A$11,0,1,1) -> 2014-06-24 | C53: =OFFSET(InputPriceData!G$15,CalculationsAndCharts!$A53+$A$11,IF($C$7,8,0),1,1) -> 1129200 | D53: =OFFSET(InputPriceData!C$15,CalculationsAndCharts!$A53+$A$11,IF($C$7,8,0),1,1) -> 95.53 | E53: =OFFSET(InputPriceData!D$15,CalculationsAndCharts!$A53+$A$11,IF($C$7,8,0),1,1) -> 96 | F53: =OFFSET(InputPriceData!E$15,CalculationsAndCharts!$A53+$A$11,IF($C$7,8,0),1,1) -> 94.19 | G53: =OFFSET(InputPriceData!F$15,CalculationsAndCharts!$A53+$A$11,IF($C$7,8,0),1,1) -> 94.23 | J53: 2780 | K53: -2.54 | L53: -0.343598706 | M53: 0.6904649089 | N53: -0.4976338429 | T53: FALSE | U53: FALSE | W53: FALSE | X53: FALSE | Y53: FALSE | Z53: FALSE | AA53: TRUE | AB53: FALSE | AD53: FALSE | AE53: TRUE | AF53: FALSE | AG53: FALSE | AH53: FALSE | AI53: FALSE
A54: 22 | B54: =OFFSET(InputPriceData!B$15,CalculationsAndCharts!$A54+$A$11,0,1,1) -> 2014-06-23 | C54: =OFFSET(InputPriceData!G$15,CalculationsAndCharts!$A54+$A$11,IF($C$7,8,0),1,1) -> 889300 | D54: =OFFSET(InputPriceData!C$15,CalculationsAndCharts!$A54+$A$11,IF($C$7,8,0),1,1) -> 97.04 | E54: =OFFSET(InputPriceData!D$15,CalculationsAndCharts!$A54+$A$11,IF($C$7,8,0),1,1) -> 97.04 | F54: =OFFSET(InputPriceData!E$15,CalculationsAndCharts!$A54+$A$11,IF($C$7,8,0),1,1) -> 95.45 | G54: =OFFSET(InputPriceData!F$15,CalculationsAndCharts!$A54+$A$11,IF($C$7,8,0),1,1) -> 95.83 | J54: 2779 | K54: -0.02 | L54: -0.3407647544 | M54: 0.6967355287 | N54: -0.4890876673 | T54: FALSE | U54: FALSE | W54: FALSE | X54: FALSE | Y54: FALSE | Z54: FALSE | AA54: TRUE | AB54: FALSE | AD54: FALSE | AE54: TRUE | AF54: FALSE | AG54: FALSE | AH54: FALSE | AI54: FALSE
A55: 23 | B55: =OFFSET(InputPriceData!B$15,CalculationsAndCharts!$A55+$A$11,0,1,1) -> 2014-06-20 | C55: =OFFSET(InputPriceData!G$15,CalculationsAndCharts!$A55+$A$11,IF($C$7,8,0),1,1) -> 1911100 | D55: =OFFSET(InputPriceData!C$15,CalculationsAndCharts!$A55+$A$11,IF($C$7,8,0),1,1) -> 96.27 | E55: =OFFSET(InputPriceData!D$15,CalculationsAndCharts!$A55+$A$11,IF($C$7,8,0),1,1) -> 97.23 | F55: =OFFSET(InputPriceData!E$15,CalculationsAndCharts!$A55+$A$11,IF($C$7,8,0),1,1) -> 96.25 | G55: =OFFSET(InputPriceData!F$15,CalculationsAndCharts!$A55+$A$11,IF($C$7,8,0),1,1) -> 96.77 | J55: 2778 | K55: 1.03 | L55: -0.4520654237 | M55: 0.7030630966 | N55: -0.6429941009 | T55: FALSE | U55: FALSE | W55: FALSE | X55: FALSE | Y55: FALSE | Z55: FALSE | AA55: TRUE | AB55: FALSE | AD55: FALSE | AE55: TRUE | AF55: FALSE | AG55: FALSE | AH55: FALSE | AI55: FALSE
A56: 24 | B56: =OFFSET(InputPriceData!B$15,CalculationsAndCharts!$A56+$A$11,0,1,1) -> 2014-06-19 | C56: =OFFSET(InputPriceData!G$15,CalculationsAndCharts!$A56+$A$11,IF($C$7,8,0),1,1) -> 1330500 | D56: =OFFSET(InputPriceData!C$15,CalculationsAndCharts!$A56+$A$11,IF($C$7,8,0),1,1) -> 95.64 | E56: =OFFSET(InputPriceData!D$15,CalculationsAndCharts!$A56+$A$11,IF($C$7,8,0),1,1) -> 96.25 | F56: =OFFSET(InputPriceData!E$15,CalculationsAndCharts!$A56+$A$11,IF($C$7,8,0),1,1) -> 95.49 | G56: =OFFSET(InputPriceData!F$15,CalculationsAndCharts!$A56+$A$11,IF($C$7,8,0),1,1) -> 95.85 | J56: 2777 | K56: 0.02 | L56: -0.5076973833 | M56: 0.7094481297 | N56: -0.715622978 | T56: FALSE | U56: FALSE | W56: FALSE | X56: FALSE | Y56: FALSE | Z56: FALSE | AA56: TRUE | AB56: FALSE | AD56: FALSE | AE56: TRUE | AF56: FALSE | AG56: FALSE | AH56: FALSE | AI56: FALSE
A57: 25 | B57: =OFFSET(InputPriceData!B$15,CalculationsAndCharts!$A57+$A$11,0,1,1) -> 2014-06-18 | C57: =OFFSET(InputPriceData!G$15,CalculationsAndCharts!$A57+$A$11,IF($C$7,8,0),1,1) -> 1051600 | D57: =OFFSET(InputPriceData!C$15,CalculationsAndCharts!$A57+$A$11,IF($C$7,8,0),1,1) -> 95.99 | E57: =OFFSET(InputPriceData!D$15,CalculationsAndCharts!$A57+$A$11,IF($C$7,8,0),1,1) -> 96.32 | F57: =OFFSET(InputPriceData!E$15,CalculationsAndCharts!$A57+$A$11,IF($C$7,8,0),1,1) -> 94.92 | G57: =OFFSET(InputPriceData!F$15,CalculationsAndCharts!$A57+$A$11,IF($C$7,8,0),1,1) -> 95.74 | J57: 2776 | K57: -1.36 | L57: -0.4672082041 | M57: 0.7158911501 | N57: -0.6526246401 | T57: FALSE | U57: FALSE | W57: FALSE | X57: FALSE | Y57: FALSE | Z57: FALSE | AA57: TRUE | AB57: FALSE | AD57: FALSE | AE57: TRUE | AF57: FALSE | AG57: FALSE | AH57: FALSE | AI57: FALSE
A58: 26 | B58: =OFFSET(InputPriceData!B$15,CalculationsAndCharts!$A58+$A$11,0,1,1) -> 2014-06-17 | C58: =OFFSET(InputPriceData!G$15,CalculationsAndCharts!$A58+$A$11,IF($C$7,8,0),1,1) -> 1578200 | D58: =OFFSET(InputPriceData!C$15,CalculationsAndCharts!$A58+$A$11,IF($C$7,8,0),1,1) -> 96.86 | E58: =OFFSET(InputPriceData!D$15,CalculationsAndCharts!$A58+$A$11,IF($C$7,8,0),1,1) -> 97.16 | F58: =OFFSET(InputPriceData!E$15,CalculationsAndCharts!$A58+$A$11,IF($C$7,8,0),1,1) -> 95.82 | G58: =OFFSET(InputPriceData!F$15,CalculationsAndCharts!$A58+$A$11,IF($C$7,8,0),1,1) -> 95.83 | J58: 2775 | K58: -0.76 | L58: -0.429059649 | M58: 0.7223926842 | N58: -0.5939424061 | T58: FALSE | U58: FALSE | W58: FALSE | X58: FALSE | Y58: FALSE | Z58: FALSE | AA58: TRUE | AB58: FALSE | AD58: FALSE | AE58: TRUE | AF58: FALSE | AG58: FALSE | AH58: FALSE | AI58: FALSE
A59: 27 | B59: =OFFSET(InputPriceData!B$15,CalculationsAndCharts!$A59+$A$11,0,1,1) -> 2014-06-16 | C59: =OFFSET(InputPriceData!G$15,CalculationsAndCharts!$A59+$A$11,IF($C$7,8,0),1,1) -> 1023400 | D59: =OFFSET(InputPriceData!C$15,CalculationsAndCharts!$A59+$A$11,IF($C$7,8,0),1,1) -> 96.46 | E59: =OFFSET(InputPriceData!D$15,CalculationsAndCharts!$A59+$A$11,IF($C$7,8,0),1,1) -> 97.39 | F59: =OFFSET(InputPriceData!E$15,CalculationsAndCharts!$A59+$A$11,IF($C$7,8,0),1,1) -> 96.17 | G59: =OFFSET(InputPriceData!F$15,CalculationsAndCharts!$A59+$A$11,IF($C$7,8,0),1,1) -> 97.1 | J59: 2774 | K59: 1.6 | L59: -0.4473113143 | M59: 0.7289532636 | N59: -0.6136351075 | T59: FALSE | U59: FALSE | W59: FALSE | X59: FALSE | Y59: FALSE | Z59: FALSE | AA59: TRUE | AB59: FALSE | AD59: FALSE | AE59: TRUE | AF59: FALSE | AG59: FALSE | AH59: FALSE | AI59: FALSE
A60: 28 | B60: =OFFSET(InputPriceData!B$15,CalculationsAndCharts!$A60+$A$11,0,1,1) -> 2014-06-13 | C60: =OFFSET(InputPriceData!G$15,CalculationsAndCharts!$A60+$A$11,IF($C$7,8,0),1,1) -> 1107200 | D60: =OFFSET(InputPriceData!C$15,CalculationsAndCharts!$A60+$A$11,IF($C$7,8,0),1,1) -> 95.7 | E60: =OFFSET(InputPriceData!D$15,CalculationsAndCharts!$A60+$A$11,IF($C$7,8,0),1,1) -> 96.77 | F60: =OFFSET(InputPriceData!E$15,CalculationsAndCharts!$A60+$A$11,IF($C$7,8,0),1,1) -> 95.45 | G60: =OFFSET(InputPriceData!F$15,CalculationsAndCharts!$A60+$A$11,IF($C$7,8,0),1,1) -> 96.59 | J60: 2773 | K60: 0.11 | L60: -0.3689125692 | M60: 0.7355734244 | N60: -0.5015305841 | T60: FALSE | U60: FALSE | W60: FALSE | X60: FALSE | Y60: TRUE | Z60: TRUE | AA60: TRUE | AB60: FALSE | AD60: TRUE | AE60: TRUE | AF60: FALSE | AG60: FALSE | AH60: FALSE | AI60: TRUE
A61: 29 | B61: =OFFSET(InputPriceData!B$15,CalculationsAndCharts!$A61+$A$11,0,1,1) -> 2014-06-12 | C61: =OFFSET(InputPriceData!G$15,CalculationsAndCharts!$A61+$A$11,IF($C$7,8,0),1,1) -> 1351000 | D61: =OFFSET(InputPriceData!C$15,CalculationsAndCharts!$A61+$A$11,IF($C$7,8,0),1,1) -> 96.55 | E61: =OFFSET(InputPriceData!D$15,CalculationsAndCharts!$A61+$A$11,IF($C$7,8,0),1,1) -> 96.83 | F61: =OFFSET(InputPriceData!E$15,CalculationsAndCharts!$A61+$A$11,IF($C$7,8,0),1,1) -> 95.16 | G61: =OFFSET(InputPriceData!F$15,CalculationsAndCharts!$A61+$A$11,IF($C$7,8,0),1,1) -> 95.5 | J61: 2772 | K61: -2.07 | L61: -0.09587380194 | M61: 0.7422537078 | N61: -0.1291658107 | T61: FALSE | U61: TRUE | W61: FALSE | X61: TRUE | Y61: FALSE | Z61: FALSE | AA61: FALSE | AB61: FALSE | AD61: FALSE | AE61: FALSE | AF61: FALSE | AG61: FALSE | AH61: TRUE | AI61: FALSE
A62: 30 | B62: =OFFSET(InputPriceData!B$15,CalculationsAndCharts!$A62+$A$11,0,1,1) -> 2014-06-11 | C62: =OFFSET(InputPriceData!G$15,CalculationsAndCharts!$A62+$A$11,IF($C$7,8,0),1,1) -> 1680700 | D62: =OFFSET(InputPriceData!C$15,CalculationsAndCharts!$A62+$A$11,IF($C$7,8,0),1,1) -> 97.5 | E62: =OFFSET(InputPriceData!D$15,CalculationsAndCharts!$A62+$A$11,IF($C$7,8,0),1,1) -> 97.87 | F62: =OFFSET(InputPriceData!E$15,CalculationsAndCharts!$A62+$A$11,IF($C$7,8,0),1,1) -> 96.38 | G62: =OFFSET(InputPriceData!F$15,CalculationsAndCharts!$A62+$A$11,IF($C$7,8,0),1,1) -> 96.48 | J62: 2771 | K62: -2.02 | L62: 0.2209388569 | M62: 0.7489946597 | N62: 0.2949805504 | T62: FALSE | U62: FALSE | W62: FALSE | X62: TRUE | Y62: FALSE | Z62: FALSE | AA62: FALSE | AB62: FALSE | AD62: FALSE | AE62: FALSE | AF62: FALSE | AG62: FALSE | AH62: TRUE | AI62: FALSE
A63: 31 | B63: =OFFSET(InputPriceData!B$15,CalculationsAndCharts!$A63+$A$11,0,1,1) -> 2014-06-10 | C63: =OFFSET(InputPriceData!G$15,CalculationsAndCharts!$A63+$A$11,IF($C$7,8,0),1,1) -> 1617700 | D63: =OFFSET(InputPriceData!C$15,CalculationsAndCharts!$A63+$A$11,IF($C$7,8,0),1,1) -> 100.31 | E63: =OFFSET(InputPriceData!D$15,CalculationsAndCharts!$A63+$A$11,IF($C$7,8,0),1,1) -> 100.31 | F63: =OFFSET(InputPriceData!E$15,CalculationsAndCharts!$A63+$A$11,IF($C$7,8,0),1,1) -> 97.44 | G63: =OFFSET(InputPriceData!F$15,CalculationsAndCharts!$A63+$A$11,IF($C$7,8,0),1,1) -> 97.57 | J63: 2770 | K63: -1.21 | L63: 0.4357591939 | M63: 0.7557968312 | N63: 0.5765559948 | T63: FALSE | U63: FALSE | W63: FALSE | X63: TRUE | Y63: FALSE | Z63: FALSE | AA63: FALSE | AB63: FALSE | AD63: FALSE | AE63: FALSE | AF63: FALSE | AG63: FALSE | AH63: TRUE | AI63: FALSE
A64: 32 | B64: =OFFSET(InputPriceData!B$15,CalculationsAndCharts!$A64+$A$11,0,1,1) -> 2014-06-09 | C64: =OFFSET(InputPriceData!G$15,CalculationsAndCharts!$A64+$A$11,IF($C$7,8,0),1,1) -> 1681300 | D64: =OFFSET(InputPriceData!C$15,CalculationsAndCharts!$A64+$A$11,IF($C$7,8,0),1,1) -> 98.43 | E64: =OFFSET(InputPriceData!D$15,CalculationsAndCharts!$A64+$A$11,IF($C$7,8,0),1,1) -> 98.91 | F64: =OFFSET(InputPriceData!E$15,CalculationsAndCharts!$A64+$A$11,IF($C$7,8,0),1,1) -> 98 | G64: =OFFSET(InputPriceData!F$15,CalculationsAndCharts!$A64+$A$11,IF($C$7,8,0),1,1) -> 98.5 | J64: 2769 | K64: -0.06 | L64: 0.5180569384 | M64: 0.7626607782 | N64: 0.6792757057 | T64: FALSE | U64: FALSE | W64: FALSE | X64: TRUE | Y64: FALSE | Z64: FALSE | AA64: FALSE | AB64: FALSE | AD64: FALSE | AE64: FALSE | AF64: FALSE | AG64: FALSE | AH64: TRUE | AI64: FALSE
A65: 33 | B65: =OFFSET(InputPriceData!B$15,CalculationsAndCharts!$A65+$A$11,0,1,1) -> 2014-06-06 | C65: =OFFSET(InputPriceData!G$15,CalculationsAndCharts!$A65+$A$11,IF($C$7,8,0),1,1) -> 1201700 | D65: =OFFSET(InputPriceData!C$15,CalculationsAndCharts!$A65+$A$11,IF($C$7,8,0),1,1) -> 97.91 | E65: =OFFSET(InputPriceData!D$15,CalculationsAndCharts!$A65+$A$11,IF($C$7,8,0),1,1) -> 98.94 | F65: =OFFSET(InputPriceData!E$15,CalculationsAndCharts!$A65+$A$11,IF($C$7,8,0),1,1) -> 97.9 | G65: =OFFSET(InputPriceData!F$15,CalculationsAndCharts!$A65+$A$11,IF($C$7,8,0),1,1) -> 98.78 | J65: 2768 | K65: 0.85 | L65: 0.5043180048 | M65: 0.7695870618 | N65: 0.6553098796 | T65: FALSE | U65: FALSE | W65: FALSE | X65: TRUE | Y65: FALSE | Z65: FALSE | AA65: FALSE | AB65: FALSE | AD65: FALSE | AE65: FALSE | AF65: FALSE | AG65: FALSE | AH65: TRUE | AI65: FALSE
A66: 34 | B66: =OFFSET(InputPriceData!B$15,CalculationsAndCharts!$A66+$A$11,0,1,1) -> 2014-06-05 | C66: =OFFSET(InputPriceData!G$15,CalculationsAndCharts!$A66+$A$11,IF($C$7,8,0),1,1) -> 1425200 | D66: =OFFSET(InputPriceData!C$15,CalculationsAndCharts!$A66+$A$11,IF($C$7,8,0),1,1) -> 98.18 | E66: =OFFSET(InputPriceData!D$15,CalculationsAndCharts!$A66+$A$11,IF($C$7,8,0),1,1) -> 98.67 | F66: =OFFSET(InputPriceData!E$15,CalculationsAndCharts!$A66+$A$11,IF($C$7,8,0),1,1) -> 97.8 | G66: =OFFSET(InputPriceData!F$15,CalculationsAndCharts!$A66+$A$11,IF($C$7,8,0),1,1) -> 98.56 | J66: 2767 | K66: 0.67 | L66: 0.4694265795 | M66: 0.776576248 | N66: 0.604482278 | T66: FALSE | U66: FALSE | W66: FALSE | X66: TRUE | Y66: FALSE | Z66: FALSE | AA66: FALSE | AB66: FALSE | AD66: FALSE | AE66: FALSE | AF66: FALSE | AG66: FALSE | AH66: TRUE | AI66: FALSE
A67: 35 | B67: =OFFSET(InputPriceData!B$15,CalculationsAndCharts!$A67+$A$11,0,1,1) -> 2014-06-04 | C67: =OFFSET(InputPriceData!G$15,CalculationsAndCharts!$A67+$A$11,IF($C$7,8,0),1,1) -> 998700 | D67: =OFFSET(InputPriceData!C$15,CalculationsAndCharts!$A67+$A$11,IF($C$7,8,0),1,1) -> 97.86 | E67: =OFFSET(InputPriceData!D$15,CalculationsAndCharts!$A67+$A$11,IF($C$7,8,0),1,1) -> 97.98 | F67: =OFFSET(InputPriceData!E$15,CalculationsAndCharts!$A67+$A$11,IF($C$7,8,0),1,1) -> 97.28 | G67: =OFFSET(InputPriceData!F$15,CalculationsAndCharts!$A67+$A$11,IF($C$7,8,0),1,1) -> 97.93 | J67: 2766 | K67: -0.13 | L67: 0.4508216986 | M67: 0.7836289082 | N67: 0.5752999844 | T67: FALSE | U67: FALSE | W67: FALSE | X67: TRUE | Y67: FALSE | Z67: FALSE | AA67: FALSE | AB67: FALSE | AD67: FALSE | AE67: FALSE | AF67: FALSE | AG67: FALSE | AH67: TRUE | AI67: FALSE
A68: 36 | B68: =OFFSET(InputPriceData!B$15,CalculationsAndCharts!$A68+$A$11,0,1,1) -> 2014-06-03 | C68: =OFFSET(InputPriceData!G$15,CalculationsAndCharts!$A68+$A$11,IF($C$7,8,0),1,1) -> 1718500 | D68: =OFFSET(InputPriceData!C$15,CalculationsAndCharts!$A68+$A$11,IF($C$7,8,0),1,1) -> 97.35 | E68: =OFFSET(InputPriceData!D$15,CalculationsAndCharts!$A68+$A$11,IF($C$7,8,0),1,1) -> 98.41 | F68: =OFFSET(InputPriceData!E$15,CalculationsAndCharts!$A68+$A$11,IF($C$7,8,0),1,1) -> 97.28 | G68: =OFFSET(InputPriceData!F$15,CalculationsAndCharts!$A68+$A$11,IF($C$7,8,0),1,1) -> 97.89 | J68: 2765 | K68: 0.32 | L68: 0.3995332281 | M68: 0.7907456187 | N68: 0.505261387 | T68: FALSE | U68: FALSE | W68: FALSE | X68: TRUE | Y68: FALSE | Z68: FALSE | AA68: FALSE | AB68: FALSE | AD68: FALSE | AE68: FALSE | AF68: FALSE | AG68: FALSE | AH68: TRUE | AI68: FALSE
A69: 37 | B69: =OFFSET(InputPriceData!B$15,CalculationsAndCharts!$A69+$A$11,0,1,1) -> 2014-06-02 | C69: =OFFSET(InputPriceData!G$15,CalculationsAndCharts!$A69+$A$11,IF($C$7,8,0),1,1) -> 962100 | D69: =OFFSET(InputPriceData!C$15,CalculationsAndCharts!$A69+$A$11,IF($C$7,8,0),1,1) -> 97.09 | E69: =OFFSET(InputPriceData!D$15,CalculationsAndCharts!$A69+$A$11,IF($C$7,8,0),1,1) -> 98.26 | F69: =OFFSET(InputPriceData!E$15,CalculationsAndCharts!$A69+$A$11,IF($C$7,8,0),1,1) -> 96.5 | G69: =OFFSET(InputPriceData!F$15,CalculationsAndCharts!$A69+$A$11,IF($C$7,8,0),1,1) -> 98.06 | J69: 2764 | K69: 1.09 | L69: 0.2820400366 | M69: 0.7979269614 | N69: 0.3534659815 | T69: FALSE | U69: FALSE | W69: FALSE | X69: TRUE | Y69: FALSE | Z69: FALSE | AA69: FALSE | AB69: FALSE | AD69: FALSE | AE69: FALSE | AF69: FALSE | AG69: FALSE | AH69: TRUE | AI69: FALSE
A70: 38 | B70: =OFFSET(InputPriceData!B$15,CalculationsAndCharts!$A70+$A$11,0,1,1) -> 2014-05-30 | C70: =OFFSET(InputPriceData!G$15,CalculationsAndCharts!$A70+$A$11,IF($C$7,8,0),1,1) -> 1524600 | D70: =OFFSET(InputPriceData!C$15,CalculationsAndCharts!$A70+$A$11,IF($C$7,8,0),1,1) -> 96.68 | E70: =OFFSET(InputPriceData!D$15,CalculationsAndCharts!$A70+$A$11,IF($C$7,8,0),1,1) -> 97.8 | F70: =OFFSET(InputPriceData!E$15,CalculationsAndCharts!$A70+$A$11,IF($C$7,8,0),1,1) -> 96.68 | G70: =OFFSET(InputPriceData!F$15,CalculationsAndCharts!$A70+$A$11,IF($C$7,8,0),1,1) -> 97.57 | J70: 2763 | K70: 0.96 | L70: 0.1509471445 | M70: 0.8051735231 | N70: 0.1874715699 | T70: FALSE | U70: FALSE | W70: TRUE | X70: TRUE | Y70: FALSE | Z70: FALSE | AA70: FALSE | AB70: TRUE | AD70: FALSE | AE70: FALSE | AF70: TRUE | AG70: TRUE | AH70: TRUE | AI70: FALSE
A71: 39 | B71: =OFFSET(InputPriceData!B$15,CalculationsAndCharts!$A71+$A$11,0,1,1) -> 2014-05-29 | C71: =OFFSET(InputPriceData!G$15,CalculationsAndCharts!$A71+$A$11,IF($C$7,8,0),1,1) -> 1085300 | D71: =OFFSET(InputPriceData!C$15,CalculationsAndCharts!$A71+$A$11,IF($C$7,8,0),1,1) -> 96.82 | E71: =OFFSET(InputPriceData!D$15,CalculationsAndCharts!$A71+$A$11,IF($C$7,8,0),1,1) -> 97.21 | F71: =OFFSET(InputPriceData!E$15,CalculationsAndCharts!$A71+$A$11,IF($C$7,8,0),1,1) -> 96.33 | G71: =OFFSET(InputPriceData!F$15,CalculationsAndCharts!$A71+$A$11,IF($C$7,8,0),1,1) -> 96.97 | J71: 2762 | K71: 0.15 | L71: 0.05422601018 | M71: 0.8124858962 | N71: 0.06674086336 | T71: TRUE | U71: FALSE | W71: FALSE | X71: FALSE | Y71: FALSE | Z71: FALSE | AA71: TRUE | AB71: FALSE | AD71: FALSE | AE71: TRUE | AF71: FALSE | AG71: FALSE | AH71: FALSE | AI71: FALSE
A72: 40 | B72: =OFFSET(InputPriceData!B$15,CalculationsAndCharts!$A72+$A$11,0,1,1) -> 2014-05-28 | C72: =OFFSET(InputPriceData!G$15,CalculationsAndCharts!$A72+$A$11,IF($C$7,8,0),1,1) -> 1149000 | D72: =OFFSET(InputPriceData!C$15,CalculationsAndCharts!$A72+$A$11,IF($C$7,8,0),1,1) -> 97.08 | E72: =OFFSET(InputPriceData!D$15,CalculationsAndCharts!$A72+$A$11,IF($C$7,8,0),1,1) -> 97.99 | F72: =OFFSET(InputPriceData!E$15,CalculationsAndCharts!$A72+$A$11,IF($C$7,8,0),1,1) -> 96.56 | G72: =OFFSET(InputPriceData!F$15,CalculationsAndCharts!$A72+$A$11,IF($C$7,8,0),1,1) -> 96.61 | J72: 2761 | K72: -0.42 | L72: -0.03489036888 | M72: 0.8198646783 | N72: -0.04255625325 | T72: FALSE | U72: FALSE | W72: FALSE | X72: FALSE | Y72: FALSE | Z72: FALSE | AA72: TRUE | AB72: FALSE | AD72: FALSE | AE72: TRUE | AF72: FALSE | AG72: FALSE | AH72: FALSE | AI72: FALSE
A73: 41 | B73: =OFFSET(InputPriceData!B$15,CalculationsAndCharts!$A73+$A$11,0,1,1) -> 2014-05-27 | C73: =OFFSET(InputPriceData!G$15,CalculationsAndCharts!$A73+$A$11,IF($C$7,8,0),1,1) -> 1359100 | D73: =OFFSET(InputPriceData!C$15,CalculationsAndCharts!$A73+$A$11,IF($C$7,8,0),1,1) -> 97.2 | E73: =OFFSET(InputPriceData!D$15,CalculationsAndCharts!$A73+$A$11,IF($C$7,8,0),1,1) -> 97.31 | F73: =OFFSET(InputPriceData!E$15,CalculationsAndCharts!$A73+$A$11,IF($C$7,8,0),1,1) -> 96.38 | G73: =OFFSET(InputPriceData!F$15,CalculationsAndCharts!$A73+$A$11,IF($C$7,8,0),1,1) -> 96.82 | J73: 2760 | K73: 0.64 | L73: -0.1861814152 | M73: 0.8273104725 | N73: -0.2250441901 | T73: FALSE | U73: FALSE | W73: FALSE | X73: FALSE | Y73: FALSE | Z73: FALSE | AA73: TRUE | AB73: FALSE | AD73: FALSE | AE73: TRUE | AF73: FALSE | AG73: FALSE | AH73: FALSE | AI73: FALSE
A74: 42 | B74: =OFFSET(InputPriceData!B$15,CalculationsAndCharts!$A74+$A$11,0,1,1) -> 2014-05-23 | C74: =OFFSET(InputPriceData!G$15,CalculationsAndCharts!$A74+$A$11,IF($C$7,8,0),1,1) -> 686800 | D74: =OFFSET(InputPriceData!C$15,CalculationsAndCharts!$A74+$A$11,IF($C$7,8,0),1,1) -> 96.18 | E74: =OFFSET(InputPriceData!D$15,CalculationsAndCharts!$A74+$A$11,IF($C$7,8,0),1,1) -> 97.17 | F74: =OFFSET(InputPriceData!E$15,CalculationsAndCharts!$A74+$A$11,IF($C$7,8,0),1,1) -> 96 | G74: =OFFSET(InputPriceData!F$15,CalculationsAndCharts!$A74+$A$11,IF($C$7,8,0),1,1) -> 97.03 | J74: 2759 | K74: 1.6 | L74: -0.3855943495 | M74: 0.8348238875 | N74: -0.4618870581 | T74: FALSE | U74: FALSE | W74: FALSE | X74: FALSE | Y74: FALSE | Z74: FALSE | AA74: TRUE | AB74: FALSE | AD74: FALSE | AE74: TRUE | AF74: FALSE | AG74: FALSE | AH74: FALSE | AI74: FALSE
A75: 43 | B75: =OFFSET(InputPriceData!B$15,CalculationsAndCharts!$A75+$A$11,0,1,1) -> 2014-05-22 | C75: =OFFSET(InputPriceData!G$15,CalculationsAndCharts!$A75+$A$11,IF($C$7,8,0),1,1) -> 1208700 | D75: =OFFSET(InputPriceData!C$15,CalculationsAndCharts!$A75+$A$11,IF($C$7,8,0),1,1) -> 95.65 | E75: =OFFSET(InputPriceData!D$15,CalculationsAndCharts!$A75+$A$11,IF($C$7,8,0),1,1) -> 96.38 | F75: =OFFSET(InputPriceData!E$15,CalculationsAndCharts!$A75+$A$11,IF($C$7,8,0),1,1) -> 95.45 | G75: =OFFSET(InputPriceData!F$15,CalculationsAndCharts!$A75+$A$11,IF($C$7,8,0),1,1) -> 96.18 | J75: 2758 | K75: 0.76 | L75: -0.5110353926 | M75: 0.8424055373 | N75: -0.6066382164 | T75: FALSE | U75: FALSE | W75: FALSE | X75: FALSE | Y75: FALSE | Z75: FALSE | AA75: TRUE | AB75: FALSE | AD75: FALSE | AE75: TRUE | AF75: FALSE | AG75: FALSE | AH75: FALSE | AI75: FALSE
A76: 44 | B76: =OFFSET(InputPriceData!B$15,CalculationsAndCharts!$A76+$A$11,0,1,1) -> 2014-05-21 | C76: =OFFSET(InputPriceData!G$15,CalculationsAndCharts!$A76+$A$11,IF($C$7,8,0),1,1) -> 1069100 | D76: =OFFSET(InputPriceData!C$15,CalculationsAndCharts!$A76+$A$11,IF($C$7,8,0),1,1) -> 95.57 | E76: =OFFSET(InputPriceData!D$15,CalculationsAndCharts!$A76+$A$11,IF($C$7,8,0),1,1) -> 96.32 | F76: =OFFSET(InputPriceData!E$15,CalculationsAndCharts!$A76+$A$11,IF($C$7,8,0),1,1) -> 95.25 | G76: =OFFSET(InputPriceData!F$15,CalculationsAndCharts!$A76+$A$11,IF($C$7,8,0),1,1) -> 95.43 | J76: 2757 | K76: -0.22 | L76: -0.498286451 | M76: 0.8500560417 | N76: -0.5861807064 | T76: FALSE | U76: FALSE | W76: FALSE | X76: FALSE | Y76: FALSE | Z76: FALSE | AA76: TRUE | AB76: FALSE | AD76: FALSE | AE76: TRUE | AF76: FALSE | AG76: FALSE | AH76: FALSE | AI76: FALSE
A77: 45 | B77: =OFFSET(InputPriceData!B$15,CalculationsAndCharts!$A77+$A$11,0,1,1) -> 2014-05-20 | C77: =OFFSET(InputPriceData!G$15,CalculationsAndCharts!$A77+$A$11,IF($C$7,8,0),1,1) -> 1389800 | D77: =OFFSET(InputPriceData!C$15,CalculationsAndCharts!$A77+$A$11,IF($C$7,8,0),1,1) -> 95.29 | E77: =OFFSET(InputPriceData!D$15,CalculationsAndCharts!$A77+$A$11,IF($C$7,8,0),1,1) -> 95.77 | F77: =OFFSET(InputPriceData!E$15,CalculationsAndCharts!$A77+$A$11,IF($C$7,8,0),1,1) -> 94.86 | G77: =OFFSET(InputPriceData!F$15,CalculationsAndCharts!$A77+$A$11,IF($C$7,8,0),1,1) -> 95.42 | J77: 2756 | K77: 0.03 | L77: -0.3837497159 | M77: 0.857776026 | N77: -0.4473775255 | T77: FALSE | U77: FALSE | W77: FALSE | X77: FALSE | Y77: TRUE | Z77: TRUE | AA77: TRUE | AB77: FALSE | AD77: TRUE | AE77: TRUE | AF77: FALSE | AG77: FALSE | AH77: FALSE | AI77: TRUE
A78: 46 | B78: =OFFSET(InputPriceData!B$15,CalculationsAndCharts!$A78+$A$11,0,1,1) -> 2014-05-19 | C78: =OFFSET(InputPriceData!G$15,CalculationsAndCharts!$A78+$A$11,IF($C$7,8,0),1,1) -> 1120000 | D78: =OFFSET(InputPriceData!C$15,CalculationsAndCharts!$A78+$A$11,IF($C$7,8,0),1,1) -> 95.18 | E78: =OFFSET(InputPriceData!D$15,CalculationsAndCharts!$A78+$A$11,IF($C$7,8,0),1,1) -> 95.75 | F78: =OFFSET(InputPriceData!E$15,CalculationsAndCharts!$A78+$A$11,IF($C$7,8,0),1,1) -> 94.8 | G78: =OFFSET(InputPriceData!F$15,CalculationsAndCharts!$A78+$A$11,IF($C$7,8,0),1,1) -> 95.65 | J78: 2755 | K78: -0.41 | L78: -0.169579727 | M78: 0.865566121 | N78: -0.1959177039 | T78: FALSE | U78: TRUE | W78: FALSE | X78: TRUE | Y78: FALSE | Z78: FALSE | AA78: FALSE | AB78: FALSE | AD78: FALSE | AE78: FALSE | AF78: FALSE | AG78: FALSE | AH78: TRUE | AI78: FALSE
A79: 47 | B79: =OFFSET(InputPriceData!B$15,CalculationsAndCharts!$A79+$A$11,0,1,1) -> 2014-05-16 | C79: =OFFSET(InputPriceData!G$15,CalculationsAndCharts!$A79+$A$11,IF($C$7,8,0),1,1) -> 2740900 | D79: =OFFSET(InputPriceData!C$15,CalculationsAndCharts!$A79+$A$11,IF($C$7,8,0),1,1) -> 96.23 | E79: =OFFSET(InputPriceData!D$15,CalculationsAndCharts!$A79+$A$11,IF($C$7,8,0),1,1) -> 96.5 | F79: =OFFSET(InputPriceData!E$15,CalculationsAndCharts!$A79+$A$11,IF($C$7,8,0),1,1) -> 94.78 | G79: =OFFSET(InputPriceData!F$15,CalculationsAndCharts!$A79+$A$11,IF($C$7,8,0),1,1) -> 95.39 | J79: 2754 | K79: -2.01 | L79: 0.1618542308 | M79: 0.8734269637 | N79: 0.1853094048 | T79: FALSE | U79: FALSE | W79: FALSE | X79: TRUE | Y79: FALSE | Z79: FALSE | AA79: FALSE | AB79: FALSE | AD79: FALSE | AE79: FALSE | AF79: FALSE | AG79: FALSE | AH79: TRUE | AI79: FALSE
A80: 48 | B80: =OFFSET(InputPriceData!B$15,CalculationsAndCharts!$A80+$A$11,0,1,1) -> 2014-05-15 | C80: =OFFSET(InputPriceData!G$15,CalculationsAndCharts!$A80+$A$11,IF($C$7,8,0),1,1) -> 2301100 | D80: =OFFSET(InputPriceData!C$15,CalculationsAndCharts!$A80+$A$11,IF($C$7,8,0),1,1) -> 96.9 | E80: =OFFSET(InputPriceData!D$15,CalculationsAndCharts!$A80+$A$11,IF($C$7,8,0),1,1) -> 97.36 | F80: =OFFSET(InputPriceData!E$15,CalculationsAndCharts!$A80+$A$11,IF($C$7,8,0),1,1) -> 95.75 | G80: =OFFSET(InputPriceData!F$15,CalculationsAndCharts!$A80+$A$11,IF($C$7,8,0),1,1) -> 96.06 | J80: 2753 | K80: -3.39 | L80: 0.5096299339 | M80: 0.8813591965 | N80: 0.5782318219 | T80: FALSE | U80: FALSE | W80: FALSE | X80: TRUE | Y80: FALSE | Z80: FALSE | AA80: FALSE | AB80: FALSE | AD80: FALSE | AE80: FALSE | AF80: FALSE | AG80: FALSE | AH80: TRUE | AI80: FALSE
A81: 49 | B81: =OFFSET(InputPriceData!B$15,CalculationsAndCharts!$A81+$A$11,0,1,1) -> 2014-05-14 | C81: =OFFSET(InputPriceData!G$15,CalculationsAndCharts!$A81+$A$11,IF($C$7,8,0),1,1) -> 2216600 | D81: =OFFSET(InputPriceData!C$15,CalculationsAndCharts!$A81+$A$11,IF($C$7,8,0),1,1) -> 99.44 | E81: =OFFSET(InputPriceData!D$15,CalculationsAndCharts!$A81+$A$11,IF($C$7,8,0),1,1) -> 99.66 | F81: =OFFSET(InputPriceData!E$15,CalculationsAndCharts!$A81+$A$11,IF($C$7,8,0),1,1) -> 97.29 | G81: =OFFSET(InputPriceData!F$15,CalculationsAndCharts!$A81+$A$11,IF($C$7,8,0),1,1) -> 97.4 | J81: 2752 | K81: -0.93 | L81: 0.6564616003 | M81: 0.8893634677 | N81: 0.7381252145 | T81: FALSE | U81: FALSE | W81: FALSE | X81: TRUE | Y81: FALSE | Z81: FALSE | AA81: FALSE | AB81: FALSE | AD81: FALSE | AE81: FALSE | AF81: FALSE | AG81: FALSE | AH81: TRUE | AI81: FALSE
A82: 50 | B82: =OFFSET(InputPriceData!B$15,CalculationsAndCharts!$A82+$A$11,0,1,1) -> 2014-05-13 | C82: =OFFSET(InputPriceData!G$15,CalculationsAndCharts!$A82+$A$11,IF($C$7,8,0),1,1) -> 1425400 | D82: =OFFSET(InputPriceData!C$15,CalculationsAndCharts!$A82+$A$11,IF($C$7,8,0),1,1) -> 98.67 | E82: =OFFSET(InputPriceData!D$15,CalculationsAndCharts!$A82+$A$11,IF($C$7,8,0),1,1) -> 99.69 | F82: =OFFSET(InputPriceData!E$15,CalculationsAndCharts!$A82+$A$11,IF($C$7,8,0),1,1) -> 98.62 | G82: =OFFSET(InputPriceData!F$15,CalculationsAndCharts!$A82+$A$11,IF($C$7,8,0),1,1) -> 99.45 | J82: 2751 | K82: 2.28 | L82: 0.5384070639 | M82: 0.8974404316 | N82: 0.5999362687 | T82: FALSE | U82: FALSE | W82: FALSE | X82: TRUE | Y82: FALSE | Z82: FALSE | AA82: FALSE | AB82: FALSE | AD82: FALSE | AE82: FALSE | AF82: FALSE | AG82: FALSE | AH82: TRUE | AI82: FALSE
A83: 51 | B83: =OFFSET(InputPriceData!B$15,CalculationsAndCharts!$A83+$A$11,0,1,1) -> 2014-05-12 | C83: =OFFSET(InputPriceData!G$15,CalculationsAndCharts!$A83+$A$11,IF($C$7,8,0),1,1) -> 1371400 | D83: =OFFSET(InputPriceData!C$15,CalculationsAndCharts!$A83+$A$11,IF($C$7,8,0),1,1) -> 97.6 | E83: =OFFSET(InputPriceData!D$15,CalculationsAndCharts!$A83+$A$11,IF($C$7,8,0),1,1) -> 98.44 | F83: =OFFSET(InputPriceData!E$15,CalculationsAndCharts!$A83+$A$11,IF($C$7,8,0),1,1) -> 97.49 | G83: =OFFSET(InputPriceData!F$15,CalculationsAndCharts!$A83+$A$11,IF($C$7,8,0),1,1) -> 98.33 | J83: 2750 | K83: 0.71 | L83: 0.3711566958 | M83: 0.9055907483 | N83: 0.4098503618 | T83: FALSE | U83: FALSE | W83: FALSE | X83: TRUE | Y83: FALSE | Z83: FALSE | AA83: FALSE | AB83: FALSE | AD83: FALSE | AE83: FALSE | AF83: FALSE | AG83: FALSE | AH83: TRUE | AI83: FALSE
A84: 52 | B84: =OFFSET(InputPriceData!B$15,CalculationsAndCharts!$A84+$A$11,0,1,1) -> 2014-05-09 | C84: =OFFSET(InputPriceData!G$15,CalculationsAndCharts!$A84+$A$11,IF($C$7,8,0),1,1) -> 1583400 | D84: =OFFSET(InputPriceData!C$15,CalculationsAndCharts!$A84+$A$11,IF($C$7,8,0),1,1) -> 97.35 | E84: =OFFSET(InputPriceData!D$15,CalculationsAndCharts!$A84+$A$11,IF($C$7,8,0),1,1) -> 97.66 | F84: =OFFSET(InputPriceData!E$15,CalculationsAndCharts!$A84+$A$11,IF($C$7,8,0),1,1) -> 96.78 | G84: =OFFSET(InputPriceData!F$15,CalculationsAndCharts!$A84+$A$11,IF($C$7,8,0),1,1) -> 97.17 | J84: 2749 | K84: -0.62 | L84: 0.2488318461 | M84: 0.9138150841 | N84: 0.2722999986 | T84: FALSE | U84: FALSE | W84: TRUE | X84: TRUE | Y84: FALSE | Z84: FALSE | AA84: FALSE | AB84: TRUE | AD84: FALSE | AE84: FALSE | AF84: TRUE | AG84: TRUE | AH84: TRUE | AI84: FALSE
A85: 53 | B85: =OFFSET(InputPriceData!B$15,CalculationsAndCharts!$A85+$A$11,0,1,1) -> 2014-05-08 | C85: =OFFSET(InputPriceData!G$15,CalculationsAndCharts!$A85+$A$11,IF($C$7,8,0),1,1) -> 1913600 | D85: =OFFSET(InputPriceData!C$15,CalculationsAndCharts!$A85+$A$11,IF($C$7,8,0),1,1) -> 97.89 | E85: =OFFSET(InputPriceData!D$15,CalculationsAndCharts!$A85+$A$11,IF($C$7,8,0),1,1) -> 98.14 | F85: =OFFSET(InputPriceData!E$15,CalculationsAndCharts!$A85+$A$11,IF($C$7,8,0),1,1) -> 97.2 | G85: =OFFSET(InputPriceData!F$15,CalculationsAndCharts!$A85+$A$11,IF($C$7,8,0),1,1) -> 97.62 | J85: 2748 | K85: 1.67 | L85: 0.0329804521 | M85: 0.9221141111 | N85: 0.03576612884 | T85: TRUE | U85: FALSE | W85: FALSE | X85: FALSE | Y85: FALSE | Z85: FALSE | AA85: TRUE | AB85: FALSE | AD85: FALSE | AE85: TRUE | AF85: FALSE | AG85: FALSE | AH85: FALSE | AI85: FALSE
A86: 54 | B86: =OFFSET(InputPriceData!B$15,CalculationsAndCharts!$A86+$A$11,0,1,1) -> 2014-05-07 | C86: =OFFSET(InputPriceData!G$15,CalculationsAndCharts!$A86+$A$11,IF($C$7,8,0),1,1) -> 2069600 | D86: =OFFSET(InputPriceData!C$15,CalculationsAndCharts!$A86+$A$11,IF($C$7,8,0),1,1) -> 96.44 | E86: =OFFSET(InputPriceData!D$15,CalculationsAndCharts!$A86+$A$11,IF($C$7,8,0),1,1) -> 97.91 | F86: =OFFSET(InputPriceData!E$15,CalculationsAndCharts!$A86+$A$11,IF($C$7,8,0),1,1) -> 95.76 | G86: =OFFSET(InputPriceData!F$15,CalculationsAndCharts!$A86+$A$11,IF($C$7,8,0),1,1) -> 97.79 | J86: 2747 | K86: 1.06 | L86: -0.2429713373 | M86: 0.9304885076 | N86: -0.2611223409 | T86: FALSE | U86: FALSE | W86: FALSE | X86: FALSE | Y86: FALSE | Z86: FALSE | AA86: TRUE | AB86: FALSE | AD86: FALSE | AE86: TRUE | AF86: FALSE | AG86: FALSE | AH86: FALSE | AI86: FALSE
A87: 55 | B87: =OFFSET(InputPriceData!B$15,CalculationsAndCharts!$A87+$A$11,0,1,1) -> 2014-05-06 | C87: =OFFSET(InputPriceData!G$15,CalculationsAndCharts!$A87+$A$11,IF($C$7,8,0),1,1) -> 1217300 | D87: =OFFSET(InputPriceData!C$15,CalculationsAndCharts!$A87+$A$11,IF($C$7,8,0),1,1) -> 96.59 | E87: =OFFSET(InputPriceData!D$15,CalculationsAndCharts!$A87+$A$11,IF($C$7,8,0),1,1) -> 96.64 | F87: =OFFSET(InputPriceData!E$15,CalculationsAndCharts!$A87+$A$11,IF($C$7,8,0),1,1) -> 95.87 | G87: =OFFSET(InputPriceData!F$15,CalculationsAndCharts!$A87+$A$11,IF($C$7,8,0),1,1) -> 95.95 | J87: 2746 | K87: 0.12 | L87: -0.4751440099 | M87: 0.9389389583 | N87: -0.5060435566 | T87: FALSE | U87: FALSE | W87: FALSE | X87: FALSE | Y87: FALSE | Z87: FALSE | AA87: TRUE | AB87: FALSE | AD87: FALSE | AE87: TRUE | AF87: FALSE | AG87: FALSE | AH87: FALSE | AI87: FALSE
A88: 56 | B88: =OFFSET(InputPriceData!B$15,CalculationsAndCharts!$A88+$A$11,0,1,1) -> 2014-05-05 | C88: =OFFSET(InputPriceData!G$15,CalculationsAndCharts!$A88+$A$11,IF($C$7,8,0),1,1) -> 1894800 | D88: =OFFSET(InputPriceData!C$15,CalculationsAndCharts!$A88+$A$11,IF($C$7,8,0),1,1) -> 95.55 | E88: =OFFSET(InputPriceData!D$15,CalculationsAndCharts!$A88+$A$11,IF($C$7,8,0),1,1) -> 96.86 | F88: =OFFSET(InputPriceData!E$15,CalculationsAndCharts!$A88+$A$11,IF($C$7,8,0),1,1) -> 95.43 | G88: =OFFSET(InputPriceData!F$15,CalculationsAndCharts!$A88+$A$11,IF($C$7,8,0),1,1) -> 96.73 | J88: 2745 | K88: 1.32 | L88: -0.7059326868 | M88: 0.9474661537 | N88: -0.7450743059 | T88: FALSE | U88: FALSE | W88: FALSE | X88: FALSE | Y88: FALSE | Z88: FALSE | AA88: TRUE | AB88: FALSE | AD88: FALSE | AE88: TRUE | AF88: FALSE | AG88: FALSE | AH88: FALSE | AI88: FALSE
A89: 57 | B89: =OFFSET(InputPriceData!B$15,CalculationsAndCharts!$A89+$A$11,0,1,1) -> 2014-05-02 | C89: =OFFSET(InputPriceData!G$15,CalculationsAndCharts!$A89+$A$11,IF($C$7,8,0),1,1) -> 2054300 | D89: =OFFSET(InputPriceData!C$15,CalculationsAndCharts!$A89+$A$11,IF($C$7,8,0),1,1) -> 95.37 | E89: =OFFSET(InputPriceData!D$15,CalculationsAndCharts!$A89+$A$11,IF($C$7,8,0),1,1) -> 96.33 | F89: =OFFSET(InputPriceData!E$15,CalculationsAndCharts!$A89+$A$11,IF($C$7,8,0),1,1) -> 95.27 | G89: =OFFSET(InputPriceData!F$15,CalculationsAndCharts!$A89+$A$11,IF($C$7,8,0),1,1) -> 95.83 | J89: 2744 | K89: 0.35 | L89: -0.8901119426 | M89: 0.9560707908 | N89: -0.9310104975 | T89: FALSE | U89: FALSE | W89: FALSE | X89: FALSE | Y89: FALSE | Z89: FALSE | AA89: TRUE | AB89: FALSE | AD89: FALSE | AE89: TRUE | AF89: FALSE | AG89: FALSE | AH89: FALSE | AI89: FALSE
A90: 58 | B90: =OFFSET(InputPriceData!B$15,CalculationsAndCharts!$A90+$A$11,0,1,1) -> 2014-05-01 | C90: =OFFSET(InputPriceData!G$15,CalculationsAndCharts!$A90+$A$11,IF($C$7,8,0),1,1) -> 1925500 | D90: =OFFSET(InputPriceData!C$15,CalculationsAndCharts!$A90+$A$11,IF($C$7,8,0),1,1) -> 95.36 | E90: =OFFSET(InputPriceData!D$15,CalculationsAndCharts!$A90+$A$11,IF($C$7,8,0),1,1) -> 96.21 | F90: =OFFSET(InputPriceData!E$15,CalculationsAndCharts!$A90+$A$11,IF($C$7,8,0),1,1) -> 94.62 | G90: =OFFSET(InputPriceData!F$15,CalculationsAndCharts!$A90+$A$11,IF($C$7,8,0),1,1) -> 95.41 | J90: 2743 | K90: -0.49 | L90: -0.9647535729 | M90: 0.9647535729 | N90: -1 | T90: FALSE | U90: FALSE | W90: FALSE | X90: FALSE | Y90: FALSE | Z90: FALSE | AA90: TRUE | AB90: FALSE | AD90: FALSE | AE90: TRUE | AF90: FALSE | AG90: FALSE | AH90: FALSE | AI90: FALSE
A91: 59 | B91: =OFFSET(InputPriceData!B$15,CalculationsAndCharts!$A91+$A$11,0,1,1) -> 2014-04-30 | C91: =OFFSET(InputPriceData!G$15,CalculationsAndCharts!$A91+$A$11,IF($C$7,8,0),1,1) -> 2564800 | D91: =OFFSET(InputPriceData!C$15,CalculationsAndCharts!$A91+$A$11,IF($C$7,8,0),1,1) -> 95.88 | E91: =OFFSET(InputPriceData!D$15,CalculationsAndCharts!$A91+$A$11,IF($C$7,8,0),1,1) -> 96.28 | F91: =OFFSET(InputPriceData!E$15,CalculationsAndCharts!$A91+$A$11,IF($C$7,8,0),1,1) -> 95.12 | G91: =OFFSET(InputPriceData!F$15,CalculationsAndCharts!$A91+$A$11,IF($C$7,8,0),1,1) -> 95.48 | J91: 2742 | K91: 0.04 | L91: -0.9709012225 | M91: 0.9709012225 | N91: -1 | T91: FALSE | U91: FALSE | W91: FALSE | X91: FALSE | Y91: FALSE | Z91: FALSE | AA91: TRUE | AB91: FALSE | AD91: FALSE | AE91: TRUE | AF91: FALSE | AG91: FALSE | AH91: FALSE | AI91: FALSE
A92: 60 | B92: =OFFSET(InputPriceData!B$15,CalculationsAndCharts!$A92+$A$11,0,1,1) -> 2014-04-29 | C92: =OFFSET(InputPriceData!G$15,CalculationsAndCharts!$A92+$A$11,IF($C$7,8,0),1,1) -> 2501100 | D92: =OFFSET(InputPriceData!C$15,CalculationsAndCharts!$A92+$A$11,IF($C$7,8,0),1,1) -> 95.9 | E92: =OFFSET(InputPriceData!D$15,CalculationsAndCharts!$A92+$A$11,IF($C$7,8,0),1,1) -> 96.35 | F92: =OFFSET(InputPriceData!E$15,CalculationsAndCharts!$A92+$A$11,IF($C$7,8,0),1,1) -> 95.33 | G92: =OFFSET(InputPriceData!F$15,CalculationsAndCharts!$A92+$A$11,IF($C$7,8,0),1,1) -> 95.9 | J92: 2741 | K92: 1 | L92: -0.8885874637 | M92: 0.8885874637 | N92: -1 | T92: FALSE | U92: FALSE | W92: FALSE | X92: FALSE | Y92: FALSE | Z92: FALSE | AA92: TRUE | AB92: FALSE | AD92: FALSE | AE92: TRUE | AF92: FALSE | AG92: FALSE | AH92: FALSE | AI92: FALSE
A93: 61 | B93: =OFFSET(InputPriceData!B$15,CalculationsAndCharts!$A93+$A$11,0,1,1) -> 2014-04-28 | C93: =OFFSET(InputPriceData!G$15,CalculationsAndCharts!$A93+$A$11,IF($C$7,8,0),1,1) -> 2773500 | D93: =OFFSET(InputPriceData!C$15,CalculationsAndCharts!$A93+$A$11,IF($C$7,8,0),1,1) -> 96.28 | E93: =OFFSET(InputPriceData!D$15,CalculationsAndCharts!$A93+$A$11,IF($C$7,8,0),1,1) -> 96.39 | F93: =OFFSET(InputPriceData!E$15,CalculationsAndCharts!$A93+$A$11,IF($C$7,8,0),1,1) -> 94.5 | G93: =OFFSET(InputPriceData!F$15,CalculationsAndCharts!$A93+$A$11,IF($C$7,8,0),1,1) -> 95.44 | J93: 2740 | K93: -0.48 | L93: -0.5866910276 | M93: 0.7462442388 | N93: -0.7861917012 | T93: FALSE | U93: FALSE | W93: FALSE | X93: FALSE | Y93: TRUE | Z93: TRUE | AA93: TRUE | AB93: FALSE | AD93: TRUE | AE93: TRUE | AF93: FALSE | AG93: FALSE | AH93: FALSE | AI93: TRUE
A94: 62 | B94: =OFFSET(InputPriceData!B$15,CalculationsAndCharts!$A94+$A$11,0,1,1) -> 2014-04-25 | C94: =OFFSET(InputPriceData!G$15,CalculationsAndCharts!$A94+$A$11,IF($C$7,8,0),1,1) -> 2847400 | D94: =OFFSET(InputPriceData!C$15,CalculationsAndCharts!$A94+$A$11,IF($C$7,8,0),1,1) -> 96.03 | E94: =OFFSET(InputPriceData!D$15,CalculationsAndCharts!$A94+$A$11,IF($C$7,8,0),1,1) -> 96.13 | F94: =OFFSET(InputPriceData!E$15,CalculationsAndCharts!$A94+$A$11,IF($C$7,8,0),1,1) -> 94.64 | G94: =OFFSET(InputPriceData!F$15,CalculationsAndCharts!$A94+$A$11,IF($C$7,8,0),1,1) -> 94.9 | J94: 2739 | K94: -5.33 | L94: -0.01163397019 | M94: 0.7530214317 | N94: -0.01544971989 | T94: FALSE | U94: TRUE | W94: FALSE | X94: TRUE | Y94: FALSE | Z94: FALSE | AA94: FALSE | AB94: FALSE | AD94: FALSE | AE94: FALSE | AF94: FALSE | AG94: FALSE | AH94: TRUE | AI94: FALSE
A95: 63 | B95: =OFFSET(InputPriceData!B$15,CalculationsAndCharts!$A95+$A$11,0,1,1) -> 2014-04-24 | C95: =OFFSET(InputPriceData!G$15,CalculationsAndCharts!$A95+$A$11,IF($C$7,8,0),1,1) -> 3346000 | D95: =OFFSET(InputPriceData!C$15,CalculationsAndCharts!$A95+$A$11,IF($C$7,8,0),1,1) -> 98.51 | E95: =OFFSET(InputPriceData!D$15,CalculationsAndCharts!$A95+$A$11,IF($C$7,8,0),1,1) -> 98.51 | F95: =OFFSET(InputPriceData!E$15,CalculationsAndCharts!$A95+$A$11,IF($C$7,8,0),1,1) -> 94.55 | G95: =OFFSET(InputPriceData!F$15,CalculationsAndCharts!$A95+$A$11,IF($C$7,8,0),1,1) -> 95.92 | J95: 2738 | K95: -3.58 | L95: 0.5285574438 | M95: 0.7598601733 | N95: 0.6955982987 | T95: FALSE | U95: FALSE | W95: FALSE | X95: TRUE | Y95: FALSE | Z95: FALSE | AA95: FALSE | AB95: FALSE | AD95: FALSE | AE95: FALSE | AF95: FALSE | AG95: FALSE | AH95: TRUE | AI95: FALSE
A96: 64 | B96: =OFFSET(InputPriceData!B$15,CalculationsAndCharts!$A96+$A$11,0,1,1) -> 2014-04-23 | C96: =OFFSET(InputPriceData!G$15,CalculationsAndCharts!$A96+$A$11,IF($C$7,8,0),1,1) -> 2144700 | D96: =OFFSET(InputPriceData!C$15,CalculationsAndCharts!$A96+$A$11,IF($C$7,8,0),1,1) -> 99.92 | E96: =OFFSET(InputPriceData!D$15,CalculationsAndCharts!$A96+$A$11,IF($C$7,8,0),1,1) -> 100.86 | F96: =OFFSET(InputPriceData!E$15,CalculationsAndCharts!$A96+$A$11,IF($C$7,8,0),1,1) -> 99.1 | G96: =OFFSET(InputPriceData!F$15,CalculationsAndCharts!$A96+$A$11,IF($C$7,8,0),1,1) -> 100.23 | J96: 2737 | K96: -1.24 | L96: 0.7568592581 | M96: 0.7667610225 | N96: 0.9870862445 | T96: FALSE | U96: FALSE | W96: FALSE | X96: TRUE | Y96: FALSE | Z96: FALSE | AA96: FALSE | AB96: FALSE | AD96: FALSE | AE96: FALSE | AF96: FALSE | AG96: FALSE | AH96: TRUE | AI96: FALSE
A97: 65 | B97: =OFFSET(InputPriceData!B$15,CalculationsAndCharts!$A97+$A$11,0,1,1) -> 2014-04-22 | C97: =OFFSET(InputPriceData!G$15,CalculationsAndCharts!$A97+$A$11,IF($C$7,8,0),1,1) -> 2381100 | D97: =OFFSET(InputPriceData!C$15,CalculationsAndCharts!$A97+$A$11,IF($C$7,8,0),1,1) -> 101.14 | E97: =OFFSET(InputPriceData!D$15,CalculationsAndCharts!$A97+$A$11,IF($C$7,8,0),1,1) -> 102.33 | F97: =OFFSET(InputPriceData!E$15,CalculationsAndCharts!$A97+$A$11,IF($C$7,8,0),1,1) -> 99.46 | G97: =OFFSET(InputPriceData!F$15,CalculationsAndCharts!$A97+$A$11,IF($C$7,8,0),1,1) -> 99.5 | J97: 2736 | K97: -0.63 | L97: =IF(J97>3,($D$21*(K97+K98)/2+$D$22*L98+$D$23*L99),IF(J97=1,0,IF(J97=2,($D$21*0*(G97+G98)/2+$D$22*L98),IF(J97=3,($D$21*0*(G97+G98)/2+$D$22*L98+$D$23*L99),0)))) -> 0.7226679146 | M97: 0.7737245434 | N97: =IF(M97=0,0,L97/M97) -> 0.934011879 | T97: =AND(N98<0,N97>0) -> FALSE | U97: =AND(N98>0,N97<0) -> FALSE | W97: =AND(T98<>T99,T98,NOT(X98)) -> FALSE | X97: TRUE | Y97: =AND(X98,AND(U98<>U99,U98)) -> FALSE | Z97: =AND(U98<>U99,U98,NOT(AA98)) -> FALSE | AA97: FALSE | AB97: =AND(AA98,AND(T98<>T99,T98)) -> FALSE | AD97: FALSE | AE97: FALSE | AF97: FALSE | AG97: FALSE | AH97: TRUE | AI97: FALSE
A98: 66 | B98: =OFFSET(InputPriceData!B$15,CalculationsAndCharts!$A98+$A$11,0,1,1) -> 2014-04-21 | C98: =OFFSET(InputPriceData!G$15,CalculationsAndCharts!$A98+$A$11,IF($C$7,8,0),1,1) -> 1932100 | D98: =OFFSET(InputPriceData!C$15,CalculationsAndCharts!$A98+$A$11,IF($C$7,8,0),1,1) -> 101.5 | E98: =OFFSET(InputPriceData!D$15,CalculationsAndCharts!$A98+$A$11,IF($C$7,8,0),1,1) -> 101.62 | F98: =OFFSET(InputPriceData!E$15,CalculationsAndCharts!$A98+$A$11,IF($C$7,8,0),1,1) -> 100.5 | G98: =OFFSET(InputPriceData!F$15,CalculationsAndCharts!$A98+$A$11,IF($C$7,8,0),1,1) -> 101.47 | J98: =$A$8-A98+1 -> 2735 | K98: =IF(J98>2,G98-G100,0) -> 2.44 | L98: 0.4651192981 | M98: =MAX(IF(J98=1,0.0000001,0.991*M99),ABS(L98)) -> 0.7807513051 | N98: 0.5957329755 | T98: FALSE | U98: FALSE | W98: TRUE | X98: =IF(X99,IF(Y98,FALSE,X99),IF(W98,TRUE,X99)) -> TRUE | Y98: FALSE | Z98: FALSE | AA98: =IF(AA99,IF(AB98,FALSE,AA99),IF(Z98,TRUE,AA99)) -> FALSE | AB98: TRUE | AD98: =AND($U99<>$U100,$U99,NOT(AE99)) -> FALSE | AE98: =IF(AE99,IF(AF98,FALSE,AE99),IF(AD98,TRUE,AE99)) -> FALSE | AF98: =AND(AE99,AND($T99<>$T100,$T99)) -> TRUE | AG98: =AND($T99<>$T100,$T99,NOT(AH99)) -> TRUE | AH98: =IF(AH99,IF(AI98,FALSE,AH99),IF(AG98,TRUE,AH99)) -> TRUE | AI98: =AND(AH99,AND($U99<>$U100,$U99)) -> FALSE
A99: 67 | B99: =OFFSET(InputPriceData!B$15,CalculationsAndCharts!$A99+$A$11,0,1,1) -> 2014-04-17 | C99: =OFFSET(InputPriceData!G$15,CalculationsAndCharts!$A99+$A$11,IF($C$7,8,0),1,1) -> 1217800 | D99: =OFFSET(InputPriceData!C$15,CalculationsAndCharts!$A99+$A$11,IF($C$7,8,0),1,1) -> 98.9 | E99: =OFFSET(InputPriceData!D$15,CalculationsAndCharts!$A99+$A$11,IF($C$7,8,0),1,1) -> 100.36 | F99: =OFFSET(InputPriceData!E$15,CalculationsAndCharts!$A99+$A$11,IF($C$7,8,0),1,1) -> 98.9 | G99: =OFFSET(InputPriceData!F$15,CalculationsAndCharts!$A99+$A$11,IF($C$7,8,0),1,1) -> 100.13 | J99: 2734 | K99: 2.21 | L99: 0.117726254 | M99: 0.7878418821 | N99: 0.1494287834 | T99: TRUE | U99: FALSE | W99: FALSE | X99: FALSE | Y99: FALSE | Z99: FALSE | AA99: TRUE | AB99: FALSE | AD99: FALSE | AE99: TRUE | AF99: FALSE | AG99: FALSE | AH99: FALSE | AI99: FALSE
A100: 68 | B100: =OFFSET(InputPriceData!B$15,CalculationsAndCharts!$A100+$A$11,0,1,1) -> 2014-04-16 | C100: =OFFSET(InputPriceData!G$15,CalculationsAndCharts!$A100+$A$11,IF($C$7,8,0),1,1) -> 1278100 | D100: =OFFSET(InputPriceData!C$15,CalculationsAndCharts!$A100+$A$11,IF($C$7,8,0),1,1) -> 98.53 | E100: =OFFSET(InputPriceData!D$15,CalculationsAndCharts!$A100+$A$11,IF($C$7,8,0),1,1) -> 99.06 | F100: =OFFSET(InputPriceData!E$15,CalculationsAndCharts!$A100+$A$11,IF($C$7,8,0),1,1) -> 97.7 | G100: =OFFSET(InputPriceData!F$15,CalculationsAndCharts!$A100+$A$11,IF($C$7,8,0),1,1) -> 99.03 | J100: 2733 | K100: 1.52 | L100: -0.1520052101 | M100: 0.7949968538 | N100: -0.1912022788 | T100: FALSE | U100: FALSE | W100: FALSE | X100: FALSE | Y100: FALSE | Z100: FALSE | AA100: TRUE | AB100: FALSE | AD100: FALSE | AE100: TRUE | AF100: FALSE | AG100: FALSE | AH100: FALSE | AI100: FALSE
A101: 69 | B101: =OFFSET(InputPriceData!B$15,CalculationsAndCharts!$A101+$A$11,0,1,1) -> 2014-04-15 | C101: =OFFSET(InputPriceData!G$15,CalculationsAndCharts!$A101+$A$11,IF($C$7,8,0),1,1) -> 1566900 | D101: =OFFSET(InputPriceData!C$15,CalculationsAndCharts!$A101+$A$11,IF($C$7,8,0),1,1) -> 97.39 | E101: =OFFSET(InputPriceData!D$15,CalculationsAndCharts!$A101+$A$11,IF($C$7,8,0),1,1) -> 97.98 | F101: =OFFSET(InputPriceData!E$15,CalculationsAndCharts!$A101+$A$11,IF($C$7,8,0),1,1) -> 95.87 | G101: =OFFSET(InputPriceData!F$15,CalculationsAndCharts!$A101+$A$11,IF($C$7,8,0),1,1) -> 97.92 | J101: 2732 | K101: 1.52 | L101: -0.324083189 | M101: 0.802216805 | N101: -0.4039845425 | T101: FALSE | U101: FALSE | W101: FALSE | X101: FALSE | Y101: FALSE | Z101: FALSE | AA101: TRUE | AB101: FALSE | AD101: FALSE | AE101: TRUE | AF101: FALSE | AG101: FALSE | AH101: FALSE | AI101: FALSE
A102: 70 | B102: =OFFSET(InputPriceData!B$15,CalculationsAndCharts!$A102+$A$11,0,1,1) -> 2014-04-14 | C102: =OFFSET(InputPriceData!G$15,CalculationsAndCharts!$A102+$A$11,IF($C$7,8,0),1,1) -> 1513700 | D102: =OFFSET(InputPriceData!C$15,CalculationsAndCharts!$A102+$A$11,IF($C$7,8,0),1,1) -> 96.83 | E102: =OFFSET(InputPriceData!D$15,CalculationsAndCharts!$A102+$A$11,IF($C$7,8,0),1,1) -> 97.84 | F102: =OFFSET(InputPriceData!E$15,CalculationsAndCharts!$A102+$A$11,IF($C$7,8,0),1,1) -> 96.46 | G102: =OFFSET(InputPriceData!F$15,CalculationsAndCharts!$A102+$A$11,IF($C$7,8,0),1,1) -> 97.51 | J102: 2731 | K102: 0.44 | L102: -0.3651976119 | M102: 0.8095023259 | N102: -0.4511384343 | T102: FALSE | U102: FALSE | W102: FALSE | X102: FALSE | Y102: FALSE | Z102: FALSE | AA102: TRUE | AB102: FALSE | AD102: FALSE | AE102: TRUE | AF102: FALSE | AG102: FALSE | AH102: FALSE | AI102: FALSE
A103: 71 | B103: =OFFSET(InputPriceData!B$15,CalculationsAndCharts!$A103+$A$11,0,1,1) -> 2014-04-11 | C103: =OFFSET(InputPriceData!G$15,CalculationsAndCharts!$A103+$A$11,IF($C$7,8,0),1,1) -> 1761700 | D103: =OFFSET(InputPriceData!C$15,CalculationsAndCharts!$A103+$A$11,IF($C$7,8,0),1,1) -> 96.71 | E103: =OFFSET(InputPriceData!D$15,CalculationsAndCharts!$A103+$A$11,IF($C$7,8,0),1,1) -> 97.34 | F103: =OFFSET(InputPriceData!E$15,CalculationsAndCharts!$A103+$A$11,IF($C$7,8,0),1,1) -> 96.28 | G103: =OFFSET(InputPriceData!F$15,CalculationsAndCharts!$A103+$A$11,IF($C$7,8,0),1,1) -> 96.4 | J103: 2730 | K103: -3.02 | L103: -0.2635696472 | M103: 0.816854012 | N103: -0.3226643235 | T103: FALSE | U103: FALSE | W103: FALSE | X103: FALSE | Y103: FALSE | Z103: FALSE | AA103: TRUE | AB103: FALSE | AD103: FALSE | AE103: TRUE | AF103: FALSE | AG103: FALSE | AH103: FALSE | AI103: FALSE
A104: 72 | B104: =OFFSET(InputPriceData!B$15,CalculationsAndCharts!$A104+$A$11,0,1,1) -> 2014-04-10 | C104: =OFFSET(InputPriceData!G$15,CalculationsAndCharts!$A104+$A$11,IF($C$7,8,0),1,1) -> 1527600 | D104: =OFFSET(InputPriceData!C$15,CalculationsAndCharts!$A104+$A$11,IF($C$7,8,0),1,1) -> 99.12 | E104: =OFFSET(InputPriceData!D$15,CalculationsAndCharts!$A104+$A$11,IF($C$7,8,0),1,1) -> 99.21 | F104: =OFFSET(InputPriceData!E$15,CalculationsAndCharts!$A104+$A$11,IF($C$7,8,0),1,1) -> 96.84 | G104: =OFFSET(InputPriceData!F$15,CalculationsAndCharts!$A104+$A$11,IF($C$7,8,0),1,1) -> 97.07 | J104: 2729 | K104: 0.73 | L104: -0.2315662791 | M104: 0.8242724642 | N104: -0.2809341439 | T104: FALSE | U104: FALSE | W104: FALSE | X104: FALSE | Y104: FALSE | Z104: FALSE | AA104: TRUE | AB104: FALSE | AD104: FALSE | AE104: TRUE | AF104: FALSE | AG104: FALSE | AH104: FALSE | AI104: FALSE
A105: 73 | B105: =OFFSET(InputPriceData!B$15,CalculationsAndCharts!$A105+$A$11,0,1,1) -> 2014-04-09 | C105: =OFFSET(InputPriceData!G$15,CalculationsAndCharts!$A105+$A$11,IF($C$7,8,0),1,1) -> 2481900 | D105: =OFFSET(InputPriceData!C$15,CalculationsAndCharts!$A105+$A$11,IF($C$7,8,0),1,1) -> 97.59 | E105: =OFFSET(InputPriceData!D$15,CalculationsAndCharts!$A105+$A$11,IF($C$7,8,0),1,1) -> 99.65 | F105: =OFFSET(InputPriceData!E$15,CalculationsAndCharts!$A105+$A$11,IF($C$7,8,0),1,1) -> 97.17 | G105: =OFFSET(InputPriceData!F$15,CalculationsAndCharts!$A105+$A$11,IF($C$7,8,0),1,1) -> 99.42 | J105: 2728 | K105: 2.51 | L105: -0.2942049059 | M105: 0.8317582888 | N105: -0.3537144262 | T105: FALSE | U105: FALSE | W105: FALSE | X105: FALSE | Y105: TRUE | Z105: TRUE | AA105: TRUE | AB105: FALSE | AD105: TRUE | AE105: TRUE | AF105: FALSE | AG105: FALSE | AH105: FALSE | AI105: TRUE
A106: 74 | B106: =OFFSET(InputPriceData!B$15,CalculationsAndCharts!$A106+$A$11,0,1,1) -> 2014-04-08 | C106: =OFFSET(InputPriceData!G$15,CalculationsAndCharts!$A106+$A$11,IF($C$7,8,0),1,1) -> 1581100 | D106: =OFFSET(InputPriceData!C$15,CalculationsAndCharts!$A106+$A$11,IF($C$7,8,0),1,1) -> 96.86 | E106: =OFFSET(InputPriceData!D$15,CalculationsAndCharts!$A106+$A$11,IF($C$7,8,0),1,1) -> 96.88 | F106: =OFFSET(InputPriceData!E$15,CalculationsAndCharts!$A106+$A$11,IF($C$7,8,0),1,1) -> 95.45 | G106: =OFFSET(InputPriceData!F$15,CalculationsAndCharts!$A106+$A$11,IF($C$7,8,0),1,1) -> 96.34 | J106: 2727 | K106: -1.27 | L106: -0.1560338793 | M106: 0.8393120977 | N106: -0.1859068631 | T106: FALSE | U106: TRUE | W106: FALSE | X106: TRUE | Y106: FALSE | Z106: FALSE | AA106: FALSE | AB106: FALSE | AD106: FALSE | AE106: FALSE | AF106: FALSE | AG106: FALSE | AH106: TRUE | AI106: FALSE
A107: 75 | B107: =OFFSET(InputPriceData!B$15,CalculationsAndCharts!$A107+$A$11,0,1,1) -> 2014-04-07 | C107: =OFFSET(InputPriceData!G$15,CalculationsAndCharts!$A107+$A$11,IF($C$7,8,0),1,1) -> 1486000 | D107: =OFFSET(InputPriceData!C$15,CalculationsAndCharts!$A107+$A$11,IF($C$7,8,0),1,1) -> 97.6 | E107: =OFFSET(InputPriceData!D$15,CalculationsAndCharts!$A107+$A$11,IF($C$7,8,0),1,1) -> 98.18 | F107: =OFFSET(InputPriceData!E$15,CalculationsAndCharts!$A107+$A$11,IF($C$7,8,0),1,1) -> 96.53 | G107: =OFFSET(InputPriceData!F$15,CalculationsAndCharts!$A107+$A$11,IF($C$7,8,0),1,1) -> 96.91 | J107: 2726 | K107: -3.13 | L107: 0.1550248803 | M107: 0.8469345083 | N107: 0.1830423472 | T107: FALSE | U107: FALSE | W107: FALSE | X107: TRUE | Y107: FALSE | Z107: FALSE | AA107: FALSE | AB107: FALSE | AD107: FALSE | AE107: FALSE | AF107: FALSE | AG107: FALSE | AH107: TRUE | AI107: FALSE
A108: 76 | B108: =OFFSET(InputPriceData!B$15,CalculationsAndCharts!$A108+$A$11,0,1,1) -> 2014-04-04 | C108: =OFFSET(InputPriceData!G$15,CalculationsAndCharts!$A108+$A$11,IF($C$7,8,0),1,1) -> 1733600 | D108: =OFFSET(InputPriceData!C$15,CalculationsAndCharts!$A108+$A$11,IF($C$7,8,0),1,1) -> 100.43 | E108: =OFFSET(InputPriceData!D$15,CalculationsAndCharts!$A108+$A$11,IF($C$7,8,0),1,1) -> 100.81 | F108: =OFFSET(InputPriceData!E$15,CalculationsAndCharts!$A108+$A$11,IF($C$7,8,0),1,1) -> 97.5 | G108: =OFFSET(InputPriceData!F$15,CalculationsAndCharts!$A108+$A$11,IF($C$7,8,0),1,1) -> 97.61 | J108: 2725 | K108: -2.2 | L108: 0.3498973594 | M108: 0.8546261436 | N108: 0.4094156983 | T108: FALSE | U108: FALSE | W108: FALSE | X108: TRUE | Y108: FALSE | Z108: FALSE | AA108: FALSE | AB108: FALSE | AD108: FALSE | AE108: FALSE | AF108: FALSE | AG108: FALSE | AH108: TRUE | AI108: FALSE
A109: 77 | B109: =OFFSET(InputPriceData!B$15,CalculationsAndCharts!$A109+$A$11,0,1,1) -> 2014-04-03 | C109: =OFFSET(InputPriceData!G$15,CalculationsAndCharts!$A109+$A$11,IF($C$7,8,0),1,1) -> 1126800 | D109: =OFFSET(InputPriceData!C$15,CalculationsAndCharts!$A109+$A$11,IF($C$7,8,0),1,1) -> 100.3 | E109: =OFFSET(InputPriceData!D$15,CalculationsAndCharts!$A109+$A$11,IF($C$7,8,0),1,1) -> 100.57 | F109: =OFFSET(InputPriceData!E$15,CalculationsAndCharts!$A109+$A$11,IF($C$7,8,0),1,1) -> 99.35 | G109: =OFFSET(InputPriceData!F$15,CalculationsAndCharts!$A109+$A$11,IF($C$7,8,0),1,1) -> 100.04 | J109: 2724 | K109: 0.91 | L109: 0.2823031402 | M109: 0.8623876322 | N109: 0.3273506364 | T109: FALSE | U109: FALSE | W109: TRUE | X109: TRUE | Y109: FALSE | Z109: FALSE | AA109: FALSE | AB109: TRUE | AD109: FALSE | AE109: FALSE | AF109: TRUE | AG109: TRUE | AH109: TRUE | AI109: FALSE
A110: 78 | B110: =OFFSET(InputPriceData!B$15,CalculationsAndCharts!$A110+$A$11,0,1,1) -> 2014-04-02 | C110: =OFFSET(InputPriceData!G$15,CalculationsAndCharts!$A110+$A$11,IF($C$7,8,0),1,1) -> 1483500 | D110: =OFFSET(InputPriceData!C$15,CalculationsAndCharts!$A110+$A$11,IF($C$7,8,0),1,1) -> 99.24 | E110: =OFFSET(InputPriceData!D$15,CalculationsAndCharts!$A110+$A$11,IF($C$7,8,0),1,1) -> 100.1 | F110: =OFFSET(InputPriceData!E$15,CalculationsAndCharts!$A110+$A$11,IF($C$7,8,0),1,1) -> 98.85 | G110: =OFFSET(InputPriceData!F$15,CalculationsAndCharts!$A110+$A$11,IF($C$7,8,0),1,1) -> 99.81 | J110: 2723 | K110: 1.02 | L110: 0.0626557099 | M110: 0.8702196087 | N110: 0.07199988288 | T110: TRUE | U110: FALSE | W110: FALSE | X110: FALSE | Y110: FALSE | Z110: FALSE | AA110: TRUE | AB110: FALSE | AD110: FALSE | AE110: TRUE | AF110: FALSE | AG110: FALSE | AH110: FALSE | AI110: FALSE
A111: 79 | B111: =OFFSET(InputPriceData!B$15,CalculationsAndCharts!$A111+$A$11,0,1,1) -> 2014-04-01 | C111: =OFFSET(InputPriceData!G$15,CalculationsAndCharts!$A111+$A$11,IF($C$7,8,0),1,1) -> 1321100 | D111: =OFFSET(InputPriceData!C$15,CalculationsAndCharts!$A111+$A$11,IF($C$7,8,0),1,1) -> 99.45 | E111: =OFFSET(InputPriceData!D$15,CalculationsAndCharts!$A111+$A$11,IF($C$7,8,0),1,1) -> 99.9 | F111: =OFFSET(InputPriceData!E$15,CalculationsAndCharts!$A111+$A$11,IF($C$7,8,0),1,1) -> 98.44 | G111: =OFFSET(InputPriceData!F$15,CalculationsAndCharts!$A111+$A$11,IF($C$7,8,0),1,1) -> 99.13 | J111: 2722 | K111: 0.48 | L111: -0.1686606027 | M111: 0.8781227131 | N111: -0.192069514 | T111: FALSE | U111: FALSE | W111: FALSE | X111: FALSE | Y111: FALSE | Z111: FALSE | AA111: TRUE | AB111: FALSE | AD111: FALSE | AE111: TRUE | AF111: FALSE | AG111: FALSE | AH111: FALSE | AI111: FALSE
A112: 80 | B112: =OFFSET(InputPriceData!B$15,CalculationsAndCharts!$A112+$A$11,0,1,1) -> 2014-03-31 | C112: =OFFSET(InputPriceData!G$15,CalculationsAndCharts!$A112+$A$11,IF($C$7,8,0),1,1) -> 1910300 | D112: =OFFSET(InputPriceData!C$15,CalculationsAndCharts!$A112+$A$11,IF($C$7,8,0),1,1) -> 98.28 | E112: =OFFSET(InputPriceData!D$15,CalculationsAndCharts!$A112+$A$11,IF($C$7,8,0),1,1) -> 99.25 | F112: =OFFSET(InputPriceData!E$15,CalculationsAndCharts!$A112+$A$11,IF($C$7,8,0),1,1) -> 98.28 | G112: =OFFSET(InputPriceData!F$15,CalculationsAndCharts!$A112+$A$11,IF($C$7,8,0),1,1) -> 98.79 | J112: 2721 | K112: 1.25 | L112: -0.4161616388 | M112: 0.8860975915 | N112: -0.469656664 | T112: FALSE | U112: FALSE | W112: FALSE | X112: FALSE | Y112: FALSE | Z112: FALSE | AA112: TRUE | AB112: FALSE | AD112: FALSE | AE112: TRUE | AF112: FALSE | AG112: FALSE | AH112: FALSE | AI112: FALSE
A113: 81 | B113: =OFFSET(InputPriceData!B$15,CalculationsAndCharts!$A113+$A$11,0,1,1) -> 2014-03-28 | C113: =OFFSET(InputPriceData!G$15,CalculationsAndCharts!$A113+$A$11,IF($C$7,8,0),1,1) -> 1695100 | D113: =OFFSET(InputPriceData!C$15,CalculationsAndCharts!$A113+$A$11,IF($C$7,8,0),1,1) -> 97.89 | E113: =OFFSET(InputPriceData!D$15,CalculationsAndCharts!$A113+$A$11,IF($C$7,8,0),1,1) -> 98.79 | F113: =OFFSET(InputPriceData!E$15,CalculationsAndCharts!$A113+$A$11,IF($C$7,8,0),1,1) -> 97.6 | G113: =OFFSET(InputPriceData!F$15,CalculationsAndCharts!$A113+$A$11,IF($C$7,8,0),1,1) -> 98.65 | J113: 2720 | K113: 1.56 | L113: -0.6442367412 | M113: 0.8941448955 | N113: -0.7205059766 | T113: FALSE | U113: FALSE | W113: FALSE | X113: FALSE | Y113: FALSE | Z113: FALSE | AA113: TRUE | AB113: FALSE | AD113: FALSE | AE113: TRUE | AF113: FALSE | AG113: FALSE | AH113: FALSE | AI113: FALSE
A114: 82 | B114: =OFFSET(InputPriceData!B$15,CalculationsAndCharts!$A114+$A$11,0,1,1) -> 2014-03-27 | C114: =OFFSET(InputPriceData!G$15,CalculationsAndCharts!$A114+$A$11,IF($C$7,8,0),1,1) -> 2096600 | D114: =OFFSET(InputPriceData!C$15,CalculationsAndCharts!$A114+$A$11,IF($C$7,8,0),1,1) -> 97 | E114: =OFFSET(InputPriceData!D$15,CalculationsAndCharts!$A114+$A$11,IF($C$7,8,0),1,1) -> 97.83 | F114: =OFFSET(InputPriceData!E$15,CalculationsAndCharts!$A114+$A$11,IF($C$7,8,0),1,1) -> 96.07 | G114: =OFFSET(InputPriceData!F$15,CalculationsAndCharts!$A114+$A$11,IF($C$7,8,0),1,1) -> 97.54 | J114: 2719 | K114: -0.52 | L114: -0.7473898825 | M114: 0.9022652831 | N114: -0.8283482658 | T114: FALSE | U114: FALSE | W114: FALSE | X114: FALSE | Y114: FALSE | Z114: FALSE | AA114: TRUE | AB114: FALSE | AD114: FALSE | AE114: TRUE | AF114: FALSE | AG114: FALSE | AH114: FALSE | AI114: FALSE
A115: 83 | B115: =OFFSET(InputPriceData!B$15,CalculationsAndCharts!$A115+$A$11,0,1,1) -> 2014-03-26 | C115: =OFFSET(InputPriceData!G$15,CalculationsAndCharts!$A115+$A$11,IF($C$7,8,0),1,1) -> 1395900 | D115: =OFFSET(InputPriceData!C$15,CalculationsAndCharts!$A115+$A$11,IF($C$7,8,0),1,1) -> 98.53 | E115: =OFFSET(InputPriceData!D$15,CalculationsAndCharts!$A115+$A$11,IF($C$7,8,0),1,1) -> 98.72 | F115: =OFFSET(InputPriceData!E$15,CalculationsAndCharts!$A115+$A$11,IF($C$7,8,0),1,1) -> 97.09 | G115: =OFFSET(InputPriceData!F$15,CalculationsAndCharts!$A115+$A$11,IF($C$7,8,0),1,1) -> 97.09 | J115: 2718 | K115: -0.24 | L115: -0.7520837191 | M115: 0.9104594178 | N115: -0.8260485908 | T115: FALSE | U115: FALSE | W115: FALSE | X115: FALSE | Y115: FALSE | Z115: FALSE | AA115: TRUE | AB115: FALSE | AD115: FALSE | AE115: TRUE | AF115: FALSE | AG115: FALSE | AH115: FALSE | AI115: FALSE
A116: 84 | B116: =OFFSET(InputPriceData!B$15,CalculationsAndCharts!$A116+$A$11,0,1,1) -> 2014-03-25 | C116: =OFFSET(InputPriceData!G$15,CalculationsAndCharts!$A116+$A$11,IF($C$7,8,0),1,1) -> 2115600 | D116: =OFFSET(InputPriceData!C$15,CalculationsAndCharts!$A116+$A$11,IF($C$7,8,0),1,1) -> 98.14 | E116: =OFFSET(InputPriceData!D$15,CalculationsAndCharts!$A116+$A$11,IF($C$7,8,0),1,1) -> 98.76 | F116: =OFFSET(InputPriceData!E$15,CalculationsAndCharts!$A116+$A$11,IF($C$7,8,0),1,1) -> 97.37 | G116: =OFFSET(InputPriceData!F$15,CalculationsAndCharts!$A116+$A$11,IF($C$7,8,0),1,1) -> 98.06 | J116: 2717 | K116: 0.56 | L116: -0.7135596896 | M116: 0.9187279696 | N116: -0.7766822315 | T116: FALSE | U116: FALSE | W116: FALSE | X116: FALSE | Y116: FALSE | Z116: FALSE | AA116: TRUE | AB116: FALSE | AD116: FALSE | AE116: TRUE | AF116: FALSE | AG116: FALSE | AH116: FALSE | AI116: FALSE
A117: 85 | B117: =OFFSET(InputPriceData!B$15,CalculationsAndCharts!$A117+$A$11,0,1,1) -> 2014-03-24 | C117: =OFFSET(InputPriceData!G$15,CalculationsAndCharts!$A117+$A$11,IF($C$7,8,0),1,1) -> 2355000 | D117: =OFFSET(InputPriceData!C$15,CalculationsAndCharts!$A117+$A$11,IF($C$7,8,0),1,1) -> 97.88 | E117: =OFFSET(InputPriceData!D$15,CalculationsAndCharts!$A117+$A$11,IF($C$7,8,0),1,1) -> 97.99 | F117: =OFFSET(InputPriceData!E$15,CalculationsAndCharts!$A117+$A$11,IF($C$7,8,0),1,1) -> 96.04 | G117: =OFFSET(InputPriceData!F$15,CalculationsAndCharts!$A117+$A$11,IF($C$7,8,0),1,1) -> 97.33 | J117: 2716 | K117: -1.24 | L117: -0.5458621974 | M117: 0.9270716141 | N117: -0.5888026223 | T117: FALSE | U117: FALSE | W117: FALSE | X117: FALSE | Y117: TRUE | Z117: TRUE | AA117: TRUE | AB117: FALSE | AD117: TRUE | AE117: TRUE | AF117: FALSE | AG117: FALSE | AH117: FALSE | AI117: TRUE
A118: 86 | B118: =OFFSET(InputPriceData!B$15,CalculationsAndCharts!$A118+$A$11,0,1,1) -> 2014-03-21 | C118: =OFFSET(InputPriceData!G$15,CalculationsAndCharts!$A118+$A$11,IF($C$7,8,0),1,1) -> 3773900 | D118: =OFFSET(InputPriceData!C$15,CalculationsAndCharts!$A118+$A$11,IF($C$7,8,0),1,1) -> 98.84 | E118: =OFFSET(InputPriceData!D$15,CalculationsAndCharts!$A118+$A$11,IF($C$7,8,0),1,1) -> 99.1 | F118: =OFFSET(InputPriceData!E$15,CalculationsAndCharts!$A118+$A$11,IF($C$7,8,0),1,1) -> 97.39 | G118: =OFFSET(InputPriceData!F$15,CalculationsAndCharts!$A118+$A$11,IF($C$7,8,0),1,1) -> 97.5 | J118: 2715 | K118: -1.89 | L118: -0.2590122348 | M118: 0.9354910334 | N118: -0.2768730277 | T118: FALSE | U118: TRUE | W118: FALSE | X118: TRUE | Y118: FALSE | Z118: FALSE | AA118: FALSE | AB118: FALSE | AD118: FALSE | AE118: FALSE | AF118: FALSE | AG118: FALSE | AH118: TRUE | AI118: FALSE
A119: 87 | B119: =OFFSET(InputPriceData!B$15,CalculationsAndCharts!$A119+$A$11,0,1,1) -> 2014-03-20 | C119: =OFFSET(InputPriceData!G$15,CalculationsAndCharts!$A119+$A$11,IF($C$7,8,0),1,1) -> 2651400 | D119: =OFFSET(InputPriceData!C$15,CalculationsAndCharts!$A119+$A$11,IF($C$7,8,0),1,1) -> 99.59 | E119: =OFFSET(InputPriceData!D$15,CalculationsAndCharts!$A119+$A$11,IF($C$7,8,0),1,1) -> 100.41 | F119: =OFFSET(InputPriceData!E$15,CalculationsAndCharts!$A119+$A$11,IF($C$7,8,0),1,1) -> 98.21 | G119: =OFFSET(InputPriceData!F$15,CalculationsAndCharts!$A119+$A$11,IF($C$7,8,0),1,1) -> 98.57 | J119: 2714 | K119: -2.74 | L119: 0.02735992425 | M119: 0.9439869156 | N119: 0.02898337233 | T119: FALSE | U119: FALSE | W119: FALSE | X119: TRUE | Y119: FALSE | Z119: FALSE | AA119: FALSE | AB119: FALSE | AD119: FALSE | AE119: FALSE | AF119: FALSE | AG119: FALSE | AH119: TRUE | AI119: FALSE
A120: 88 | B120: =OFFSET(InputPriceData!B$15,CalculationsAndCharts!$A120+$A$11,0,1,1) -> 2014-03-19 | C120: =OFFSET(InputPriceData!G$15,CalculationsAndCharts!$A120+$A$11,IF($C$7,8,0),1,1) -> 1818400 | D120: =OFFSET(InputPriceData!C$15,CalculationsAndCharts!$A120+$A$11,IF($C$7,8,0),1,1) -> 101.72 | E120: =OFFSET(InputPriceData!D$15,CalculationsAndCharts!$A120+$A$11,IF($C$7,8,0),1,1) -> 101.8 | F120: =OFFSET(InputPriceData!E$15,CalculationsAndCharts!$A120+$A$11,IF($C$7,8,0),1,1) -> 98.73 | G120: =OFFSET(InputPriceData!F$15,CalculationsAndCharts!$A120+$A$11,IF($C$7,8,0),1,1) -> 99.39 | J120: 2713 | K120: -1.57 | L120: 0.1852996105 | M120: 0.9525599552 | N120: 0.1945280289 | T120: FALSE | U120: FALSE | W120: FALSE | X120: TRUE | Y120: FALSE | Z120: FALSE | AA120: FALSE | AB120: FALSE | AD120: FALSE | AE120: FALSE | AF120: FALSE | AG120: FALSE | AH120: TRUE | AI120: FALSE
A121: 89 | B121: =OFFSET(InputPriceData!B$15,CalculationsAndCharts!$A121+$A$11,0,1,1) -> 2014-03-18 | C121: =OFFSET(InputPriceData!G$15,CalculationsAndCharts!$A121+$A$11,IF($C$7,8,0),1,1) -> 1384700 | D121: =OFFSET(InputPriceData!C$15,CalculationsAndCharts!$A121+$A$11,IF($C$7,8,0),1,1) -> 101.34 | E121: =OFFSET(InputPriceData!D$15,CalculationsAndCharts!$A121+$A$11,IF($C$7,8,0),1,1) -> 101.71 | F121: =OFFSET(InputPriceData!E$15,CalculationsAndCharts!$A121+$A$11,IF($C$7,8,0),1,1) -> 100.67 | G121: =OFFSET(InputPriceData!F$15,CalculationsAndCharts!$A121+$A$11,IF($C$7,8,0),1,1) -> 101.31 | J121: 2712 | K121: 1.22 | L121: 0.143231625 | M121: 0.9612108529 | N121: 0.1490116602 | T121: FALSE | U121: FALSE | W121: FALSE | X121: TRUE | Y121: FALSE | Z121: FALSE | AA121: FALSE | AB121: FALSE | AD121: FALSE | AE121: FALSE | AF121: FALSE | AG121: FALSE | AH121: TRUE | AI121: FALSE
A122: 90 | B122: =OFFSET(InputPriceData!B$15,CalculationsAndCharts!$A122+$A$11,0,1,1) -> 2014-03-17 | C122: =OFFSET(InputPriceData!G$15,CalculationsAndCharts!$A122+$A$11,IF($C$7,8,0),1,1) -> 1272800 | D122: =OFFSET(InputPriceData!C$15,CalculationsAndCharts!$A122+$A$11,IF($C$7,8,0),1,1) -> 100.48 | E122: =OFFSET(InputPriceData!D$15,CalculationsAndCharts!$A122+$A$11,IF($C$7,8,0),1,1) -> 101.02 | F122: =OFFSET(InputPriceData!E$15,CalculationsAndCharts!$A122+$A$11,IF($C$7,8,0),1,1) -> 100.12 | G122: =OFFSET(InputPriceData!F$15,CalculationsAndCharts!$A122+$A$11,IF($C$7,8,0),1,1) -> 100.96 | J122: 2711 | K122: 2.13 | L122: 0.03842797615 | M122: 0.9699403157 | N122: 0.03961890802 | T122: FALSE | U122: FALSE | W122: FALSE | X122: TRUE | Y122: FALSE | Z122: FALSE | AA122: FALSE | AB122: FALSE | AD122: FALSE | AE122: FALSE | AF122: FALSE | AG122: FALSE | AH122: TRUE | AI122: FALSE
A123: 91 | B123: =OFFSET(InputPriceData!B$15,CalculationsAndCharts!$A123+$A$11,0,1,1) -> 2014-03-14 | C123: =OFFSET(InputPriceData!G$15,CalculationsAndCharts!$A123+$A$11,IF($C$7,8,0),1,1) -> 2795700 | D123: =OFFSET(InputPriceData!C$15,CalculationsAndCharts!$A123+$A$11,IF($C$7,8,0),1,1) -> 98.59 | E123: =OFFSET(InputPriceData!D$15,CalculationsAndCharts!$A123+$A$11,IF($C$7,8,0),1,1) -> 100.94 | F123: =OFFSET(InputPriceData!E$15,CalculationsAndCharts!$A123+$A$11,IF($C$7,8,0),1,1) -> 98.58 | G123: =OFFSET(InputPriceData!F$15,CalculationsAndCharts!$A123+$A$11,IF($C$7,8,0),1,1) -> 100.09 | J123: 2710 | K123: 0.35 | L123: 0.07664606308 | M123: 0.9787490573 | N123: 0.07831022927 | T123: FALSE | U123: FALSE | W123: FALSE | X123: TRUE | Y123: FALSE | Z123: FALSE | AA123: FALSE | AB123: FALSE | AD123: FALSE | AE123: FALSE | AF123: FALSE | AG123: FALSE | AH123: TRUE | AI123: FALSE
A124: 92 | B124: =OFFSET(InputPriceData!B$15,CalculationsAndCharts!$A124+$A$11,0,1,1) -> 2014-03-13 | C124: =OFFSET(InputPriceData!G$15,CalculationsAndCharts!$A124+$A$11,IF($C$7,8,0),1,1) -> 1777900 | D124: =OFFSET(InputPriceData!C$15,CalculationsAndCharts!$A124+$A$11,IF($C$7,8,0),1,1) -> 100.05 | E124: =OFFSET(InputPriceData!D$15,CalculationsAndCharts!$A124+$A$11,IF($C$7,8,0),1,1) -> 101.15 | F124: =OFFSET(InputPriceData!E$15,CalculationsAndCharts!$A124+$A$11,IF($C$7,8,0),1,1) -> 98.64 | G124: =OFFSET(InputPriceData!F$15,CalculationsAndCharts!$A124+$A$11,IF($C$7,8,0),1,1) -> 98.83 | J124: 2709 | K124: -0.32 | L124: 0.2795709463 | M124: 0.9876377974 | N124: 0.283070319 | T124: FALSE | U124: FALSE | W124: FALSE | X124: TRUE | Y124: FALSE | Z124: FALSE | AA124: FALSE | AB124: FALSE | AD124: FALSE | AE124: FALSE | AF124: FALSE | AG124: FALSE | AH124: TRUE | AI124: FALSE
A125: 93 | B125: =OFFSET(InputPriceData!B$15,CalculationsAndCharts!$A125+$A$11,0,1,1) -> 2014-03-12 | C125: =OFFSET(InputPriceData!G$15,CalculationsAndCharts!$A125+$A$11,IF($C$7,8,0),1,1) -> 1795100 | D125: =OFFSET(InputPriceData!C$15,CalculationsAndCharts!$A125+$A$11,IF($C$7,8,0),1,1) -> 98.81 | E125: =OFFSET(InputPriceData!D$15,CalculationsAndCharts!$A125+$A$11,IF($C$7,8,0),1,1) -> 100.07 | F125: =OFFSET(InputPriceData!E$15,CalculationsAndCharts!$A125+$A$11,IF($C$7,8,0),1,1) -> 98.06 | G125: =OFFSET(InputPriceData!F$15,CalculationsAndCharts!$A125+$A$11,IF($C$7,8,0),1,1) -> 99.74 | J125: 2708 | K125: -0.99 | L125: 0.5633898249 | M125: 0.9966072628 | N125: 0.5653077656 | T125: FALSE | U125: FALSE | W125: FALSE | X125: TRUE | Y125: FALSE | Z125: FALSE | AA125: FALSE | AB125: FALSE | AD125: FALSE | AE125: FALSE | AF125: FALSE | AG125: FALSE | AH125: TRUE | AI125: FALSE
A126: 94 | B126: =OFFSET(InputPriceData!B$15,CalculationsAndCharts!$A126+$A$11,0,1,1) -> 2014-03-11 | C126: =OFFSET(InputPriceData!G$15,CalculationsAndCharts!$A126+$A$11,IF($C$7,8,0),1,1) -> 1580500 | D126: =OFFSET(InputPriceData!C$15,CalculationsAndCharts!$A126+$A$11,IF($C$7,8,0),1,1) -> 100.66 | E126: =OFFSET(InputPriceData!D$15,CalculationsAndCharts!$A126+$A$11,IF($C$7,8,0),1,1) -> 100.71 | F126: =OFFSET(InputPriceData!E$15,CalculationsAndCharts!$A126+$A$11,IF($C$7,8,0),1,1) -> 99.03 | G126: =OFFSET(InputPriceData!F$15,CalculationsAndCharts!$A126+$A$11,IF($C$7,8,0),1,1) -> 99.15 | J126: 2707 | K126: -2.12 | L126: 0.8558282979 | M126: 1.005658186 | N126: 0.851013107 | T126: FALSE | U126: FALSE | W126: FALSE | X126: TRUE | Y126: FALSE | Z126: FALSE | AA126: FALSE | AB126: FALSE | AD126: FALSE | AE126: FALSE | AF126: FALSE | AG126: FALSE | AH126: TRUE | AI126: FALSE
A127: 95 | B127: =OFFSET(InputPriceData!B$15,CalculationsAndCharts!$A127+$A$11,0,1,1) -> 2014-03-10 | C127: =OFFSET(InputPriceData!G$15,CalculationsAndCharts!$A127+$A$11,IF($C$7,8,0),1,1) -> 1440100 | D127: =OFFSET(InputPriceData!C$15,CalculationsAndCharts!$A127+$A$11,IF($C$7,8,0),1,1) -> 100.84 | E127: =OFFSET(InputPriceData!D$15,CalculationsAndCharts!$A127+$A$11,IF($C$7,8,0),1,1) -> 101.08 | F127: =OFFSET(InputPriceData!E$15,CalculationsAndCharts!$A127+$A$11,IF($C$7,8,0),1,1) -> 100.1 | G127: =OFFSET(InputPriceData!F$15,CalculationsAndCharts!$A127+$A$11,IF($C$7,8,0),1,1) -> 100.73 | J127: 2706 | K127: 0.24 | L127: 1.014791308 | M127: 1.014791308 | N127: 1 | T127: FALSE | U127: FALSE | W127: FALSE | X127: TRUE | Y127: FALSE | Z127: FALSE | AA127: FALSE | AB127: FALSE | AD127: FALSE | AE127: FALSE | AF127: FALSE | AG127: FALSE | AH127: TRUE | AI127: FALSE
A128: 96 | B128: =OFFSET(InputPriceData!B$15,CalculationsAndCharts!$A128+$A$11,0,1,1) -> 2014-03-07 | C128: =OFFSET(InputPriceData!G$15,CalculationsAndCharts!$A128+$A$11,IF($C$7,8,0),1,1) -> 1765900 | D128: =OFFSET(InputPriceData!C$15,CalculationsAndCharts!$A128+$A$11,IF($C$7,8,0),1,1) -> 101 | E128: =OFFSET(InputPriceData!D$15,CalculationsAndCharts!$A128+$A$11,IF($C$7,8,0),1,1) -> 102.15 | F128: =OFFSET(InputPriceData!E$15,CalculationsAndCharts!$A128+$A$11,IF($C$7,8,0),1,1) -> 100.7 | G128: =OFFSET(InputPriceData!F$15,CalculationsAndCharts!$A128+$A$11,IF($C$7,8,0),1,1) -> 101.27 | J128: 2705 | K128: 0.58 | L128: 1.021815968 | M128: 1.021815968 | N128: 1 | T128: FALSE | U128: FALSE | W128: FALSE | X128: TRUE | Y128: FALSE | Z128: FALSE | AA128: FALSE | AB128: FALSE | AD128: FALSE | AE128: FALSE | AF128: FALSE | AG128: FALSE | AH128: TRUE | AI128: FALSE
A129: 97 | B129: =OFFSET(InputPriceData!B$15,CalculationsAndCharts!$A129+$A$11,0,1,1) -> 2014-03-06 | C129: =OFFSET(InputPriceData!G$15,CalculationsAndCharts!$A129+$A$11,IF($C$7,8,0),1,1) -> 1436000 | D129: =OFFSET(InputPriceData!C$15,CalculationsAndCharts!$A129+$A$11,IF($C$7,8,0),1,1) -> 100.03 | E129: =OFFSET(InputPriceData!D$15,CalculationsAndCharts!$A129+$A$11,IF($C$7,8,0),1,1) -> 101.07 | F129: =OFFSET(InputPriceData!E$15,CalculationsAndCharts!$A129+$A$11,IF($C$7,8,0),1,1) -> 100.03 | G129: =OFFSET(InputPriceData!F$15,CalculationsAndCharts!$A129+$A$11,IF($C$7,8,0),1,1) -> 100.49 | J129: 2704 | K129: 0.1 | L129: 0.95738984 | M129: 0.95738984 | N129: 1 | T129: FALSE | U129: FALSE | W129: FALSE | X129: TRUE | Y129: FALSE | Z129: FALSE | AA129: FALSE | AB129: FALSE | AD129: FALSE | AE129: FALSE | AF129: FALSE | AG129: FALSE | AH129: TRUE | AI129: FALSE
A130: 98 | B130: =OFFSET(InputPriceData!B$15,CalculationsAndCharts!$A130+$A$11,0,1,1) -> 2014-03-05 | C130: =OFFSET(InputPriceData!G$15,CalculationsAndCharts!$A130+$A$11,IF($C$7,8,0),1,1) -> 1836000 | D130: =OFFSET(InputPriceData!C$15,CalculationsAndCharts!$A130+$A$11,IF($C$7,8,0),1,1) -> 101 | E130: =OFFSET(InputPriceData!D$15,CalculationsAndCharts!$A130+$A$11,IF($C$7,8,0),1,1) -> 102 | F130: =OFFSET(InputPriceData!E$15,CalculationsAndCharts!$A130+$A$11,IF($C$7,8,0),1,1) -> 100.41 | G130: =OFFSET(InputPriceData!F$15,CalculationsAndCharts!$A130+$A$11,IF($C$7,8,0),1,1) -> 100.69 | J130: 2703 | K130: 2.49 | L130: 0.7808655652 | M130: 0.8084551684 | N130: 0.9658736758 | T130: FALSE | U130: FALSE | W130: FALSE | X130: TRUE | Y130: FALSE | Z130: FALSE | AA130: FALSE | AB130: FALSE | AD130: FALSE | AE130: FALSE | AF130: FALSE | AG130: FALSE | AH130: TRUE | AI130: FALSE
A131: 99 | B131: =OFFSET(InputPriceData!B$15,CalculationsAndCharts!$A131+$A$11,0,1,1) -> 2014-03-04 | C131: =OFFSET(InputPriceData!G$15,CalculationsAndCharts!$A131+$A$11,IF($C$7,8,0),1,1) -> 2092400 | D131: =OFFSET(InputPriceData!C$15,CalculationsAndCharts!$A131+$A$11,IF($C$7,8,0),1,1) -> 100.93 | E131: =OFFSET(InputPriceData!D$15,CalculationsAndCharts!$A131+$A$11,IF($C$7,8,0),1,1) -> 101.03 | F131: =OFFSET(InputPriceData!E$15,CalculationsAndCharts!$A131+$A$11,IF($C$7,8,0),1,1) -> 100.08 | G131: =OFFSET(InputPriceData!F$15,CalculationsAndCharts!$A131+$A$11,IF($C$7,8,0),1,1) -> 100.39 | J131: 2702 | K131: 2.48 | L131: 0.5689602514 | M131: 0.8157973445 | N131: 0.697428418 | T131: FALSE | U131: FALSE | W131: FALSE | X131: TRUE | Y131: FALSE | Z131: FALSE | AA131: FALSE | AB131: FALSE | AD131: FALSE | AE131: FALSE | AF131: FALSE | AG131: FALSE | AH131: TRUE | AI131: FALSE
A132: 100 | B132: =OFFSET(InputPriceData!B$15,CalculationsAndCharts!$A132+$A$11,0,1,1) -> 2014-03-03 | C132: =OFFSET(InputPriceData!G$15,CalculationsAndCharts!$A132+$A$11,IF($C$7,8,0),1,1) -> 1639200 | D132: =OFFSET(InputPriceData!C$15,CalculationsAndCharts!$A132+$A$11,IF($C$7,8,0),1,1) -> 96.9 | E132: =OFFSET(InputPriceData!D$15,CalculationsAndCharts!$A132+$A$11,IF($C$7,8,0),1,1) -> 98.57 | F132: =OFFSET(InputPriceData!E$15,CalculationsAndCharts!$A132+$A$11,IF($C$7,8,0),1,1) -> 96.74 | G132: =OFFSET(InputPriceData!F$15,CalculationsAndCharts!$A132+$A$11,IF($C$7,8,0),1,1) -> 98.2 | J132: 2701 | K132: 0.61 | L132: 0.474609562 | M132: 0.8232062003 | N132: 0.5765378854 | T132: FALSE | U132: FALSE | W132: FALSE | X132: TRUE | Y132: FALSE | Z132: FALSE | AA132: FALSE | AB132: FALSE | AD132: FALSE | AE132: FALSE | AF132: FALSE | AG132: FALSE | AH132: TRUE | AI132: FALSE
A133: 101 | B133: =OFFSET(InputPriceData!B$15,CalculationsAndCharts!$A133+$A$11,0,1,1) -> 2014-02-28 | C133: =OFFSET(InputPriceData!G$15,CalculationsAndCharts!$A133+$A$11,IF($C$7,8,0),1,1) -> 1721600 | D133: =OFFSET(InputPriceData!C$15,CalculationsAndCharts!$A133+$A$11,IF($C$7,8,0),1,1) -> 96.86 | E133: =OFFSET(InputPriceData!D$15,CalculationsAndCharts!$A133+$A$11,IF($C$7,8,0),1,1) -> 98.95 | F133: =OFFSET(InputPriceData!E$15,CalculationsAndCharts!$A133+$A$11,IF($C$7,8,0),1,1) -> 96.86 | G133: =OFFSET(InputPriceData!F$15,CalculationsAndCharts!$A133+$A$11,IF($C$7,8,0),1,1) -> 97.91 | J133: 2700 | K133: 1.33 | L133: 0.4593696195 | M133: 0.8306823413 | N133: 0.5530027504 | T133: FALSE | U133: FALSE | W133: FALSE | X133: TRUE | Y133: FALSE | Z133: FALSE | AA133: FALSE | AB133: FALSE | AD133: FALSE | AE133: FALSE | AF133: FALSE | AG133: FALSE | AH133: TRUE | AI133: FALSE
A134: 102 | B134: =OFFSET(InputPriceData!B$15,CalculationsAndCharts!$A134+$A$11,0,1,1) -> 2014-02-27 | C134: =OFFSET(InputPriceData!G$15,CalculationsAndCharts!$A134+$A$11,IF($C$7,8,0),1,1) -> 1699300 | D134: =OFFSET(InputPriceData!C$15,CalculationsAndCharts!$A134+$A$11,IF($C$7,8,0),1,1) -> 96.47 | E134: =OFFSET(InputPriceData!D$15,CalculationsAndCharts!$A134+$A$11,IF($C$7,8,0),1,1) -> 97.59 | F134: =OFFSET(InputPriceData!E$15,CalculationsAndCharts!$A134+$A$11,IF($C$7,8,0),1,1) -> 96.3 | G134: =OFFSET(InputPriceData!F$15,CalculationsAndCharts!$A134+$A$11,IF($C$7,8,0),1,1) -> 97.59 | J134: 2699 | K134: 0.81 | L134: 0.4985191756 | M134: 0.8382263788 | N134: 0.594730956 | T134: FALSE | U134: FALSE | W134: FALSE | X134: TRUE | Y134: FALSE | Z134: FALSE | AA134: FALSE | AB134: FALSE | AD134: FALSE | AE134: FALSE | AF134: FALSE | AG134: FALSE | AH134: TRUE | AI134: FALSE
A135: 103 | B135: =OFFSET(InputPriceData!B$15,CalculationsAndCharts!$A135+$A$11,0,1,1) -> 2014-02-26 | C135: =OFFSET(InputPriceData!G$15,CalculationsAndCharts!$A135+$A$11,IF($C$7,8,0),1,1) -> 2047300 | D135: =OFFSET(InputPriceData!C$15,CalculationsAndCharts!$A135+$A$11,IF($C$7,8,0),1,1) -> 96.95 | E135: =OFFSET(InputPriceData!D$15,CalculationsAndCharts!$A135+$A$11,IF($C$7,8,0),1,1) -> 97.34 | F135: =OFFSET(InputPriceData!E$15,CalculationsAndCharts!$A135+$A$11,IF($C$7,8,0),1,1) -> 96.25 | G135: =OFFSET(InputPriceData!F$15,CalculationsAndCharts!$A135+$A$11,IF($C$7,8,0),1,1) -> 96.58 | J135: 2698 | K135: -1.64 | L135: 0.6299740553 | M135: 0.8458389291 | N135: 0.7447919854 | T135: FALSE | U135: FALSE | W135: FALSE | X135: TRUE | Y135: FALSE | Z135: FALSE | AA135: FALSE | AB135: FALSE | AD135: FALSE | AE135: FALSE | AF135: FALSE | AG135: FALSE | AH135: TRUE | AI135: FALSE
A136: 104 | B136: =OFFSET(InputPriceData!B$15,CalculationsAndCharts!$A136+$A$11,0,1,1) -> 2014-02-25 | C136: =OFFSET(InputPriceData!G$15,CalculationsAndCharts!$A136+$A$11,IF($C$7,8,0),1,1) -> 1763300 | D136: =OFFSET(InputPriceData!C$15,CalculationsAndCharts!$A136+$A$11,IF($C$7,8,0),1,1) -> 98.21 | E136: =OFFSET(InputPriceData!D$15,CalculationsAndCharts!$A136+$A$11,IF($C$7,8,0),1,1) -> 98.57 | F136: =OFFSET(InputPriceData!E$15,CalculationsAndCharts!$A136+$A$11,IF($C$7,8,0),1,1) -> 96.52 | G136: =OFFSET(InputPriceData!F$15,CalculationsAndCharts!$A136+$A$11,IF($C$7,8,0),1,1) -> 96.78 | J136: 2697 | K136: 0.18 | L136: 0.706201081 | M136: 0.8535206146 | N136: 0.8273978026 | T136: FALSE | U136: FALSE | W136: FALSE | X136: TRUE | Y136: FALSE | Z136: FALSE | AA136: FALSE | AB136: FALSE | AD136: FALSE | AE136: FALSE | AF136: FALSE | AG136: FALSE | AH136: TRUE | AI136: FALSE
A137: 105 | B137: =OFFSET(InputPriceData!B$15,CalculationsAndCharts!$A137+$A$11,0,1,1) -> 2014-02-24 | C137: =OFFSET(InputPriceData!G$15,CalculationsAndCharts!$A137+$A$11,IF($C$7,8,0),1,1) -> 3017400 | D137: =OFFSET(InputPriceData!C$15,CalculationsAndCharts!$A137+$A$11,IF($C$7,8,0),1,1) -> 97.08 | E137: =OFFSET(InputPriceData!D$15,CalculationsAndCharts!$A137+$A$11,IF($C$7,8,0),1,1) -> 99.48 | F137: =OFFSET(InputPriceData!E$15,CalculationsAndCharts!$A137+$A$11,IF($C$7,8,0),1,1) -> 97.06 | G137: =OFFSET(InputPriceData!F$15,CalculationsAndCharts!$A137+$A$11,IF($C$7,8,0),1,1) -> 98.22 | J137: 2696 | K137: 1.87 | L137: 0.6481111232 | M137: 0.8612720632 | N137: 0.7525045231 | T137: FALSE | U137: FALSE | W137: FALSE | X137: TRUE | Y137: FALSE | Z137: FALSE | AA137: FALSE | AB137: FALSE | AD137: FALSE | AE137: FALSE | AF137: FALSE | AG137: FALSE | AH137: TRUE | AI137: FALSE
A138: 106 | B138: =OFFSET(InputPriceData!B$15,CalculationsAndCharts!$A138+$A$11,0,1,1) -> 2014-02-21 | C138: =OFFSET(InputPriceData!G$15,CalculationsAndCharts!$A138+$A$11,IF($C$7,8,0),1,1) -> 2258600 | D138: =OFFSET(InputPriceData!C$15,CalculationsAndCharts!$A138+$A$11,IF($C$7,8,0),1,1) -> 96.49 | E138: =OFFSET(InputPriceData!D$15,CalculationsAndCharts!$A138+$A$11,IF($C$7,8,0),1,1) -> 97.35 | F138: =OFFSET(InputPriceData!E$15,CalculationsAndCharts!$A138+$A$11,IF($C$7,8,0),1,1) -> 96.07 | G138: =OFFSET(InputPriceData!F$15,CalculationsAndCharts!$A138+$A$11,IF($C$7,8,0),1,1) -> 96.6 | J138: 2695 | K138: 1.44 | L138: 0.6039679527 | M138: 0.8690939084 | N138: 0.6949398067 | T138: FALSE | U138: FALSE | W138: FALSE | X138: TRUE | Y138: FALSE | Z138: FALSE | AA138: FALSE | AB138: FALSE | AD138: FALSE | AE138: FALSE | AF138: FALSE | AG138: FALSE | AH138: TRUE | AI138: FALSE
A139: 107 | B139: =OFFSET(InputPriceData!B$15,CalculationsAndCharts!$A139+$A$11,0,1,1) -> 2014-02-20 | C139: =OFFSET(InputPriceData!G$15,CalculationsAndCharts!$A139+$A$11,IF($C$7,8,0),1,1) -> 2043800 | D139: =OFFSET(InputPriceData!C$15,CalculationsAndCharts!$A139+$A$11,IF($C$7,8,0),1,1) -> 95.25 | E139: =OFFSET(InputPriceData!D$15,CalculationsAndCharts!$A139+$A$11,IF($C$7,8,0),1,1) -> 96.91 | F139: =OFFSET(InputPriceData!E$15,CalculationsAndCharts!$A139+$A$11,IF($C$7,8,0),1,1) -> 95.05 | G139: =OFFSET(InputPriceData!F$15,CalculationsAndCharts!$A139+$A$11,IF($C$7,8,0),1,1) -> 96.35 | J139: 2694 | K139: 0.48 | L139: 0.6646302547 | M139: 0.8769867895 | N139: 0.7578566322 | T139: FALSE | U139: FALSE | W139: FALSE | X139: TRUE | Y139: FALSE | Z139: FALSE | AA139: FALSE | AB139: FALSE | AD139: FALSE | AE139: FALSE | AF139: FALSE | AG139: FALSE | AH139: TRUE | AI139: FALSE
A140: 108 | B140: =OFFSET(InputPriceData!B$15,CalculationsAndCharts!$A140+$A$11,0,1,1) -> 2014-02-19 | C140: =OFFSET(InputPriceData!G$15,CalculationsAndCharts!$A140+$A$11,IF($C$7,8,0),1,1) -> 2065400 | D140: =OFFSET(InputPriceData!C$15,CalculationsAndCharts!$A140+$A$11,IF($C$7,8,0),1,1) -> 96.18 | E140: =OFFSET(InputPriceData!D$15,CalculationsAndCharts!$A140+$A$11,IF($C$7,8,0),1,1) -> 97.13 | F140: =OFFSET(InputPriceData!E$15,CalculationsAndCharts!$A140+$A$11,IF($C$7,8,0),1,1) -> 95.12 | G140: =OFFSET(InputPriceData!F$15,CalculationsAndCharts!$A140+$A$11,IF($C$7,8,0),1,1) -> 95.16 | J140: 2693 | K140: -0.77 | L140: 0.7956108276 | M140: 0.8849513517 | N140: 0.8990447058 | T140: FALSE | U140: FALSE | W140: FALSE | X140: TRUE | Y140: FALSE | Z140: FALSE | AA140: FALSE | AB140: FALSE | AD140: FALSE | AE140: FALSE | AF140: FALSE | AG140: FALSE | AH140: TRUE | AI140: FALSE
A141: 109 | B141: =OFFSET(InputPriceData!B$15,CalculationsAndCharts!$A141+$A$11,0,1,1) -> 2014-02-18 | C141: =OFFSET(InputPriceData!G$15,CalculationsAndCharts!$A141+$A$11,IF($C$7,8,0),1,1) -> 1725900 | D141: =OFFSET(InputPriceData!C$15,CalculationsAndCharts!$A141+$A$11,IF($C$7,8,0),1,1) -> 95.21 | E141: =OFFSET(InputPriceData!D$15,CalculationsAndCharts!$A141+$A$11,IF($C$7,8,0),1,1) -> 96.35 | F141: =OFFSET(InputPriceData!E$15,CalculationsAndCharts!$A141+$A$11,IF($C$7,8,0),1,1) -> 94.86 | G141: =OFFSET(InputPriceData!F$15,CalculationsAndCharts!$A141+$A$11,IF($C$7,8,0),1,1) -> 95.87 | J141: 2692 | K141: 0.58 | L141: 0.8839564724 | M141: 0.8929882459 | N141: 0.9898858988 | T141: FALSE | U141: FALSE | W141: FALSE | X141: TRUE | Y141: FALSE | Z141: FALSE | AA141: FALSE | AB141: FALSE | AD141: FALSE | AE141: FALSE | AF141: FALSE | AG141: FALSE | AH141: TRUE | AI141: FALSE
A142: 110 | B142: =OFFSET(InputPriceData!B$15,CalculationsAndCharts!$A142+$A$11,0,1,1) -> 2014-02-14 | C142: =OFFSET(InputPriceData!G$15,CalculationsAndCharts!$A142+$A$11,IF($C$7,8,0),1,1) -> 1655200 | D142: =OFFSET(InputPriceData!C$15,CalculationsAndCharts!$A142+$A$11,IF($C$7,8,0),1,1) -> 94.82 | E142: =OFFSET(InputPriceData!D$15,CalculationsAndCharts!$A142+$A$11,IF($C$7,8,0),1,1) -> 96.14 | F142: =OFFSET(InputPriceData!E$15,CalculationsAndCharts!$A142+$A$11,IF($C$7,8,0),1,1) -> 94.56 | G142: =OFFSET(InputPriceData!F$15,CalculationsAndCharts!$A142+$A$11,IF($C$7,8,0),1,1) -> 95.93 | J142: 2691 | K142: 0.26 | L142: 0.901098129 | M142: 0.901098129 | N142: 1 | T142: FALSE | U142: FALSE | W142: FALSE | X142: TRUE | Y142: FALSE | Z142: FALSE | AA142: FALSE | AB142: FALSE | AD142: FALSE | AE142: FALSE | AF142: FALSE | AG142: FALSE | AH142: TRUE | AI142: FALSE
A143: 111 | B143: =OFFSET(InputPriceData!B$15,CalculationsAndCharts!$A143+$A$11,0,1,1) -> 2014-02-13 | C143: =OFFSET(InputPriceData!G$15,CalculationsAndCharts!$A143+$A$11,IF($C$7,8,0),1,1) -> 2006900 | D143: =OFFSET(InputPriceData!C$15,CalculationsAndCharts!$A143+$A$11,IF($C$7,8,0),1,1) -> 95.2 | E143: =OFFSET(InputPriceData!D$15,CalculationsAndCharts!$A143+$A$11,IF($C$7,8,0),1,1) -> 96.29 | F143: =OFFSET(InputPriceData!E$15,CalculationsAndCharts!$A143+$A$11,IF($C$7,8,0),1,1) -> 94.91 | G143: =OFFSET(InputPriceData!F$15,CalculationsAndCharts!$A143+$A$11,IF($C$7,8,0),1,1) -> 95.29 | J143: 2690 | K143: 1 | L143: 0.8685524235 | M143: 0.8685524235 | N143: 1 | T143: FALSE | U143: FALSE | W143: FALSE | X143: TRUE | Y143: FALSE | Z143: FALSE | AA143: FALSE | AB143: FALSE | AD143: FALSE | AE143: FALSE | AF143: FALSE | AG143: FALSE | AH143: TRUE | AI143: FALSE
A144: 112 | B144: =OFFSET(InputPriceData!B$15,CalculationsAndCharts!$A144+$A$11,0,1,1) -> 2014-02-12 | C144: =OFFSET(InputPriceData!G$15,CalculationsAndCharts!$A144+$A$11,IF($C$7,8,0),1,1) -> 2159000 | D144: =OFFSET(InputPriceData!C$15,CalculationsAndCharts!$A144+$A$11,IF($C$7,8,0),1,1) -> 94.45 | E144: =OFFSET(InputPriceData!D$15,CalculationsAndCharts!$A144+$A$11,IF($C$7,8,0),1,1) -> 95.74 | F144: =OFFSET(InputPriceData!E$15,CalculationsAndCharts!$A144+$A$11,IF($C$7,8,0),1,1) -> 94.39 | G144: =OFFSET(InputPriceData!F$15,CalculationsAndCharts!$A144+$A$11,IF($C$7,8,0),1,1) -> 95.67 | J144: 2689 | K144: 2.44 | L144: 0.788413595 | M144: 0.8352474726 | N144: 0.9439281421 | T144: FALSE | U144: FALSE | W144: FALSE | X144: TRUE | Y144: FALSE | Z144: FALSE | AA144: FALSE | AB144: FALSE | AD144: FALSE | AE144: FALSE | AF144: FALSE | AG144: FALSE | AH144: TRUE | AI144: FALSE
A145: 113 | B145: =OFFSET(InputPriceData!B$15,CalculationsAndCharts!$A145+$A$11,0,1,1) -> 2014-02-11 | C145: =OFFSET(InputPriceData!G$15,CalculationsAndCharts!$A145+$A$11,IF($C$7,8,0),1,1) -> 2373200 | D145: =OFFSET(InputPriceData!C$15,CalculationsAndCharts!$A145+$A$11,IF($C$7,8,0),1,1) -> 92.81 | E145: =OFFSET(InputPriceData!D$15,CalculationsAndCharts!$A145+$A$11,IF($C$7,8,0),1,1) -> 94.76 | F145: =OFFSET(InputPriceData!E$15,CalculationsAndCharts!$A145+$A$11,IF($C$7,8,0),1,1) -> 92.72 | G145: =OFFSET(InputPriceData!F$15,CalculationsAndCharts!$A145+$A$11,IF($C$7,8,0),1,1) -> 94.29 | J145: 2688 | K145: 0.02 | L145: 0.7782323352 | M145: 0.8428329693 | N145: 0.9233529816 | T145: FALSE | U145: FALSE | W145: FALSE | X145: TRUE | Y145: FALSE | Z145: FALSE | AA145: FALSE | AB145: FALSE | AD145: FALSE | AE145: FALSE | AF145: FALSE | AG145: FALSE | AH145: TRUE | AI145: FALSE
A146: 114 | B146: =OFFSET(InputPriceData!B$15,CalculationsAndCharts!$A146+$A$11,0,1,1) -> 2014-02-10 | C146: =OFFSET(InputPriceData!G$15,CalculationsAndCharts!$A146+$A$11,IF($C$7,8,0),1,1) -> 2458900 | D146: =OFFSET(InputPriceData!C$15,CalculationsAndCharts!$A146+$A$11,IF($C$7,8,0),1,1) -> 94.3 | E146: =OFFSET(InputPriceData!D$15,CalculationsAndCharts!$A146+$A$11,IF($C$7,8,0),1,1) -> 94.43 | F146: =OFFSET(InputPriceData!E$15,CalculationsAndCharts!$A146+$A$11,IF($C$7,8,0),1,1) -> 92.66 | G146: =OFFSET(InputPriceData!F$15,CalculationsAndCharts!$A146+$A$11,IF($C$7,8,0),1,1) -> 93.23 | J146: 2687 | K146: -0.37 | L146: 0.818017518 | M146: 0.8504873555 | N146: 0.9618220808 | T146: FALSE | U146: FALSE | W146: FALSE | X146: TRUE | Y146: FALSE | Z146: FALSE | AA146: FALSE | AB146: FALSE | AD146: FALSE | AE146: FALSE | AF146: FALSE | AG146: FALSE | AH146: TRUE | AI146: FALSE
A147: 115 | B147: =OFFSET(InputPriceData!B$15,CalculationsAndCharts!$A147+$A$11,0,1,1) -> 2014-02-07 | C147: =OFFSET(InputPriceData!G$15,CalculationsAndCharts!$A147+$A$11,IF($C$7,8,0),1,1) -> 2875300 | D147: =OFFSET(InputPriceData!C$15,CalculationsAndCharts!$A147+$A$11,IF($C$7,8,0),1,1) -> 94.03 | E147: =OFFSET(InputPriceData!D$15,CalculationsAndCharts!$A147+$A$11,IF($C$7,8,0),1,1) -> 95.73 | F147: =OFFSET(InputPriceData!E$15,CalculationsAndCharts!$A147+$A$11,IF($C$7,8,0),1,1) -> 93.87 | G147: =OFFSET(InputPriceData!F$15,CalculationsAndCharts!$A147+$A$11,IF($C$7,8,0),1,1) -> 94.27 | J147: 2686 | K147: 1.52 | L147: 0.7577076636 | M147: 0.8582112568 | N147: 0.8828917793 | T147: FALSE | U147: FALSE | W147: FALSE | X147: TRUE | Y147: FALSE | Z147: FALSE | AA147: FALSE | AB147: FALSE | AD147: FALSE | AE147: FALSE | AF147: FALSE | AG147: FALSE | AH147: TRUE | AI147: FALSE
A148: 116 | B148: =OFFSET(InputPriceData!B$15,CalculationsAndCharts!$A148+$A$11,0,1,1) -> 2014-02-06 | C148: =OFFSET(InputPriceData!G$15,CalculationsAndCharts!$A148+$A$11,IF($C$7,8,0),1,1) -> 1890200 | D148: =OFFSET(InputPriceData!C$15,CalculationsAndCharts!$A148+$A$11,IF($C$7,8,0),1,1) -> 92.71 | E148: =OFFSET(InputPriceData!D$15,CalculationsAndCharts!$A148+$A$11,IF($C$7,8,0),1,1) -> 93.62 | F148: =OFFSET(InputPriceData!E$15,CalculationsAndCharts!$A148+$A$11,IF($C$7,8,0),1,1) -> 92.29 | G148: =OFFSET(InputPriceData!F$15,CalculationsAndCharts!$A148+$A$11,IF($C$7,8,0),1,1) -> 93.6 | J148: 2685 | K148: 2.62 | L148: 0.6411573172 | M148: 0.8660053046 | N148: 0.7403618821 | T148: FALSE | U148: FALSE | W148: FALSE | X148: TRUE | Y148: FALSE | Z148: FALSE | AA148: FALSE | AB148: FALSE | AD148: FALSE | AE148: FALSE | AF148: FALSE | AG148: FALSE | AH148: TRUE | AI148: FALSE
A149: 117 | B149: =OFFSET(InputPriceData!B$15,CalculationsAndCharts!$A149+$A$11,0,1,1) -> 2014-02-05 | C149: =OFFSET(InputPriceData!G$15,CalculationsAndCharts!$A149+$A$11,IF($C$7,8,0),1,1) -> 2874100 | D149: =OFFSET(InputPriceData!C$15,CalculationsAndCharts!$A149+$A$11,IF($C$7,8,0),1,1) -> 90.9 | E149: =OFFSET(InputPriceData!D$15,CalculationsAndCharts!$A149+$A$11,IF($C$7,8,0),1,1) -> 93.13 | F149: =OFFSET(InputPriceData!E$15,CalculationsAndCharts!$A149+$A$11,IF($C$7,8,0),1,1) -> 90.49 | G149: =OFFSET(InputPriceData!F$15,CalculationsAndCharts!$A149+$A$11,IF($C$7,8,0),1,1) -> 92.75 | J149: 2684 | K149: 0.3 | L149: 0.6354655381 | M149: 0.8738701358 | N149: 0.7271853244 | T149: FALSE | U149: FALSE | W149: FALSE | X149: TRUE | Y149: FALSE | Z149: FALSE | AA149: FALSE | AB149: FALSE | AD149: FALSE | AE149: FALSE | AF149: FALSE | AG149: FALSE | AH149: TRUE | AI149: FALSE
A150: 118 | B150: =OFFSET(InputPriceData!B$15,CalculationsAndCharts!$A150+$A$11,0,1,1) -> 2014-02-04 | C150: =OFFSET(InputPriceData!G$15,CalculationsAndCharts!$A150+$A$11,IF($C$7,8,0),1,1) -> 4183800 | D150: =OFFSET(InputPriceData!C$15,CalculationsAndCharts!$A150+$A$11,IF($C$7,8,0),1,1) -> 91.75 | E150: =OFFSET(InputPriceData!D$15,CalculationsAndCharts!$A150+$A$11,IF($C$7,8,0),1,1) -> 91.98 | F150: =OFFSET(InputPriceData!E$15,CalculationsAndCharts!$A150+$A$11,IF($C$7,8,0),1,1) -> 89.47 | G150: =OFFSET(InputPriceData!F$15,CalculationsAndCharts!$A150+$A$11,IF($C$7,8,0),1,1) -> 90.98 | J150: 2683 | K150: -4.09 | L150: 0.7281782247 | M150: 0.8818063933 | N150: 0.8257801602 | T150: FALSE | U150: FALSE | W150: TRUE | X150: TRUE | Y150: FALSE | Z150: FALSE | AA150: FALSE | AB150: TRUE | AD150: FALSE | AE150: FALSE | AF150: TRUE | AG150: TRUE | AH150: TRUE | AI150: FALSE
A151: 119 | B151: =OFFSET(InputPriceData!B$15,CalculationsAndCharts!$A151+$A$11,0,1,1) -> 2014-02-03 | C151: =OFFSET(InputPriceData!G$15,CalculationsAndCharts!$A151+$A$11,IF($C$7,8,0),1,1) -> 3730300 | D151: =OFFSET(InputPriceData!C$15,CalculationsAndCharts!$A151+$A$11,IF($C$7,8,0),1,1) -> 95.19 | E151: =OFFSET(InputPriceData!D$15,CalculationsAndCharts!$A151+$A$11,IF($C$7,8,0),1,1) -> 95.83 | F151: =OFFSET(InputPriceData!E$15,CalculationsAndCharts!$A151+$A$11,IF($C$7,8,0),1,1) -> 92.39 | G151: =OFFSET(InputPriceData!F$15,CalculationsAndCharts!$A151+$A$11,IF($C$7,8,0),1,1) -> 92.45 | J151: 2682 | K151: 0.56 | L151: 0.5495510328 | M151: 0.8898147259 | N151: 0.6176016387 | T151: TRUE | U151: FALSE | W151: FALSE | X151: FALSE | Y151: FALSE | Z151: FALSE | AA151: TRUE | AB151: FALSE | AD151: FALSE | AE151: TRUE | AF151: FALSE | AG151: FALSE | AH151: FALSE | AI151: FALSE
A152: 120 | B152: =OFFSET(InputPriceData!B$15,CalculationsAndCharts!$A152+$A$11,0,1,1) -> 2014-01-31 | C152: =OFFSET(InputPriceData!G$15,CalculationsAndCharts!$A152+$A$11,IF($C$7,8,0),1,1) -> 6101500 | D152: =OFFSET(InputPriceData!C$15,CalculationsAndCharts!$A152+$A$11,IF($C$7,8,0),1,1) -> 92.21 | E152: =OFFSET(InputPriceData!D$15,CalculationsAndCharts!$A152+$A$11,IF($C$7,8,0),1,1) -> 95.5 | F152: =OFFSET(InputPriceData!E$15,CalculationsAndCharts!$A152+$A$11,IF($C$7,8,0),1,1) -> 91.93 | G152: =OFFSET(InputPriceData!F$15,CalculationsAndCharts!$A152+$A$11,IF($C$7,8,0),1,1) -> 95.07 | J152: 2681 | K152: 6.44 | L152: -0.01414481265 | M152: 0.8978957879 | N152: -0.0157532899 | T152: FALSE | U152: FALSE | W152: FALSE | X152: FALSE | Y152: FALSE | Z152: FALSE | AA152: TRUE | AB152: FALSE | AD152: FALSE | AE152: TRUE | AF152: FALSE | AG152: FALSE | AH152: FALSE | AI152: FALSE
A153: 121 | B153: =OFFSET(InputPriceData!B$15,CalculationsAndCharts!$A153+$A$11,0,1,1) -> 2014-01-30 | C153: =OFFSET(InputPriceData!G$15,CalculationsAndCharts!$A153+$A$11,IF($C$7,8,0),1,1) -> 4058700 | D153: =OFFSET(InputPriceData!C$15,CalculationsAndCharts!$A153+$A$11,IF($C$7,8,0),1,1) -> 88.61 | E153: =OFFSET(InputPriceData!D$15,CalculationsAndCharts!$A153+$A$11,IF($C$7,8,0),1,1) -> 92.3 | F153: =OFFSET(InputPriceData!E$15,CalculationsAndCharts!$A153+$A$11,IF($C$7,8,0),1,1) -> 87.86 | G153: =OFFSET(InputPriceData!F$15,CalculationsAndCharts!$A153+$A$11,IF($C$7,8,0),1,1) -> 91.89 | J153: 2680 | K153: 2.68 | L153: -0.4601371984 | M153: 0.9060502401 | N153: -0.5078495408 | T153: FALSE | U153: FALSE | W153: FALSE | X153: FALSE | Y153: FALSE | Z153: FALSE | AA153: TRUE | AB153: FALSE | AD153: FALSE | AE153: TRUE | AF153: FALSE | AG153: FALSE | AH153: FALSE | AI153: FALSE
A154: 122 | B154: =OFFSET(InputPriceData!B$15,CalculationsAndCharts!$A154+$A$11,0,1,1) -> 2014-01-29 | C154: =OFFSET(InputPriceData!G$15,CalculationsAndCharts!$A154+$A$11,IF($C$7,8,0),1,1) -> 3034200 | D154: =OFFSET(InputPriceData!C$15,CalculationsAndCharts!$A154+$A$11,IF($C$7,8,0),1,1) -> 88.13 | E154: =OFFSET(InputPriceData!D$15,CalculationsAndCharts!$A154+$A$11,IF($C$7,8,0),1,1) -> 88.95 | F154: =OFFSET(InputPriceData!E$15,CalculationsAndCharts!$A154+$A$11,IF($C$7,8,0),1,1) -> 87.72 | G154: =OFFSET(InputPriceData!F$15,CalculationsAndCharts!$A154+$A$11,IF($C$7,8,0),1,1) -> 88.63 | J154: 2679 | K154: 0.07 | L154: -0.5370499925 | M154: 0.9142787488 | N154: -0.5874029044 | T154: FALSE | U154: FALSE | W154: FALSE | X154: FALSE | Y154: FALSE | Z154: FALSE | AA154: TRUE | AB154: FALSE | AD154: FALSE | AE154: TRUE | AF154: FALSE | AG154: FALSE | AH154: FALSE | AI154: FALSE
A155: 123 | B155: =OFFSET(InputPriceData!B$15,CalculationsAndCharts!$A155+$A$11,0,1,1) -> 2014-01-28 | C155: =OFFSET(InputPriceData!G$15,CalculationsAndCharts!$A155+$A$11,IF($C$7,8,0),1,1) -> 1512000 | D155: =OFFSET(InputPriceData!C$15,CalculationsAndCharts!$A155+$A$11,IF($C$7,8,0),1,1) -> 88.47 | E155: =OFFSET(InputPriceData!D$15,CalculationsAndCharts!$A155+$A$11,IF($C$7,8,0),1,1) -> 89.5 | F155: =OFFSET(InputPriceData!E$15,CalculationsAndCharts!$A155+$A$11,IF($C$7,8,0),1,1) -> 88.41 | G155: =OFFSET(InputPriceData!F$15,CalculationsAndCharts!$A155+$A$11,IF($C$7,8,0),1,1) -> 89.21 | J155: 2678 | K155: 1.08 | L155: -0.4214018137 | M155: 0.9225819867 | N155: -0.4567635394 | T155: FALSE | U155: FALSE | W155: FALSE | X155: FALSE | Y155: TRUE | Z155: TRUE | AA155: TRUE | AB155: FALSE | AD155: TRUE | AE155: TRUE | AF155: FALSE | AG155: FALSE | AH155: FALSE | AI155: TRUE
A156: 124 | B156: =OFFSET(InputPriceData!B$15,CalculationsAndCharts!$A156+$A$11,0,1,1) -> 2014-01-27 | C156: =OFFSET(InputPriceData!G$15,CalculationsAndCharts!$A156+$A$11,IF($C$7,8,0),1,1) -> 2149300 | D156: =OFFSET(InputPriceData!C$15,CalculationsAndCharts!$A156+$A$11,IF($C$7,8,0),1,1) -> 88.55 | E156: =OFFSET(InputPriceData!D$15,CalculationsAndCharts!$A156+$A$11,IF($C$7,8,0),1,1) -> 89.19 | F156: =OFFSET(InputPriceData!E$15,CalculationsAndCharts!$A156+$A$11,IF($C$7,8,0),1,1) -> 87.64 | G156: =OFFSET(InputPriceData!F$15,CalculationsAndCharts!$A156+$A$11,IF($C$7,8,0),1,1) -> 88.56 | J156: 2677 | K156: -2.54 | L156: -0.118311673 | M156: 0.9309606324 | N156: -0.1270855811 | T156: FALSE | U156: TRUE | W156: FALSE | X156: TRUE | Y156: FALSE | Z156: FALSE | AA156: FALSE | AB156: FALSE | AD156: FALSE | AE156: FALSE | AF156: FALSE | AG156: FALSE | AH156: TRUE | AI156: FALSE
A157: 125 | B157: =OFFSET(InputPriceData!B$15,CalculationsAndCharts!$A157+$A$11,0,1,1) -> 2014-01-24 | C157: =OFFSET(InputPriceData!G$15,CalculationsAndCharts!$A157+$A$11,IF($C$7,8,0),1,1) -> 1997900 | D157: =OFFSET(InputPriceData!C$15,CalculationsAndCharts!$A157+$A$11,IF($C$7,8,0),1,1) -> 90.1 | E157: =OFFSET(InputPriceData!D$15,CalculationsAndCharts!$A157+$A$11,IF($C$7,8,0),1,1) -> 90.36 | F157: =OFFSET(InputPriceData!E$15,CalculationsAndCharts!$A157+$A$11,IF($C$7,8,0),1,1) -> 88.13 | G157: =OFFSET(InputPriceData!F$15,CalculationsAndCharts!$A157+$A$11,IF($C$7,8,0),1,1) -> 88.13 | J157: 2676 | K157: -4.32 | L157: 0.2789253614 | M157: 0.9394153708 | N157: 0.2969137723 | T157: FALSE | U157: FALSE | W157: FALSE | X157: TRUE | Y157: FALSE | Z157: FALSE | AA157: FALSE | AB157: FALSE | AD157: FALSE | AE157: FALSE | AF157: FALSE | AG157: FALSE | AH157: TRUE | AI157: FALSE
A158: 126 | B158: =OFFSET(InputPriceData!B$15,CalculationsAndCharts!$A158+$A$11,0,1,1) -> 2014-01-23 | C158: =OFFSET(InputPriceData!G$15,CalculationsAndCharts!$A158+$A$11,IF($C$7,8,0),1,1) -> 2212700 | D158: =OFFSET(InputPriceData!C$15,CalculationsAndCharts!$A158+$A$11,IF($C$7,8,0),1,1) -> 91.99 | E158: =OFFSET(InputPriceData!D$15,CalculationsAndCharts!$A158+$A$11,IF($C$7,8,0),1,1) -> 92.65 | F158: =OFFSET(InputPriceData!E$15,CalculationsAndCharts!$A158+$A$11,IF($C$7,8,0),1,1) -> 90.8 | G158: =OFFSET(InputPriceData!F$15,CalculationsAndCharts!$A158+$A$11,IF($C$7,8,0),1,1) -> 91.1 | J158: 2675 | K158: -0.43 | L158: 0.4413645562 | M158: 0.9479468928 | N158: 0.4656005095 | T158: FALSE | U158: FALSE | W158: FALSE | X158: TRUE | Y158: FALSE | Z158: FALSE | AA158: FALSE | AB158: FALSE | AD158: FALSE | AE158: FALSE | AF158: FALSE | AG158: FALSE | AH158: TRUE | AI158: FALSE
A159: 127 | B159: =OFFSET(InputPriceData!B$15,CalculationsAndCharts!$A159+$A$11,0,1,1) -> 2014-01-22 | C159: =OFFSET(InputPriceData!G$15,CalculationsAndCharts!$A159+$A$11,IF($C$7,8,0),1,1) -> 2335600 | D159: =OFFSET(InputPriceData!C$15,CalculationsAndCharts!$A159+$A$11,IF($C$7,8,0),1,1) -> 91.35 | E159: =OFFSET(InputPriceData!D$15,CalculationsAndCharts!$A159+$A$11,IF($C$7,8,0),1,1) -> 92.69 | F159: =OFFSET(InputPriceData!E$15,CalculationsAndCharts!$A159+$A$11,IF($C$7,8,0),1,1) -> 91.16 | G159: =OFFSET(InputPriceData!F$15,CalculationsAndCharts!$A159+$A$11,IF($C$7,8,0),1,1) -> 92.45 | J159: 2674 | K159: 2.38 | L159: 0.3476584016 | M159: 0.9565558959 | N159: 0.3634480777 | T159: FALSE | U159: FALSE | W159: FALSE | X159: TRUE | Y159: FALSE | Z159: FALSE | AA159: FALSE | AB159: FALSE | AD159: FALSE | AE159: FALSE | AF159: FALSE | AG159: FALSE | AH159: TRUE | AI159: FALSE
A160: 128 | B160: =OFFSET(InputPriceData!B$15,CalculationsAndCharts!$A160+$A$11,0,1,1) -> 2014-01-21 | C160: =OFFSET(InputPriceData!G$15,CalculationsAndCharts!$A160+$A$11,IF($C$7,8,0),1,1) -> 2797000 | D160: =OFFSET(InputPriceData!C$15,CalculationsAndCharts!$A160+$A$11,IF($C$7,8,0),1,1) -> 90.8 | E160: =OFFSET(InputPriceData!D$15,CalculationsAndCharts!$A160+$A$11,IF($C$7,8,0),1,1) -> 91.96 | F160: =OFFSET(InputPriceData!E$15,CalculationsAndCharts!$A160+$A$11,IF($C$7,8,0),1,1) -> 90.55 | G160: =OFFSET(InputPriceData!F$15,CalculationsAndCharts!$A160+$A$11,IF($C$7,8,0),1,1) -> 91.53 | J160: 2673 | K160: 0.85 | L160: 0.2788371147 | M160: 0.9652430836 | N160: 0.2888776096 | T160: FALSE | U160: FALSE | W160: FALSE | X160: TRUE | Y160: FALSE | Z160: FALSE | AA160: FALSE | AB160: FALSE | AD160: FALSE | AE160: FALSE | AF160: FALSE | AG160: FALSE | AH160: TRUE | AI160: FALSE
A161: 129 | B161: =OFFSET(InputPriceData!B$15,CalculationsAndCharts!$A161+$A$11,0,1,1) -> 2014-01-17 | C161: =OFFSET(InputPriceData!G$15,CalculationsAndCharts!$A161+$A$11,IF($C$7,8,0),1,1) -> 2076000 | D161: =OFFSET(InputPriceData!C$15,CalculationsAndCharts!$A161+$A$11,IF($C$7,8,0),1,1) -> 90.52 | E161: =OFFSET(InputPriceData!D$15,CalculationsAndCharts!$A161+$A$11,IF($C$7,8,0),1,1) -> 91 | F161: =OFFSET(InputPriceData!E$15,CalculationsAndCharts!$A161+$A$11,IF($C$7,8,0),1,1) -> 89.65 | G161: =OFFSET(InputPriceData!F$15,CalculationsAndCharts!$A161+$A$11,IF($C$7,8,0),1,1) -> 90.07 | J161: 2672 | K161: -1.09 | L161: =IF(J161>3,($D$21*(K161+K162)/2+$D$22*L162+$D$23*L163),IF(J161=1,0,IF(J161=2,($D$21*0*(G161+G162)/2+$D$22*L162),IF(J161=3,($D$21*0*(G161+G162)/2+$D$22*L162+$D$23*L163),0)))) -> 0.3361493312 | M161: 0.9740091661 | N161: =IF(M161=0,0,L161/M161) -> 0.3451192688 | T161: =AND(N162<0,N161>0) -> FALSE | U161: =AND(N162>0,N161<0) -> FALSE | W161: =AND(T162<>T163,T162,NOT(X162)) -> FALSE | X161: TRUE | Y161: =AND(X162,AND(U162<>U163,U162)) -> FALSE | Z161: =AND(U162<>U163,U162,NOT(AA162)) -> FALSE | AA161: FALSE | AB161: =AND(AA162,AND(T162<>T163,T162)) -> FALSE | AD161: FALSE | AE161: FALSE | AF161: FALSE | AG161: FALSE | AH161: TRUE | AI161: FALSE
A162: 130 | B162: =OFFSET(InputPriceData!B$15,CalculationsAndCharts!$A162+$A$11,0,1,1) -> 2014-01-16 | C162: =OFFSET(InputPriceData!G$15,CalculationsAndCharts!$A162+$A$11,IF($C$7,8,0),1,1) -> 1135600 | D162: =OFFSET(InputPriceData!C$15,CalculationsAndCharts!$A162+$A$11,IF($C$7,8,0),1,1) -> 91.07 | E162: =OFFSET(InputPriceData!D$15,CalculationsAndCharts!$A162+$A$11,IF($C$7,8,0),1,1) -> 91.12 | F162: =OFFSET(InputPriceData!E$15,CalculationsAndCharts!$A162+$A$11,IF($C$7,8,0),1,1) -> 90.27 | G162: =OFFSET(InputPriceData!F$15,CalculationsAndCharts!$A162+$A$11,IF($C$7,8,0),1,1) -> 90.68 | J162: =$A$8-A162+1 -> 2671 | K162: =IF(J162>2,G162-G164,0) -> -0.46 | L162: 0.3693144121 | M162: =MAX(IF(J162=1,0.0000001,0.991*M163),ABS(L162)) -> 0.9828548598 | N162: 0.3757568154 | T162: FALSE | U162: FALSE | W162: FALSE | X162: =IF(X163,IF(Y162,FALSE,X163),IF(W162,TRUE,X163)) -> TRUE | Y162: FALSE | Z162: FALSE | AA162: =IF(AA163,IF(AB162,FALSE,AA163),IF(Z162,TRUE,AA163)) -> FALSE | AB162: FALSE | AD162: =AND($U163<>$U164,$U163,NOT(AE163)) -> FALSE | AE162: =IF(AE163,IF(AF162,FALSE,AE163),IF(AD162,TRUE,AE163)) -> FALSE | AF162: =AND(AE163,AND($T163<>$T164,$T163)) -> FALSE | AG162: =AND($T163<>$T164,$T163,NOT(AH163)) -> FALSE | AH162: =IF(AH163,IF(AI162,FALSE,AH163),IF(AG162,TRUE,AH163)) -> TRUE | AI162: =AND(AH163,AND($U163<>$U164,$U163)) -> FALSE
A163: 131 | B163: =OFFSET(InputPriceData!B$15,CalculationsAndCharts!$A163+$A$11,0,1,1) -> 2014-01-15 | C163: =OFFSET(InputPriceData!G$15,CalculationsAndCharts!$A163+$A$11,IF($C$7,8,0),1,1) -> 1756900 | D163: =OFFSET(InputPriceData!C$15,CalculationsAndCharts!$A163+$A$11,IF($C$7,8,0),1,1) -> 91.4 | E163: =OFFSET(InputPriceData!D$15,CalculationsAndCharts!$A163+$A$11,IF($C$7,8,0),1,1) -> 91.85 | F163: =OFFSET(InputPriceData!E$15,CalculationsAndCharts!$A163+$A$11,IF($C$7,8,0),1,1) -> 90.92 | G163: =OFFSET(InputPriceData!F$15,CalculationsAndCharts!$A163+$A$11,IF($C$7,8,0),1,1) -> 91.16 | J163: 2670 | K163: 1.23 | L163: 0.2800412889 | M163: 0.9917808878 | N163: 0.2823620543 | T163: FALSE | U163: FALSE | W163: FALSE | X163: TRUE | Y163: FALSE | Z163: FALSE | AA163: FALSE | AB163: FALSE | AD163: FALSE | AE163: FALSE | AF163: FALSE | AG163: FALSE | AH163: TRUE | AI163: FALSE
A164: 132 | B164: =OFFSET(InputPriceData!B$15,CalculationsAndCharts!$A164+$A$11,0,1,1) -> 2014-01-14 | C164: =OFFSET(InputPriceData!G$15,CalculationsAndCharts!$A164+$A$11,IF($C$7,8,0),1,1) -> 1378900 | D164: =OFFSET(InputPriceData!C$15,CalculationsAndCharts!$A164+$A$11,IF($C$7,8,0),1,1) -> 90.4 | E164: =OFFSET(InputPriceData!D$15,CalculationsAndCharts!$A164+$A$11,IF($C$7,8,0),1,1) -> 91.18 | F164: =OFFSET(InputPriceData!E$15,CalculationsAndCharts!$A164+$A$11,IF($C$7,8,0),1,1) -> 89.79 | G164: =OFFSET(InputPriceData!F$15,CalculationsAndCharts!$A164+$A$11,IF($C$7,8,0),1,1) -> 91.14 | J164: 2669 | K164: 0.48 | L164: 0.1537715206 | M164: 1.00078798 | N164: 0.1536504471 | T164: FALSE | U164: FALSE | W164: TRUE | X164: TRUE | Y164: FALSE | Z164: FALSE | AA164: FALSE | AB164: TRUE | AD164: FALSE | AE164: FALSE | AF164: TRUE | AG164: TRUE | AH164: TRUE | AI164: FALSE
A165: 133 | B165: =OFFSET(InputPriceData!B$15,CalculationsAndCharts!$A165+$A$11,0,1,1) -> 2014-01-13 | C165: =OFFSET(InputPriceData!G$15,CalculationsAndCharts!$A165+$A$11,IF($C$7,8,0),1,1) -> 1561900 | D165: =OFFSET(InputPriceData!C$15,CalculationsAndCharts!$A165+$A$11,IF($C$7,8,0),1,1) -> 90.28 | E165: =OFFSET(InputPriceData!D$15,CalculationsAndCharts!$A165+$A$11,IF($C$7,8,0),1,1) -> 91.35 | F165: =OFFSET(InputPriceData!E$15,CalculationsAndCharts!$A165+$A$11,IF($C$7,8,0),1,1) -> 89.76 | G165: =OFFSET(InputPriceData!F$15,CalculationsAndCharts!$A165+$A$11,IF($C$7,8,0),1,1) -> 89.93 | J165: 2668 | K165: -0.07 | L165: 0.04327793197 | M165: 1.009876871 | N165: 0.04285466198 | T165: TRUE | U165: FALSE | W165: FALSE | X165: FALSE | Y165: FALSE | Z165: FALSE | AA165: TRUE | AB165: FALSE | AD165: FALSE | AE165: TRUE | AF165: FALSE | AG165: FALSE | AH165: FALSE | AI165: FALSE
A166: 134 | B166: =OFFSET(InputPriceData!B$15,CalculationsAndCharts!$A166+$A$11,0,1,1) -> 2014-01-10 | C166: =OFFSET(InputPriceData!G$15,CalculationsAndCharts!$A166+$A$11,IF($C$7,8,0),1,1) -> 1310800 | D166: =OFFSET(InputPriceData!C$15,CalculationsAndCharts!$A166+$A$11,IF($C$7,8,0),1,1) -> 90.06 | E166: =OFFSET(InputPriceData!D$15,CalculationsAndCharts!$A166+$A$11,IF($C$7,8,0),1,1) -> 90.78 | F166: =OFFSET(InputPriceData!E$15,CalculationsAndCharts!$A166+$A$11,IF($C$7,8,0),1,1) -> 89.83 | G166: =OFFSET(InputPriceData!F$15,CalculationsAndCharts!$A166+$A$11,IF($C$7,8,0),1,1) -> 90.66 | J166: 2667 | K166: 1.7 | L166: -0.1090867768 | M166: 1.019048306 | N166: -0.1070476995 | T166: FALSE | U166: FALSE | W166: FALSE | X166: FALSE | Y166: FALSE | Z166: FALSE | AA166: TRUE | AB166: FALSE | AD166: FALSE | AE166: TRUE | AF166: FALSE | AG166: FALSE | AH166: FALSE | AI166: FALSE
A167: 135 | B167: =OFFSET(InputPriceData!B$15,CalculationsAndCharts!$A167+$A$11,0,1,1) -> 2014-01-09 | C167: =OFFSET(InputPriceData!G$15,CalculationsAndCharts!$A167+$A$11,IF($C$7,8,0),1,1) -> 1713800 | D167: =OFFSET(InputPriceData!C$15,CalculationsAndCharts!$A167+$A$11,IF($C$7,8,0),1,1) -> 89.54 | E167: =OFFSET(InputPriceData!D$15,CalculationsAndCharts!$A167+$A$11,IF($C$7,8,0),1,1) -> 90.28 | F167: =OFFSET(InputPriceData!E$15,CalculationsAndCharts!$A167+$A$11,IF($C$7,8,0),1,1) -> 89.24 | G167: =OFFSET(InputPriceData!F$15,CalculationsAndCharts!$A167+$A$11,IF($C$7,8,0),1,1) -> 90 | J167: 2666 | K167: 1.31 | L167: -0.2328120304 | M167: 1.028303034 | N167: -0.2264041073 | T167: FALSE | U167: FALSE | W167: FALSE | X167: FALSE | Y167: FALSE | Z167: FALSE | AA167: TRUE | AB167: FALSE | AD167: FALSE | AE167: TRUE | AF167: FALSE | AG167: FALSE | AH167: FALSE | AI167: FALSE
A168: 136 | B168: =OFFSET(InputPriceData!B$15,CalculationsAndCharts!$A168+$A$11,0,1,1) -> 2014-01-08 | C168: =OFFSET(InputPriceData!G$15,CalculationsAndCharts!$A168+$A$11,IF($C$7,8,0),1,1) -> 2334800 | D168: =OFFSET(InputPriceData!C$15,CalculationsAndCharts!$A168+$A$11,IF($C$7,8,0),1,1) -> 88.68 | E168: =OFFSET(InputPriceData!D$15,CalculationsAndCharts!$A168+$A$11,IF($C$7,8,0),1,1) -> 89.09 | F168: =OFFSET(InputPriceData!E$15,CalculationsAndCharts!$A168+$A$11,IF($C$7,8,0),1,1) -> 87.66 | G168: =OFFSET(InputPriceData!F$15,CalculationsAndCharts!$A168+$A$11,IF($C$7,8,0),1,1) -> 88.96 | J168: 2665 | K168: -0.19 | L168: -0.2116245309 | M168: 1.03764181 | N168: -0.203947575 | T168: FALSE | U168: FALSE | W168: FALSE | X168: FALSE | Y168: TRUE | Z168: TRUE | AA168: TRUE | AB168: FALSE | AD168: TRUE | AE168: TRUE | AF168: FALSE | AG168: FALSE | AH168: FALSE | AI168: TRUE
A169: 137 | B169: =OFFSET(InputPriceData!B$15,CalculationsAndCharts!$A169+$A$11,0,1,1) -> 2014-01-07 | C169: =OFFSET(InputPriceData!G$15,CalculationsAndCharts!$A169+$A$11,IF($C$7,8,0),1,1) -> 2062400 | D169: =OFFSET(InputPriceData!C$15,CalculationsAndCharts!$A169+$A$11,IF($C$7,8,0),1,1) -> 89.74 | E169: =OFFSET(InputPriceData!D$15,CalculationsAndCharts!$A169+$A$11,IF($C$7,8,0),1,1) -> 89.91 | F169: =OFFSET(InputPriceData!E$15,CalculationsAndCharts!$A169+$A$11,IF($C$7,8,0),1,1) -> 88.35 | G169: =OFFSET(InputPriceData!F$15,CalculationsAndCharts!$A169+$A$11,IF($C$7,8,0),1,1) -> 88.69 | J169: 2664 | K169: -0.13 | L169: -0.0835184932 | M169: 1.047065398 | N169: -0.07976435218 | T169: FALSE | U169: TRUE | W169: FALSE | X169: TRUE | Y169: FALSE | Z169: FALSE | AA169: FALSE | AB169: FALSE | AD169: FALSE | AE169: FALSE | AF169: FALSE | AG169: FALSE | AH169: TRUE | AI169: FALSE
A170: 138 | B170: =OFFSET(InputPriceData!B$15,CalculationsAndCharts!$A170+$A$11,0,1,1) -> 2014-01-06 | C170: =OFFSET(InputPriceData!G$15,CalculationsAndCharts!$A170+$A$11,IF($C$7,8,0),1,1) -> 1574100 | D170: =OFFSET(InputPriceData!C$15,CalculationsAndCharts!$A170+$A$11,IF($C$7,8,0),1,1) -> 89.24 | E170: =OFFSET(InputPriceData!D$15,CalculationsAndCharts!$A170+$A$11,IF($C$7,8,0),1,1) -> 89.82 | F170: =OFFSET(InputPriceData!E$15,CalculationsAndCharts!$A170+$A$11,IF($C$7,8,0),1,1) -> 89 | G170: =OFFSET(InputPriceData!F$15,CalculationsAndCharts!$A170+$A$11,IF($C$7,8,0),1,1) -> 89.15 | J170: 2663 | K170: 0.37 | L170: 0.1068110264 | M170: 1.05657457 | N170: 0.1010918012 | T170: FALSE | U170: FALSE | W170: FALSE | X170: TRUE | Y170: FALSE | Z170: FALSE | AA170: FALSE | AB170: FALSE | AD170: FALSE | AE170: FALSE | AF170: FALSE | AG170: FALSE | AH170: TRUE | AI170: FALSE
A171: 139 | B171: =OFFSET(InputPriceData!B$15,CalculationsAndCharts!$A171+$A$11,0,1,1) -> 2014-01-03 | C171: =OFFSET(InputPriceData!G$15,CalculationsAndCharts!$A171+$A$11,IF($C$7,8,0),1,1) -> 1287900 | D171: =OFFSET(InputPriceData!C$15,CalculationsAndCharts!$A171+$A$11,IF($C$7,8,0),1,1) -> 88.94 | E171: =OFFSET(InputPriceData!D$15,CalculationsAndCharts!$A171+$A$11,IF($C$7,8,0),1,1) -> 89.54 | F171: =OFFSET(InputPriceData!E$15,CalculationsAndCharts!$A171+$A$11,IF($C$7,8,0),1,1) -> 88.57 | G171: =OFFSET(InputPriceData!F$15,CalculationsAndCharts!$A171+$A$11,IF($C$7,8,0),1,1) -> 88.82 | J171: 2662 | K171: -1.88 | L171: 0.4052120083 | M171: 1.0661701 | N171: 0.3800631889 | T171: FALSE | U171: FALSE | W171: FALSE | X171: TRUE | Y171: FALSE | Z171: FALSE | AA171: FALSE | AB171: FALSE | AD171: FALSE | AE171: FALSE | AF171: FALSE | AG171: FALSE | AH171: TRUE | AI171: FALSE
A172: 140 | B172: =OFFSET(InputPriceData!B$15,CalculationsAndCharts!$A172+$A$11,0,1,1) -> 2014-01-02 | C172: =OFFSET(InputPriceData!G$15,CalculationsAndCharts!$A172+$A$11,IF($C$7,8,0),1,1) -> 1501600 | D172: =OFFSET(InputPriceData!C$15,CalculationsAndCharts!$A172+$A$11,IF($C$7,8,0),1,1) -> 90.16 | E172: =OFFSET(InputPriceData!D$15,CalculationsAndCharts!$A172+$A$11,IF($C$7,8,0),1,1) -> 90.16 | F172: =OFFSET(InputPriceData!E$15,CalculationsAndCharts!$A172+$A$11,IF($C$7,8,0),1,1) -> 88.33 | G172: =OFFSET(InputPriceData!F$15,CalculationsAndCharts!$A172+$A$11,IF($C$7,8,0),1,1) -> 88.78 | J172: 2661 | K172: -1.65 | L172: 0.7275558532 | M172: 1.075852775 | N172: 0.6762596795 | T172: FALSE | U172: FALSE | W172: FALSE | X172: TRUE | Y172: FALSE | Z172: FALSE | AA172: FALSE | AB172: FALSE | AD172: FALSE | AE172: FALSE | AF172: FALSE | AG172: FALSE | AH172: TRUE | AI172: FALSE
A173: 141 | B173: =OFFSET(InputPriceData!B$15,CalculationsAndCharts!$A173+$A$11,0,1,1) -> 2013-12-31 | C173: =OFFSET(InputPriceData!G$15,CalculationsAndCharts!$A173+$A$11,IF($C$7,8,0),1,1) -> 928900 | D173: =OFFSET(InputPriceData!C$15,CalculationsAndCharts!$A173+$A$11,IF($C$7,8,0),1,1) -> 90.43 | E173: =OFFSET(InputPriceData!D$15,CalculationsAndCharts!$A173+$A$11,IF($C$7,8,0),1,1) -> 90.89 | F173: =OFFSET(InputPriceData!E$15,CalculationsAndCharts!$A173+$A$11,IF($C$7,8,0),1,1) -> 90.13 | G173: =OFFSET(InputPriceData!F$15,CalculationsAndCharts!$A173+$A$11,IF($C$7,8,0),1,1) -> 90.7 | J173: 2660 | K173: -0.15 | L173: 0.9230802165 | M173: 1.085623386 | N173: 0.8502766507 | T173: FALSE | U173: FALSE | W173: FALSE | X173: TRUE | Y173: FALSE | Z173: FALSE | AA173: FALSE | AB173: FALSE | AD173: FALSE | AE173: FALSE | AF173: FALSE | AG173: FALSE | AH173: TRUE | AI173: FALSE
A174: 142 | B174: =OFFSET(InputPriceData!B$15,CalculationsAndCharts!$A174+$A$11,0,1,1) -> 2013-12-30 | C174: =OFFSET(InputPriceData!G$15,CalculationsAndCharts!$A174+$A$11,IF($C$7,8,0),1,1) -> 1050600 | D174: =OFFSET(InputPriceData!C$15,CalculationsAndCharts!$A174+$A$11,IF($C$7,8,0),1,1) -> 90.41 | E174: =OFFSET(InputPriceData!D$15,CalculationsAndCharts!$A174+$A$11,IF($C$7,8,0),1,1) -> 90.65 | F174: =OFFSET(InputPriceData!E$15,CalculationsAndCharts!$A174+$A$11,IF($C$7,8,0),1,1) -> 89.39 | G174: =OFFSET(InputPriceData!F$15,CalculationsAndCharts!$A174+$A$11,IF($C$7,8,0),1,1) -> 90.43 | J174: 2659 | K174: -0.61 | L174: 1.003341691 | M174: 1.09548273 | N174: 0.9158900119 | T174: FALSE | U174: FALSE | W174: FALSE | X174: TRUE | Y174: FALSE | Z174: FALSE | AA174: FALSE | AB174: FALSE | AD174: FALSE | AE174: FALSE | AF174: FALSE | AG174: FALSE | AH174: TRUE | AI174: FALSE
A175: 143 | B175: =OFFSET(InputPriceData!B$15,CalculationsAndCharts!$A175+$A$11,0,1,1) -> 2013-12-27 | C175: =OFFSET(InputPriceData!G$15,CalculationsAndCharts!$A175+$A$11,IF($C$7,8,0),1,1) -> 859800 | D175: =OFFSET(InputPriceData!C$15,CalculationsAndCharts!$A175+$A$11,IF($C$7,8,0),1,1) -> 91.24 | E175: =OFFSET(InputPriceData!D$15,CalculationsAndCharts!$A175+$A$11,IF($C$7,8,0),1,1) -> 91.39 | F175: =OFFSET(InputPriceData!E$15,CalculationsAndCharts!$A175+$A$11,IF($C$7,8,0),1,1) -> 90.52 | G175: =OFFSET(InputPriceData!F$15,CalculationsAndCharts!$A175+$A$11,IF($C$7,8,0),1,1) -> 90.85 | J175: 2658 | K175: 1.25 | L175: 0.9580551506 | M175: 1.105431615 | N175: 0.8666797092 | T175: FALSE | U175: FALSE | W175: FALSE | X175: TRUE | Y175: FALSE | Z175: FALSE | AA175: FALSE | AB175: FALSE | AD175: FALSE | AE175: FALSE | AF175: FALSE | AG175: FALSE | AH175: TRUE | AI175: FALSE
A176: 144 | B176: =OFFSET(InputPriceData!B$15,CalculationsAndCharts!$A176+$A$11,0,1,1) -> 2013-12-26 | C176: =OFFSET(InputPriceData!G$15,CalculationsAndCharts!$A176+$A$11,IF($C$7,8,0),1,1) -> 991800 | D176: =OFFSET(InputPriceData!C$15,CalculationsAndCharts!$A176+$A$11,IF($C$7,8,0),1,1) -> 89.92 | E176: =OFFSET(InputPriceData!D$15,CalculationsAndCharts!$A176+$A$11,IF($C$7,8,0),1,1) -> 91.26 | F176: =OFFSET(InputPriceData!E$15,CalculationsAndCharts!$A176+$A$11,IF($C$7,8,0),1,1) -> 89.63 | G176: =OFFSET(InputPriceData!F$15,CalculationsAndCharts!$A176+$A$11,IF($C$7,8,0),1,1) -> 91.04 | J176: 2657 | K176: 1.95 | L176: 0.8088286582 | M176: 1.115470853 | N176: 0.725100666 | T176: FALSE | U176: FALSE | W176: FALSE | X176: TRUE | Y176: FALSE | Z176: FALSE | AA176: FALSE | AB176: FALSE | AD176: FALSE | AE176: FALSE | AF176: FALSE | AG176: FALSE | AH176: TRUE | AI176: FALSE
A177: 145 | B177: =OFFSET(InputPriceData!B$15,CalculationsAndCharts!$A177+$A$11,0,1,1) -> 2013-12-24 | C177: =OFFSET(InputPriceData!G$15,CalculationsAndCharts!$A177+$A$11,IF($C$7,8,0),1,1) -> 400600 | D177: =OFFSET(InputPriceData!C$15,CalculationsAndCharts!$A177+$A$11,IF($C$7,8,0),1,1) -> 89.43 | E177: =OFFSET(InputPriceData!D$15,CalculationsAndCharts!$A177+$A$11,IF($C$7,8,0),1,1) -> 89.74 | F177: =OFFSET(InputPriceData!E$15,CalculationsAndCharts!$A177+$A$11,IF($C$7,8,0),1,1) -> 89.14 | G177: =OFFSET(InputPriceData!F$15,CalculationsAndCharts!$A177+$A$11,IF($C$7,8,0),1,1) -> 89.6 | J177: 2656 | K177: 1.21 | L177: 0.6736207445 | M177: 1.125601264 | N177: 0.5984541472 | T177: FALSE | U177: FALSE | W177: FALSE | X177: TRUE | Y177: FALSE | Z177: FALSE | AA177: FALSE | AB177: FALSE | AD177: FALSE | AE177: FALSE | AF177: FALSE | AG177: FALSE | AH177: TRUE | AI177: FALSE
A178: 146 | B178: =OFFSET(InputPriceData!B$15,CalculationsAndCharts!$A178+$A$11,0,1,1) -> 2013-12-23 | C178: =OFFSET(InputPriceData!G$15,CalculationsAndCharts!$A178+$A$11,IF($C$7,8,0),1,1) -> 1225600 | D178: =OFFSET(InputPriceData!C$15,CalculationsAndCharts!$A178+$A$11,IF($C$7,8,0),1,1) -> 89.19 | E178: =OFFSET(InputPriceData!D$15,CalculationsAndCharts!$A178+$A$11,IF($C$7,8,0),1,1) -> 89.39 | F178: =OFFSET(InputPriceData!E$15,CalculationsAndCharts!$A178+$A$11,IF($C$7,8,0),1,1) -> 88.81 | G178: =OFFSET(InputPriceData!F$15,CalculationsAndCharts!$A178+$A$11,IF($C$7,8,0),1,1) -> 89.09 | J178: 2655 | K178: 0.6 | L178: 0.574465973 | M178: 1.135823677 | N178: 0.5057703801 | T178: FALSE | U178: FALSE | W178: FALSE | X178: TRUE | Y178: FALSE | Z178: FALSE | AA178: FALSE | AB178: FALSE | AD178: FALSE | AE178: FALSE | AF178: FALSE | AG178: FALSE | AH178: TRUE | AI178: FALSE
A179: 147 | B179: =OFFSET(InputPriceData!B$15,CalculationsAndCharts!$A179+$A$11,0,1,1) -> 2013-12-20 | C179: =OFFSET(InputPriceData!G$15,CalculationsAndCharts!$A179+$A$11,IF($C$7,8,0),1,1) -> 2687700 | D179: =OFFSET(InputPriceData!C$15,CalculationsAndCharts!$A179+$A$11,IF($C$7,8,0),1,1) -> 88.5 | E179: =OFFSET(InputPriceData!D$15,CalculationsAndCharts!$A179+$A$11,IF($C$7,8,0),1,1) -> 89.42 | F179: =OFFSET(InputPriceData!E$15,CalculationsAndCharts!$A179+$A$11,IF($C$7,8,0),1,1) -> 88.14 | G179: =OFFSET(InputPriceData!F$15,CalculationsAndCharts!$A179+$A$11,IF($C$7,8,0),1,1) -> 88.39 | J179: 2654 | K179: -0.34 | L179: 0.4605802706 | M179: 1.146138928 | N179: 0.4018537889 | T179: FALSE | U179: FALSE | W179: TRUE | X179: TRUE | Y179: FALSE | Z179: FALSE | AA179: FALSE | AB179: TRUE | AD179: FALSE | AE179: FALSE | AF179: TRUE | AG179: TRUE | AH179: TRUE | AI179: FALSE
A180: 148 | B180: =OFFSET(InputPriceData!B$15,CalculationsAndCharts!$A180+$A$11,0,1,1) -> 2013-12-19 | C180: =OFFSET(InputPriceData!G$15,CalculationsAndCharts!$A180+$A$11,IF($C$7,8,0),1,1) -> 1398000 | D180: =OFFSET(InputPriceData!C$15,CalculationsAndCharts!$A180+$A$11,IF($C$7,8,0),1,1) -> 88.51 | E180: =OFFSET(InputPriceData!D$15,CalculationsAndCharts!$A180+$A$11,IF($C$7,8,0),1,1) -> 88.83 | F180: =OFFSET(InputPriceData!E$15,CalculationsAndCharts!$A180+$A$11,IF($C$7,8,0),1,1) -> 87.52 | G180: =OFFSET(InputPriceData!F$15,CalculationsAndCharts!$A180+$A$11,IF($C$7,8,0),1,1) -> 88.49 | J180: 2653 | K180: 1.7 | L180: 0.2422716383 | M180: 1.156547858 | N180: 0.2094782646 | T180: TRUE | U180: FALSE | W180: FALSE | X180: FALSE | Y180: FALSE | Z180: FALSE | AA180: TRUE | AB180: FALSE | AD180: FALSE | AE180: TRUE | AF180: FALSE | AG180: FALSE | AH180: FALSE | AI180: FALSE
A181: 149 | B181: =OFFSET(InputPriceData!B$15,CalculationsAndCharts!$A181+$A$11,0,1,1) -> 2013-12-18 | C181: =OFFSET(InputPriceData!G$15,CalculationsAndCharts!$A181+$A$11,IF($C$7,8,0),1,1) -> 1905800 | D181: =OFFSET(InputPriceData!C$15,CalculationsAndCharts!$A181+$A$11,IF($C$7,8,0),1,1) -> 87.15 | E181: =OFFSET(InputPriceData!D$15,CalculationsAndCharts!$A181+$A$11,IF($C$7,8,0),1,1) -> 88.91 | F181: =OFFSET(InputPriceData!E$15,CalculationsAndCharts!$A181+$A$11,IF($C$7,8,0),1,1) -> 86.18 | G181: =OFFSET(InputPriceData!F$15,CalculationsAndCharts!$A181+$A$11,IF($C$7,8,0),1,1) -> 88.73 | J181: 2652 | K181: 2.1 | L181: -0.04420067014 | M181: 1.16705132 | N181: -0.03787380159 | T181: FALSE | U181: FALSE | W181: FALSE | X181: FALSE | Y181: FALSE | Z181: FALSE | AA181: TRUE | AB181: FALSE | AD181: FALSE | AE181: TRUE | AF181: FALSE | AG181: FALSE | AH181: FALSE | AI181: FALSE
A182: 150 | B182: =OFFSET(InputPriceData!B$15,CalculationsAndCharts!$A182+$A$11,0,1,1) -> 2013-12-17 | C182: =OFFSET(InputPriceData!G$15,CalculationsAndCharts!$A182+$A$11,IF($C$7,8,0),1,1) -> 1433200 | D182: =OFFSET(InputPriceData!C$15,CalculationsAndCharts!$A182+$A$11,IF($C$7,8,0),1,1) -> 87.04 | E182: =OFFSET(InputPriceData!D$15,CalculationsAndCharts!$A182+$A$11,IF($C$7,8,0),1,1) -> 87.23 | F182: =OFFSET(InputPriceData!E$15,CalculationsAndCharts!$A182+$A$11,IF($C$7,8,0),1,1) -> 86.62 | G182: =OFFSET(InputPriceData!F$15,CalculationsAndCharts!$A182+$A$11,IF($C$7,8,0),1,1) -> 86.79 | J182: 2651 | K182: 0.35 | L182: -0.251352194 | M182: 1.177650172 | N182: -0.2134353648 | T182: FALSE | U182: FALSE | W182: FALSE | X182: FALSE | Y182: FALSE | Z182: FALSE | AA182: TRUE | AB182: FALSE | AD182: FALSE | AE182: TRUE | AF182: FALSE | AG182: FALSE | AH182: FALSE | AI182: FALSE
A183: 151 | B183: =OFFSET(InputPriceData!B$15,CalculationsAndCharts!$A183+$A$11,0,1,1) -> 2013-12-16 | C183: =OFFSET(InputPriceData!G$15,CalculationsAndCharts!$A183+$A$11,IF($C$7,8,0),1,1) -> 1029400 | D183: =OFFSET(InputPriceData!C$15,CalculationsAndCharts!$A183+$A$11,IF($C$7,8,0),1,1) -> 86.5 | E183: =OFFSET(InputPriceData!D$15,CalculationsAndCharts!$A183+$A$11,IF($C$7,8,0),1,1) -> 87.19 | F183: =OFFSET(InputPriceData!E$15,CalculationsAndCharts!$A183+$A$11,IF($C$7,8,0),1,1) -> 86.23 | G183: =OFFSET(InputPriceData!F$15,CalculationsAndCharts!$A183+$A$11,IF($C$7,8,0),1,1) -> 86.63 | J183: 2650 | K183: 0.92 | L183: -0.3924626388 | M183: 1.188345279 | N183: -0.3302597702 | T183: FALSE | U183: FALSE | W183: FALSE | X183: FALSE | Y183: FALSE | Z183: FALSE | AA183: TRUE | AB183: FALSE | AD183: FALSE | AE183: TRUE | AF183: FALSE | AG183: FALSE | AH183: FALSE | AI183: FALSE
A184: 152 | B184: =OFFSET(InputPriceData!B$15,CalculationsAndCharts!$A184+$A$11,0,1,1) -> 2013-12-13 | C184: =OFFSET(InputPriceData!G$15,CalculationsAndCharts!$A184+$A$11,IF($C$7,8,0),1,1) -> 1076100 | D184: =OFFSET(InputPriceData!C$15,CalculationsAndCharts!$A184+$A$11,IF($C$7,8,0),1,1) -> 85.85 | E184: =OFFSET(InputPriceData!D$15,CalculationsAndCharts!$A184+$A$11,IF($C$7,8,0),1,1) -> 86.74 | F184: =OFFSET(InputPriceData!E$15,CalculationsAndCharts!$A184+$A$11,IF($C$7,8,0),1,1) -> 85.7 | G184: =OFFSET(InputPriceData!F$15,CalculationsAndCharts!$A184+$A$11,IF($C$7,8,0),1,1) -> 86.44 | J184: 2649 | K184: 1.04 | L184: -0.4859028582 | M184: 1.199137517 | N184: -0.4052102877 | T184: FALSE | U184: FALSE | W184: FALSE | X184: FALSE | Y184: FALSE | Z184: FALSE | AA184: TRUE | AB184: FALSE | AD184: FALSE | AE184: TRUE | AF184: FALSE | AG184: FALSE | AH184: FALSE | AI184: FALSE
A185: 153 | B185: =OFFSET(InputPriceData!B$15,CalculationsAndCharts!$A185+$A$11,0,1,1) -> 2013-12-12 | C185: =OFFSET(InputPriceData!G$15,CalculationsAndCharts!$A185+$A$11,IF($C$7,8,0),1,1) -> 1253300 | D185: =OFFSET(InputPriceData!C$15,CalculationsAndCharts!$A185+$A$11,IF($C$7,8,0),1,1) -> 85.45 | E185: =OFFSET(InputPriceData!D$15,CalculationsAndCharts!$A185+$A$11,IF($C$7,8,0),1,1) -> 86.11 | F185: =OFFSET(InputPriceData!E$15,CalculationsAndCharts!$A185+$A$11,IF($C$7,8,0),1,1) -> 85.42 | G185: =OFFSET(InputPriceData!F$15,CalculationsAndCharts!$A185+$A$11,IF($C$7,8,0),1,1) -> 85.71 | J185: 2648 | K185: -1.3 | L185: -0.4509935568 | M185: 1.210027767 | N185: -0.3727133949 | T185: FALSE | U185: FALSE | W185: FALSE | X185: FALSE | Y185: FALSE | Z185: FALSE | AA185: TRUE | AB185: FALSE | AD185: FALSE | AE185: TRUE | AF185: FALSE | AG185: FALSE | AH185: FALSE | AI185: FALSE
A186: 154 | B186: =OFFSET(InputPriceData!B$15,CalculationsAndCharts!$A186+$A$11,0,1,1) -> 2013-12-11 | C186: =OFFSET(InputPriceData!G$15,CalculationsAndCharts!$A186+$A$11,IF($C$7,8,0),1,1) -> 1349400 | D186: =OFFSET(InputPriceData!C$15,CalculationsAndCharts!$A186+$A$11,IF($C$7,8,0),1,1) -> 87.2 | E186: =OFFSET(InputPriceData!D$15,CalculationsAndCharts!$A186+$A$11,IF($C$7,8,0),1,1) -> 87.21 | F186: =OFFSET(InputPriceData!E$15,CalculationsAndCharts!$A186+$A$11,IF($C$7,8,0),1,1) -> 85.3 | G186: =OFFSET(InputPriceData!F$15,CalculationsAndCharts!$A186+$A$11,IF($C$7,8,0),1,1) -> 85.4 | J186: 2647 | K186: -1.45 | L186: -0.3570119766 | M186: 1.221016919 | N186: -0.2923890497 | T186: FALSE | U186: FALSE | W186: FALSE | X186: FALSE | Y186: FALSE | Z186: FALSE | AA186: TRUE | AB186: FALSE | AD186: FALSE | AE186: TRUE | AF186: FALSE | AG186: FALSE | AH186: FALSE | AI186: FALSE
A187: 155 | B187: =OFFSET(InputPriceData!B$15,CalculationsAndCharts!$A187+$A$11,0,1,1) -> 2013-12-10 | C187: =OFFSET(InputPriceData!G$15,CalculationsAndCharts!$A187+$A$11,IF($C$7,8,0),1,1) -> 1278700 | D187: =OFFSET(InputPriceData!C$15,CalculationsAndCharts!$A187+$A$11,IF($C$7,8,0),1,1) -> 86.59 | E187: =OFFSET(InputPriceData!D$15,CalculationsAndCharts!$A187+$A$11,IF($C$7,8,0),1,1) -> 87.4 | F187: =OFFSET(InputPriceData!E$15,CalculationsAndCharts!$A187+$A$11,IF($C$7,8,0),1,1) -> 86.37 | G187: =OFFSET(InputPriceData!F$15,CalculationsAndCharts!$A187+$A$11,IF($C$7,8,0),1,1) -> 87.01 | J187: 2646 | K187: 0.33 | L187: -0.335891276 | M187: 1.232105872 | N187: -0.2726155955 | T187: FALSE | U187: FALSE | W187: FALSE | X187: FALSE | Y187: FALSE | Z187: FALSE | AA187: TRUE | AB187: FALSE | AD187: FALSE | AE187: TRUE | AF187: FALSE | AG187: FALSE | AH187: FALSE | AI187: FALSE
A188: 156 | B188: =OFFSET(InputPriceData!B$15,CalculationsAndCharts!$A188+$A$11,0,1,1) -> 2013-12-09 | C188: =OFFSET(InputPriceData!G$15,CalculationsAndCharts!$A188+$A$11,IF($C$7,8,0),1,1) -> 1579600 | D188: =OFFSET(InputPriceData!C$15,CalculationsAndCharts!$A188+$A$11,IF($C$7,8,0),1,1) -> 86.83 | E188: =OFFSET(InputPriceData!D$15,CalculationsAndCharts!$A188+$A$11,IF($C$7,8,0),1,1) -> 87.01 | F188: =OFFSET(InputPriceData!E$15,CalculationsAndCharts!$A188+$A$11,IF($C$7,8,0),1,1) -> 86.2 | G188: =OFFSET(InputPriceData!F$15,CalculationsAndCharts!$A188+$A$11,IF($C$7,8,0),1,1) -> 86.85 | J188: 2645 | K188: 0.85 | L188: -0.3305698779 | M188: 1.243295532 | N188: -0.2658819802 | T188: FALSE | U188: FALSE | W188: FALSE | X188: FALSE | Y188: TRUE | Z188: TRUE | AA188: TRUE | AB188: FALSE | AD188: TRUE | AE188: TRUE | AF188: FALSE | AG188: FALSE | AH188: FALSE | AI188: TRUE
A189: 157 | B189: =OFFSET(InputPriceData!B$15,CalculationsAndCharts!$A189+$A$11,0,1,1) -> 2013-12-06 | C189: =OFFSET(InputPriceData!G$15,CalculationsAndCharts!$A189+$A$11,IF($C$7,8,0),1,1) -> 3108300 | D189: =OFFSET(InputPriceData!C$15,CalculationsAndCharts!$A189+$A$11,IF($C$7,8,0),1,1) -> 86.78 | E189: =OFFSET(InputPriceData!D$15,CalculationsAndCharts!$A189+$A$11,IF($C$7,8,0),1,1) -> 87.36 | F189: =OFFSET(InputPriceData!E$15,CalculationsAndCharts!$A189+$A$11,IF($C$7,8,0),1,1) -> 85.7 | G189: =OFFSET(InputPriceData!F$15,CalculationsAndCharts!$A189+$A$11,IF($C$7,8,0),1,1) -> 86.68 | J189: 2644 | K189: 0.63 | L189: -0.2088524663 | M189: 1.254586813 | N189: -0.1664711155 | T189: FALSE | U189: TRUE | W189: FALSE | X189: TRUE | Y189: FALSE | Z189: FALSE | AA189: FALSE | AB189: FALSE | AD189: FALSE | AE189: FALSE | AF189: FALSE | AG189: FALSE | AH189: TRUE | AI189: FALSE
A190: 158 | B190: =OFFSET(InputPriceData!B$15,CalculationsAndCharts!$A190+$A$11,0,1,1) -> 2013-12-05 | C190: =OFFSET(InputPriceData!G$15,CalculationsAndCharts!$A190+$A$11,IF($C$7,8,0),1,1) -> 2253800 | D190: =OFFSET(InputPriceData!C$15,CalculationsAndCharts!$A190+$A$11,IF($C$7,8,0),1,1) -> 85.96 | E190: =OFFSET(InputPriceData!D$15,CalculationsAndCharts!$A190+$A$11,IF($C$7,8,0),1,1) -> 86.99 | F190: =OFFSET(InputPriceData!E$15,CalculationsAndCharts!$A190+$A$11,IF($C$7,8,0),1,1) -> 85.64 | G190: =OFFSET(InputPriceData!F$15,CalculationsAndCharts!$A190+$A$11,IF($C$7,8,0),1,1) -> 86 | J190: 2643 | K190: -2.78 | L190: 0.09784290301 | M190: 1.265980639 | N190: 0.07728625543 | T190: FALSE | U190: FALSE | W190: FALSE | X190: TRUE | Y190: FALSE | Z190: FALSE | AA190: FALSE | AB190: FALSE | AD190: FALSE | AE190: FALSE | AF190: FALSE | AG190: FALSE | AH190: TRUE | AI190: FALSE
A191: 159 | B191: =OFFSET(InputPriceData!B$15,CalculationsAndCharts!$A191+$A$11,0,1,1) -> 2013-12-04 | C191: =OFFSET(InputPriceData!G$15,CalculationsAndCharts!$A191+$A$11,IF($C$7,8,0),1,1) -> 3778400 | D191: =OFFSET(InputPriceData!C$15,CalculationsAndCharts!$A191+$A$11,IF($C$7,8,0),1,1) -> 88.29 | E191: =OFFSET(InputPriceData!D$15,CalculationsAndCharts!$A191+$A$11,IF($C$7,8,0),1,1) -> 88.6 | F191: =OFFSET(InputPriceData!E$15,CalculationsAndCharts!$A191+$A$11,IF($C$7,8,0),1,1) -> 85.21 | G191: =OFFSET(InputPriceData!F$15,CalculationsAndCharts!$A191+$A$11,IF($C$7,8,0),1,1) -> 86.05 | J191: 2642 | K191: -1.62 | L191: 0.4315637727 | M191: 1.27747794 | N191: 0.3378248337 | T191: FALSE | U191: FALSE | W191: FALSE | X191: TRUE | Y191: FALSE | Z191: FALSE | AA191: FALSE | AB191: FALSE | AD191: FALSE | AE191: FALSE | AF191: FALSE | AG191: FALSE | AH191: TRUE | AI191: FALSE
A192: 160 | B192: =OFFSET(InputPriceData!B$15,CalculationsAndCharts!$A192+$A$11,0,1,1) -> 2013-12-03 | C192: =OFFSET(InputPriceData!G$15,CalculationsAndCharts!$A192+$A$11,IF($C$7,8,0),1,1) -> 2496600 | D192: =OFFSET(InputPriceData!C$15,CalculationsAndCharts!$A192+$A$11,IF($C$7,8,0),1,1) -> 87.85 | E192: =OFFSET(InputPriceData!D$15,CalculationsAndCharts!$A192+$A$11,IF($C$7,8,0),1,1) -> 89.21 | F192: =OFFSET(InputPriceData!E$15,CalculationsAndCharts!$A192+$A$11,IF($C$7,8,0),1,1) -> 87.68 | G192: =OFFSET(InputPriceData!F$15,CalculationsAndCharts!$A192+$A$11,IF($C$7,8,0),1,1) -> 88.78 | J192: 2641 | K192: 0.1 | L192: 0.6277014103 | M192: 1.289079657 | N192: 0.4869376434 | T192: FALSE | U192: FALSE | W192: FALSE | X192: TRUE | Y192: FALSE | Z192: FALSE | AA192: FALSE | AB192: FALSE | AD192: FALSE | AE192: FALSE | AF192: FALSE | AG192: FALSE | AH192: TRUE | AI192: FALSE
A193: 161 | B193: =OFFSET(InputPriceData!B$15,CalculationsAndCharts!$A193+$A$11,0,1,1) -> 2013-12-02 | C193: =OFFSET(InputPriceData!G$15,CalculationsAndCharts!$A193+$A$11,IF($C$7,8,0),1,1) -> 1517900 | D193: =OFFSET(InputPriceData!C$15,CalculationsAndCharts!$A193+$A$11,IF($C$7,8,0),1,1) -> 88.63 | E193: =OFFSET(InputPriceData!D$15,CalculationsAndCharts!$A193+$A$11,IF($C$7,8,0),1,1) -> 89.16 | F193: =OFFSET(InputPriceData!E$15,CalculationsAndCharts!$A193+$A$11,IF($C$7,8,0),1,1) -> 87.51 | G193: =OFFSET(InputPriceData!F$15,CalculationsAndCharts!$A193+$A$11,IF($C$7,8,0),1,1) -> 87.67 | J193: 2640 | K193: -1.48 | L193: 0.7625605037 | M193: 1.300786738 | N193: 0.5862302264 | T193: FALSE | U193: FALSE | W193: FALSE | X193: TRUE | Y193: FALSE | Z193: FALSE | AA193: FALSE | AB193: FALSE | AD193: FALSE | AE193: FALSE | AF193: FALSE | AG193: FALSE | AH193: TRUE | AI193: FALSE
A194: 162 | B194: =OFFSET(InputPriceData!B$15,CalculationsAndCharts!$A194+$A$11,0,1,1) -> 2013-11-29 | C194: =OFFSET(InputPriceData!G$15,CalculationsAndCharts!$A194+$A$11,IF($C$7,8,0),1,1) -> 929400 | D194: =OFFSET(InputPriceData!C$15,CalculationsAndCharts!$A194+$A$11,IF($C$7,8,0),1,1) -> 89.1 | E194: =OFFSET(InputPriceData!D$15,CalculationsAndCharts!$A194+$A$11,IF($C$7,8,0),1,1) -> 89.56 | F194: =OFFSET(InputPriceData!E$15,CalculationsAndCharts!$A194+$A$11,IF($C$7,8,0),1,1) -> 88.53 | G194: =OFFSET(InputPriceData!F$15,CalculationsAndCharts!$A194+$A$11,IF($C$7,8,0),1,1) -> 88.68 | J194: 2639 | K194: 0.29 | L194: 0.7938784682 | M194: 1.312600139 | N194: 0.6048136402 | T194: FALSE | U194: FALSE | W194: FALSE | X194: TRUE | Y194: FALSE | Z194: FALSE | AA194: FALSE | AB194: FALSE | AD194: FALSE | AE194: FALSE | AF194: FALSE | AG194: FALSE | AH194: TRUE | AI194: FALSE
A195: 163 | B195: =OFFSET(InputPriceData!B$15,CalculationsAndCharts!$A195+$A$11,0,1,1) -> 2013-11-27 | C195: =OFFSET(InputPriceData!G$15,CalculationsAndCharts!$A195+$A$11,IF($C$7,8,0),1,1) -> 1667300 | D195: =OFFSET(InputPriceData!C$15,CalculationsAndCharts!$A195+$A$11,IF($C$7,8,0),1,1) -> 88.74 | E195: =OFFSET(InputPriceData!D$15,CalculationsAndCharts!$A195+$A$11,IF($C$7,8,0),1,1) -> 89.46 | F195: =OFFSET(InputPriceData!E$15,CalculationsAndCharts!$A195+$A$11,IF($C$7,8,0),1,1) -> 88.51 | G195: =OFFSET(InputPriceData!F$15,CalculationsAndCharts!$A195+$A$11,IF($C$7,8,0),1,1) -> 89.15 | J195: 2638 | K195: 1.81 | L195: 0.671593382 | M195: 1.324520826 | N195: 0.5070462983 | T195: FALSE | U195: FALSE | W195: FALSE | X195: TRUE | Y195: FALSE | Z195: FALSE | AA195: FALSE | AB195: FALSE | AD195: FALSE | AE195: FALSE | AF195: FALSE | AG195: FALSE | AH195: TRUE | AI195: FALSE
A196: 164 | B196: =OFFSET(InputPriceData!B$15,CalculationsAndCharts!$A196+$A$11,0,1,1) -> 2013-11-26 | C196: =OFFSET(InputPriceData!G$15,CalculationsAndCharts!$A196+$A$11,IF($C$7,8,0),1,1) -> 2677100 | D196: =OFFSET(InputPriceData!C$15,CalculationsAndCharts!$A196+$A$11,IF($C$7,8,0),1,1) -> 87.35 | E196: =OFFSET(InputPriceData!D$15,CalculationsAndCharts!$A196+$A$11,IF($C$7,8,0),1,1) -> 88.59 | F196: =OFFSET(InputPriceData!E$15,CalculationsAndCharts!$A196+$A$11,IF($C$7,8,0),1,1) -> 87.21 | G196: =OFFSET(InputPriceData!F$15,CalculationsAndCharts!$A196+$A$11,IF($C$7,8,0),1,1) -> 88.39 | J196: 2637 | K196: 1.03 | L196: 0.5275393621 | M196: 1.336549774 | N196: 0.3947023689 | T196: FALSE | U196: FALSE | W196: FALSE | X196: TRUE | Y196: FALSE | Z196: FALSE | AA196: FALSE | AB196: FALSE | AD196: FALSE | AE196: FALSE | AF196: FALSE | AG196: FALSE | AH196: TRUE | AI196: FALSE
A197: 165 | B197: =OFFSET(InputPriceData!B$15,CalculationsAndCharts!$A197+$A$11,0,1,1) -> 2013-11-25 | C197: =OFFSET(InputPriceData!G$15,CalculationsAndCharts!$A197+$A$11,IF($C$7,8,0),1,1) -> 1127800 | D197: =OFFSET(InputPriceData!C$15,CalculationsAndCharts!$A197+$A$11,IF($C$7,8,0),1,1) -> 87.53 | E197: =OFFSET(InputPriceData!D$15,CalculationsAndCharts!$A197+$A$11,IF($C$7,8,0),1,1) -> 87.62 | F197: =OFFSET(InputPriceData!E$15,CalculationsAndCharts!$A197+$A$11,IF($C$7,8,0),1,1) -> 86.9 | G197: =OFFSET(InputPriceData!F$15,CalculationsAndCharts!$A197+$A$11,IF($C$7,8,0),1,1) -> 87.34 | J197: 2636 | K197: 0.5 | L197: 0.4128762207 | M197: 1.348687966 | N197: 0.3061317599 | T197: FALSE | U197: FALSE | W197: FALSE | X197: TRUE | Y197: FALSE | Z197: FALSE | AA197: FALSE | AB197: FALSE | AD197: FALSE | AE197: FALSE | AF197: FALSE | AG197: FALSE | AH197: TRUE | AI197: FALSE
A198: 166 | B198: =OFFSET(InputPriceData!B$15,CalculationsAndCharts!$A198+$A$11,0,1,1) -> 2013-11-22 | C198: =OFFSET(InputPriceData!G$15,CalculationsAndCharts!$A198+$A$11,IF($C$7,8,0),1,1) -> 1044300 | D198: =OFFSET(InputPriceData!C$15,CalculationsAndCharts!$A198+$A$11,IF($C$7,8,0),1,1) -> 86.55 | E198: =OFFSET(InputPriceData!D$15,CalculationsAndCharts!$A198+$A$11,IF($C$7,8,0),1,1) -> 87.47 | F198: =OFFSET(InputPriceData!E$15,CalculationsAndCharts!$A198+$A$11,IF($C$7,8,0),1,1) -> 86.47 | G198: =OFFSET(InputPriceData!F$15,CalculationsAndCharts!$A198+$A$11,IF($C$7,8,0),1,1) -> 87.36 | J198: 2635 | K198: 1.86 | L198: 0.2774686991 | M198: 1.360936394 | N198: 0.2038807254 | T198: FALSE | U198: FALSE | W198: FALSE | X198: TRUE | Y198: FALSE | Z198: FALSE | AA198: FALSE | AB198: FALSE | AD198: FALSE | AE198: FALSE | AF198: FALSE | AG198: FALSE | AH198: TRUE | AI198: FALSE
A199: 167 | B199: =OFFSET(InputPriceData!B$15,CalculationsAndCharts!$A199+$A$11,0,1,1) -> 2013-11-21 | C199: =OFFSET(InputPriceData!G$15,CalculationsAndCharts!$A199+$A$11,IF($C$7,8,0),1,1) -> 1768500 | D199: =OFFSET(InputPriceData!C$15,CalculationsAndCharts!$A199+$A$11,IF($C$7,8,0),1,1) -> 85.98 | E199: =OFFSET(InputPriceData!D$15,CalculationsAndCharts!$A199+$A$11,IF($C$7,8,0),1,1) -> 87.31 | F199: =OFFSET(InputPriceData!E$15,CalculationsAndCharts!$A199+$A$11,IF($C$7,8,0),1,1) -> 85.83 | G199: =OFFSET(InputPriceData!F$15,CalculationsAndCharts!$A199+$A$11,IF($C$7,8,0),1,1) -> 86.84 | J199: 2634 | K199: 1.25 | L199: 0.1775285923 | M199: 1.373296058 | N199: 0.1292719012 | T199: FALSE | U199: FALSE | W199: FALSE | X199: TRUE | Y199: FALSE | Z199: FALSE | AA199: FALSE | AB199: FALSE | AD199: FALSE | AE199: FALSE | AF199: FALSE | AG199: FALSE | AH199: TRUE | AI199: FALSE
A200: 168 | B200: =OFFSET(InputPriceData!B$15,CalculationsAndCharts!$A200+$A$11,0,1,1) -> 2013-11-20 | C200: =OFFSET(InputPriceData!G$15,CalculationsAndCharts!$A200+$A$11,IF($C$7,8,0),1,1) -> 956800 | D200: =OFFSET(InputPriceData!C$15,CalculationsAndCharts!$A200+$A$11,IF($C$7,8,0),1,1) -> 85.77 | E200: =OFFSET(InputPriceData!D$15,CalculationsAndCharts!$A200+$A$11,IF($C$7,8,0),1,1) -> 86.29 | F200: =OFFSET(InputPriceData!E$15,CalculationsAndCharts!$A200+$A$11,IF($C$7,8,0),1,1) -> 85.08 | G200: =OFFSET(InputPriceData!F$15,CalculationsAndCharts!$A200+$A$11,IF($C$7,8,0),1,1) -> 85.5 | J200: 2633 | K200: -0.16 | L200: 0.1914074827 | M200: 1.38576797 | N200: 0.1381237602 | T200: FALSE | U200: FALSE | W200: FALSE | X200: TRUE | Y200: FALSE | Z200: FALSE | AA200: FALSE | AB200: FALSE | AD200: FALSE | AE200: FALSE | AF200: FALSE | AG200: FALSE | AH200: TRUE | AI200: FALSE
A201: 169 | B201: =OFFSET(InputPriceData!B$15,CalculationsAndCharts!$A201+$A$11,0,1,1) -> 2013-11-19 | C201: =OFFSET(InputPriceData!G$15,CalculationsAndCharts!$A201+$A$11,IF($C$7,8,0),1,1) -> 1456300 | D201: =OFFSET(InputPriceData!C$15,CalculationsAndCharts!$A201+$A$11,IF($C$7,8,0),1,1) -> 85.74 | E201: =OFFSET(InputPriceData!D$15,CalculationsAndCharts!$A201+$A$11,IF($C$7,8,0),1,1) -> 85.89 | F201: =OFFSET(InputPriceData!E$15,CalculationsAndCharts!$A201+$A$11,IF($C$7,8,0),1,1) -> 84.97 | G201: =OFFSET(InputPriceData!F$15,CalculationsAndCharts!$A201+$A$11,IF($C$7,8,0),1,1) -> 85.59 | J201: 2632 | K201: 0.31 | L201: 0.2566132666 | M201: 1.398353148 | N201: 0.1835110587 | T201: FALSE | U201: FALSE | W201: FALSE | X201: TRUE | Y201: FALSE | Z201: FALSE | AA201: FALSE | AB201: FALSE | AD201: FALSE | AE201: FALSE | AF201: FALSE | AG201: FALSE | AH201: TRUE | AI201: FALSE
A202: 170 | B202: =OFFSET(InputPriceData!B$15,CalculationsAndCharts!$A202+$A$11,0,1,1) -> 2013-11-18 | C202: =OFFSET(InputPriceData!G$15,CalculationsAndCharts!$A202+$A$11,IF($C$7,8,0),1,1) -> 1497900 | D202: =OFFSET(InputPriceData!C$15,CalculationsAndCharts!$A202+$A$11,IF($C$7,8,0),1,1) -> 85.88 | E202: =OFFSET(InputPriceData!D$15,CalculationsAndCharts!$A202+$A$11,IF($C$7,8,0),1,1) -> 86.37 | F202: =OFFSET(InputPriceData!E$15,CalculationsAndCharts!$A202+$A$11,IF($C$7,8,0),1,1) -> 85.46 | G202: =OFFSET(InputPriceData!F$15,CalculationsAndCharts!$A202+$A$11,IF($C$7,8,0),1,1) -> 85.66 | J202: 2631 | K202: -0.02 | L202: 0.3359111256 | M202: 1.411052622 | N202: 0.2380571216 | T202: FALSE | U202: FALSE | W202: FALSE | X202: TRUE | Y202: FALSE | Z202: FALSE | AA202: FALSE | AB202: FALSE | AD202: FALSE | AE202: FALSE | AF202: FALSE | AG202: FALSE | AH202: TRUE | AI202: FALSE
... 2630 more rows

Sheet Trend Transaction Summary
B1: Trend Following Transaction Summary (using trade size of 1 share)
C2: =CalculationsAndCharts!$A$8 -> 2800 | D2: Logically Available Bars on the "CalculationsAndCharts" tab constitute a
D3: ="Back Test Transaction reporting period extending from " & TEXT(OFFSET(CalculationsAndCharts!$B$32,C2,0,1,1),"mm/dd/yyyy") & " to "& TEXT(CalculationsAndCharts!$B$33,"mm/dd/yyyy") -> Back Test Transaction reporting period extending from 06/10/2003 to 07/23/2014
B4: Summary for LONG trades | K4: Summary for SHORT trades
B5: =COUNT(OFFSET(B15,0,0,C2,1)) -> 129 | C5: LONG trades opened in this time period | K5: =COUNT(OFFSET(K15,0,0,$C$2,1)) -> 129 | L5: Short trades opened in this time period
B6: =COUNTIF(OFFSET(H15,0,0,B5,1),">0") -> 56 | C6: Winners | D6: Biggest Win | E6: =MAX(OFFSET(H15,0,0,B5,1)) -> 10.65 | H6: Sum of Gains | I6: =SUMIF(OFFSET(H15,0,0,B5,1),">0") -> 119.57 | K6: =COUNTIF(OFFSET(Q15,0,0,K5,1),">0") -> 35 | L6: Winners | M6: Biggest Win | N6: =MAX(OFFSET(Q15,0,0,K5,1)) -> 14.12 | Q6: Sum of Gains | R6: =SUMIF(OFFSET(Q15,0,0,K5,1),">0") -> 68.19
B7: =COUNTIF(OFFSET(H15,0,0,B5,1),"<0") -> 73 | C7: Losers | D7: Biggest Loss | E7: =MIN(OFFSET(H15,0,0,B5,1)) -> -5.22 | H7: Sum of Losses | I7: =SUMIF(OFFSET(H15,0,0,B5,1),"<0") -> -86.59 | K7: =COUNTIF(OFFSET(Q15,0,0,K5,1),"<0") -> 94 | L7: Losers | M7: Biggest Loss | N7: =MIN(OFFSET(Q15,0,0,K5,1)) -> -3.91 | Q7: Sum of Losses | R7: =SUMIF(OFFSET(Q15,0,0,K5,1),"<0") -> -99.51
H8: NET change for Period | I8: =SUM(OFFSET(H15,0,0,B5,1)) -> 32.98 | Q8: NET change for Period | R8: =SUM(OFFSET(Q15,0,0,K5,1)) -> -31.32
H10: Smallest Long Account Balance | I10: =MIN(OFFSET(I15,0,0,B5,1)) -> -3.5 | Q10: Smallest Short Account Balance | R10: =MIN(OFFSET(R15,0,0,K5,1)) -> -32
E12: =MATCH(TRUE,OFFSET(CalculationsAndCharts!$Y$32,1,0,C2,1),0) -> 28 | F12: =IF($E$12>$B$15,"Open Trade; Marked to Current Bar Open $","") -> Open Trade; Marked to Current Bar Open $ | N12: =MATCH(TRUE,OFFSET(CalculationsAndCharts!$AB$33,0,0, $C$2,1),0) -> 6 | O12: =IF($N$12>$K$15,"Open Trade; Marked to current bar Open $","") -> 
C13: Enter Long | F13: Exit Long | H13: Trade Result | I13: Running Balance | L13: Enter Short | O13: Exit Short | Q13: Trade Result | R13: Running Balance
B14: Rel Row | C14: Date | D14: $ | E14: Rel Row | F14: Date | G14: $ | K14: Rel Row | L14: Date | M14: $ | N14: Rel Row | O14: Date | P14: $
B15: =MATCH(TRUE,OFFSET(CalculationsAndCharts!$W$33,0,0, $C$2,1),0) -> 6 | C15: =OFFSET(CalculationsAndCharts!$B$32, B15,0,1,1) -> 2014-07-16 | D15: =OFFSET(CalculationsAndCharts!$D$32, B15,0,1,1) -> 95.02 | E15: =IF($E$12>$B$15,"OPEN",$E$12) -> OPEN | F15: =IF($E$12>$B$15,CalculationsAndCharts!$B$33,OFFSET(CalculationsAndCharts!$B$32, E15,0,1,1)) -> 2014-07-23 | G15: =IF($E$12>$B$15,CalculationsAndCharts!$D$33,OFFSET(CalculationsAndCharts!$D$32, E15,0,1,1)) -> 96.4 | H15: =G15-D15 -> 1.38 | I15: =H15+IF(ISNA(I16),0,I16) -> 32.98 | K15: =MATCH(TRUE,OFFSET(CalculationsAndCharts!$Z$33,0,0, $C$2,1),0) -> 28 | L15: =OFFSET(CalculationsAndCharts!$B$32, K15,0,1,1) -> 2014-06-13 | M15: =OFFSET(CalculationsAndCharts!$D$32, K15,0,1,1) -> 95.7 | N15: =IF($N$12>$K$15,"OPEN",$N$12) -> 6 | O15: =IF($N$12>$K$15,CalculationsAndCharts!B33,OFFSET(CalculationsAndCharts!$B$32, N15,0,1,1)) -> 2014-07-16 | P15: =IF($N$12>$K$15,CalculationsAndCharts!D33,OFFSET(CalculationsAndCharts!$D$32, N15,0,1,1)) -> 95.02 | Q15: =M15-P15 -> 0.68 | R15: =Q15+IF(ISNA(R16),0,R16) -> -31.32
B16: =IFERROR(MATCH(TRUE,OFFSET(CalculationsAndCharts!$W$33,B15,0, $C$2-B15,1),0)+B15,"") -> 38 | C16: =IFERROR(OFFSET(CalculationsAndCharts!$B$32, B16,0,1,1),"") -> 2014-05-30 | D16: =IFERROR(OFFSET(CalculationsAndCharts!$D$32, B16,0,1,1),"") -> 96.68 | E16: =IFERROR(IF($E$12>$B$15,$E$12,(MATCH(TRUE,OFFSET(CalculationsAndCharts!$Y$33,E15,0, $C$2-E15,1),0)+E15)),"") -> 28 | F16: =IFERROR(OFFSET(CalculationsAndCharts!$B$32, E16,0,1,1),"") -> 2014-06-13 | G16: =IFERROR(OFFSET(CalculationsAndCharts!$D$32, E16,0,1,1),"") -> 95.7 | H16: =IFERROR(G16-D16,"") -> -0.98 | I16: =IFERROR(H16+IF(""=I17,0,I17),"") -> 31.6 | K16: =IFERROR(MATCH(TRUE,OFFSET(CalculationsAndCharts!$Z$33,K15,0, $C$2-K15,1),0)+K15,"") -> 45 | L16: =IFERROR(OFFSET(CalculationsAndCharts!$B$32, K16,0,1,1),"") -> 2014-05-20 | M16: =IFERROR(OFFSET(CalculationsAndCharts!$D$32, K16,0,1,1),"") -> 95.29 | N16: =IFERROR(IF($N$12>$K$15,$N$12,MATCH(TRUE,OFFSET(CalculationsAndCharts!$AB$33,N15,0, $C$2-N15,1),0)+N15),"") -> 38 | O16: =IFERROR(OFFSET(CalculationsAndCharts!$B$32, N16,0,1,1),"") -> 2014-05-30 | P16: =IFERROR(OFFSET(CalculationsAndCharts!$D$32, N16,0,1,1),"") -> 96.68 | Q16: =IFERROR(M16-P16,"") -> -1.39 | R16: =IFERROR(Q16+IF(""=R17,0,R17),"") -> -32
B17: =IFERROR(MATCH(TRUE,OFFSET(CalculationsAndCharts!$W$33,B16,0, $C$2-B16,1),0)+B16,"") -> 52 | C17: =IFERROR(OFFSET(CalculationsAndCharts!$B$32, B17,0,1,1),"") -> 2014-05-09 | D17: =IFERROR(OFFSET(CalculationsAndCharts!$D$32, B17,0,1,1),"") -> 97.35 | E17: =IF(B17="","",IFERROR((MATCH(TRUE,OFFSET(CalculationsAndCharts!$Y$33,E16,0, $C$2-E16,1),0)+E16),"")) -> 45 | F17: =IFERROR(OFFSET(CalculationsAndCharts!$B$32, E17,0,1,1),"") -> 2014-05-20 | G17: =IFERROR(OFFSET(CalculationsAndCharts!$D$32, E17,0,1,1),"") -> 95.29 | H17: =IFERROR(G17-D17,"") -> -2.06 | I17: =IFERROR(H17+IF(""=I18,0,I18),"") -> 32.58 | K17: =IFERROR(MATCH(TRUE,OFFSET(CalculationsAndCharts!$Z$33,K16,0, $C$2-K16,1),0)+K16,"") -> 61 | L17: =IFERROR(OFFSET(CalculationsAndCharts!$B$32, K17,0,1,1),"") -> 2014-04-28 | M17: =IFERROR(OFFSET(CalculationsAndCharts!$D$32, K17,0,1,1),"") -> 96.28 | N17: =IF(K17="","",IFERROR(MATCH(TRUE,OFFSET(CalculationsAndCharts!$AB$33,N16,0, $C$2-N16,1),0)+N16,"")) -> 52 | O17: =IFERROR(OFFSET(CalculationsAndCharts!$B$32, N17,0,1,1),"") -> 2014-05-09 | P17: =IFERROR(OFFSET(CalculationsAndCharts!$D$32, N17,0,1,1),"") -> 97.35 | Q17: -1.07 | R17: -30.61
B18: =IFERROR(MATCH(TRUE,OFFSET(CalculationsAndCharts!$W$33,B17,0, $C$2-B17,1),0)+B17,"") -> 66 | C18: =IFERROR(OFFSET(CalculationsAndCharts!$B$32, B18,0,1,1),"") -> 2014-04-21 | D18: =IFERROR(OFFSET(CalculationsAndCharts!$D$32, B18,0,1,1),"") -> 101.5 | E18: =IF(B18="","",IFERROR((MATCH(TRUE,OFFSET(CalculationsAndCharts!$Y$33,E17,0, $C$2-E17,1),0)+E17),"")) -> 61 | F18: =IFERROR(OFFSET(CalculationsAndCharts!$B$32, E18,0,1,1),"") -> 2014-04-28 | G18: =IFERROR(OFFSET(CalculationsAndCharts!$D$32, E18,0,1,1),"") -> 96.28 | H18: =IFERROR(G18-D18,"") -> -5.22 | I18: =IFERROR(H18+IF(""=I19,0,I19),"") -> 34.64 | K18: =IFERROR(MATCH(TRUE,OFFSET(CalculationsAndCharts!$Z$33,K17,0, $C$2-K17,1),0)+K17,"") -> 73 | L18: =IFERROR(OFFSET(CalculationsAndCharts!$B$32, K18,0,1,1),"") -> 2014-04-09 | M18: =IFERROR(OFFSET(CalculationsAndCharts!$D$32, K18,0,1,1),"") -> 97.59 | N18: =IF(K18="","",IFERROR(MATCH(TRUE,OFFSET(CalculationsAndCharts!$AB$33,N17,0, $C$2-N17,1),0)+N17,"")) -> 66 | O18: =IFERROR(OFFSET(CalculationsAndCharts!$B$32, N18,0,1,1),"") -> 2014-04-21 | P18: =IFERROR(OFFSET(CalculationsAndCharts!$D$32, N18,0,1,1),"") -> 101.5 | Q18: =IFERROR(M18-P18,"") -> -3.91 | R18: =IFERROR(Q18+IF(""=R19,0,R19),"") -> -29.54
B19: =IFERROR(MATCH(TRUE,OFFSET(CalculationsAndCharts!$W$33,B18,0, $C$2-B18,1),0)+B18,"") -> 77 | C19: =IFERROR(OFFSET(CalculationsAndCharts!$B$32, B19,0,1,1),"") -> 2014-04-03 | D19: =IFERROR(OFFSET(CalculationsAndCharts!$D$32, B19,0,1,1),"") -> 100.3 | E19: =IF(B19="","",IFERROR((MATCH(TRUE,OFFSET(CalculationsAndCharts!$Y$33,E18,0, $C$2-E18,1),0)+E18),"")) -> 73 | F19: =IFERROR(OFFSET(CalculationsAndCharts!$B$32, E19,0,1,1),"") -> 2014-04-09 | G19: =IFERROR(OFFSET(CalculationsAndCharts!$D$32, E19,0,1,1),"") -> 97.59 | H19: -2.71 | I19: 39.86 | K19: =IFERROR(MATCH(TRUE,OFFSET(CalculationsAndCharts!$Z$33,K18,0, $C$2-K18,1),0)+K18,"") -> 85 | L19: =IFERROR(OFFSET(CalculationsAndCharts!$B$32, K19,0,1,1),"") -> 2014-03-24 | M19: =IFERROR(OFFSET(CalculationsAndCharts!$D$32, K19,0,1,1),"") -> 97.88 | N19: =IF(K19="","",IFERROR(MATCH(TRUE,OFFSET(CalculationsAndCharts!$AB$33,N18,0, $C$2-N18,1),0)+N18,"")) -> 77 | O19: =IFERROR(OFFSET(CalculationsAndCharts!$B$32, N19,0,1,1),"") -> 2014-04-03 | P19: =IFERROR(OFFSET(CalculationsAndCharts!$D$32, N19,0,1,1),"") -> 100.3 | Q19: -2.42 | R19: -25.63
B20: =IFERROR(MATCH(TRUE,OFFSET(CalculationsAndCharts!$W$33,B19,0, $C$2-B19,1),0)+B19,"") -> 118 | C20: =IFERROR(OFFSET(CalculationsAndCharts!$B$32, B20,0,1,1),"") -> 2014-02-04 | D20: =IFERROR(OFFSET(CalculationsAndCharts!$D$32, B20,0,1,1),"") -> 91.75 | E20: =IF(B20="","",IFERROR((MATCH(TRUE,OFFSET(CalculationsAndCharts!$Y$33,E19,0, $C$2-E19,1),0)+E19),"")) -> 85 | F20: =IFERROR(OFFSET(CalculationsAndCharts!$B$32, E20,0,1,1),"") -> 2014-03-24 | G20: =IFERROR(OFFSET(CalculationsAndCharts!$D$32, E20,0,1,1),"") -> 97.88 | H20: 6.13 | I20: 42.57 | K20: =IFERROR(MATCH(TRUE,OFFSET(CalculationsAndCharts!$Z$33,K19,0, $C$2-K19,1),0)+K19,"") -> 123 | L20: =IFERROR(OFFSET(CalculationsAndCharts!$B$32, K20,0,1,1),"") -> 2014-01-28 | M20: =IFERROR(OFFSET(CalculationsAndCharts!$D$32, K20,0,1,1),"") -> 88.47 | N20: =IF(K20="","",IFERROR(MATCH(TRUE,OFFSET(CalculationsAndCharts!$AB$33,N19,0, $C$2-N19,1),0)+N19,"")) -> 118 | O20: =IFERROR(OFFSET(CalculationsAndCharts!$B$32, N20,0,1,1),"") -> 2014-02-04 | P20: =IFERROR(OFFSET(CalculationsAndCharts!$D$32, N20,0,1,1),"") -> 91.75 | Q20: -3.28 | R20: -23.21
B21: =IFERROR(MATCH(TRUE,OFFSET(CalculationsAndCharts!$W$33,B20,0, $C$2-B20,1),0)+B20,"") -> 132 | C21: =IFERROR(OFFSET(CalculationsAndCharts!$B$32, B21,0,1,1),"") -> 2014-01-14 | D21: =IFERROR(OFFSET(CalculationsAndCharts!$D$32, B21,0,1,1),"") -> 90.4 | E21: =IF(B21="","",IFERROR((MATCH(TRUE,OFFSET(CalculationsAndCharts!$Y$33,E20,0, $C$2-E20,1),0)+E20),"")) -> 123 | F21: =IFERROR(OFFSET(CalculationsAndCharts!$B$32, E21,0,1,1),"") -> 2014-01-28 | G21: =IFERROR(OFFSET(CalculationsAndCharts!$D$32, E21,0,1,1),"") -> 88.47 | H21: -1.93 | I21: 36.44 | K21: =IFERROR(MATCH(TRUE,OFFSET(CalculationsAndCharts!$Z$33,K20,0, $C$2-K20,1),0)+K20,"") -> 136 | L21: =IFERROR(OFFSET(CalculationsAndCharts!$B$32, K21,0,1,1),"") -> 2014-01-08 | M21: =IFERROR(OFFSET(CalculationsAndCharts!$D$32, K21,0,1,1),"") -> 88.68 | N21: =IF(K21="","",IFERROR(MATCH(TRUE,OFFSET(CalculationsAndCharts!$AB$33,N20,0, $C$2-N20,1),0)+N20,"")) -> 132 | O21: =IFERROR(OFFSET(CalculationsAndCharts!$B$32, N21,0,1,1),"") -> 2014-01-14 | P21: =IFERROR(OFFSET(CalculationsAndCharts!$D$32, N21,0,1,1),"") -> 90.4 | Q21: -1.72 | R21: -19.93
B22: =IFERROR(MATCH(TRUE,OFFSET(CalculationsAndCharts!$W$33,B21,0, $C$2-B21,1),0)+B21,"") -> 147 | C22: =IFERROR(OFFSET(CalculationsAndCharts!$B$32, B22,0,1,1),"") -> 2013-12-20 | D22: =IFERROR(OFFSET(CalculationsAndCharts!$D$32, B22,0,1,1),"") -> 88.5 | E22: =IF(B22="","",IFERROR((MATCH(TRUE,OFFSET(CalculationsAndCharts!$Y$33,E21,0, $C$2-E21,1),0)+E21),"")) -> 136 | F22: =IFERROR(OFFSET(CalculationsAndCharts!$B$32, E22,0,1,1),"") -> 2014-01-08 | G22: =IFERROR(OFFSET(CalculationsAndCharts!$D$32, E22,0,1,1),"") -> 88.68 | H22: 0.18 | I22: 38.37 | K22: =IFERROR(MATCH(TRUE,OFFSET(CalculationsAndCharts!$Z$33,K21,0, $C$2-K21,1),0)+K21,"") -> 156 | L22: =IFERROR(OFFSET(CalculationsAndCharts!$B$32, K22,0,1,1),"") -> 2013-12-09 | M22: =IFERROR(OFFSET(CalculationsAndCharts!$D$32, K22,0,1,1),"") -> 86.83 | N22: =IF(K22="","",IFERROR(MATCH(TRUE,OFFSET(CalculationsAndCharts!$AB$33,N21,0, $C$2-N21,1),0)+N21,"")) -> 147 | O22: =IFERROR(OFFSET(CalculationsAndCharts!$B$32, N22,0,1,1),"") -> 2013-12-20 | P22: =IFERROR(OFFSET(CalculationsAndCharts!$D$32, N22,0,1,1),"") -> 88.5 | Q22: -1.67 | R22: -18.21
B23: =IFERROR(MATCH(TRUE,OFFSET(CalculationsAndCharts!$W$33,B22,0, $C$2-B22,1),0)+B22,"") -> 192 | C23: =IFERROR(OFFSET(CalculationsAndCharts!$B$32, B23,0,1,1),"") -> 2013-10-17 | D23: =IFERROR(OFFSET(CalculationsAndCharts!$D$32, B23,0,1,1),"") -> 76.18 | E23: =IF(B23="","",IFERROR((MATCH(TRUE,OFFSET(CalculationsAndCharts!$Y$33,E22,0, $C$2-E22,1),0)+E22),"")) -> 156 | F23: =IFERROR(OFFSET(CalculationsAndCharts!$B$32, E23,0,1,1),"") -> 2013-12-09 | G23: =IFERROR(OFFSET(CalculationsAndCharts!$D$32, E23,0,1,1),"") -> 86.83 | H23: 10.65 | I23: 38.19 | K23: =IFERROR(MATCH(TRUE,OFFSET(CalculationsAndCharts!$Z$33,K22,0, $C$2-K22,1),0)+K22,"") -> 204 | L23: =IFERROR(OFFSET(CalculationsAndCharts!$B$32, K23,0,1,1),"") -> 2013-10-01 | M23: =IFERROR(OFFSET(CalculationsAndCharts!$D$32, K23,0,1,1),"") -> 77.17 | N23: =IF(K23="","",IFERROR(MATCH(TRUE,OFFSET(CalculationsAndCharts!$AB$33,N22,0, $C$2-N22,1),0)+N22,"")) -> 192 | O23: =IFERROR(OFFSET(CalculationsAndCharts!$B$32, N23,0,1,1),"") -> 2013-10-17 | P23: =IFERROR(OFFSET(CalculationsAndCharts!$D$32, N23,0,1,1),"") -> 76.18 | Q23: 0.99 | R23: -16.54
B24: =IFERROR(MATCH(TRUE,OFFSET(CalculationsAndCharts!$W$33,B23,0, $C$2-B23,1),0)+B23,"") -> 217 | C24: =IFERROR(OFFSET(CalculationsAndCharts!$B$32, B24,0,1,1),"") -> 2013-09-12 | D24: =IFERROR(OFFSET(CalculationsAndCharts!$D$32, B24,0,1,1),"") -> 77.19 | E24: =IF(B24="","",IFERROR((MATCH(TRUE,OFFSET(CalculationsAndCharts!$Y$33,E23,0, $C$2-E23,1),0)+E23),"")) -> 204 | F24: =IFERROR(OFFSET(CalculationsAndCharts!$B$32, E24,0,1,1),"") -> 2013-10-01 | G24: =IFERROR(OFFSET(CalculationsAndCharts!$D$32, E24,0,1,1),"") -> 77.17 | H24: -0.02 | I24: 27.54 | K24: =IFERROR(MATCH(TRUE,OFFSET(CalculationsAndCharts!$Z$33,K23,0, $C$2-K23,1),0)+K23,"") -> 226 | L24: =IFERROR(OFFSET(CalculationsAndCharts!$B$32, K24,0,1,1),"") -> 2013-08-29 | M24: =IFERROR(OFFSET(CalculationsAndCharts!$D$32, K24,0,1,1),"") -> 75.41 | N24: =IF(K24="","",IFERROR(MATCH(TRUE,OFFSET(CalculationsAndCharts!$AB$33,N23,0, $C$2-N23,1),0)+N23,"")) -> 217 | O24: =IFERROR(OFFSET(CalculationsAndCharts!$B$32, N24,0,1,1),"") -> 2013-09-12 | P24: =IFERROR(OFFSET(CalculationsAndCharts!$D$32, N24,0,1,1),"") -> 77.19 | Q24: -1.78 | R24: -17.53
B25: =IFERROR(MATCH(TRUE,OFFSET(CalculationsAndCharts!$W$33,B24,0, $C$2-B24,1),0)+B24,"") -> 228 | C25: =IFERROR(OFFSET(CalculationsAndCharts!$B$32, B25,0,1,1),"") -> 2013-08-27 | D25: =IFERROR(OFFSET(CalculationsAndCharts!$D$32, B25,0,1,1),"") -> 76.62 | E25: =IF(B25="","",IFERROR((MATCH(TRUE,OFFSET(CalculationsAndCharts!$Y$33,E24,0, $C$2-E24,1),0)+E24),"")) -> 226 | F25: =IFERROR(OFFSET(CalculationsAndCharts!$B$32, E25,0,1,1),"") -> 2013-08-29 | G25: =IFERROR(OFFSET(CalculationsAndCharts!$D$32, E25,0,1,1),"") -> 75.41 | H25: -1.21 | I25: 27.56 | K25: =IFERROR(MATCH(TRUE,OFFSET(CalculationsAndCharts!$Z$33,K24,0, $C$2-K24,1),0)+K24,"") -> 231 | L25: =IFERROR(OFFSET(CalculationsAndCharts!$B$32, K25,0,1,1),"") -> 2013-08-22 | M25: =IFERROR(OFFSET(CalculationsAndCharts!$D$32, K25,0,1,1),"") -> 76.15 | N25: =IF(K25="","",IFERROR(MATCH(TRUE,OFFSET(CalculationsAndCharts!$AB$33,N24,0, $C$2-N24,1),0)+N24,"")) -> 228 | O25: =IFERROR(OFFSET(CalculationsAndCharts!$B$32, N25,0,1,1),"") -> 2013-08-27 | P25: =IFERROR(OFFSET(CalculationsAndCharts!$D$32, N25,0,1,1),"") -> 76.62 | Q25: -0.47 | R25: -15.75
B26: =IFERROR(MATCH(TRUE,OFFSET(CalculationsAndCharts!$W$33,B25,0, $C$2-B25,1),0)+B25,"") -> 262 | C26: =IFERROR(OFFSET(CalculationsAndCharts!$B$32, B26,0,1,1),"") -> 2013-07-10 | D26: =IFERROR(OFFSET(CalculationsAndCharts!$D$32, B26,0,1,1),"") -> 67.49 | E26: =IF(B26="","",IFERROR((MATCH(TRUE,OFFSET(CalculationsAndCharts!$Y$33,E25,0, $C$2-E25,1),0)+E25),"")) -> 231 | F26: =IFERROR(OFFSET(CalculationsAndCharts!$B$32, E26,0,1,1),"") -> 2013-08-22 | G26: =IFERROR(OFFSET(CalculationsAndCharts!$D$32, E26,0,1,1),"") -> 76.15 | H26: 8.66 | I26: 28.77 | K26: =IFERROR(MATCH(TRUE,OFFSET(CalculationsAndCharts!$Z$33,K25,0, $C$2-K25,1),0)+K25,"") -> 273 | L26: =IFERROR(OFFSET(CalculationsAndCharts!$B$32, K26,0,1,1),"") -> 2013-06-24 | M26: =IFERROR(OFFSET(CalculationsAndCharts!$D$32, K26,0,1,1),"") -> 65.86 | N26: =IF(K26="","",IFERROR(MATCH(TRUE,OFFSET(CalculationsAndCharts!$AB$33,N25,0, $C$2-N25,1),0)+N25,"")) -> 262 | O26: =IFERROR(OFFSET(CalculationsAndCharts!$B$32, N26,0,1,1),"") -> 2013-07-10 | P26: =IFERROR(OFFSET(CalculationsAndCharts!$D$32, N26,0,1,1),"") -> 67.49 | Q26: -1.63 | R26: -15.28
B27: =IFERROR(MATCH(TRUE,OFFSET(CalculationsAndCharts!$W$33,B26,0, $C$2-B26,1),0)+B26,"") -> 279 | C27: =IFERROR(OFFSET(CalculationsAndCharts!$B$32, B27,0,1,1),"") -> 2013-06-14 | D27: =IFERROR(OFFSET(CalculationsAndCharts!$D$32, B27,0,1,1),"") -> 67.36 | E27: =IF(B27="","",IFERROR((MATCH(TRUE,OFFSET(CalculationsAndCharts!$Y$33,E26,0, $C$2-E26,1),0)+E26),"")) -> 273 | F27: =IFERROR(OFFSET(CalculationsAndCharts!$B$32, E27,0,1,1),"") -> 2013-06-24 | G27: =IFERROR(OFFSET(CalculationsAndCharts!$D$32, E27,0,1,1),"") -> 65.86 | H27: -1.5 | I27: 20.11 | K27: =IFERROR(MATCH(TRUE,OFFSET(CalculationsAndCharts!$Z$33,K26,0, $C$2-K26,1),0)+K26,"") -> 286 | L27: =IFERROR(OFFSET(CalculationsAndCharts!$B$32, K27,0,1,1),"") -> 2013-06-05 | M27: =IFERROR(OFFSET(CalculationsAndCharts!$D$32, K27,0,1,1),"") -> 66.14 | N27: =IF(K27="","",IFERROR(MATCH(TRUE,OFFSET(CalculationsAndCharts!$AB$33,N26,0, $C$2-N26,1),0)+N26,"")) -> 279 | O27: =IFERROR(OFFSET(CalculationsAndCharts!$B$32, N27,0,1,1),"") -> 2013-06-14 | P27: =IFERROR(OFFSET(CalculationsAndCharts!$D$32, N27,0,1,1),"") -> 67.36 | Q27: -1.22 | R27: -13.65
B28: =IFERROR(MATCH(TRUE,OFFSET(CalculationsAndCharts!$W$33,B27,0, $C$2-B27,1),0)+B27,"") -> 313 | C28: =IFERROR(OFFSET(CalculationsAndCharts!$B$32, B28,0,1,1),"") -> 2013-04-26 | D28: =IFERROR(OFFSET(CalculationsAndCharts!$D$32, B28,0,1,1),"") -> 59.59 | E28: =IF(B28="","",IFERROR((MATCH(TRUE,OFFSET(CalculationsAndCharts!$Y$33,E27,0, $C$2-E27,1),0)+E27),"")) -> 286 | F28: =IFERROR(OFFSET(CalculationsAndCharts!$B$32, E28,0,1,1),"") -> 2013-06-05 | G28: =IFERROR(OFFSET(CalculationsAndCharts!$D$32, E28,0,1,1),"") -> 66.14 | H28: 6.55 | I28: 21.61 | K28: =IFERROR(MATCH(TRUE,OFFSET(CalculationsAndCharts!$Z$33,K27,0, $C$2-K27,1),0)+K27,"") -> 320 | L28: =IFERROR(OFFSET(CalculationsAndCharts!$B$32, K28,0,1,1),"") -> 2013-04-17 | M28: =IFERROR(OFFSET(CalculationsAndCharts!$D$32, K28,0,1,1),"") -> 57.16 | N28: =IF(K28="","",IFERROR(MATCH(TRUE,OFFSET(CalculationsAndCharts!$AB$33,N27,0, $C$2-N27,1),0)+N27,"")) -> 313 | O28: =IFERROR(OFFSET(CalculationsAndCharts!$B$32, N28,0,1,1),"") -> 2013-04-26 | P28: =IFERROR(OFFSET(CalculationsAndCharts!$D$32, N28,0,1,1),"") -> 59.59 | Q28: -2.43 | R28: -12.43
B29: =IFERROR(MATCH(TRUE,OFFSET(CalculationsAndCharts!$W$33,B28,0, $C$2-B28,1),0)+B28,"") -> 363 | C29: =IFERROR(OFFSET(CalculationsAndCharts!$B$32, B29,0,1,1),"") -> 2013-02-13 | D29: =IFERROR(OFFSET(CalculationsAndCharts!$D$32, B29,0,1,1),"") -> 54.45 | E29: =IF(B29="","",IFERROR((MATCH(TRUE,OFFSET(CalculationsAndCharts!$Y$33,E28,0, $C$2-E28,1),0)+E28),"")) -> 320 | F29: =IFERROR(OFFSET(CalculationsAndCharts!$B$32, E29,0,1,1),"") -> 2013-04-17 | G29: =IFERROR(OFFSET(CalculationsAndCharts!$D$32, E29,0,1,1),"") -> 57.16 | H29: 2.71 | I29: 15.06 | K29: =IFERROR(MATCH(TRUE,OFFSET(CalculationsAndCharts!$Z$33,K28,0, $C$2-K28,1),0)+K28,"") -> 376 | L29: =IFERROR(OFFSET(CalculationsAndCharts!$B$32, K29,0,1,1),"") -> 2013-01-25 | M29: =IFERROR(OFFSET(CalculationsAndCharts!$D$32, K29,0,1,1),"") -> 56.67 | N29: =IF(K29="","",IFERROR(MATCH(TRUE,OFFSET(CalculationsAndCharts!$AB$33,N28,0, $C$2-N28,1),0)+N28,"")) -> 363 | O29: =IFERROR(OFFSET(CalculationsAndCharts!$B$32, N29,0,1,1),"") -> 2013-02-13 | P29: =IFERROR(OFFSET(CalculationsAndCharts!$D$32, N29,0,1,1),"") -> 54.45 | Q29: 2.22 | R29: -10
B30: =IFERROR(MATCH(TRUE,OFFSET(CalculationsAndCharts!$W$33,B29,0, $C$2-B29,1),0)+B29,"") -> 377 | C30: =IFERROR(OFFSET(CalculationsAndCharts!$B$32, B30,0,1,1),"") -> 2013-01-24 | D30: =IFERROR(OFFSET(CalculationsAndCharts!$D$32, B30,0,1,1),"") -> 58.18 | E30: =IF(B30="","",IFERROR((MATCH(TRUE,OFFSET(CalculationsAndCharts!$Y$33,E29,0, $C$2-E29,1),0)+E29),"")) -> 376 | F30: =IFERROR(OFFSET(CalculationsAndCharts!$B$32, E30,0,1,1),"") -> 2013-01-25 | G30: =IFERROR(OFFSET(CalculationsAndCharts!$D$32, E30,0,1,1),"") -> 56.67 | H30: -1.51 | I30: 12.35 | K30: =IFERROR(MATCH(TRUE,OFFSET(CalculationsAndCharts!$Z$33,K29,0, $C$2-K29,1),0)+K29,"") -> 382 | L30: =IFERROR(OFFSET(CalculationsAndCharts!$B$32, K30,0,1,1),"") -> 2013-01-16 | M30: =IFERROR(OFFSET(CalculationsAndCharts!$D$32, K30,0,1,1),"") -> 58.09 | N30: =IF(K30="","",IFERROR(MATCH(TRUE,OFFSET(CalculationsAndCharts!$AB$33,N29,0, $C$2-N29,1),0)+N29,"")) -> 377 | O30: =IFERROR(OFFSET(CalculationsAndCharts!$B$32, N30,0,1,1),"") -> 2013-01-24 | P30: =IFERROR(OFFSET(CalculationsAndCharts!$D$32, N30,0,1,1),"") -> 58.18 | Q30: -0.09 | R30: -12.22
B31: =IFERROR(MATCH(TRUE,OFFSET(CalculationsAndCharts!$W$33,B30,0, $C$2-B30,1),0)+B30,"") -> 388 | C31: =IFERROR(OFFSET(CalculationsAndCharts!$B$32, B31,0,1,1),"") -> 2013-01-08 | D31: =IFERROR(OFFSET(CalculationsAndCharts!$D$32, B31,0,1,1),"") -> 57.23 | E31: =IF(B31="","",IFERROR((MATCH(TRUE,OFFSET(CalculationsAndCharts!$Y$33,E30,0, $C$2-E30,1),0)+E30),"")) -> 382 | F31: =IFERROR(OFFSET(CalculationsAndCharts!$B$32, E31,0,1,1),"") -> 2013-01-16 | G31: =IFERROR(OFFSET(CalculationsAndCharts!$D$32, E31,0,1,1),"") -> 58.09 | H31: 0.86 | I31: 13.86 | K31: =IFERROR(MATCH(TRUE,OFFSET(CalculationsAndCharts!$Z$33,K30,0, $C$2-K30,1),0)+K30,"") -> 393 | L31: =IFERROR(OFFSET(CalculationsAndCharts!$B$32, K31,0,1,1),"") -> 2012-12-31 | M31: =IFERROR(OFFSET(CalculationsAndCharts!$D$32, K31,0,1,1),"") -> 56.5 | N31: =IF(K31="","",IFERROR(MATCH(TRUE,OFFSET(CalculationsAndCharts!$AB$33,N30,0, $C$2-N30,1),0)+N30,"")) -> 388 | O31: =IFERROR(OFFSET(CalculationsAndCharts!$B$32, N31,0,1,1),"") -> 2013-01-08 | P31: =IFERROR(OFFSET(CalculationsAndCharts!$D$32, N31,0,1,1),"") -> 57.23 | Q31: -0.73 | R31: -12.13
B32: =IFERROR(MATCH(TRUE,OFFSET(CalculationsAndCharts!$W$33,B31,0, $C$2-B31,1),0)+B31,"") -> 416 | C32: =IFERROR(OFFSET(CalculationsAndCharts!$B$32, B32,0,1,1),"") -> 2012-11-27 | D32: =IFERROR(OFFSET(CalculationsAndCharts!$D$32, B32,0,1,1),"") -> 56.29 | E32: =IF(B32="","",IFERROR((MATCH(TRUE,OFFSET(CalculationsAndCharts!$Y$33,E31,0, $C$2-E31,1),0)+E31),"")) -> 393 | F32: =IFERROR(OFFSET(CalculationsAndCharts!$B$32, E32,0,1,1),"") -> 2012-12-31 | G32: =IFERROR(OFFSET(CalculationsAndCharts!$D$32, E32,0,1,1),"") -> 56.5 | H32: 0.21 | I32: 13 | K32: =IFERROR(MATCH(TRUE,OFFSET(CalculationsAndCharts!$Z$33,K31,0, $C$2-K31,1),0)+K31,"") -> 426 | L32: =IFERROR(OFFSET(CalculationsAndCharts!$B$32, K32,0,1,1),"") -> 2012-11-12 | M32: =IFERROR(OFFSET(CalculationsAndCharts!$D$32, K32,0,1,1),"") -> 55.59 | N32: =IF(K32="","",IFERROR(MATCH(TRUE,OFFSET(CalculationsAndCharts!$AB$33,N31,0, $C$2-N31,1),0)+N31,"")) -> 416 | O32: =IFERROR(OFFSET(CalculationsAndCharts!$B$32, N32,0,1,1),"") -> 2012-11-27 | P32: =IFERROR(OFFSET(CalculationsAndCharts!$D$32, N32,0,1,1),"") -> 56.29 | Q32: -0.7 | R32: -11.4
B33: =IFERROR(MATCH(TRUE,OFFSET(CalculationsAndCharts!$W$33,B32,0, $C$2-B32,1),0)+B32,"") -> 432 | C33: =IFERROR(OFFSET(CalculationsAndCharts!$B$32, B33,0,1,1),"") -> 2012-11-02 | D33: =IFERROR(OFFSET(CalculationsAndCharts!$D$32, B33,0,1,1),"") -> 57.38 | E33: =IF(B33="","",IFERROR((MATCH(TRUE,OFFSET(CalculationsAndCharts!$Y$33,E32,0, $C$2-E32,1),0)+E32),"")) -> 426 | F33: =IFERROR(OFFSET(CalculationsAndCharts!$B$32, E33,0,1,1),"") -> 2012-11-12 | G33: =IFERROR(OFFSET(CalculationsAndCharts!$D$32, E33,0,1,1),"") -> 55.59 | H33: -1.79 | I33: 12.79 | K33: =IFERROR(MATCH(TRUE,OFFSET(CalculationsAndCharts!$Z$33,K32,0, $C$2-K32,1),0)+K32,"") -> 435 | L33: =IFERROR(OFFSET(CalculationsAndCharts!$B$32, K33,0,1,1),"") -> 2012-10-26 | M33: =IFERROR(OFFSET(CalculationsAndCharts!$D$32, K33,0,1,1),"") -> 55.63 | N33: =IF(K33="","",IFERROR(MATCH(TRUE,OFFSET(CalculationsAndCharts!$AB$33,N32,0, $C$2-N32,1),0)+N32,"")) -> 432 | O33: =IFERROR(OFFSET(CalculationsAndCharts!$B$32, N33,0,1,1),"") -> 2012-11-02 | P33: =IFERROR(OFFSET(CalculationsAndCharts!$D$32, N33,0,1,1),"") -> 57.38 | Q33: -1.75 | R33: -10.7
B34: =IFERROR(MATCH(TRUE,OFFSET(CalculationsAndCharts!$W$33,B33,0, $C$2-B33,1),0)+B33,"") -> 441 | C34: =IFERROR(OFFSET(CalculationsAndCharts!$B$32, B34,0,1,1),"") -> 2012-10-18 | D34: =IFERROR(OFFSET(CalculationsAndCharts!$D$32, B34,0,1,1),"") -> 56.56 | E34: =IF(B34="","",IFERROR((MATCH(TRUE,OFFSET(CalculationsAndCharts!$Y$33,E33,0, $C$2-E33,1),0)+E33),"")) -> 435 | F34: =IFERROR(OFFSET(CalculationsAndCharts!$B$32, E34,0,1,1),"") -> 2012-10-26 | G34: =IFERROR(OFFSET(CalculationsAndCharts!$D$32, E34,0,1,1),"") -> 55.63 | H34: -0.93 | I34: 14.58 | K34: =IFERROR(MATCH(TRUE,OFFSET(CalculationsAndCharts!$Z$33,K33,0, $C$2-K33,1),0)+K33,"") -> 455 | L34: =IFERROR(OFFSET(CalculationsAndCharts!$B$32, K34,0,1,1),"") -> 2012-09-28 | M34: =IFERROR(OFFSET(CalculationsAndCharts!$D$32, K34,0,1,1),"") -> 57.4 | N34: =IF(K34="","",IFERROR(MATCH(TRUE,OFFSET(CalculationsAndCharts!$AB$33,N33,0, $C$2-N33,1),0)+N33,"")) -> 441 | O34: =IFERROR(OFFSET(CalculationsAndCharts!$B$32, N34,0,1,1),"") -> 2012-10-18 | P34: =IFERROR(OFFSET(CalculationsAndCharts!$D$32, N34,0,1,1),"") -> 56.56 | Q34: 0.84 | R34: -8.95
B35: =IFERROR(MATCH(TRUE,OFFSET(CalculationsAndCharts!$W$33,B34,0, $C$2-B34,1),0)+B34,"") -> 475 | C35: =IFERROR(OFFSET(CalculationsAndCharts!$B$32, B35,0,1,1),"") -> 2012-08-30 | D35: =IFERROR(OFFSET(CalculationsAndCharts!$D$32, B35,0,1,1),"") -> 56.39 | E35: =IF(B35="","",IFERROR((MATCH(TRUE,OFFSET(CalculationsAndCharts!$Y$33,E34,0, $C$2-E34,1),0)+E34),"")) -> 455 | F35: =IFERROR(OFFSET(CalculationsAndCharts!$B$32, E35,0,1,1),"") -> 2012-09-28 | G35: =IFERROR(OFFSET(CalculationsAndCharts!$D$32, E35,0,1,1),"") -> 57.4 | H35: 1.01 | I35: 15.51 | K35: =IFERROR(MATCH(TRUE,OFFSET(CalculationsAndCharts!$Z$33,K34,0, $C$2-K34,1),0)+K34,"") -> 478 | L35: =IFERROR(OFFSET(CalculationsAndCharts!$B$32, K35,0,1,1),"") -> 2012-08-27 | M35: =IFERROR(OFFSET(CalculationsAndCharts!$D$32, K35,0,1,1),"") -> 55.8 | N35: =IF(K35="","",IFERROR(MATCH(TRUE,OFFSET(CalculationsAndCharts!$AB$33,N34,0, $C$2-N34,1),0)+N34,"")) -> 475 | O35: =IFERROR(OFFSET(CalculationsAndCharts!$B$32, N35,0,1,1),"") -> 2012-08-30 | P35: =IFERROR(OFFSET(CalculationsAndCharts!$D$32, N35,0,1,1),"") -> 56.39 | Q35: -0.59 | R35: -9.79
B36: =IFERROR(MATCH(TRUE,OFFSET(CalculationsAndCharts!$W$33,B35,0, $C$2-B35,1),0)+B35,"") -> 490 | C36: =IFERROR(OFFSET(CalculationsAndCharts!$B$32, B36,0,1,1),"") -> 2012-08-09 | D36: =IFERROR(OFFSET(CalculationsAndCharts!$D$32, B36,0,1,1),"") -> 55.68 | E36: =IF(B36="","",IFERROR((MATCH(TRUE,OFFSET(CalculationsAndCharts!$Y$33,E35,0, $C$2-E35,1),0)+E35),"")) -> 478 | F36: =IFERROR(OFFSET(CalculationsAndCharts!$B$32, E36,0,1,1),"") -> 2012-08-27 | G36: =IFERROR(OFFSET(CalculationsAndCharts!$D$32, E36,0,1,1),"") -> 55.8 | H36: 0.12 | I36: 14.5 | K36: =IFERROR(MATCH(TRUE,OFFSET(CalculationsAndCharts!$Z$33,K35,0, $C$2-K35,1),0)+K35,"") -> 500 | L36: =IFERROR(OFFSET(CalculationsAndCharts!$B$32, K36,0,1,1),"") -> 2012-07-26 | M36: =IFERROR(OFFSET(CalculationsAndCharts!$D$32, K36,0,1,1),"") -> 55 | N36: =IF(K36="","",IFERROR(MATCH(TRUE,OFFSET(CalculationsAndCharts!$AB$33,N35,0, $C$2-N35,1),0)+N35,"")) -> 490 | O36: =IFERROR(OFFSET(CalculationsAndCharts!$B$32, N36,0,1,1),"") -> 2012-08-09 | P36: =IFERROR(OFFSET(CalculationsAndCharts!$D$32, N36,0,1,1),"") -> 55.68 | Q36: -0.68 | R36: -9.2
B37: =IFERROR(MATCH(TRUE,OFFSET(CalculationsAndCharts!$W$33,B36,0, $C$2-B36,1),0)+B36,"") -> 505 | C37: =IFERROR(OFFSET(CalculationsAndCharts!$B$32, B37,0,1,1),"") -> 2012-07-19 | D37: =IFERROR(OFFSET(CalculationsAndCharts!$D$32, B37,0,1,1),"") -> 56.91 | E37: =IF(B37="","",IFERROR((MATCH(TRUE,OFFSET(CalculationsAndCharts!$Y$33,E36,0, $C$2-E36,1),0)+E36),"")) -> 500 | F37: =IFERROR(OFFSET(CalculationsAndCharts!$B$32, E37,0,1,1),"") -> 2012-07-26 | G37: =IFERROR(OFFSET(CalculationsAndCharts!$D$32, E37,0,1,1),"") -> 55 | H37: -1.91 | I37: 14.38 | K37: =IFERROR(MATCH(TRUE,OFFSET(CalculationsAndCharts!$Z$33,K36,0, $C$2-K36,1),0)+K36,"") -> 508 | L37: =IFERROR(OFFSET(CalculationsAndCharts!$B$32, K37,0,1,1),"") -> 2012-07-16 | M37: =IFERROR(OFFSET(CalculationsAndCharts!$D$32, K37,0,1,1),"") -> 55.77 | N37: =IF(K37="","",IFERROR(MATCH(TRUE,OFFSET(CalculationsAndCharts!$AB$33,N36,0, $C$2-N36,1),0)+N36,"")) -> 505 | O37: =IFERROR(OFFSET(CalculationsAndCharts!$B$32, N37,0,1,1),"") -> 2012-07-19 | P37: =IFERROR(OFFSET(CalculationsAndCharts!$D$32, N37,0,1,1),"") -> 56.91 | Q37: -1.14 | R37: -8.52
B38: =IFERROR(MATCH(TRUE,OFFSET(CalculationsAndCharts!$W$33,B37,0, $C$2-B37,1),0)+B37,"") -> 533 | C38: =IFERROR(OFFSET(CalculationsAndCharts!$B$32, B38,0,1,1),"") -> 2012-06-08 | D38: =IFERROR(OFFSET(CalculationsAndCharts!$D$32, B38,0,1,1),"") -> 51.09 | E38: =IF(B38="","",IFERROR((MATCH(TRUE,OFFSET(CalculationsAndCharts!$Y$33,E37,0, $C$2-E37,1),0)+E37),"")) -> 508 | F38: =IFERROR(OFFSET(CalculationsAndCharts!$B$32, E38,0,1,1),"") -> 2012-07-16 | G38: =IFERROR(OFFSET(CalculationsAndCharts!$D$32, E38,0,1,1),"") -> 55.77 | H38: 4.68 | I38: 16.29 | K38: =IFERROR(MATCH(TRUE,OFFSET(CalculationsAndCharts!$Z$33,K37,0, $C$2-K37,1),0)+K37,"") -> 553 | L38: =IFERROR(OFFSET(CalculationsAndCharts!$B$32, K38,0,1,1),"") -> 2012-05-10 | M38: =IFERROR(OFFSET(CalculationsAndCharts!$D$32, K38,0,1,1),"") -> 52.95 | N38: =IF(K38="","",IFERROR(MATCH(TRUE,OFFSET(CalculationsAndCharts!$AB$33,N37,0, $C$2-N37,1),0)+N37,"")) -> 533 | O38: =IFERROR(OFFSET(CalculationsAndCharts!$B$32, N38,0,1,1),"") -> 2012-06-08 | P38: =IFERROR(OFFSET(CalculationsAndCharts!$D$32, N38,0,1,1),"") -> 51.09 | Q38: 1.86 | R38: -7.38
B39: =IFERROR(MATCH(TRUE,OFFSET(CalculationsAndCharts!$W$33,B38,0, $C$2-B38,1),0)+B38,"") -> 569 | C39: =IFERROR(OFFSET(CalculationsAndCharts!$B$32, B39,0,1,1),"") -> 2012-04-18 | D39: =IFERROR(OFFSET(CalculationsAndCharts!$D$32, B39,0,1,1),"") -> 52.78 | E39: =IF(B39="","",IFERROR((MATCH(TRUE,OFFSET(CalculationsAndCharts!$Y$33,E38,0, $C$2-E38,1),0)+E38),"")) -> 553 | F39: =IFERROR(OFFSET(CalculationsAndCharts!$B$32, E39,0,1,1),"") -> 2012-05-10 | G39: =IFERROR(OFFSET(CalculationsAndCharts!$D$32, E39,0,1,1),"") -> 52.95 | H39: 0.17 | I39: 11.61 | K39: =IFERROR(MATCH(TRUE,OFFSET(CalculationsAndCharts!$Z$33,K38,0, $C$2-K38,1),0)+K38,"") -> 575 | L39: =IFERROR(OFFSET(CalculationsAndCharts!$B$32, K39,0,1,1),"") -> 2012-04-10 | M39: =IFERROR(OFFSET(CalculationsAndCharts!$D$32, K39,0,1,1),"") -> 51.48 | N39: =IF(K39="","",IFERROR(MATCH(TRUE,OFFSET(CalculationsAndCharts!$AB$33,N38,0, $C$2-N38,1),0)+N38,"")) -> 569 | O39: =IFERROR(OFFSET(CalculationsAndCharts!$B$32, N39,0,1,1),"") -> 2012-04-18 | P39: =IFERROR(OFFSET(CalculationsAndCharts!$D$32, N39,0,1,1),"") -> 52.78 | Q39: -1.3 | R39: -9.24
B40: =IFERROR(MATCH(TRUE,OFFSET(CalculationsAndCharts!$W$33,B39,0, $C$2-B39,1),0)+B39,"") -> 583 | C40: =IFERROR(OFFSET(CalculationsAndCharts!$B$32, B40,0,1,1),"") -> 2012-03-28 | D40: =IFERROR(OFFSET(CalculationsAndCharts!$D$32, B40,0,1,1),"") -> 52.9 | E40: =IF(B40="","",IFERROR((MATCH(TRUE,OFFSET(CalculationsAndCharts!$Y$33,E39,0, $C$2-E39,1),0)+E39),"")) -> 575 | F40: =IFERROR(OFFSET(CalculationsAndCharts!$B$32, E40,0,1,1),"") -> 2012-04-10 | G40: =IFERROR(OFFSET(CalculationsAndCharts!$D$32, E40,0,1,1),"") -> 51.48 | H40: -1.42 | I40: 11.44 | K40: =IFERROR(MATCH(TRUE,OFFSET(CalculationsAndCharts!$Z$33,K39,0, $C$2-K39,1),0)+K39,"") -> 586 | L40: =IFERROR(OFFSET(CalculationsAndCharts!$B$32, K40,0,1,1),"") -> 2012-03-23 | M40: =IFERROR(OFFSET(CalculationsAndCharts!$D$32, K40,0,1,1),"") -> 52.08 | N40: =IF(K40="","",IFERROR(MATCH(TRUE,OFFSET(CalculationsAndCharts!$AB$33,N39,0, $C$2-N39,1),0)+N39,"")) -> 583 | O40: =IFERROR(OFFSET(CalculationsAndCharts!$B$32, N40,0,1,1),"") -> 2012-03-28 | P40: =IFERROR(OFFSET(CalculationsAndCharts!$D$32, N40,0,1,1),"") -> 52.9 | Q40: -0.82 | R40: -7.94
B41: =IFERROR(MATCH(TRUE,OFFSET(CalculationsAndCharts!$W$33,B40,0, $C$2-B40,1),0)+B40,"") -> 616 | C41: =IFERROR(OFFSET(CalculationsAndCharts!$B$32, B41,0,1,1),"") -> 2012-02-09 | D41: =IFERROR(OFFSET(CalculationsAndCharts!$D$32, B41,0,1,1),"") -> 49.86 | E41: =IF(B41="","",IFERROR((MATCH(TRUE,OFFSET(CalculationsAndCharts!$Y$33,E40,0, $C$2-E40,1),0)+E40),"")) -> 586 | F41: =IFERROR(OFFSET(CalculationsAndCharts!$B$32, E41,0,1,1),"") -> 2012-03-23 | G41: =IFERROR(OFFSET(CalculationsAndCharts!$D$32, E41,0,1,1),"") -> 52.08 | H41: 2.22 | I41: 12.86 | K41: =IFERROR(MATCH(TRUE,OFFSET(CalculationsAndCharts!$Z$33,K40,0, $C$2-K40,1),0)+K40,"") -> 623 | L41: =IFERROR(OFFSET(CalculationsAndCharts!$B$32, K41,0,1,1),"") -> 2012-01-31 | M41: =IFERROR(OFFSET(CalculationsAndCharts!$D$32, K41,0,1,1),"") -> 48.16 | N41: =IF(K41="","",IFERROR(MATCH(TRUE,OFFSET(CalculationsAndCharts!$AB$33,N40,0, $C$2-N40,1),0)+N40,"")) -> 616 | O41: =IFERROR(OFFSET(CalculationsAndCharts!$B$32, N41,0,1,1),"") -> 2012-02-09 | P41: =IFERROR(OFFSET(CalculationsAndCharts!$D$32, N41,0,1,1),"") -> 49.86 | Q41: -1.7 | R41: -7.12
B42: =IFERROR(MATCH(TRUE,OFFSET(CalculationsAndCharts!$W$33,B41,0, $C$2-B41,1),0)+B41,"") -> 635 | C42: =IFERROR(OFFSET(CalculationsAndCharts!$B$32, B42,0,1,1),"") -> 2012-01-12 | D42: =IFERROR(OFFSET(CalculationsAndCharts!$D$32, B42,0,1,1),"") -> 48.91 | E42: =IF(B42="","",IFERROR((MATCH(TRUE,OFFSET(CalculationsAndCharts!$Y$33,E41,0, $C$2-E41,1),0)+E41),"")) -> 623 | F42: =IFERROR(OFFSET(CalculationsAndCharts!$B$32, E42,0,1,1),"") -> 2012-01-31 | G42: =IFERROR(OFFSET(CalculationsAndCharts!$D$32, E42,0,1,1),"") -> 48.16 | H42: -0.75 | I42: 10.64 | K42: =IFERROR(MATCH(TRUE,OFFSET(CalculationsAndCharts!$Z$33,K41,0, $C$2-K41,1),0)+K41,"") -> 636 | L42: =IFERROR(OFFSET(CalculationsAndCharts!$B$32, K42,0,1,1),"") -> 2012-01-11 | M42: =IFERROR(OFFSET(CalculationsAndCharts!$D$32, K42,0,1,1),"") -> 48.67 | N42: =IF(K42="","",IFERROR(MATCH(TRUE,OFFSET(CalculationsAndCharts!$AB$33,N41,0, $C$2-N41,1),0)+N41,"")) -> 635 | O42: =IFERROR(OFFSET(CalculationsAndCharts!$B$32, N42,0,1,1),"") -> 2012-01-12 | P42: =IFERROR(OFFSET(CalculationsAndCharts!$D$32, N42,0,1,1),"") -> 48.91 | Q42: -0.24 | R42: -5.42
B43: =IFERROR(MATCH(TRUE,OFFSET(CalculationsAndCharts!$W$33,B42,0, $C$2-B42,1),0)+B42,"") -> 651 | C43: =IFERROR(OFFSET(CalculationsAndCharts!$B$32, B43,0,1,1),"") -> 2011-12-19 | D43: =IFERROR(OFFSET(CalculationsAndCharts!$D$32, B43,0,1,1),"") -> 45.71 | E43: =IF(B43="","",IFERROR((MATCH(TRUE,OFFSET(CalculationsAndCharts!$Y$33,E42,0, $C$2-E42,1),0)+E42),"")) -> 636 | F43: =IFERROR(OFFSET(CalculationsAndCharts!$B$32, E43,0,1,1),"") -> 2012-01-11 | G43: =IFERROR(OFFSET(CalculationsAndCharts!$D$32, E43,0,1,1),"") -> 48.67 | H43: 2.96 | I43: 11.39 | K43: =IFERROR(MATCH(TRUE,OFFSET(CalculationsAndCharts!$Z$33,K42,0, $C$2-K42,1),0)+K42,"") -> 652 | L43: =IFERROR(OFFSET(CalculationsAndCharts!$B$32, K43,0,1,1),"") -> 2011-12-16 | M43: =IFERROR(OFFSET(CalculationsAndCharts!$D$32, K43,0,1,1),"") -> 45.84 | N43: =IF(K43="","",IFERROR(MATCH(TRUE,OFFSET(CalculationsAndCharts!$AB$33,N42,0, $C$2-N42,1),0)+N42,"")) -> 651 | O43: =IFERROR(OFFSET(CalculationsAndCharts!$B$32, N43,0,1,1),"") -> 2011-12-19 | P43: =IFERROR(OFFSET(CalculationsAndCharts!$D$32, N43,0,1,1),"") -> 45.71 | Q43: 0.13 | R43: -5.18
B44: =IFERROR(MATCH(TRUE,OFFSET(CalculationsAndCharts!$W$33,B43,0, $C$2-B43,1),0)+B43,"") -> 662 | C44: =IFERROR(OFFSET(CalculationsAndCharts!$B$32, B44,0,1,1),"") -> 2011-12-02 | D44: =IFERROR(OFFSET(CalculationsAndCharts!$D$32, B44,0,1,1),"") -> 45.78 | E44: =IF(B44="","",IFERROR((MATCH(TRUE,OFFSET(CalculationsAndCharts!$Y$33,E43,0, $C$2-E43,1),0)+E43),"")) -> 652 | F44: =IFERROR(OFFSET(CalculationsAndCharts!$B$32, E44,0,1,1),"") -> 2011-12-16 | G44: =IFERROR(OFFSET(CalculationsAndCharts!$D$32, E44,0,1,1),"") -> 45.84 | H44: 0.06 | I44: 8.43 | K44: =IFERROR(MATCH(TRUE,OFFSET(CalculationsAndCharts!$Z$33,K43,0, $C$2-K43,1),0)+K43,"") -> 670 | L44: =IFERROR(OFFSET(CalculationsAndCharts!$B$32, K44,0,1,1),"") -> 2011-11-21 | M44: =IFERROR(OFFSET(CalculationsAndCharts!$D$32, K44,0,1,1),"") -> 43.34 | N44: =IF(K44="","",IFERROR(MATCH(TRUE,OFFSET(CalculationsAndCharts!$AB$33,N43,0, $C$2-N43,1),0)+N43,"")) -> 662 | O44: =IFERROR(OFFSET(CalculationsAndCharts!$B$32, N44,0,1,1),"") -> 2011-12-02 | P44: =IFERROR(OFFSET(CalculationsAndCharts!$D$32, N44,0,1,1),"") -> 45.78 | Q44: -2.44 | R44: -5.31
B45: =IFERROR(MATCH(TRUE,OFFSET(CalculationsAndCharts!$W$33,B44,0, $C$2-B44,1),0)+B44,"") -> 680 | C45: =IFERROR(OFFSET(CalculationsAndCharts!$B$32, B45,0,1,1),"") -> 2011-11-07 | D45: =IFERROR(OFFSET(CalculationsAndCharts!$D$32, B45,0,1,1),"") -> 43.95 | E45: =IF(B45="","",IFERROR((MATCH(TRUE,OFFSET(CalculationsAndCharts!$Y$33,E44,0, $C$2-E44,1),0)+E44),"")) -> 670 | F45: =IFERROR(OFFSET(CalculationsAndCharts!$B$32, E45,0,1,1),"") -> 2011-11-21 | G45: =IFERROR(OFFSET(CalculationsAndCharts!$D$32, E45,0,1,1),"") -> 43.34 | H45: -0.61 | I45: 8.37 | K45: =IFERROR(MATCH(TRUE,OFFSET(CalculationsAndCharts!$Z$33,K44,0, $C$2-K44,1),0)+K44,"") -> 681 | L45: =IFERROR(OFFSET(CalculationsAndCharts!$B$32, K45,0,1,1),"") -> 2011-11-04 | M45: =IFERROR(OFFSET(CalculationsAndCharts!$D$32, K45,0,1,1),"") -> 43.91 | N45: =IF(K45="","",IFERROR(MATCH(TRUE,OFFSET(CalculationsAndCharts!$AB$33,N44,0, $C$2-N44,1),0)+N44,"")) -> 680 | O45: =IFERROR(OFFSET(CalculationsAndCharts!$B$32, N45,0,1,1),"") -> 2011-11-07 | P45: =IFERROR(OFFSET(CalculationsAndCharts!$D$32, N45,0,1,1),"") -> 43.95 | Q45: -0.04 | R45: -2.87
B46: =IFERROR(MATCH(TRUE,OFFSET(CalculationsAndCharts!$W$33,B45,0, $C$2-B45,1),0)+B45,"") -> 699 | C46: =IFERROR(OFFSET(CalculationsAndCharts!$B$32, B46,0,1,1),"") -> 2011-10-11 | D46: =IFERROR(OFFSET(CalculationsAndCharts!$D$32, B46,0,1,1),"") -> 41.93 | E46: =IF(B46="","",IFERROR((MATCH(TRUE,OFFSET(CalculationsAndCharts!$Y$33,E45,0, $C$2-E45,1),0)+E45),"")) -> 681 | F46: =IFERROR(OFFSET(CalculationsAndCharts!$B$32, E46,0,1,1),"") -> 2011-11-04 | G46: =IFERROR(OFFSET(CalculationsAndCharts!$D$32, E46,0,1,1),"") -> 43.91 | H46: 1.98 | I46: 8.98 | K46: =IFERROR(MATCH(TRUE,OFFSET(CalculationsAndCharts!$Z$33,K45,0, $C$2-K45,1),0)+K45,"") -> 703 | L46: =IFERROR(OFFSET(CalculationsAndCharts!$B$32, K46,0,1,1),"") -> 2011-10-05 | M46: =IFERROR(OFFSET(CalculationsAndCharts!$D$32, K46,0,1,1),"") -> 40.34 | N46: =IF(K46="","",IFERROR(MATCH(TRUE,OFFSET(CalculationsAndCharts!$AB$33,N45,0, $C$2-N45,1),0)+N45,"")) -> 699 | O46: =IFERROR(OFFSET(CalculationsAndCharts!$B$32, N46,0,1,1),"") -> 2011-10-11 | P46: =IFERROR(OFFSET(CalculationsAndCharts!$D$32, N46,0,1,1),"") -> 41.93 | Q46: -1.59 | R46: -2.83
B47: =IFERROR(MATCH(TRUE,OFFSET(CalculationsAndCharts!$W$33,B46,0, $C$2-B46,1),0)+B46,"") -> 704 | C47: =IFERROR(OFFSET(CalculationsAndCharts!$B$32, B47,0,1,1),"") -> 2011-10-04 | D47: =IFERROR(OFFSET(CalculationsAndCharts!$D$32, B47,0,1,1),"") -> 38.84 | E47: =IF(B47="","",IFERROR((MATCH(TRUE,OFFSET(CalculationsAndCharts!$Y$33,E46,0, $C$2-E46,1),0)+E46),"")) -> 703 | F47: =IFERROR(OFFSET(CalculationsAndCharts!$B$32, E47,0,1,1),"") -> 2011-10-05 | G47: =IFERROR(OFFSET(CalculationsAndCharts!$D$32, E47,0,1,1),"") -> 40.34 | H47: 1.5 | I47: 7 | K47: =IFERROR(MATCH(TRUE,OFFSET(CalculationsAndCharts!$Z$33,K46,0, $C$2-K46,1),0)+K46,"") -> 711 | L47: =IFERROR(OFFSET(CalculationsAndCharts!$B$32, K47,0,1,1),"") -> 2011-09-23 | M47: =IFERROR(OFFSET(CalculationsAndCharts!$D$32, K47,0,1,1),"") -> 38.83 | N47: =IF(K47="","",IFERROR(MATCH(TRUE,OFFSET(CalculationsAndCharts!$AB$33,N46,0, $C$2-N46,1),0)+N46,"")) -> 704 | O47: =IFERROR(OFFSET(CalculationsAndCharts!$B$32, N47,0,1,1),"") -> 2011-10-04 | P47: =IFERROR(OFFSET(CalculationsAndCharts!$D$32, N47,0,1,1),"") -> 38.84 | Q47: -0.01 | R47: -1.24
B48: =IFERROR(MATCH(TRUE,OFFSET(CalculationsAndCharts!$W$33,B47,0, $C$2-B47,1),0)+B47,"") -> 714 | C48: =IFERROR(OFFSET(CalculationsAndCharts!$B$32, B48,0,1,1),"") -> 2011-09-20 | D48: =IFERROR(OFFSET(CalculationsAndCharts!$D$32, B48,0,1,1),"") -> 42.05 | E48: =IF(B48="","",IFERROR((MATCH(TRUE,OFFSET(CalculationsAndCharts!$Y$33,E47,0, $C$2-E47,1),0)+E47),"")) -> 711 | F48: =IFERROR(OFFSET(CalculationsAndCharts!$B$32, E48,0,1,1),"") -> 2011-09-23 | G48: =IFERROR(OFFSET(CalculationsAndCharts!$D$32, E48,0,1,1),"") -> 38.83 | H48: -3.22 | I48: 5.5 | K48: =IFERROR(MATCH(TRUE,OFFSET(CalculationsAndCharts!$Z$33,K47,0, $C$2-K47,1),0)+K47,"") -> 721 | L48: =IFERROR(OFFSET(CalculationsAndCharts!$B$32, K48,0,1,1),"") -> 2011-09-09 | M48: =IFERROR(OFFSET(CalculationsAndCharts!$D$32, K48,0,1,1),"") -> 41.12 | N48: =IF(K48="","",IFERROR(MATCH(TRUE,OFFSET(CalculationsAndCharts!$AB$33,N47,0, $C$2-N47,1),0)+N47,"")) -> 714 | O48: =IFERROR(OFFSET(CalculationsAndCharts!$B$32, N48,0,1,1),"") -> 2011-09-20 | P48: =IFERROR(OFFSET(CalculationsAndCharts!$D$32, N48,0,1,1),"") -> 42.05 | Q48: -0.93 | R48: -1.23
B49: =IFERROR(MATCH(TRUE,OFFSET(CalculationsAndCharts!$W$33,B48,0, $C$2-B48,1),0)+B48,"") -> 731 | C49: =IFERROR(OFFSET(CalculationsAndCharts!$B$32, B49,0,1,1),"") -> 2011-08-25 | D49: =IFERROR(OFFSET(CalculationsAndCharts!$D$32, B49,0,1,1),"") -> 42.21 | E49: =IF(B49="","",IFERROR((MATCH(TRUE,OFFSET(CalculationsAndCharts!$Y$33,E48,0, $C$2-E48,1),0)+E48),"")) -> 721 | F49: =IFERROR(OFFSET(CalculationsAndCharts!$B$32, E49,0,1,1),"") -> 2011-09-09 | G49: =IFERROR(OFFSET(CalculationsAndCharts!$D$32, E49,0,1,1),"") -> 41.12 | H49: -1.09 | I49: 8.72 | K49: =IFERROR(MATCH(TRUE,OFFSET(CalculationsAndCharts!$Z$33,K48,0, $C$2-K48,1),0)+K48,"") -> 762 | L49: =IFERROR(OFFSET(CalculationsAndCharts!$B$32, K49,0,1,1),"") -> 2011-07-13 | M49: =IFERROR(OFFSET(CalculationsAndCharts!$D$32, K49,0,1,1),"") -> 47.38 | N49: =IF(K49="","",IFERROR(MATCH(TRUE,OFFSET(CalculationsAndCharts!$AB$33,N48,0, $C$2-N48,1),0)+N48,"")) -> 731 | O49: =IFERROR(OFFSET(CalculationsAndCharts!$B$32, N49,0,1,1),"") -> 2011-08-25 | P49: =IFERROR(OFFSET(CalculationsAndCharts!$D$32, N49,0,1,1),"") -> 42.21 | Q49: 5.17 | R49: -0.3
B50: =IFERROR(MATCH(TRUE,OFFSET(CalculationsAndCharts!$W$33,B49,0, $C$2-B49,1),0)+B49,"") -> 769 | C50: =IFERROR(OFFSET(CalculationsAndCharts!$B$32, B50,0,1,1),"") -> 2011-07-01 | D50: =IFERROR(OFFSET(CalculationsAndCharts!$D$32, B50,0,1,1),"") -> 49.55 | E50: =IF(B50="","",IFERROR((MATCH(TRUE,OFFSET(CalculationsAndCharts!$Y$33,E49,0, $C$2-E49,1),0)+E49),"")) -> 762 | F50: =IFERROR(OFFSET(CalculationsAndCharts!$B$32, E50,0,1,1),"") -> 2011-07-13 | G50: =IFERROR(OFFSET(CalculationsAndCharts!$D$32, E50,0,1,1),"") -> 47.38 | H50: -2.17 | I50: 9.81 | K50: =IFERROR(MATCH(TRUE,OFFSET(CalculationsAndCharts!$Z$33,K49,0, $C$2-K49,1),0)+K49,"") -> 772 | L50: =IFERROR(OFFSET(CalculationsAndCharts!$B$32, K50,0,1,1),"") -> 2011-06-28 | M50: =IFERROR(OFFSET(CalculationsAndCharts!$D$32, K50,0,1,1),"") -> 48.45 | N50: =IF(K50="","",IFERROR(MATCH(TRUE,OFFSET(CalculationsAndCharts!$AB$33,N49,0, $C$2-N49,1),0)+N49,"")) -> 769 | O50: =IFERROR(OFFSET(CalculationsAndCharts!$B$32, N50,0,1,1),"") -> 2011-07-01 | P50: =IFERROR(OFFSET(CalculationsAndCharts!$D$32, N50,0,1,1),"") -> 49.55 | Q50: -1.1 | R50: -5.47
B51: =IFERROR(MATCH(TRUE,OFFSET(CalculationsAndCharts!$W$33,B50,0, $C$2-B50,1),0)+B50,"") -> 776 | C51: =IFERROR(OFFSET(CalculationsAndCharts!$B$32, B51,0,1,1),"") -> 2011-06-22 | D51: =IFERROR(OFFSET(CalculationsAndCharts!$D$32, B51,0,1,1),"") -> 49.42 | E51: =IF(B51="","",IFERROR((MATCH(TRUE,OFFSET(CalculationsAndCharts!$Y$33,E50,0, $C$2-E50,1),0)+E50),"")) -> 772 | F51: =IFERROR(OFFSET(CalculationsAndCharts!$B$32, E51,0,1,1),"") -> 2011-06-28 | G51: =IFERROR(OFFSET(CalculationsAndCharts!$D$32, E51,0,1,1),"") -> 48.45 | H51: -0.97 | I51: 11.98 | K51: =IFERROR(MATCH(TRUE,OFFSET(CalculationsAndCharts!$Z$33,K50,0, $C$2-K50,1),0)+K50,"") -> 788 | L51: =IFERROR(OFFSET(CalculationsAndCharts!$B$32, K51,0,1,1),"") -> 2011-06-06 | M51: =IFERROR(OFFSET(CalculationsAndCharts!$D$32, K51,0,1,1),"") -> 48.64 | N51: =IF(K51="","",IFERROR(MATCH(TRUE,OFFSET(CalculationsAndCharts!$AB$33,N50,0, $C$2-N50,1),0)+N50,"")) -> 776 | O51: =IFERROR(OFFSET(CalculationsAndCharts!$B$32, N51,0,1,1),"") -> 2011-06-22 | P51: =IFERROR(OFFSET(CalculationsAndCharts!$D$32, N51,0,1,1),"") -> 49.42 | Q51: -0.78 | R51: -4.37
B52: =IFERROR(MATCH(TRUE,OFFSET(CalculationsAndCharts!$W$33,B51,0, $C$2-B51,1),0)+B51,"") -> 797 | C52: =IFERROR(OFFSET(CalculationsAndCharts!$B$32, B52,0,1,1),"") -> 2011-05-23 | D52: =IFERROR(OFFSET(CalculationsAndCharts!$D$32, B52,0,1,1),"") -> 49.09 | E52: =IF(B52="","",IFERROR((MATCH(TRUE,OFFSET(CalculationsAndCharts!$Y$33,E51,0, $C$2-E51,1),0)+E51),"")) -> 788 | F52: =IFERROR(OFFSET(CalculationsAndCharts!$B$32, E52,0,1,1),"") -> 2011-06-06 | G52: =IFERROR(OFFSET(CalculationsAndCharts!$D$32, E52,0,1,1),"") -> 48.64 | H52: -0.45 | I52: 12.95 | K52: =IFERROR(MATCH(TRUE,OFFSET(CalculationsAndCharts!$Z$33,K51,0, $C$2-K51,1),0)+K51,"") -> 800 | L52: =IFERROR(OFFSET(CalculationsAndCharts!$B$32, K52,0,1,1),"") -> 2011-05-18 | M52: =IFERROR(OFFSET(CalculationsAndCharts!$D$32, K52,0,1,1),"") -> 48.9 | N52: =IF(K52="","",IFERROR(MATCH(TRUE,OFFSET(CalculationsAndCharts!$AB$33,N51,0, $C$2-N51,1),0)+N51,"")) -> 797 | O52: =IFERROR(OFFSET(CalculationsAndCharts!$B$32, N52,0,1,1),"") -> 2011-05-23 | P52: =IFERROR(OFFSET(CalculationsAndCharts!$D$32, N52,0,1,1),"") -> 49.09 | Q52: -0.19 | R52: -3.59
B53: =IFERROR(MATCH(TRUE,OFFSET(CalculationsAndCharts!$W$33,B52,0, $C$2-B52,1),0)+B52,"") -> 813 | C53: =IFERROR(OFFSET(CalculationsAndCharts!$B$32, B53,0,1,1),"") -> 2011-04-29 | D53: =IFERROR(OFFSET(CalculationsAndCharts!$D$32, B53,0,1,1),"") -> 49.33 | E53: =IF(B53="","",IFERROR((MATCH(TRUE,OFFSET(CalculationsAndCharts!$Y$33,E52,0, $C$2-E52,1),0)+E52),"")) -> 800 | F53: =IFERROR(OFFSET(CalculationsAndCharts!$B$32, E53,0,1,1),"") -> 2011-05-18 | G53: =IFERROR(OFFSET(CalculationsAndCharts!$D$32, E53,0,1,1),"") -> 48.9 | H53: -0.43 | I53: 13.4 | K53: =IFERROR(MATCH(TRUE,OFFSET(CalculationsAndCharts!$Z$33,K52,0, $C$2-K52,1),0)+K52,"") -> 823 | L53: =IFERROR(OFFSET(CalculationsAndCharts!$B$32, K53,0,1,1),"") -> 2011-04-14 | M53: =IFERROR(OFFSET(CalculationsAndCharts!$D$32, K53,0,1,1),"") -> 48.43 | N53: =IF(K53="","",IFERROR(MATCH(TRUE,OFFSET(CalculationsAndCharts!$AB$33,N52,0, $C$2-N52,1),0)+N52,"")) -> 813 | O53: =IFERROR(OFFSET(CalculationsAndCharts!$B$32, N53,0,1,1),"") -> 2011-04-29 | P53: =IFERROR(OFFSET(CalculationsAndCharts!$D$32, N53,0,1,1),"") -> 49.33 | Q53: -0.9 | R53: -3.4
B54: =IFERROR(MATCH(TRUE,OFFSET(CalculationsAndCharts!$W$33,B53,0, $C$2-B53,1),0)+B53,"") -> 834 | C54: =IFERROR(OFFSET(CalculationsAndCharts!$B$32, B54,0,1,1),"") -> 2011-03-30 | D54: =IFERROR(OFFSET(CalculationsAndCharts!$D$32, B54,0,1,1),"") -> 50.86 | E54: =IF(B54="","",IFERROR((MATCH(TRUE,OFFSET(CalculationsAndCharts!$Y$33,E53,0, $C$2-E53,1),0)+E53),"")) -> 823 | F54: =IFERROR(OFFSET(CalculationsAndCharts!$B$32, E54,0,1,1),"") -> 2011-04-14 | G54: =IFERROR(OFFSET(CalculationsAndCharts!$D$32, E54,0,1,1),"") -> 48.43 | H54: -2.43 | I54: 13.83 | K54: =IFERROR(MATCH(TRUE,OFFSET(CalculationsAndCharts!$Z$33,K53,0, $C$2-K53,1),0)+K53,"") -> 843 | L54: =IFERROR(OFFSET(CalculationsAndCharts!$B$32, K54,0,1,1),"") -> 2011-03-17 | M54: =IFERROR(OFFSET(CalculationsAndCharts!$D$32, K54,0,1,1),"") -> 50.19 | N54: =IF(K54="","",IFERROR(MATCH(TRUE,OFFSET(CalculationsAndCharts!$AB$33,N53,0, $C$2-N53,1),0)+N53,"")) -> 834 | O54: =IFERROR(OFFSET(CalculationsAndCharts!$B$32, N54,0,1,1),"") -> 2011-03-30 | P54: =IFERROR(OFFSET(CalculationsAndCharts!$D$32, N54,0,1,1),"") -> 50.86 | Q54: -0.67 | R54: -2.5
B55: =IFERROR(MATCH(TRUE,OFFSET(CalculationsAndCharts!$W$33,B54,0, $C$2-B54,1),0)+B54,"") -> 851 | C55: =IFERROR(OFFSET(CalculationsAndCharts!$B$32, B55,0,1,1),"") -> 2011-03-07 | D55: =IFERROR(OFFSET(CalculationsAndCharts!$D$32, B55,0,1,1),"") -> 51.92 | E55: =IF(B55="","",IFERROR((MATCH(TRUE,OFFSET(CalculationsAndCharts!$Y$33,E54,0, $C$2-E54,1),0)+E54),"")) -> 843 | F55: =IFERROR(OFFSET(CalculationsAndCharts!$B$32, E55,0,1,1),"") -> 2011-03-17 | G55: =IFERROR(OFFSET(CalculationsAndCharts!$D$32, E55,0,1,1),"") -> 50.19 | H55: -1.73 | I55: 16.26 | K55: =IFERROR(MATCH(TRUE,OFFSET(CalculationsAndCharts!$Z$33,K54,0, $C$2-K54,1),0)+K54,"") -> 855 | L55: =IFERROR(OFFSET(CalculationsAndCharts!$B$32, K55,0,1,1),"") -> 2011-03-01 | M55: =IFERROR(OFFSET(CalculationsAndCharts!$D$32, K55,0,1,1),"") -> 51.42 | N55: =IF(K55="","",IFERROR(MATCH(TRUE,OFFSET(CalculationsAndCharts!$AB$33,N54,0, $C$2-N54,1),0)+N54,"")) -> 851 | O55: =IFERROR(OFFSET(CalculationsAndCharts!$B$32, N55,0,1,1),"") -> 2011-03-07 | P55: =IFERROR(OFFSET(CalculationsAndCharts!$D$32, N55,0,1,1),"") -> 51.92 | Q55: -0.5 | R55: -1.83
B56: =IFERROR(MATCH(TRUE,OFFSET(CalculationsAndCharts!$W$33,B55,0, $C$2-B55,1),0)+B55,"") -> 867 | C56: =IFERROR(OFFSET(CalculationsAndCharts!$B$32, B56,0,1,1),"") -> 2011-02-10 | D56: =IFERROR(OFFSET(CalculationsAndCharts!$D$32, B56,0,1,1),"") -> 51.3 | E56: =IF(B56="","",IFERROR((MATCH(TRUE,OFFSET(CalculationsAndCharts!$Y$33,E55,0, $C$2-E55,1),0)+E55),"")) -> 855 | F56: =IFERROR(OFFSET(CalculationsAndCharts!$B$32, E56,0,1,1),"") -> 2011-03-01 | G56: =IFERROR(OFFSET(CalculationsAndCharts!$D$32, E56,0,1,1),"") -> 51.42 | H56: 0.12 | I56: 17.99 | K56: =IFERROR(MATCH(TRUE,OFFSET(CalculationsAndCharts!$Z$33,K55,0, $C$2-K55,1),0)+K55,"") -> 874 | L56: =IFERROR(OFFSET(CalculationsAndCharts!$B$32, K56,0,1,1),"") -> 2011-02-01 | M56: =IFERROR(OFFSET(CalculationsAndCharts!$D$32, K56,0,1,1),"") -> 50.25 | N56: =IF(K56="","",IFERROR(MATCH(TRUE,OFFSET(CalculationsAndCharts!$AB$33,N55,0, $C$2-N55,1),0)+N55,"")) -> 867 | O56: =IFERROR(OFFSET(CalculationsAndCharts!$B$32, N56,0,1,1),"") -> 2011-02-10 | P56: =IFERROR(OFFSET(CalculationsAndCharts!$D$32, N56,0,1,1),"") -> 51.3 | Q56: -1.05 | R56: -1.33
B57: =IFERROR(MATCH(TRUE,OFFSET(CalculationsAndCharts!$W$33,B56,0, $C$2-B56,1),0)+B56,"") -> 897 | C57: =IFERROR(OFFSET(CalculationsAndCharts!$B$32, B57,0,1,1),"") -> 2010-12-29 | D57: =IFERROR(OFFSET(CalculationsAndCharts!$D$32, B57,0,1,1),"") -> 45.73 | E57: =IF(B57="","",IFERROR((MATCH(TRUE,OFFSET(CalculationsAndCharts!$Y$33,E56,0, $C$2-E56,1),0)+E56),"")) -> 874 | F57: =IFERROR(OFFSET(CalculationsAndCharts!$B$32, E57,0,1,1),"") -> 2011-02-01 | G57: =IFERROR(OFFSET(CalculationsAndCharts!$D$32, E57,0,1,1),"") -> 50.25 | H57: 4.52 | I57: 17.87 | K57: =IFERROR(MATCH(TRUE,OFFSET(CalculationsAndCharts!$Z$33,K56,0, $C$2-K56,1),0)+K56,"") -> 908 | L57: =IFERROR(OFFSET(CalculationsAndCharts!$B$32, K57,0,1,1),"") -> 2010-12-13 | M57: =IFERROR(OFFSET(CalculationsAndCharts!$D$32, K57,0,1,1),"") -> 45.96 | N57: =IF(K57="","",IFERROR(MATCH(TRUE,OFFSET(CalculationsAndCharts!$AB$33,N56,0, $C$2-N56,1),0)+N56,"")) -> 897 | O57: =IFERROR(OFFSET(CalculationsAndCharts!$B$32, N57,0,1,1),"") -> 2010-12-29 | P57: =IFERROR(OFFSET(CalculationsAndCharts!$D$32, N57,0,1,1),"") -> 45.73 | Q57: 0.23 | R57: -0.28
B58: =IFERROR(MATCH(TRUE,OFFSET(CalculationsAndCharts!$W$33,B57,0, $C$2-B57,1),0)+B57,"") -> 914 | C58: =IFERROR(OFFSET(CalculationsAndCharts!$B$32, B58,0,1,1),"") -> 2010-12-03 | D58: =IFERROR(OFFSET(CalculationsAndCharts!$D$32, B58,0,1,1),"") -> 48.06 | E58: =IF(B58="","",IFERROR((MATCH(TRUE,OFFSET(CalculationsAndCharts!$Y$33,E57,0, $C$2-E57,1),0)+E57),"")) -> 908 | F58: =IFERROR(OFFSET(CalculationsAndCharts!$B$32, E58,0,1,1),"") -> 2010-12-13 | G58: =IFERROR(OFFSET(CalculationsAndCharts!$D$32, E58,0,1,1),"") -> 45.96 | H58: -2.1 | I58: 13.35 | K58: =IFERROR(MATCH(TRUE,OFFSET(CalculationsAndCharts!$Z$33,K57,0, $C$2-K57,1),0)+K57,"") -> 926 | L58: =IFERROR(OFFSET(CalculationsAndCharts!$B$32, K58,0,1,1),"") -> 2010-11-16 | M58: =IFERROR(OFFSET(CalculationsAndCharts!$D$32, K58,0,1,1),"") -> 46.27 | N58: =IF(K58="","",IFERROR(MATCH(TRUE,OFFSET(CalculationsAndCharts!$AB$33,N57,0, $C$2-N57,1),0)+N57,"")) -> 914 | O58: =IFERROR(OFFSET(CalculationsAndCharts!$B$32, N58,0,1,1),"") -> 2010-12-03 | P58: =IFERROR(OFFSET(CalculationsAndCharts!$D$32, N58,0,1,1),"") -> 48.06 | Q58: -1.79 | R58: -0.51
B59: =IFERROR(MATCH(TRUE,OFFSET(CalculationsAndCharts!$W$33,B58,0, $C$2-B58,1),0)+B58,"") -> 934 | C59: =IFERROR(OFFSET(CalculationsAndCharts!$B$32, B59,0,1,1),"") -> 2010-11-04 | D59: =IFERROR(OFFSET(CalculationsAndCharts!$D$32, B59,0,1,1),"") -> 48.11 | E59: =IF(B59="","",IFERROR((MATCH(TRUE,OFFSET(CalculationsAndCharts!$Y$33,E58,0, $C$2-E58,1),0)+E58),"")) -> 926 | F59: =IFERROR(OFFSET(CalculationsAndCharts!$B$32, E59,0,1,1),"") -> 2010-11-16 | G59: =IFERROR(OFFSET(CalculationsAndCharts!$D$32, E59,0,1,1),"") -> 46.27 | H59: -1.84 | I59: 15.45 | K59: =IFERROR(MATCH(TRUE,OFFSET(CalculationsAndCharts!$Z$33,K58,0, $C$2-K58,1),0)+K58,"") -> 937 | L59: =IFERROR(OFFSET(CalculationsAndCharts!$B$32, K59,0,1,1),"") -> 2010-11-01 | M59: =IFERROR(OFFSET(CalculationsAndCharts!$D$32, K59,0,1,1),"") -> 46.36 | N59: =IF(K59="","",IFERROR(MATCH(TRUE,OFFSET(CalculationsAndCharts!$AB$33,N58,0, $C$2-N58,1),0)+N58,"")) -> 934 | O59: =IFERROR(OFFSET(CalculationsAndCharts!$B$32, N59,0,1,1),"") -> 2010-11-04 | P59: =IFERROR(OFFSET(CalculationsAndCharts!$D$32, N59,0,1,1),"") -> 48.11 | Q59: -1.75 | R59: 1.28
B60: =IFERROR(MATCH(TRUE,OFFSET(CalculationsAndCharts!$W$33,B59,0, $C$2-B59,1),0)+B59,"") -> 952 | C60: =IFERROR(OFFSET(CalculationsAndCharts!$B$32, B60,0,1,1),"") -> 2010-10-11 | D60: =IFERROR(OFFSET(CalculationsAndCharts!$D$32, B60,0,1,1),"") -> 45.55 | E60: =IF(B60="","",IFERROR((MATCH(TRUE,OFFSET(CalculationsAndCharts!$Y$33,E59,0, $C$2-E59,1),0)+E59),"")) -> 937 | F60: =IFERROR(OFFSET(CalculationsAndCharts!$B$32, E60,0,1,1),"") -> 2010-11-01 | G60: =IFERROR(OFFSET(CalculationsAndCharts!$D$32, E60,0,1,1),"") -> 46.36 | H60: 0.81 | I60: 17.29 | K60: =IFERROR(MATCH(TRUE,OFFSET(CalculationsAndCharts!$Z$33,K59,0, $C$2-K59,1),0)+K59,"") -> 962 | L60: =IFERROR(OFFSET(CalculationsAndCharts!$B$32, K60,0,1,1),"") -> 2010-09-27 | M60: =IFERROR(OFFSET(CalculationsAndCharts!$D$32, K60,0,1,1),"") -> 46.13 | N60: =IF(K60="","",IFERROR(MATCH(TRUE,OFFSET(CalculationsAndCharts!$AB$33,N59,0, $C$2-N59,1),0)+N59,"")) -> 952 | O60: =IFERROR(OFFSET(CalculationsAndCharts!$B$32, N60,0,1,1),"") -> 2010-10-11 | P60: =IFERROR(OFFSET(CalculationsAndCharts!$D$32, N60,0,1,1),"") -> 45.55 | Q60: 0.58 | R60: 3.03
B61: =IFERROR(MATCH(TRUE,OFFSET(CalculationsAndCharts!$W$33,B60,0, $C$2-B60,1),0)+B60,"") -> 978 | C61: =IFERROR(OFFSET(CalculationsAndCharts!$B$32, B61,0,1,1),"") -> 2010-09-02 | D61: =IFERROR(OFFSET(CalculationsAndCharts!$D$32, B61,0,1,1),"") -> 45.06 | E61: =IF(B61="","",IFERROR((MATCH(TRUE,OFFSET(CalculationsAndCharts!$Y$33,E60,0, $C$2-E60,1),0)+E60),"")) -> 962 | F61: =IFERROR(OFFSET(CalculationsAndCharts!$B$32, E61,0,1,1),"") -> 2010-09-27 | G61: =IFERROR(OFFSET(CalculationsAndCharts!$D$32, E61,0,1,1),"") -> 46.13 | H61: 1.07 | I61: 16.48 | K61: =IFERROR(MATCH(TRUE,OFFSET(CalculationsAndCharts!$Z$33,K60,0, $C$2-K60,1),0)+K60,"") -> 1001 | L61: =IFERROR(OFFSET(CalculationsAndCharts!$B$32, K61,0,1,1),"") -> 2010-08-02 | M61: =IFERROR(OFFSET(CalculationsAndCharts!$D$32, K61,0,1,1),"") -> 46.98 | N61: =IF(K61="","",IFERROR(MATCH(TRUE,OFFSET(CalculationsAndCharts!$AB$33,N60,0, $C$2-N60,1),0)+N60,"")) -> 978 | O61: =IFERROR(OFFSET(CalculationsAndCharts!$B$32, N61,0,1,1),"") -> 2010-09-02 | P61: =IFERROR(OFFSET(CalculationsAndCharts!$D$32, N61,0,1,1),"") -> 45.06 | Q61: 1.92 | R61: 2.45
B62: =IFERROR(MATCH(TRUE,OFFSET(CalculationsAndCharts!$W$33,B61,0, $C$2-B61,1),0)+B61,"") -> 1006 | C62: =IFERROR(OFFSET(CalculationsAndCharts!$B$32, B62,0,1,1),"") -> 2010-07-26 | D62: =IFERROR(OFFSET(CalculationsAndCharts!$D$32, B62,0,1,1),"") -> 49.27 | E62: =IF(B62="","",IFERROR((MATCH(TRUE,OFFSET(CalculationsAndCharts!$Y$33,E61,0, $C$2-E61,1),0)+E61),"")) -> 1001 | F62: =IFERROR(OFFSET(CalculationsAndCharts!$B$32, E62,0,1,1),"") -> 2010-08-02 | G62: =IFERROR(OFFSET(CalculationsAndCharts!$D$32, E62,0,1,1),"") -> 46.98 | H62: -2.29 | I62: 15.41 | K62: =IFERROR(MATCH(TRUE,OFFSET(CalculationsAndCharts!$Z$33,K61,0, $C$2-K61,1),0)+K61,"") -> 1010 | L62: =IFERROR(OFFSET(CalculationsAndCharts!$B$32, K62,0,1,1),"") -> 2010-07-20 | M62: =IFERROR(OFFSET(CalculationsAndCharts!$D$32, K62,0,1,1),"") -> 47.51 | N62: =IF(K62="","",IFERROR(MATCH(TRUE,OFFSET(CalculationsAndCharts!$AB$33,N61,0, $C$2-N61,1),0)+N61,"")) -> 1006 | O62: =IFERROR(OFFSET(CalculationsAndCharts!$B$32, N62,0,1,1),"") -> 2010-07-26 | P62: =IFERROR(OFFSET(CalculationsAndCharts!$D$32, N62,0,1,1),"") -> 49.27 | Q62: -1.76 | R62: 0.53
B63: =IFERROR(MATCH(TRUE,OFFSET(CalculationsAndCharts!$W$33,B62,0, $C$2-B62,1),0)+B62,"") -> 1011 | C63: =IFERROR(OFFSET(CalculationsAndCharts!$B$32, B63,0,1,1),"") -> 2010-07-19 | D63: =IFERROR(OFFSET(CalculationsAndCharts!$D$32, B63,0,1,1),"") -> 48.07 | E63: =IF(B63="","",IFERROR((MATCH(TRUE,OFFSET(CalculationsAndCharts!$Y$33,E62,0, $C$2-E62,1),0)+E62),"")) -> 1010 | F63: =IFERROR(OFFSET(CalculationsAndCharts!$B$32, E63,0,1,1),"") -> 2010-07-20 | G63: =IFERROR(OFFSET(CalculationsAndCharts!$D$32, E63,0,1,1),"") -> 47.51 | H63: -0.56 | I63: 17.7 | K63: =IFERROR(MATCH(TRUE,OFFSET(CalculationsAndCharts!$Z$33,K62,0, $C$2-K62,1),0)+K62,"") -> 1025 | L63: =IFERROR(OFFSET(CalculationsAndCharts!$B$32, K63,0,1,1),"") -> 2010-06-28 | M63: =IFERROR(OFFSET(CalculationsAndCharts!$D$32, K63,0,1,1),"") -> 50.57 | N63: =IF(K63="","",IFERROR(MATCH(TRUE,OFFSET(CalculationsAndCharts!$AB$33,N62,0, $C$2-N62,1),0)+N62,"")) -> 1011 | O63: =IFERROR(OFFSET(CalculationsAndCharts!$B$32, N63,0,1,1),"") -> 2010-07-19 | P63: =IFERROR(OFFSET(CalculationsAndCharts!$D$32, N63,0,1,1),"") -> 48.07 | Q63: 2.5 | R63: 2.29
B64: =IFERROR(MATCH(TRUE,OFFSET(CalculationsAndCharts!$W$33,B63,0, $C$2-B63,1),0)+B63,"") -> 1032 | C64: =IFERROR(OFFSET(CalculationsAndCharts!$B$32, B64,0,1,1),"") -> 2010-06-17 | D64: =IFERROR(OFFSET(CalculationsAndCharts!$D$32, B64,0,1,1),"") -> 53.01 | E64: =IF(B64="","",IFERROR((MATCH(TRUE,OFFSET(CalculationsAndCharts!$Y$33,E63,0, $C$2-E63,1),0)+E63),"")) -> 1025 | F64: =IFERROR(OFFSET(CalculationsAndCharts!$B$32, E64,0,1,1),"") -> 2010-06-28 | G64: =IFERROR(OFFSET(CalculationsAndCharts!$D$32, E64,0,1,1),"") -> 50.57 | H64: -2.44 | I64: 18.26 | K64: =IFERROR(MATCH(TRUE,OFFSET(CalculationsAndCharts!$Z$33,K63,0, $C$2-K63,1),0)+K63,"") -> 1065 | L64: =IFERROR(OFFSET(CalculationsAndCharts!$B$32, K64,0,1,1),"") -> 2010-04-30 | M64: =IFERROR(OFFSET(CalculationsAndCharts!$D$32, K64,0,1,1),"") -> 59.54 | N64: =IF(K64="","",IFERROR(MATCH(TRUE,OFFSET(CalculationsAndCharts!$AB$33,N63,0, $C$2-N63,1),0)+N63,"")) -> 1032 | O64: =IFERROR(OFFSET(CalculationsAndCharts!$B$32, N64,0,1,1),"") -> 2010-06-17 | P64: =IFERROR(OFFSET(CalculationsAndCharts!$D$32, N64,0,1,1),"") -> 53.01 | Q64: 6.53 | R64: -0.21
B65: =IFERROR(MATCH(TRUE,OFFSET(CalculationsAndCharts!$W$33,B64,0, $C$2-B64,1),0)+B64,"") -> 1077 | C65: =IFERROR(OFFSET(CalculationsAndCharts!$B$32, B65,0,1,1),"") -> 2010-04-14 | D65: =IFERROR(OFFSET(CalculationsAndCharts!$D$32, B65,0,1,1),"") -> 58.25 | E65: =IF(B65="","",IFERROR((MATCH(TRUE,OFFSET(CalculationsAndCharts!$Y$33,E64,0, $C$2-E64,1),0)+E64),"")) -> 1065 | F65: =IFERROR(OFFSET(CalculationsAndCharts!$B$32, E65,0,1,1),"") -> 2010-04-30 | G65: =IFERROR(OFFSET(CalculationsAndCharts!$D$32, E65,0,1,1),"") -> 59.54 | H65: 1.29 | I65: 20.7 | K65: =IFERROR(MATCH(TRUE,OFFSET(CalculationsAndCharts!$Z$33,K64,0, $C$2-K64,1),0)+K64,"") -> 1081 | L65: =IFERROR(OFFSET(CalculationsAndCharts!$B$32, K65,0,1,1),"") -> 2010-04-08 | M65: =IFERROR(OFFSET(CalculationsAndCharts!$D$32, K65,0,1,1),"") -> 56.78 | N65: =IF(K65="","",IFERROR(MATCH(TRUE,OFFSET(CalculationsAndCharts!$AB$33,N64,0, $C$2-N64,1),0)+N64,"")) -> 1077 | O65: =IFERROR(OFFSET(CalculationsAndCharts!$B$32, N65,0,1,1),"") -> 2010-04-14 | P65: =IFERROR(OFFSET(CalculationsAndCharts!$D$32, N65,0,1,1),"") -> 58.25 | Q65: -1.47 | R65: -6.74
B66: =IFERROR(MATCH(TRUE,OFFSET(CalculationsAndCharts!$W$33,B65,0, $C$2-B65,1),0)+B65,"") -> 1091 | C66: =IFERROR(OFFSET(CalculationsAndCharts!$B$32, B66,0,1,1),"") -> 2010-03-24 | D66: =IFERROR(OFFSET(CalculationsAndCharts!$D$32, B66,0,1,1),"") -> 57.19 | E66: =IF(B66="","",IFERROR((MATCH(TRUE,OFFSET(CalculationsAndCharts!$Y$33,E65,0, $C$2-E65,1),0)+E65),"")) -> 1081 | F66: =IFERROR(OFFSET(CalculationsAndCharts!$B$32, E66,0,1,1),"") -> 2010-04-08 | G66: =IFERROR(OFFSET(CalculationsAndCharts!$D$32, E66,0,1,1),"") -> 56.78 | H66: -0.41 | I66: 19.41 | K66: =IFERROR(MATCH(TRUE,OFFSET(CalculationsAndCharts!$Z$33,K65,0, $C$2-K65,1),0)+K65,"") -> 1096 | L66: =IFERROR(OFFSET(CalculationsAndCharts!$B$32, K66,0,1,1),"") -> 2010-03-17 | M66: =IFERROR(OFFSET(CalculationsAndCharts!$D$32, K66,0,1,1),"") -> 56.79 | N66: =IF(K66="","",IFERROR(MATCH(TRUE,OFFSET(CalculationsAndCharts!$AB$33,N65,0, $C$2-N65,1),0)+N65,"")) -> 1091 | O66: =IFERROR(OFFSET(CalculationsAndCharts!$B$32, N66,0,1,1),"") -> 2010-03-24 | P66: =IFERROR(OFFSET(CalculationsAndCharts!$D$32, N66,0,1,1),"") -> 57.19 | Q66: -0.4 | R66: -5.27
B67: =IFERROR(MATCH(TRUE,OFFSET(CalculationsAndCharts!$W$33,B66,0, $C$2-B66,1),0)+B66,"") -> 1116 | C67: =IFERROR(OFFSET(CalculationsAndCharts!$B$32, B67,0,1,1),"") -> 2010-02-17 | D67: =IFERROR(OFFSET(CalculationsAndCharts!$D$32, B67,0,1,1),"") -> 54.63 | E67: =IF(B67="","",IFERROR((MATCH(TRUE,OFFSET(CalculationsAndCharts!$Y$33,E66,0, $C$2-E66,1),0)+E66),"")) -> 1096 | F67: =IFERROR(OFFSET(CalculationsAndCharts!$B$32, E67,0,1,1),"") -> 2010-03-17 | G67: =IFERROR(OFFSET(CalculationsAndCharts!$D$32, E67,0,1,1),"") -> 56.79 | H67: 2.16 | I67: 19.82 | K67: =IFERROR(MATCH(TRUE,OFFSET(CalculationsAndCharts!$Z$33,K66,0, $C$2-K66,1),0)+K66,"") -> 1120 | L67: =IFERROR(OFFSET(CalculationsAndCharts!$B$32, K67,0,1,1),"") -> 2010-02-10 | M67: =IFERROR(OFFSET(CalculationsAndCharts!$D$32, K67,0,1,1),"") -> 53.35 | N67: =IF(K67="","",IFERROR(MATCH(TRUE,OFFSET(CalculationsAndCharts!$AB$33,N66,0, $C$2-N66,1),0)+N66,"")) -> 1116 | O67: =IFERROR(OFFSET(CalculationsAndCharts!$B$32, N67,0,1,1),"") -> 2010-02-17 | P67: =IFERROR(OFFSET(CalculationsAndCharts!$D$32, N67,0,1,1),"") -> 54.63 | Q67: -1.28 | R67: -4.87
B68: =IFERROR(MATCH(TRUE,OFFSET(CalculationsAndCharts!$W$33,B67,0, $C$2-B67,1),0)+B67,"") -> 1124 | C68: =IFERROR(OFFSET(CalculationsAndCharts!$B$32, B68,0,1,1),"") -> 2010-02-04 | D68: =IFERROR(OFFSET(CalculationsAndCharts!$D$32, B68,0,1,1),"") -> 54.65 | E68: =IF(B68="","",IFERROR((MATCH(TRUE,OFFSET(CalculationsAndCharts!$Y$33,E67,0, $C$2-E67,1),0)+E67),"")) -> 1120 | F68: =IFERROR(OFFSET(CalculationsAndCharts!$B$32, E68,0,1,1),"") -> 2010-02-10 | G68: =IFERROR(OFFSET(CalculationsAndCharts!$D$32, E68,0,1,1),"") -> 53.35 | H68: -1.3 | I68: 17.66 | K68: =IFERROR(MATCH(TRUE,OFFSET(CalculationsAndCharts!$Z$33,K67,0, $C$2-K67,1),0)+K67,"") -> 1129 | L68: =IFERROR(OFFSET(CalculationsAndCharts!$B$32, K68,0,1,1),"") -> 2010-01-28 | M68: =IFERROR(OFFSET(CalculationsAndCharts!$D$32, K68,0,1,1),"") -> 53.41 | N68: =IF(K68="","",IFERROR(MATCH(TRUE,OFFSET(CalculationsAndCharts!$AB$33,N67,0, $C$2-N67,1),0)+N67,"")) -> 1124 | O68: =IFERROR(OFFSET(CalculationsAndCharts!$B$32, N68,0,1,1),"") -> 2010-02-04 | P68: =IFERROR(OFFSET(CalculationsAndCharts!$D$32, N68,0,1,1),"") -> 54.65 | Q68: -1.24 | R68: -3.59
B69: =IFERROR(MATCH(TRUE,OFFSET(CalculationsAndCharts!$W$33,B68,0, $C$2-B68,1),0)+B68,"") -> 1139 | C69: =IFERROR(OFFSET(CalculationsAndCharts!$B$32, B69,0,1,1),"") -> 2010-01-13 | D69: =IFERROR(OFFSET(CalculationsAndCharts!$D$32, B69,0,1,1),"") -> 53.11 | E69: =IF(B69="","",IFERROR((MATCH(TRUE,OFFSET(CalculationsAndCharts!$Y$33,E68,0, $C$2-E68,1),0)+E68),"")) -> 1129 | F69: =IFERROR(OFFSET(CalculationsAndCharts!$B$32, E69,0,1,1),"") -> 2010-01-28 | G69: =IFERROR(OFFSET(CalculationsAndCharts!$D$32, E69,0,1,1),"") -> 53.41 | H69: 0.3 | I69: 18.96 | K69: =IFERROR(MATCH(TRUE,OFFSET(CalculationsAndCharts!$Z$33,K68,0, $C$2-K68,1),0)+K68,"") -> 1151 | L69: =IFERROR(OFFSET(CalculationsAndCharts!$B$32, K69,0,1,1),"") -> 2009-12-24 | M69: =IFERROR(OFFSET(CalculationsAndCharts!$D$32, K69,0,1,1),"") -> 52.15 | N69: =IF(K69="","",IFERROR(MATCH(TRUE,OFFSET(CalculationsAndCharts!$AB$33,N68,0, $C$2-N68,1),0)+N68,"")) -> 1139 | O69: =IFERROR(OFFSET(CalculationsAndCharts!$B$32, N69,0,1,1),"") -> 2010-01-13 | P69: =IFERROR(OFFSET(CalculationsAndCharts!$D$32, N69,0,1,1),"") -> 53.11 | Q69: -0.96 | R69: -2.35
B70: =IFERROR(MATCH(TRUE,OFFSET(CalculationsAndCharts!$W$33,B69,0, $C$2-B69,1),0)+B69,"") -> 1184 | C70: =IFERROR(OFFSET(CalculationsAndCharts!$B$32, B70,0,1,1),"") -> 2009-11-06 | D70: =IFERROR(OFFSET(CalculationsAndCharts!$D$32, B70,0,1,1),"") -> 46.87 | E70: =IF(B70="","",IFERROR((MATCH(TRUE,OFFSET(CalculationsAndCharts!$Y$33,E69,0, $C$2-E69,1),0)+E69),"")) -> 1151 | F70: =IFERROR(OFFSET(CalculationsAndCharts!$B$32, E70,0,1,1),"") -> 2009-12-24 | G70: =IFERROR(OFFSET(CalculationsAndCharts!$D$32, E70,0,1,1),"") -> 52.15 | H70: 5.28 | I70: 18.66 | K70: =IFERROR(MATCH(TRUE,OFFSET(CalculationsAndCharts!$Z$33,K69,0, $C$2-K69,1),0)+K69,"") -> 1191 | L70: =IFERROR(OFFSET(CalculationsAndCharts!$B$32, K70,0,1,1),"") -> 2009-10-28 | M70: =IFERROR(OFFSET(CalculationsAndCharts!$D$32, K70,0,1,1),"") -> 46.05 | N70: =IF(K70="","",IFERROR(MATCH(TRUE,OFFSET(CalculationsAndCharts!$AB$33,N69,0, $C$2-N69,1),0)+N69,"")) -> 1184 | O70: =IFERROR(OFFSET(CalculationsAndCharts!$B$32, N70,0,1,1),"") -> 2009-11-06 | P70: =IFERROR(OFFSET(CalculationsAndCharts!$D$32, N70,0,1,1),"") -> 46.87 | Q70: -0.82 | R70: -1.39
B71: =IFERROR(MATCH(TRUE,OFFSET(CalculationsAndCharts!$W$33,B70,0, $C$2-B70,1),0)+B70,"") -> 1192 | C71: =IFERROR(OFFSET(CalculationsAndCharts!$B$32, B71,0,1,1),"") -> 2009-10-27 | D71: =IFERROR(OFFSET(CalculationsAndCharts!$D$32, B71,0,1,1),"") -> 46 | E71: =IF(B71="","",IFERROR((MATCH(TRUE,OFFSET(CalculationsAndCharts!$Y$33,E70,0, $C$2-E70,1),0)+E70),"")) -> 1191 | F71: =IFERROR(OFFSET(CalculationsAndCharts!$B$32, E71,0,1,1),"") -> 2009-10-28 | G71: =IFERROR(OFFSET(CalculationsAndCharts!$D$32, E71,0,1,1),"") -> 46.05 | H71: 0.05 | I71: 13.38 | K71: =IFERROR(MATCH(TRUE,OFFSET(CalculationsAndCharts!$Z$33,K70,0, $C$2-K70,1),0)+K70,"") -> 1194 | L71: =IFERROR(OFFSET(CalculationsAndCharts!$B$32, K71,0,1,1),"") -> 2009-10-23 | M71: =IFERROR(OFFSET(CalculationsAndCharts!$D$32, K71,0,1,1),"") -> 46.84 | N71: =IF(K71="","",IFERROR(MATCH(TRUE,OFFSET(CalculationsAndCharts!$AB$33,N70,0, $C$2-N70,1),0)+N70,"")) -> 1192 | O71: =IFERROR(OFFSET(CalculationsAndCharts!$B$32, N71,0,1,1),"") -> 2009-10-27 | P71: =IFERROR(OFFSET(CalculationsAndCharts!$D$32, N71,0,1,1),"") -> 46 | Q71: 0.84 | R71: -0.57
B72: =IFERROR(MATCH(TRUE,OFFSET(CalculationsAndCharts!$W$33,B71,0, $C$2-B71,1),0)+B71,"") -> 1198 | C72: =IFERROR(OFFSET(CalculationsAndCharts!$B$32, B72,0,1,1),"") -> 2009-10-19 | D72: =IFERROR(OFFSET(CalculationsAndCharts!$D$32, B72,0,1,1),"") -> 46.68 | E72: =IF(B72="","",IFERROR((MATCH(TRUE,OFFSET(CalculationsAndCharts!$Y$33,E71,0, $C$2-E71,1),0)+E71),"")) -> 1194 | F72: =IFERROR(OFFSET(CalculationsAndCharts!$B$32, E72,0,1,1),"") -> 2009-10-23 | G72: =IFERROR(OFFSET(CalculationsAndCharts!$D$32, E72,0,1,1),"") -> 46.84 | H72: 0.16 | I72: 13.33 | K72: =IFERROR(MATCH(TRUE,OFFSET(CalculationsAndCharts!$Z$33,K71,0, $C$2-K71,1),0)+K71,"") -> 1208 | L72: =IFERROR(OFFSET(CalculationsAndCharts!$B$32, K72,0,1,1),"") -> 2009-10-05 | M72: =IFERROR(OFFSET(CalculationsAndCharts!$D$32, K72,0,1,1),"") -> 46.06 | N72: =IF(K72="","",IFERROR(MATCH(TRUE,OFFSET(CalculationsAndCharts!$AB$33,N71,0, $C$2-N71,1),0)+N71,"")) -> 1198 | O72: =IFERROR(OFFSET(CalculationsAndCharts!$B$32, N72,0,1,1),"") -> 2009-10-19 | P72: =IFERROR(OFFSET(CalculationsAndCharts!$D$32, N72,0,1,1),"") -> 46.68 | Q72: -0.62 | R72: -1.41
B73: =IFERROR(MATCH(TRUE,OFFSET(CalculationsAndCharts!$W$33,B72,0, $C$2-B72,1),0)+B72,"") -> 1218 | C73: =IFERROR(OFFSET(CalculationsAndCharts!$B$32, B73,0,1,1),"") -> 2009-09-21 | D73: =IFERROR(OFFSET(CalculationsAndCharts!$D$32, B73,0,1,1),"") -> 48.18 | E73: =IF(B73="","",IFERROR((MATCH(TRUE,OFFSET(CalculationsAndCharts!$Y$33,E72,0, $C$2-E72,1),0)+E72),"")) -> 1208 | F73: =IFERROR(OFFSET(CalculationsAndCharts!$B$32, E73,0,1,1),"") -> 2009-10-05 | G73: =IFERROR(OFFSET(CalculationsAndCharts!$D$32, E73,0,1,1),"") -> 46.06 | H73: -2.12 | I73: 13.17 | K73: =IFERROR(MATCH(TRUE,OFFSET(CalculationsAndCharts!$Z$33,K72,0, $C$2-K72,1),0)+K72,"") -> 1230 | L73: =IFERROR(OFFSET(CalculationsAndCharts!$B$32, K73,0,1,1),"") -> 2009-09-02 | M73: =IFERROR(OFFSET(CalculationsAndCharts!$D$32, K73,0,1,1),"") -> 46.44 | N73: =IF(K73="","",IFERROR(MATCH(TRUE,OFFSET(CalculationsAndCharts!$AB$33,N72,0, $C$2-N72,1),0)+N72,"")) -> 1218 | O73: =IFERROR(OFFSET(CalculationsAndCharts!$B$32, N73,0,1,1),"") -> 2009-09-21 | P73: =IFERROR(OFFSET(CalculationsAndCharts!$D$32, N73,0,1,1),"") -> 48.18 | Q73: -1.74 | R73: -0.79
B74: =IFERROR(MATCH(TRUE,OFFSET(CalculationsAndCharts!$W$33,B73,0, $C$2-B73,1),0)+B73,"") -> 1236 | C74: =IFERROR(OFFSET(CalculationsAndCharts!$B$32, B74,0,1,1),"") -> 2009-08-25 | D74: =IFERROR(OFFSET(CalculationsAndCharts!$D$32, B74,0,1,1),"") -> 48.27 | E74: =IF(B74="","",IFERROR((MATCH(TRUE,OFFSET(CalculationsAndCharts!$Y$33,E73,0, $C$2-E73,1),0)+E73),"")) -> 1230 | F74: =IFERROR(OFFSET(CalculationsAndCharts!$B$32, E74,0,1,1),"") -> 2009-09-02 | G74: =IFERROR(OFFSET(CalculationsAndCharts!$D$32, E74,0,1,1),"") -> 46.44 | H74: -1.83 | I74: 15.29 | K74: =IFERROR(MATCH(TRUE,OFFSET(CalculationsAndCharts!$Z$33,K73,0, $C$2-K73,1),0)+K73,"") -> 1238 | L74: =IFERROR(OFFSET(CalculationsAndCharts!$B$32, K74,0,1,1),"") -> 2009-08-21 | M74: =IFERROR(OFFSET(CalculationsAndCharts!$D$32, K74,0,1,1),"") -> 47.12 | N74: =IF(K74="","",IFERROR(MATCH(TRUE,OFFSET(CalculationsAndCharts!$AB$33,N73,0, $C$2-N73,1),0)+N73,"")) -> 1236 | O74: =IFERROR(OFFSET(CalculationsAndCharts!$B$32, N74,0,1,1),"") -> 2009-08-25 | P74: =IFERROR(OFFSET(CalculationsAndCharts!$D$32, N74,0,1,1),"") -> 48.27 | Q74: -1.15 | R74: 0.95
B75: =IFERROR(MATCH(TRUE,OFFSET(CalculationsAndCharts!$W$33,B74,0, $C$2-B74,1),0)+B74,"") -> 1263 | C75: =IFERROR(OFFSET(CalculationsAndCharts!$B$32, B75,0,1,1),"") -> 2009-07-17 | D75: =IFERROR(OFFSET(CalculationsAndCharts!$D$32, B75,0,1,1),"") -> 45.38 | E75: =IF(B75="","",IFERROR((MATCH(TRUE,OFFSET(CalculationsAndCharts!$Y$33,E74,0, $C$2-E74,1),0)+E74),"")) -> 1238 | F75: =IFERROR(OFFSET(CalculationsAndCharts!$B$32, E75,0,1,1),"") -> 2009-08-21 | G75: =IFERROR(OFFSET(CalculationsAndCharts!$D$32, E75,0,1,1),"") -> 47.12 | H75: 1.74 | I75: 17.12 | K75: =IFERROR(MATCH(TRUE,OFFSET(CalculationsAndCharts!$Z$33,K74,0, $C$2-K74,1),0)+K74,"") -> 1278 | L75: =IFERROR(OFFSET(CalculationsAndCharts!$B$32, K75,0,1,1),"") -> 2009-06-25 | M75: =IFERROR(OFFSET(CalculationsAndCharts!$D$32, K75,0,1,1),"") -> 44.16 | N75: =IF(K75="","",IFERROR(MATCH(TRUE,OFFSET(CalculationsAndCharts!$AB$33,N74,0, $C$2-N74,1),0)+N74,"")) -> 1263 | O75: =IFERROR(OFFSET(CalculationsAndCharts!$B$32, N75,0,1,1),"") -> 2009-07-17 | P75: =IFERROR(OFFSET(CalculationsAndCharts!$D$32, N75,0,1,1),"") -> 45.38 | Q75: -1.22 | R75: 2.1
B76: =IFERROR(MATCH(TRUE,OFFSET(CalculationsAndCharts!$W$33,B75,0, $C$2-B75,1),0)+B75,"") -> 1281 | C76: =IFERROR(OFFSET(CalculationsAndCharts!$B$32, B76,0,1,1),"") -> 2009-06-22 | D76: =IFERROR(OFFSET(CalculationsAndCharts!$D$32, B76,0,1,1),"") -> 45.86 | E76: =IF(B76="","",IFERROR((MATCH(TRUE,OFFSET(CalculationsAndCharts!$Y$33,E75,0, $C$2-E75,1),0)+E75),"")) -> 1278 | F76: =IFERROR(OFFSET(CalculationsAndCharts!$B$32, E76,0,1,1),"") -> 2009-06-25 | G76: =IFERROR(OFFSET(CalculationsAndCharts!$D$32, E76,0,1,1),"") -> 44.16 | H76: -1.7 | I76: 15.38 | K76: =IFERROR(MATCH(TRUE,OFFSET(CalculationsAndCharts!$Z$33,K75,0, $C$2-K75,1),0)+K75,"") -> 1284 | L76: =IFERROR(OFFSET(CalculationsAndCharts!$B$32, K76,0,1,1),"") -> 2009-06-17 | M76: =IFERROR(OFFSET(CalculationsAndCharts!$D$32, K76,0,1,1),"") -> 44.78 | N76: =IF(K76="","",IFERROR(MATCH(TRUE,OFFSET(CalculationsAndCharts!$AB$33,N75,0, $C$2-N75,1),0)+N75,"")) -> 1281 | O76: =IFERROR(OFFSET(CalculationsAndCharts!$B$32, N76,0,1,1),"") -> 2009-06-22 | P76: =IFERROR(OFFSET(CalculationsAndCharts!$D$32, N76,0,1,1),"") -> 45.86 | Q76: -1.08 | R76: 3.32
B77: =IFERROR(MATCH(TRUE,OFFSET(CalculationsAndCharts!$W$33,B76,0, $C$2-B76,1),0)+B76,"") -> 1294 | C77: =IFERROR(OFFSET(CalculationsAndCharts!$B$32, B77,0,1,1),"") -> 2009-06-03 | D77: =IFERROR(OFFSET(CalculationsAndCharts!$D$32, B77,0,1,1),"") -> 45.3 | E77: =IF(B77="","",IFERROR((MATCH(TRUE,OFFSET(CalculationsAndCharts!$Y$33,E76,0, $C$2-E76,1),0)+E76),"")) -> 1284 | F77: =IFERROR(OFFSET(CalculationsAndCharts!$B$32, E77,0,1,1),"") -> 2009-06-17 | G77: =IFERROR(OFFSET(CalculationsAndCharts!$D$32, E77,0,1,1),"") -> 44.78 | H77: -0.52 | I77: 17.08 | K77: =IFERROR(MATCH(TRUE,OFFSET(CalculationsAndCharts!$Z$33,K76,0, $C$2-K76,1),0)+K76,"") -> 1304 | L77: =IFERROR(OFFSET(CalculationsAndCharts!$B$32, K77,0,1,1),"") -> 2009-05-19 | M77: =IFERROR(OFFSET(CalculationsAndCharts!$D$32, K77,0,1,1),"") -> 44.87 | N77: =IF(K77="","",IFERROR(MATCH(TRUE,OFFSET(CalculationsAndCharts!$AB$33,N76,0, $C$2-N76,1),0)+N76,"")) -> 1294 | O77: =IFERROR(OFFSET(CalculationsAndCharts!$B$32, N77,0,1,1),"") -> 2009-06-03 | P77: =IFERROR(OFFSET(CalculationsAndCharts!$D$32, N77,0,1,1),"") -> 45.3 | Q77: -0.43 | R77: 4.4
B78: =IFERROR(MATCH(TRUE,OFFSET(CalculationsAndCharts!$W$33,B77,0, $C$2-B77,1),0)+B77,"") -> 1320 | C78: =IFERROR(OFFSET(CalculationsAndCharts!$B$32, B78,0,1,1),"") -> 2009-04-27 | D78: =IFERROR(OFFSET(CalculationsAndCharts!$D$32, B78,0,1,1),"") -> 43.63 | E78: =IF(B78="","",IFERROR((MATCH(TRUE,OFFSET(CalculationsAndCharts!$Y$33,E77,0, $C$2-E77,1),0)+E77),"")) -> 1304 | F78: =IFERROR(OFFSET(CalculationsAndCharts!$B$32, E78,0,1,1),"") -> 2009-05-19 | G78: =IFERROR(OFFSET(CalculationsAndCharts!$D$32, E78,0,1,1),"") -> 44.87 | H78: 1.24 | I78: 17.6 | K78: =IFERROR(MATCH(TRUE,OFFSET(CalculationsAndCharts!$Z$33,K77,0, $C$2-K77,1),0)+K77,"") -> 1322 | L78: =IFERROR(OFFSET(CalculationsAndCharts!$B$32, K78,0,1,1),"") -> 2009-04-23 | M78: =IFERROR(OFFSET(CalculationsAndCharts!$D$32, K78,0,1,1),"") -> 44.5 | N78: =IF(K78="","",IFERROR(MATCH(TRUE,OFFSET(CalculationsAndCharts!$AB$33,N77,0, $C$2-N77,1),0)+N77,"")) -> 1320 | O78: =IFERROR(OFFSET(CalculationsAndCharts!$B$32, N78,0,1,1),"") -> 2009-04-27 | P78: =IFERROR(OFFSET(CalculationsAndCharts!$D$32, N78,0,1,1),"") -> 43.63 | Q78: 0.87 | R78: 4.83
B79: =IFERROR(MATCH(TRUE,OFFSET(CalculationsAndCharts!$W$33,B78,0, $C$2-B78,1),0)+B78,"") -> 1345 | C79: =IFERROR(OFFSET(CalculationsAndCharts!$B$32, B79,0,1,1),"") -> 2009-03-20 | D79: =IFERROR(OFFSET(CalculationsAndCharts!$D$32, B79,0,1,1),"") -> 36.38 | E79: =IF(B79="","",IFERROR((MATCH(TRUE,OFFSET(CalculationsAndCharts!$Y$33,E78,0, $C$2-E78,1),0)+E78),"")) -> 1322 | F79: =IFERROR(OFFSET(CalculationsAndCharts!$B$32, E79,0,1,1),"") -> 2009-04-23 | G79: =IFERROR(OFFSET(CalculationsAndCharts!$D$32, E79,0,1,1),"") -> 44.5 | H79: 8.12 | I79: 16.36 | K79: =IFERROR(MATCH(TRUE,OFFSET(CalculationsAndCharts!$Z$33,K78,0, $C$2-K78,1),0)+K78,"") -> 1381 | L79: =IFERROR(OFFSET(CalculationsAndCharts!$B$32, K79,0,1,1),"") -> 2009-01-28 | M79: =IFERROR(OFFSET(CalculationsAndCharts!$D$32, K79,0,1,1),"") -> 50.5 | N79: =IF(K79="","",IFERROR(MATCH(TRUE,OFFSET(CalculationsAndCharts!$AB$33,N78,0, $C$2-N78,1),0)+N78,"")) -> 1345 | O79: =IFERROR(OFFSET(CalculationsAndCharts!$B$32, N79,0,1,1),"") -> 2009-03-20 | P79: =IFERROR(OFFSET(CalculationsAndCharts!$D$32, N79,0,1,1),"") -> 36.38 | Q79: 14.12 | R79: 3.96
B80: =IFERROR(MATCH(TRUE,OFFSET(CalculationsAndCharts!$W$33,B79,0, $C$2-B79,1),0)+B79,"") -> 1387 | C80: =IFERROR(OFFSET(CalculationsAndCharts!$B$32, B80,0,1,1),"") -> 2009-01-20 | D80: =IFERROR(OFFSET(CalculationsAndCharts!$D$32, B80,0,1,1),"") -> 52.56 | E80: =IF(B80="","",IFERROR((MATCH(TRUE,OFFSET(CalculationsAndCharts!$Y$33,E79,0, $C$2-E79,1),0)+E79),"")) -> 1381 | F80: =IFERROR(OFFSET(CalculationsAndCharts!$B$32, E80,0,1,1),"") -> 2009-01-28 | G80: =IFERROR(OFFSET(CalculationsAndCharts!$D$32, E80,0,1,1),"") -> 50.5 | H80: -2.06 | I80: 8.24 | K80: =IFERROR(MATCH(TRUE,OFFSET(CalculationsAndCharts!$Z$33,K79,0, $C$2-K79,1),0)+K79,"") -> 1390 | L80: =IFERROR(OFFSET(CalculationsAndCharts!$B$32, K80,0,1,1),"") -> 2009-01-14 | M80: =IFERROR(OFFSET(CalculationsAndCharts!$D$32, K80,0,1,1),"") -> 48.95 | N80: =IF(K80="","",IFERROR(MATCH(TRUE,OFFSET(CalculationsAndCharts!$AB$33,N79,0, $C$2-N79,1),0)+N79,"")) -> 1387 | O80: =IFERROR(OFFSET(CalculationsAndCharts!$B$32, N80,0,1,1),"") -> 2009-01-20 | P80: =IFERROR(OFFSET(CalculationsAndCharts!$D$32, N80,0,1,1),"") -> 52.56 | Q80: -3.61 | R80: -10.16
B81: =IFERROR(MATCH(TRUE,OFFSET(CalculationsAndCharts!$W$33,B80,0, $C$2-B80,1),0)+B80,"") -> 1397 | C81: =IFERROR(OFFSET(CalculationsAndCharts!$B$32, B81,0,1,1),"") -> 2009-01-05 | D81: =IFERROR(OFFSET(CalculationsAndCharts!$D$32, B81,0,1,1),"") -> 51.89 | E81: =IF(B81="","",IFERROR((MATCH(TRUE,OFFSET(CalculationsAndCharts!$Y$33,E80,0, $C$2-E80,1),0)+E80),"")) -> 1390 | F81: =IFERROR(OFFSET(CalculationsAndCharts!$B$32, E81,0,1,1),"") -> 2009-01-14 | G81: =IFERROR(OFFSET(CalculationsAndCharts!$D$32, E81,0,1,1),"") -> 48.95 | H81: -2.94 | I81: 10.3 | K81: =IFERROR(MATCH(TRUE,OFFSET(CalculationsAndCharts!$Z$33,K80,0, $C$2-K80,1),0)+K80,"") -> 1404 | L81: =IFERROR(OFFSET(CalculationsAndCharts!$B$32, K81,0,1,1),"") -> 2008-12-23 | M81: =IFERROR(OFFSET(CalculationsAndCharts!$D$32, K81,0,1,1),"") -> 49.31 | N81: =IF(K81="","",IFERROR(MATCH(TRUE,OFFSET(CalculationsAndCharts!$AB$33,N80,0, $C$2-N80,1),0)+N80,"")) -> 1397 | O81: =IFERROR(OFFSET(CalculationsAndCharts!$B$32, N81,0,1,1),"") -> 2009-01-05 | P81: =IFERROR(OFFSET(CalculationsAndCharts!$D$32, N81,0,1,1),"") -> 51.89 | Q81: -2.58 | R81: -6.55
B82: =IFERROR(MATCH(TRUE,OFFSET(CalculationsAndCharts!$W$33,B81,0, $C$2-B81,1),0)+B81,"") -> 1418 | C82: =IFERROR(OFFSET(CalculationsAndCharts!$B$32, B82,0,1,1),"") -> 2008-12-03 | D82: =IFERROR(OFFSET(CalculationsAndCharts!$D$32, B82,0,1,1),"") -> 48.12 | E82: =IF(B82="","",IFERROR((MATCH(TRUE,OFFSET(CalculationsAndCharts!$Y$33,E81,0, $C$2-E81,1),0)+E81),"")) -> 1404 | F82: =IFERROR(OFFSET(CalculationsAndCharts!$B$32, E82,0,1,1),"") -> 2008-12-23 | G82: =IFERROR(OFFSET(CalculationsAndCharts!$D$32, E82,0,1,1),"") -> 49.31 | H82: =IFERROR(G82-D82,"") -> 1.19 | I82: =IFERROR(H82+IF(""=I83,0,I83),"") -> 13.24 | K82: =IFERROR(MATCH(TRUE,OFFSET(CalculationsAndCharts!$Z$33,K81,0, $C$2-K81,1),0)+K81,"") -> 1429 | L82: =IFERROR(OFFSET(CalculationsAndCharts!$B$32, K82,0,1,1),"") -> 2008-11-17 | M82: =IFERROR(OFFSET(CalculationsAndCharts!$D$32, K82,0,1,1),"") -> 47.26 | N82: =IF(K82="","",IFERROR(MATCH(TRUE,OFFSET(CalculationsAndCharts!$AB$33,N81,0, $C$2-N81,1),0)+N81,"")) -> 1418 | O82: =IFERROR(OFFSET(CalculationsAndCharts!$B$32, N82,0,1,1),"") -> 2008-12-03 | P82: =IFERROR(OFFSET(CalculationsAndCharts!$D$32, N82,0,1,1),"") -> 48.12 | Q82: =IFERROR(M82-P82,"") -> -0.86 | R82: =IFERROR(Q82+IF(""=R83,0,R83),"") -> -3.97
